Workbook

Sheet Describe
A1: Disclaimer
A2: This software is made available free of charge with the understanding that neither the author nor the Society of Actuaries accepts
A3: any liability for its use. It may be used for any personal, research or commercial use provided that the user does not represent it
A4: as his or her own work and does not distribute it to others for a fee.
A6: What
A7: This workbook calculates a 1-dimensional improvement scale and an associated base mortality table that approximate MP-2016 and RP-2014.
A8: NOTE: the scale and mortality table go together. Neither can be used by itself.
A9: NOTE: the calculated scale is intended as an approximation. It is not suitable as a mortality assumption on its own. Some of the numbers may not make
A10: sense on their own, but the annuity values may be close enough to permit the use of the approximation.
A11: The approximation is tuned for single life annuities. It is not necessarily good enough for all types of annuities. See the worksheet "Comparisons" to see how
A12: good the approximation is in a variety of cases. This workbook is a tool for an actuary; the actuary remains responsible for exercising proper judgment on
A13: whether the approximation calculated here is appropriate for use in a particular case.
A14: If the valuation software can handle a 2-dimensional scale, then using an approximation is extra work with possible loss of accuracy, and therefore, may not be appropriate.
A16: How
A17: On the worksheet "Approximation", select values for the fields highlighted in yellow. Some of the values must be selected from a drop-down list. The values for
A18: rating, year of calculation, and interest rate are to be keyed in, but there are validation checks to protect against clearly inappropriate values.
A19: The field for "Deferred to age" is required only if the Annuity type selected is "Deferred to x" rather than "Life". In this case, enter the age to which annuities
A20: are to be deferred. The calculation is identical to "Life" for ages higher than or equal to the "deferred to" age.
A21: If you select "Employee" status (cell B4) for the rates, then you must also specify how to interpolate to the Healthy Annuitant Rates (cells B17,B18). The Employee
A22: rates are used up to and including "Highest EE age" (cell B17), and the Healthy Annuitant rates are used for ages beginning with "Lowest HA age" (cell B18).
A23: The rates for intervening ages are obtained by multiplying the HA rates by a ratio which is linearly interpolated between the ratio of EE to HA at the "Highest EE age"
A24: to 100% at the "Lowest HA age".
A25: Interest rates may be specified as a single rate (using cell M5), as 3 PPA segment rates (using cells Q5:Q7), or a vector of interest rates (using cells M5:M121). The rates used are highlighted in green.
A26: There is an option for "Dataset": "manual base table". Use this option if you wish to provide your own table. It must be entered under the appropriate
A27: headings, starting at cell H4. If you do not provide rates to age 120, the remaining ages will be filled with 1.0. If you use "manual base table", you must provide the
A28: base year of the mortality table in cell B11 (pale yellow); otherwise, the base year is calculated by the program.
A29: The selection "Adj to RP-2014" has changed in this version. Because there is no published mortality table for 2016 to go with MP-2016, you must specify how to
A30: calculate a base table to apply to one year before the calculation year. Each of the selections are described below.
B31: "none" The base table is not projected. If you use a manual table, it is your responsibility to ensure that the base year is one prior to "Year of Calc".
B32: "RP-2014 to 2016" The published table is projected by two years on MP-2016.
B33: "RP-2014@2006 to 2015/6" The published table is projected back to 2006 on MP-2014 and then forward to 2015 or 2016 on MP-2016.
A34: NOTE: Year of calculation must be 1 to 4 years after the base year of the table. The approximation is better with a smaller gap.
A36: Comments
A37: If you change any of the input parameters, the most recently calculated rates are cleared. The warning message disappears when you click on "Calculate".
A38: The interest rates specified are assumed to be spot rates. However, the calculation is done using forward rates which are calculated from the spot rates.
A39: "Joint" in the Comparison worksheet refers to joint and survivor annuities. The female is assumed to be 3 years younger than the male.
A40: The formula for the equivalence in improvement rates is shown below, assuming a calculation year of yc, a base year of yb, life annuities and a flat interest rate.
A43: Author
A44: This software was written by RCW (Bob) Howard, FSA, FCIA, September 2014. | I44: bob@howardfamily.ca
A45: Modified September 2016 to reflect MP-2016.

Sheet Approximation
A1: Create an approximate improvement scale and base mortality table from RP-2014 and MP-2016
D2: Rates to approximate MP-2016 | H2: Base q @ 2016 to use with approximate 1D scale
A3: Dataset | B3: Total Dataset | D3: Age | E3: Male | F3: Female | H3: Age | I3: Male | J3: Female | L3: Interest Rates
A4: Status | B4: Healthy Annuitant | D4: 50 | E4: 0.01163976913 | F4: 0.01259414206 | H4: 50 | I4: 0.004092151242 | J4: 0.002737469512 | L4: Year | M4: Spot | N4: Forward | Q4: PPA Segment Rates
A5: Rating | B5: 1 | D5: 51 | E5: 0.01390770894 | F5: 0.01489731795 | H5: 51 | I5: 0.00443337202 | J5: 0.002889976478 | L5: 1 | M5: 0.06 | N5: 0.06 | P5: Years 1-5 | Q5: 0.06
A6: Year of calc | B6: 2017 | D6: 52 | E6: 0.01517397278 | F6: 0.01682367442 | H6: 52 | I6: 0.004789721958 | J6: 0.003070845614 | L6: 2 | M6: 0.06 | N6: 0.06 | P6: Years 5-20 | Q6: 0.055
A7: Annuity | B7: Life | D7: 53 | E7: 0.01650445814 | F7: 0.01826172905 | H7: 53 | I7: 0.005129380588 | J7: 0.003279988402 | L7: 3 | M7: 0.06 | N7: 0.06 | P7: Years 21+ | Q7: 0.05
A8: Deferred to | D8: 54 | E8: 0.01744146284 | F8: 0.01897266879 | H8: 54 | I8: 0.005473933287 | J8: 0.003519381203 | L8: 4 | M8: 0.06 | N8: 0.06
A9: Interest | B9: Flat rate in cell J5 | D9: 55 | E9: 0.01777674929 | F9: 0.01922950453 | H9: 55 | I9: 0.005830862007 | J9: 0.003788998811 | L9: 5 | M9: 0.06 | N9: 0.06
A10: Adj to RP-2014 | B10: RP-2014@2006 to 2016 | D10: 56 | E10: 0.01778146473 | F10: 0.01826227188 | H10: 56 | I10: 0.006208626428 | J10: 0.004087571238 | L10: 6 | M10: 0.06 | N10: 0.06
A11: Base yr to qx | B11: 2016 | D11: 57 | E11: 0.0176403061 | F11: 0.01689861416 | H11: 57 | I11: 0.006612650965 | J11: 0.004418384448 | L11: 7 | M11: 0.06 | N11: 0.06
D12: 58 | E12: 0.0168507375 | F12: 0.0150361475 | H12: 58 | I12: 0.007049993917 | J12: 0.00478012865 | L12: 8 | M12: 0.06 | N12: 0.06
D13: 59 | E13: 0.01604472636 | F13: 0.01262053511 | H13: 59 | I13: 0.007524674122 | J13: 0.005176962379 | L13: 9 | M13: 0.06 | N13: 0.06
D14: 60 | E14: 0.01471937856 | F14: 0.009604434993 | H14: 60 | I14: 0.008047272959 | J14: 0.005605844416 | L14: 10 | M14: 0.06 | N14: 0.06
D15: 61 | E15: 0.01352196863 | F15: 0.007321760989 | H15: 61 | I15: 0.008619238379 | J15: 0.006078218903 | L15: 11 | M15: 0.06 | N15: 0.06
A16: Interpolation if using Employee rates | D16: 62 | E16: 0.01176270877 | F16: 0.004605817572 | H16: 62 | I16: 0.009246185788 | J16: 0.006590541157 | L16: 12 | M16: 0.06 | N16: 0.06
A17: Highest EE age | B17: 70 | D17: 63 | E17: 0.01016617897 | F17: 0.003192476732 | H17: 63 | I17: 0.009934305916 | J17: 0.007146562291 | L17: 13 | M17: 0.06 | N17: 0.06
A18: Lowest HA age | B18: 80 | D18: 64 | E18: 0.008313908579 | F18: 0.002090336242 | H18: 64 | I18: 0.01069562314 | J18: 0.007763440057 | L18: 14 | M18: 0.06 | N18: 0.06
D19: 65 | E19: 0.006930956152 | F19: 0.001771763879 | H19: 65 | I19: 0.01152781428 | J19: 0.008443442667 | L19: 15 | M19: 0.06 | N19: 0.06
D20: 66 | E20: 0.00533089151 | F20: 0.001832027904 | H20: 66 | I20: 0.01245326092 | J20: 0.009200788131 | L20: 16 | M20: 0.06 | N20: 0.06
D21: 67 | E21: 0.004246489492 | F21: 0.00296888261 | H21: 67 | I21: 0.01347231779 | J21: 0.01005017599 | L21: 17 | M21: 0.06 | N21: 0.06
D22: 68 | E22: 0.00363306185 | F22: 0.00401300073 | H22: 68 | I22: 0.01461413271 | J22: 0.01099961094 | L22: 18 | M22: 0.06 | N22: 0.06
D23: 69 | E23: 0.003316071969 | F23: 0.005337770971 | H23: 69 | I23: 0.01590635884 | J23: 0.01206453809 | L23: 19 | M23: 0.06 | N23: 0.06
D24: 70 | E24: 0.004186880801 | F24: 0.007335410187 | H24: 70 | I24: 0.01735904423 | J24: 0.01325640592 | L24: 20 | M24: 0.06 | N24: 0.06
D25: 71 | E25: 0.004849836944 | F25: 0.008533374075 | H25: 71 | I25: 0.01898717868 | J25: 0.01459711269 | L25: 21 | M25: 0.06 | N25: 0.06
D26: 72 | E26: 0.005740688948 | F26: 0.009533842171 | H26: 72 | I26: 0.02083102747 | J26: 0.016084864 | L26: 22 | M26: 0.06 | N26: 0.06
D27: 73 | E27: 0.006940925885 | F27: 0.01039520697 | H27: 73 | I27: 0.02290703793 | J27: 0.01775387161 | L27: 23 | M27: 0.06 | N27: 0.06
D28: 74 | E28: 0.007832958447 | F28: 0.01122743619 | H28: 74 | I28: 0.02524003829 | J28: 0.01961808882 | L28: 24 | M28: 0.06 | N28: 0.06
D29: 75 | E29: 0.008488687526 | F29: 0.01158217882 | H29: 75 | I29: 0.02786671357 | J29: 0.02170423005 | L29: 25 | M29: 0.06 | N29: 0.06
A30: none | D30: 76 | E30: 0.009185990363 | F30: 0.0116898646 | H30: 76 | I30: 0.03082920797 | J30: 0.02404868656 | L30: 26 | M30: 0.06 | N30: 0.06
A31: RP-2014 to 2016 | D31: 77 | E31: 0.009823044225 | F31: 0.01201539596 | H31: 77 | I31: 0.0341583714 | J31: 0.02668758894 | L31: 27 | M31: 0.06 | N31: 0.06
A32: RP-2014@2006 to 2015 | D32: 78 | E32: 0.01036717309 | F32: 0.01208923554 | H32: 78 | I32: 0.03793856643 | J32: 0.02968346092 | L32: 28 | M32: 0.06 | N32: 0.06
A33: RP-2014@2006 to 2016 | D33: 79 | E33: 0.01040392825 | F33: 0.01212534483 | H33: 79 | I33: 0.04217773711 | J33: 0.0330800939 | L33: 29 | M33: 0.06 | N33: 0.06
D34: 80 | E34: 0.01136128046 | F34: 0.01242563618 | H34: 80 | I34: 0.04698916521 | J34: 0.03693077406 | L34: 30 | M34: 0.06 | N34: 0.06
A35: Total Dataset | D35: 81 | E35: 0.01122852491 | F35: 0.01207764 | H35: 81 | I35: 0.05241920159 | J35: 0.04134375646 | L35: 31 | M35: 0.06 | N35: 0.06
A36: Blue Collar | D36: 82 | E36: 0.01118731303 | F36: 0.0116840403 | H36: 82 | I36: 0.05856351512 | J36: 0.04631693391 | L36: 32 | M36: 0.06 | N36: 0.06
A37: White Collar | D37: 83 | E37: 0.01122106737 | F37: 0.01107984381 | H37: 83 | I37: 0.06548513675 | J37: 0.0519985261 | L37: 33 | M37: 0.06 | N37: 0.06
A38: Top Quartile | D38: 84 | E38: 0.01077616045 | F38: 0.01049421005 | H38: 84 | I38: 0.07333616122 | J38: 0.05842437138 | L38: 34 | M38: 0.06 | N38: 0.06
A39: Bottom Quartile | D39: 85 | E39: 0.01081924511 | F39: 0.009777743473 | H39: 85 | I39: 0.08212784923 | J39: 0.06567602268 | L39: 35 | M39: 0.06 | N39: 0.06
A40: manual base table | D40: 86 | E40: 0.01032308769 | F40: 0.009214952182 | H40: 86 | I40: 0.09198340762 | J40: 0.07381466936 | L40: 36 | M40: 0.06 | N40: 0.06
D41: 87 | E41: 0.009990753634 | F41: 0.00876652001 | H41: 87 | I41: 0.1030169835 | J41: 0.08292301327 | L41: 37 | M41: 0.06 | N41: 0.06
D42: 88 | E42: 0.009797628598 | F42: 0.008110918824 | H42: 88 | I42: 0.1152773073 | J42: 0.09301672669 | L42: 38 | M42: 0.06 | N42: 0.06
D43: 89 | E43: 0.009464711823 | F43: 0.00788446688 | H43: 89 | I43: 0.1288571319 | J43: 0.1041548391 | L43: 39 | M43: 0.06 | N43: 0.06
D44: 90 | E44: 0.009136443216 | F44: 0.007466854714 | H44: 90 | I44: 0.1438550946 | J44: 0.1165066255 | L44: 40 | M44: 0.06 | N44: 0.06
D45: 91 | E45: 0.008775377182 | F45: 0.007354759847 | H45: 91 | I45: 0.1596602623 | J45: 0.1298564147 | L45: 41 | M45: 0.06 | N45: 0.06
D46: 92 | E46: 0.008604847083 | F46: 0.007358509826 | H46: 92 | I46: 0.1757815539 | J46: 0.143994778 | L46: 42 | M46: 0.06 | N46: 0.06
D47: 93 | E47: 0.008580699484 | F47: 0.007414457154 | H47: 93 | I47: 0.191921546 | J47: 0.1587267429 | L47: 43 | M47: 0.06 | N47: 0.06
D48: 94 | E48: 0.008539577558 | F48: 0.007536587857 | H48: 94 | I48: 0.2080777848 | J48: 0.1739904118 | L48: 44 | M48: 0.06 | N48: 0.06
D49: 95 | E49: 0.008658166081 | F49: 0.007617117193 | H49: 95 | I49: 0.2239731592 | J49: 0.1897970665 | L49: 45 | M49: 0.06 | N49: 0.06
D50: 96 | E50: 0.008268571907 | F50: 0.007279006196 | H50: 96 | I50: 0.2420925865 | J50: 0.2070588447 | L50: 46 | M50: 0.06 | N50: 0.06
D51: 97 | E51: 0.007935229569 | F51: 0.006940981771 | H51: 97 | I51: 0.2606744932 | J51: 0.2250294399 | L51: 47 | M51: 0.06 | N51: 0.06
D52: 98 | E52: 0.007533103895 | F52: 0.0065807421 | H52: 98 | I52: 0.2798870126 | J52: 0.2437157752 | L52: 48 | M52: 0.06 | N52: 0.06
D53: 99 | E53: 0.00698944359 | F53: 0.006299817404 | H53: 99 | I53: 0.2996040441 | J53: 0.2630824307 | L53: 49 | M53: 0.06 | N53: 0.06
D54: 100 | E54: 0.006770491926 | F54: 0.005821426896 | H54: 100 | I54: 0.3197429321 | J54: 0.2829427226 | L54: 50 | M54: 0.06 | N54: 0.06
D55: 101 | E55: 0.006227846611 | F55: 0.00540375827 | H55: 101 | I55: 0.3401074923 | J55: 0.3031229779 | L55: 51 | M55: 0.06 | N55: 0.06
D56: 102 | E56: 0.00578477226 | F56: 0.005080116854 | H56: 102 | I56: 0.3601726105 | J56: 0.3234133558 | L56: 52 | M56: 0.06 | N56: 0.06
D57: 103 | E57: 0.005401925426 | F57: 0.004711874759 | H57: 103 | I57: 0.3799817908 | J57: 0.3437056769 | L57: 53 | M57: 0.06 | N57: 0.06
D58: 104 | E58: 0.005024140532 | F58: 0.004301692957 | H58: 104 | I58: 0.3991931281 | J58: 0.3635740745 | L58: 54 | M58: 0.06 | N58: 0.06
D59: 105 | E59: 0.004502839804 | F59: 0.00394673957 | H59: 105 | I59: 0.4177793049 | J59: 0.3832051314 | L59: 55 | M59: 0.06 | N59: 0.06
D60: 106 | E60: 0.004040978181 | F60: 0.003535864345 | H60: 106 | I60: 0.4357104857 | J60: 0.4022212353 | L60: 56 | M60: 0.06 | N60: 0.06
D61: 107 | E61: 0.003661355656 | F61: 0.003135380889 | H61: 107 | I61: 0.4525389341 | J61: 0.4203888446 | L61: 57 | M61: 0.06 | N61: 0.06
D62: 108 | E62: 0.003222893685 | F62: 0.002818018568 | H62: 108 | I62: 0.468490732 | J62: 0.4378324293 | L62: 58 | M62: 0.06 | N62: 0.06
D63: 109 | E63: 0.002664703962 | F63: 0.002473315411 | H63: 109 | I63: 0.4835241694 | J63: 0.454330539 | L63: 59 | M63: 0.06 | N63: 0.06
D64: 110 | E64: 0.002341389211 | F64: 0.001962565534 | H64: 110 | I64: 0.4973655693 | J64: 0.4698057389 | L64: 60 | M64: 0.06 | N64: 0.06
D65: 111 | E65: 0.001853106415 | F65: 0.0016 | H65: 111 | I65: 0.5024151671 | J65: 0.484109985 | L65: 61 | M65: 0.06 | N65: 0.06
D66: 112 | E66: 0.001399952005 | F66: 0.0012 | H66: 112 | I66: 0.5018084893 | J66: 0.4973572251 | L66: 62 | M66: 0.06 | N66: 0.06
D67: 113 | E67: 0.0008532545083 | F67: 0.0008 | H67: 113 | I67: 0.5012539558 | J67: 0.5029133625 | L67: 63 | M67: 0.06 | N67: 0.06
D68: 114 | E68: 0.0005 | F68: 0.0004 | H68: 114 | I68: 0.5006510314 | J68: 0.5013529505 | L68: 64 | M68: 0.06 | N68: 0.06
D69: 115 | E69: 0 | F69: 0 | H69: 115 | I69: 0.5 | J69: 0.5 | L69: 65 | M69: 0.06 | N69: 0.06
D70: 116 | E70: 0 | F70: 0 | H70: 116 | I70: 0.5 | J70: 0.5 | L70: 66 | M70: 0.06 | N70: 0.06
D71: 117 | E71: 0 | F71: 0 | H71: 117 | I71: 0.5 | J71: 0.5 | L71: 67 | M71: 0.06 | N71: 0.06
D72: 118 | E72: 0 | F72: 0 | H72: 118 | I72: 0.5 | J72: 0.5 | L72: 68 | M72: 0.06 | N72: 0.06
D73: 119 | E73: 0 | F73: 0 | H73: 119 | I73: 0.5 | J73: 0.5 | L73: 69 | M73: 0.06 | N73: 0.06
D74: 120 | E74: 0 | F74: 0 | H74: 120 | I74: 1 | J74: 1 | L74: 70 | M74: 0.06 | N74: 0.06
L75: 71 | M75: 0.06 | N75: 0.06
L76: 72 | M76: 0.06 | N76: 0.06
L77: 73 | M77: 0.06 | N77: 0.06
L78: 74 | M78: 0.06 | N78: 0.06
L79: 75 | M79: 0.06 | N79: 0.06
L80: 76 | M80: 0.06 | N80: 0.06
L81: 77 | M81: 0.06 | N81: 0.06
L82: 78 | M82: 0.06 | N82: 0.06
L83: 79 | M83: 0.06 | N83: 0.06
L84: 80 | M84: 0.06 | N84: 0.06
L85: 81 | M85: 0.06 | N85: 0.06
L86: 82 | M86: 0.06 | N86: 0.06
L87: 83 | M87: 0.06 | N87: 0.06
L88: 84 | M88: 0.06 | N88: 0.06
L89: 85 | M89: 0.06 | N89: 0.06
L90: 86 | M90: 0.06 | N90: 0.06
L91: 87 | M91: 0.06 | N91: 0.06
L92: 88 | M92: 0.06 | N92: 0.06
L93: 89 | M93: 0.06 | N93: 0.06
L94: 90 | M94: 0.06 | N94: 0.06
L95: 91 | M95: 0.06 | N95: 0.06
L96: 92 | M96: 0.06 | N96: 0.06
L97: 93 | M97: 0.06 | N97: 0.06
L98: 94 | M98: 0.06 | N98: 0.06
L99: 95 | M99: 0.06 | N99: 0.06
L100: 96 | M100: 0.06 | N100: 0.06
L101: 97 | M101: 0.06 | N101: 0.06
L102: 98 | M102: 0.06 | N102: 0.06
L103: 99 | M103: 0.06 | N103: 0.06
L104: 100 | M104: 0.06 | N104: 0.06
L105: 101 | M105: 0.06 | N105: 0.06
L106: 102 | M106: 0.06 | N106: 0.06
L107: 103 | M107: 0.06 | N107: 0.06
L108: 104 | M108: 0.06 | N108: 0.06
L109: 105 | M109: 0.06 | N109: 0.06
L110: 106 | M110: 0.06 | N110: 0.06
L111: 107 | M111: 0.06 | N111: 0.06
L112: 108 | M112: 0.06 | N112: 0.06
L113: 109 | M113: 0.06 | N113: 0.06
L114: 110 | M114: 0.06 | N114: 0.06
L115: 111 | M115: 0.06 | N115: 0.06
L116: 112 | M116: 0.06 | N116: 0.06
L117: 113 | M117: 0.06 | N117: 0.06
L118: 114 | M118: 0.06 | N118: 0.06
L119: 115 | M119: 0.06 | N119: 0.06
L120: 116 | M120: 0.06 | N120: 0.06
L121: 117 | M121: 0.06 | N121: 0.06

Sheet Comparisons
A1: Comparing the exact and approximate calculation of present values of monthly annuities-due
A2: The numbers shown are (approximate - exact)/exact | L2: Calculations for later years use the same spot rate yield curve as the earlier year.
B3: As of January 1, 2017 at 6.0% interest with a mortality rating of 100% | L3: As of January 1, 2018 at 6.0% interest with a mortality rating of 100% | V3: As of January 1, 2019 at 6.0% interest with a mortality rating of 100%
C4: Single Life | E4: 10-year Certain | G4: Joint Unreduced | I4: Jt Reducing to 60% | M4: Single Life | O4: 10-year Certain | Q4: Joint Unreduced | S4: Jt Reducing to 60% | W4: Single Life | Y4: 10-year Certain | AA4: Joint Unreduced | AC4: Jt Reducing to 60%
B5: Age | C5: Male | D5: Female | E5: Male | F5: Female | G5: Male | H5: Female | I5: Male | J5: Female | L5: Age | M5: Male | N5: Female | O5: Male | P5: Female | Q5: Male | R5: Female | S5: Male | T5: Female | V5: Age | W5: Male | X5: Female | Y5: Male | Z5: Female | AA5: Male | AB5: Female | AC5: Male | AD5: Female
B6: 30 | C6: n/a | D6: n/a | E6: n/a | F6: n/a | G6: n/a | H6: n/a | I6: n/a | J6: n/a | L6: 30 | M6: n/a | N6: n/a | O6: n/a | P6: n/a | Q6: n/a | R6: n/a | S6: n/a | T6: n/a | V6: 30 | W6: n/a | X6: n/a | Y6: n/a | Z6: n/a | AA6: n/a | AB6: n/a | AC6: n/a | AD6: n/a
B7: 40 | C7: n/a | D7: n/a | E7: n/a | F7: n/a | G7: n/a | H7: n/a | I7: n/a | J7: n/a | L7: 40 | M7: n/a | N7: n/a | O7: n/a | P7: n/a | Q7: n/a | R7: n/a | S7: n/a | T7: n/a | V7: 40 | W7: n/a | X7: n/a | Y7: n/a | Z7: n/a | AA7: n/a | AB7: n/a | AC7: n/a | AD7: n/a
B8: 50 | C8: 2.51821763e-16 | D8: 4.878852023e-16 | E8: -0.0001532138571 | F8: -0.0002220763064 | G8: n/a | H8: -0.0002568623974 | I8: n/a | J8: -0.0001577213755 | L8: 50 | M8: 2.213677707e-05 | N8: -6.073217173e-07 | O8: -0.0001546410476 | P8: -0.0002598872802 | Q8: n/a | R8: -0.0002897055777 | S8: n/a | T8: -0.0001781028986 | V8: 50 | W8: 6.734337661e-05 | X8: 2.908025108e-06 | Y8: -0.0001405969226 | Z8: -0.0002942033951 | AA8: n/a | AB8: -0.0003210166355 | AC8: n/a | AD8: -0.0001959481459
B9: 60 | C9: 1.43463332e-16 | D9: 1.37239587e-16 | E9: -0.000313599895 | F9: 3.476324684e-05 | G9: -7.688634599e-05 | H9: 5.739999257e-06 | I9: -4.907213537e-05 | J9: 3.558956619e-06 | L9: 60 | M9: -9.311079509e-05 | N9: -6.961047411e-05 | O9: -0.0004646268261 | P9: -3.477777204e-05 | Q9: -0.000133997063 | R9: -3.808446972e-05 | S9: -0.0001191993491 | T9: -5.006602294e-05 | V9: 60 | W9: -0.000257550913 | X9: -0.0002050266094 | Y9: -0.0006560620148 | Z9: -0.0001468411511 | AA9: -0.0002078424614 | AB9: -0.0001072346344 | AC9: -0.0002258412426 | AD9: -0.0001444067726
B10: 70 | C10: -1.783094002e-16 | D10: 3.354130179e-16 | E10: 0.0003661345465 | F10: 6.722674167e-05 | G10: -3.663605415e-05 | H10: -0.0001332600284 | I10: -2.401381669e-05 | J10: -8.354443103e-05 | L10: 70 | M10: 5.04415205e-05 | N10: 6.575756299e-05 | O10: 0.0004612158883 | P10: 0.0001304247256 | Q10: 4.56196513e-06 | R10: -8.858690941e-05 | S10: 2.037682067e-05 | T10: -3.099283014e-05 | V10: 70 | W10: 0.0001170781129 | X10: 0.000186400738 | Y10: 0.0005568987331 | Z10: 0.0002191412924 | AA10: 5.075869296e-05 | AB10: -2.066709002e-05 | AC10: 7.36305584e-05 | AD10: 5.66159923e-05
B11: 80 | C11: 1.294523605e-16 | D11: 0 | E11: 3.829708156e-05 | F11: -0.0004953146302 | G11: -0.0002545528145 | H11: -0.0001783503541 | I11: -0.0001730853834 | J11: -0.0001132257879 | L11: 80 | M11: 7.022880824e-05 | N11: -5.534413861e-05 | O11: 6.163063525e-05 | P11: -0.0006421358576 | Q11: -0.0002926692645 | R11: -0.000270945279 | S11: -0.0001764225336 | T11: -0.0001922060182 | V11: 80 | W11: 0.0002038009804 | X11: -0.000142351217 | Y11: 0.0001024035021 | Z11: -0.0007971265408 | AA11: -0.0003150275265 | AB11: -0.0003751340807 | AC11: -0.0001486881299 | AD11: -0.0002901052525
B12: 90 | C12: 0 | D12: -2.028772852e-16 | E12: 0.000167017209 | F12: 0.000116909502 | G12: 0.0001308268701 | H12: 0.0001794763651 | I12: 9.238176018e-05 | J12: 0.0001156795432 | L12: 90 | M12: 3.882797813e-05 | N12: -2.366026555e-05 | O12: 0.0002024543681 | P12: 0.0001262489325 | Q12: 0.0001050834301 | R12: 0.0002747353666 | S12: 8.55940165e-05 | T12: 0.0001686744228 | V12: 90 | W12: 0.0001142890453 | X12: -7.785893371e-05 | Y12: 0.0002385709947 | Z12: 0.0001280929642 | AA12: 2.506463884e-05 | AB12: 0.0003823651182 | AC12: 5.133903481e-05 | AD12: 0.0002187898104
B13: 30d60 | C13: n/a | D13: n/a | E13: n/a | F13: n/a | G13: n/a | H13: n/a | I13: n/a | J13: n/a | L13: 30d60 | M13: n/a | N13: n/a | O13: n/a | P13: n/a | Q13: n/a | R13: n/a | S13: n/a | T13: n/a | V13: 30d60 | W13: n/a | X13: n/a | Y13: n/a | Z13: n/a | AA13: n/a | AB13: n/a | AC13: n/a | AD13: n/a
B14: 40d60 | C14: n/a | D14: n/a | E14: n/a | F14: n/a | G14: n/a | H14: n/a | I14: n/a | J14: n/a | L14: 40d60 | M14: n/a | N14: n/a | O14: n/a | P14: n/a | Q14: n/a | R14: n/a | S14: n/a | T14: n/a | V14: 40d60 | W14: n/a | X14: n/a | Y14: n/a | Z14: n/a | AA14: n/a | AB14: n/a | AC14: n/a | AD14: n/a
B15: 50d60 | C15: -0.0003918832121 | D15: -0.0005223938574 | E15: -0.0006953262317 | F15: 0.0001115748986 | G15: n/a | H15: -0.0005410104015 | I15: n/a | J15: -0.0005340254318 | L15: 50d60 | M15: -0.0004017416481 | N15: -0.0006068051555 | O15: -0.000700485924 | P15: 0.0001033410696 | Q15: n/a | R15: -0.0006096552619 | S15: n/a | T15: -0.0006085851132 | V15: 50d60 | W15: -0.0003795335898 | X15: -0.0006839603357 | Y15: -0.0006755939444 | Z15: 0.0001006395082 | AA15: n/a | AB15: -0.0006751130712 | AC15: n/a | AD15: -0.0006784339036
B16: 30d65 | C16: n/a | D16: n/a | E16: n/a | F16: n/a | G16: n/a | H16: n/a | I16: n/a | J16: n/a | L16: 30d65 | M16: n/a | N16: n/a | O16: n/a | P16: n/a | Q16: n/a | R16: n/a | S16: n/a | T16: n/a | V16: 30d65 | W16: n/a | X16: n/a | Y16: n/a | Z16: n/a | AA16: n/a | AB16: n/a | AC16: n/a | AD16: n/a
B17: 40d65 | C17: n/a | D17: n/a | E17: n/a | F17: n/a | G17: n/a | H17: n/a | I17: n/a | J17: n/a | L17: 40d65 | M17: n/a | N17: n/a | O17: n/a | P17: n/a | Q17: n/a | R17: n/a | S17: n/a | T17: n/a | V17: 40d65 | W17: n/a | X17: n/a | Y17: n/a | Z17: n/a | AA17: n/a | AB17: n/a | AC17: n/a | AD17: n/a
B18: 50d65 | C18: -0.001934613629 | D18: -0.00159355865 | E18: 0.0003097386979 | F18: 0.000104672932 | G18: n/a | H18: -0.000884077338 | I18: n/a | J18: -0.001145662651 | L18: 50d65 | M18: -0.002068378971 | N18: -0.00178757094 | O18: 0.0003270090216 | P18: 3.146151877e-05 | Q18: n/a | R18: -0.0009893745732 | S18: n/a | T18: -0.001283781473 | V18: 50d65 | W18: -0.002167616391 | X18: -0.00197293938 | Y18: 0.0003760417589 | Z18: -3.508685213e-05 | AA18: n/a | AB18: -0.001090108651 | AC18: n/a | AD18: -0.001415854984
B19: 60d65 | C19: -0.0001933882889 | D19: -5.811168451e-05 | E19: 0.0003894993377 | F19: 0.0004307696471 | G19: -0.0001155267509 | H19: 4.733219759e-06 | I19: -0.0001424935615 | J19: -1.86612744e-05 | L19: 60d65 | M19: -0.0003986424436 | N19: -0.0001857818404 | O19: 0.0003428451426 | P19: 0.0003952533725 | Q19: -0.0001985289139 | R19: -5.977290052e-05 | S19: -0.0002678873523 | T19: -0.0001066905775 | V19: 60d65 | W19: -0.0006930834485 | X19: -0.0003990138736 | Y19: 0.0002182256985 | Z19: 0.0002894120787 | AA19: -0.0003047559602 | AB19: -0.0001601021434 | AC19: -0.0004394513206 | AD19: -0.0002490788451
B21: As of January 1, 2017 at 4.0% interest with a mortality rating of 100% | L21: As of January 1, 2018 at 4.0% interest with a mortality rating of 100% | V21: As of January 1, 2019 at 4.0% interest with a mortality rating of 100%
C22: Single Life | E22: 10-year Certain | G22: Joint Unreduced | I22: Jt Reducing to 60% | M22: Single Life | O22: 10-year Certain | Q22: Joint Unreduced | S22: Jt Reducing to 60% | W22: Single Life | Y22: 10-year Certain | AA22: Joint Unreduced | AC22: Jt Reducing to 60%
B23: Age | C23: Male | D23: Female | E23: Male | F23: Female | G23: Male | H23: Female | I23: Male | J23: Female | L23: Age | M23: Male | N23: Female | O23: Male | P23: Female | Q23: Male | R23: Female | S23: Male | T23: Female | V23: Age | W23: Male | X23: Female | Y23: Male | Z23: Female | AA23: Male | AB23: Female | AC23: Male | AD23: Female
B24: 30 | C24: n/a | D24: n/a | E24: n/a | F24: n/a | G24: n/a | H24: n/a | I24: n/a | J24: n/a | L24: 30 | M24: n/a | N24: n/a | O24: n/a | P24: n/a | Q24: n/a | R24: n/a | S24: n/a | T24: n/a | V24: 30 | W24: n/a | X24: n/a | Y24: n/a | Z24: n/a | AA24: n/a | AB24: n/a | AC24: n/a | AD24: n/a
B25: 40 | C25: n/a | D25: n/a | E25: n/a | F25: n/a | G25: n/a | H25: n/a | I25: n/a | J25: n/a | L25: 40 | M25: n/a | N25: n/a | O25: n/a | P25: n/a | Q25: n/a | R25: n/a | S25: n/a | T25: n/a | V25: 40 | W25: n/a | X25: n/a | Y25: n/a | Z25: n/a | AA25: n/a | AB25: n/a | AC25: n/a | AD25: n/a
B26: 50 | C26: -0.0002028598967 | D26: -0.0002972723791 | E26: -0.0003401403176 | F26: -0.0004928992582 | G26: n/a | H26: -0.0004708167698 | I26: n/a | J26: -0.0004044133999 | L26: 50 | M26: -0.0002015565168 | N26: -0.0003281726687 | O26: -0.000359946787 | P26: -0.0005562023146 | Q26: n/a | R26: -0.0005224967396 | S26: n/a | T26: -0.0004481293094 | V26: 50 | W26: -0.0001754613301 | X26: -0.0003545512219 | Y26: -0.0003615923631 | Z26: -0.0006155113909 | AA26: n/a | AB26: -0.0005722174163 | AC26: n/a | AD26: -0.0004889025879
B27: 60 | C27: 5.127302549e-05 | D27: -0.0001150902466 | E27: -0.0002350254277 | F27: -7.683517964e-05 | G27: -0.0002004839303 | H27: -9.672219797e-05 | I27: -0.0001115453604 | J27: -0.0001036459495 | L27: 60 | M27: -7.105782112e-05 | N27: -0.000202976857 | O27: -0.0004076313569 | P27: -0.0001629423082 | Q27: -0.0002777049815 | R27: -0.0001550306745 | S27: -0.0002046674408 | T27: -0.0001731067248 | V27: 60 | W27: -0.0002682875044 | X27: -0.0003613826843 | Y27: -0.000626901427 | Z27: -0.0002984598225 | AA27: -0.0003752725818 | AB27: -0.0002436464911 | AC27: -0.0003374399833 | AD27: -0.0002880408695
B28: 70 | C28: 0.0001413723728 | D28: -0.0001899654592 | E28: 0.0004866053263 | F28: -0.0001217589969 | G28: -0.0001683138425 | H28: -0.0002828677262 | I28: -6.412540772e-05 | J28: -0.0002484275708 | L28: 70 | M28: 0.0002159255649 | N28: -0.0001293741154 | O28: 0.0006010817647 | P28: -6.518051692e-05 | Q28: -0.0001275146505 | R28: -0.0002419799984 | S28: -1.191199988e-05 | T28: -0.0002002273319 | V28: 70 | W28: 0.00030572212 | X28: -1.174407661e-05 | Y28: 0.0007161015698 | Z28: 2.058012568e-05 | AA28: -8.143849697e-05 | AB28: -0.0001753553817 | AC28: 4.894559723e-05 | AD28: -0.0001146801688
B29: 80 | C29: 4.586834631e-05 | D29: -0.0001257685229 | E29: 7.468494149e-05 | F29: -0.0005988506117 | G29: -0.0003691501785 | H29: -0.0002370266613 | I29: -0.0002391679319 | J29: -0.000196567422 | L29: 80 | M29: 0.0001228793644 | N29: -0.0002209740988 | O29: 0.0001026478582 | P29: -0.0007761827895 | Q29: -0.0004283620041 | R29: -0.0003550151586 | S29: -0.0002555634763 | T29: -0.0003062643451 | V29: 80 | W29: 0.0002664987554 | X29: -0.0003489842932 | Y29: 0.000150681802 | Z29: -0.000963098965 | AA29: -0.0004705806423 | AB29: -0.0004859650713 | AC29: -0.0002393322081 | AD29: -0.0004361377537
B30: 90 | C30: 6.640841058e-05 | D30: 3.888758645e-05 | E30: 0.0001964016841 | F30: 0.0001368017382 | G30: 0.0001835893581 | H30: 0.0002375670083 | I30: 0.0001497181404 | J30: 0.0001671190061 | L30: 90 | M30: 0.0001235154169 | N30: 2.003829457e-05 | O30: 0.000237518589 | P30: 0.0001472646184 | Q30: 0.0001577254782 | R30: 0.0003450114789 | S30: 0.0001478286295 | T30: 0.0002297921211 | V30: 90 | W30: 0.000217787248 | X30: -3.261652363e-05 | Y30: 0.0002793998625 | Z30: 0.0001490392037 | AA30: 7.224963508e-05 | AB30: 0.0004632148576 | AC30: 0.0001144044355 | AD30: 0.0002874269729
B31: 30d60 | C31: n/a | D31: n/a | E31: n/a | F31: n/a | G31: n/a | H31: n/a | I31: n/a | J31: n/a | L31: 30d60 | M31: n/a | N31: n/a | O31: n/a | P31: n/a | Q31: n/a | R31: n/a | S31: n/a | T31: n/a | V31: 30d60 | W31: n/a | X31: n/a | Y31: n/a | Z31: n/a | AA31: n/a | AB31: n/a | AC31: n/a | AD31: n/a
B32: 40d60 | C32: n/a | D32: n/a | E32: n/a | F32: n/a | G32: n/a | H32: n/a | I32: n/a | J32: n/a | L32: 40d60 | M32: n/a | N32: n/a | O32: n/a | P32: n/a | Q32: n/a | R32: n/a | S32: n/a | T32: n/a | V32: 40d60 | W32: n/a | X32: n/a | Y32: n/a | Z32: n/a | AA32: n/a | AB32: n/a | AC32: n/a | AD32: n/a
B33: 50d60 | C33: -0.0006760445179 | D33: -0.000926755473 | E33: -0.000930314801 | F33: -0.0003313763734 | G33: n/a | H33: -0.0008250107123 | I33: n/a | J33: -0.000862912339 | L33: 50d60 | M33: -0.0007173807412 | N33: -0.001043648401 | O33: -0.0009654378082 | P33: -0.0003782919459 | Q33: n/a | R33: -0.0009152633527 | S33: n/a | T33: -0.0009631034785 | V33: 50d60 | W33: -0.0007261705652 | X33: -0.001153334853 | Y33: -0.0009698703874 | Z33: -0.0004196272974 | AA33: n/a | AB33: -0.001002008179 | AC33: n/a | AD33: -0.001058413798
B34: 30d65 | C34: n/a | D34: n/a | E34: n/a | F34: n/a | G34: n/a | H34: n/a | I34: n/a | J34: n/a | L34: 30d65 | M34: n/a | N34: n/a | O34: n/a | P34: n/a | Q34: n/a | R34: n/a | S34: n/a | T34: n/a | V34: 30d65 | W34: n/a | X34: n/a | Y34: n/a | Z34: n/a | AA34: n/a | AB34: n/a | AC34: n/a | AD34: n/a
B35: 40d65 | C35: n/a | D35: n/a | E35: n/a | F35: n/a | G35: n/a | H35: n/a | I35: n/a | J35: n/a | L35: 40d65 | M35: n/a | N35: n/a | O35: n/a | P35: n/a | Q35: n/a | R35: n/a | S35: n/a | T35: n/a | V35: 40d65 | W35: n/a | X35: n/a | Y35: n/a | Z35: n/a | AA35: n/a | AB35: n/a | AC35: n/a | AD35: n/a
B36: 50d65 | C36: -0.002014336064 | D36: -0.001915082854 | E36: 0.0001051398984 | F36: -0.000348477438 | G36: n/a | H36: -0.0011888643 | I36: n/a | J36: -0.001455068911 | L36: 50d65 | M36: -0.002165460993 | N36: -0.002128784442 | O36: 9.523759975e-05 | P36: -0.0004517094969 | Q36: n/a | R36: -0.001314579222 | S36: n/a | T36: -0.001613141785 | V36: 50d65 | W36: -0.002281765099 | X36: -0.002334102542 | Y36: 0.0001174213648 | Z36: -0.0005484712893 | AA36: n/a | AB36: -0.001435558966 | AC36: n/a | AD36: -0.001765162646
B37: 60d65 | C37: -8.413204893e-05 | D37: -0.0002060683261 | E37: 0.0004726361408 | F37: 0.0002489970415 | G37: -0.000270467866 | H37: -0.0001331479996 | I37: -0.0002074221326 | J37: -0.0001601169418 | L37: 60d65 | M37: -0.0003081315827 | N37: -0.0003465834636 | O37: 0.0003987614296 | P37: 0.0001935343239 | Q37: -0.0003739859763 | R37: -0.0002124863851 | S37: -0.0003516875014 | T37: -0.0002620908326 | V37: 60d65 | W37: -0.0006222656066 | X37: -0.0005747025887 | Y37: 0.0002450520001 | Z37: 6.448803661e-05 | AA37: -0.0005039352704 | AB37: -0.0003319568423 | AC37: -0.0005440306651 | AD37: -0.0004217720079
B39: As of January 1, 2017 at 8.0% interest with a mortality rating of 100% | L39: As of January 1, 2018 at 8.0% interest with a mortality rating of 100% | V39: As of January 1, 2019 at 8.0% interest with a mortality rating of 100%
C40: Single Life | E40: 10-year Certain | G40: Joint Unreduced | I40: Jt Reducing to 60% | M40: Single Life | O40: 10-year Certain | Q40: Joint Unreduced | S40: Jt Reducing to 60% | W40: Single Life | Y40: 10-year Certain | AA40: Joint Unreduced | AC40: Jt Reducing to 60%
B41: Age | C41: Male | D41: Female | E41: Male | F41: Female | G41: Male | H41: Female | I41: Male | J41: Female | L41: Age | M41: Male | N41: Female | O41: Male | P41: Female | Q41: Male | R41: Female | S41: Male | T41: Female | V41: Age | W41: Male | X41: Female | Y41: Male | Z41: Female | AA41: Male | AB41: Female | AC41: Male | AD41: Female
B42: 30 | C42: n/a | D42: n/a | E42: n/a | F42: n/a | G42: n/a | H42: n/a | I42: n/a | J42: n/a | L42: 30 | M42: n/a | N42: n/a | O42: n/a | P42: n/a | Q42: n/a | R42: n/a | S42: n/a | T42: n/a | V42: 30 | W42: n/a | X42: n/a | Y42: n/a | Z42: n/a | AA42: n/a | AB42: n/a | AC42: n/a | AD42: n/a
B43: 40 | C43: n/a | D43: n/a | E43: n/a | F43: n/a | G43: n/a | H43: n/a | I43: n/a | J43: n/a | L43: 40 | M43: n/a | N43: n/a | O43: n/a | P43: n/a | Q43: n/a | R43: n/a | S43: n/a | T43: n/a | V43: 40 | W43: n/a | X43: n/a | Y43: n/a | Z43: n/a | AA43: n/a | AB43: n/a | AC43: n/a | AD43: n/a
B44: 50 | C44: 0.0001642796184 | D44: 0.0001680313298 | E44: -3.229844606e-07 | F44: -7.364748862e-05 | G44: n/a | H44: -0.0001396973928 | I44: n/a | J44: -2.011700484e-05 | L44: 50 | M44: 0.0002010757056 | N44: 0.0001883566541 | O44: 1.11869553e-05 | P44: -9.433945361e-05 | Q44: n/a | R44: -0.0001602078094 | S44: n/a | T44: -2.473637855e-05 | V44: 50 | W44: 0.0002593694983 | X44: 0.000212389008 | Y44: 3.579533272e-05 | Z44: -0.0001120338472 | AA44: n/a | AB44: -0.0001795426725 | AC44: n/a | AD44: -2.719139362e-05
B45: 60 | C45: -4.810409613e-06 | D45: 3.509550395e-05 | E45: -0.0003415481523 | F45: 6.597804461e-05 | G45: -2.090740616e-05 | H45: 4.629898712e-05 | I45: -1.497721126e-05 | J45: 4.201239616e-05 | L45: 60 | M45: -7.034814779e-05 | N45: -2.100288071e-05 | O45: -0.0004720101051 | P45: 7.980870137e-06 | Q45: -6.362046354e-05 | R45: 1.246501529e-05 | S45: -6.609986126e-05 | T45: -3.420012154e-07 | V45: 60 | W45: -0.0002037832353 | X45: -0.0001385285379 | Y45: -0.0006372629271 | Z45: -8.640648018e-05 | AA45: -0.0001201513659 | AB45: -4.255798832e-05 | AC45: -0.0001509877901 | AD45: -7.928832826e-05
B46: 70 | C46: -0.0001058751501 | D46: 0.0001110572129 | E46: 0.0002752819643 | F46: 0.0001797906669 | G46: 3.702824963e-05 | H46: -3.64649325e-05 | I46: -1.317928942e-05 | J46: 1.889201854e-05 | L46: 70 | M46: -7.580466657e-05 | N46: 0.0001763992612 | O46: 0.0003541687328 | P46: 0.00024440691 | Q46: 7.584183285e-05 | R46: 8.556902369e-06 | S46: 2.253598125e-05 | T46: 7.155351733e-05 | V46: 70 | W46: -2.878090172e-05 | X46: 0.0002944828987 | Y46: 0.0004336865151 | Z46: 0.000331234553 | AA46: 0.0001193956881 | AB46: 7.45950867e-05 | AC46: 6.728402546e-05 | AD46: 0.0001571434898
B47: 80 | C47: -3.050415783e-05 | D47: 0.0001008846103 | E47: 1.400860207e-05 | F47: -0.0004098854088 | G47: -0.000164578821 | H47: -0.0001288139556 | I47: -0.0001208516153 | J47: -4.460644101e-05 | L47: 80 | M47: 3.381157836e-05 | N47: 7.837334207e-05 | O47: 3.361047908e-05 | P47: -0.0005316207664 | Q47: -0.0001863979459 | R47: -0.0002004709444 | S47: -0.0001145134998 | T47: -9.822788671e-05 | V47: 80 | W47: 0.0001584083883 | X47: 2.526563937e-05 | Y47: 6.836399148e-05 | Z47: -0.0006603179303 | AA47: -0.0001936285313 | AB47: -0.0002825281003 | AC47: -7.861027344e-05 | AD47: -0.0001696481439
B48: 90 | C48: -5.327737127e-05 | D48: -3.151644956e-05 | E48: 0.0001423449721 | F48: 0.0001000959743 | G48: 8.810851303e-05 | H48: 0.0001307987648 | I48: 4.593149125e-05 | J48: 7.296016796e-05 | L48: 90 | M48: -3.008269633e-05 | N48: -5.946150305e-05 | O48: 0.0001729335074 | P48: 0.0001084160447 | Q48: 6.244630984e-05 | R48: 0.0002150214588 | S48: 3.481522241e-05 | T48: 0.000117218111 | V48: 90 | W48: 2.916651325e-05 | X48: -0.0001150926081 | Y48: 0.0002041256905 | Z48: 0.0001102613738 | AA48: -1.277944889e-05 | AB48: 0.0003129007286 | AC48: -2.399620321e-07 | AD48: 0.0001604011333
B49: 30d60 | C49: n/a | D49: n/a | E49: n/a | F49: n/a | G49: n/a | H49: n/a | I49: n/a | J49: n/a | L49: 30d60 | M49: n/a | N49: n/a | O49: n/a | P49: n/a | Q49: n/a | R49: n/a | S49: n/a | T49: n/a | V49: 30d60 | W49: n/a | X49: n/a | Y49: n/a | Z49: n/a | AA49: n/a | AB49: n/a | AC49: n/a | AD49: n/a
B50: 40d60 | C50: n/a | D50: n/a | E50: n/a | F50: n/a | G50: n/a | H50: n/a | I50: n/a | J50: n/a | L50: 40d60 | M50: n/a | N50: n/a | O50: n/a | P50: n/a | Q50: n/a | R50: n/a | S50: n/a | T50: n/a | V50: 40d60 | W50: n/a | X50: n/a | Y50: n/a | Z50: n/a | AA50: n/a | AB50: n/a | AC50: n/a | AD50: n/a
B51: 50d60 | C51: -7.77804861e-05 | D51: -0.0002539964662 | E51: -0.0004292818409 | F51: 0.0004047398753 | G51: n/a | H51: -0.0003672789932 | I51: n/a | J51: -0.0003245220106 | L51: 50d60 | M51: -5.757257584e-05 | N51: -0.000312065578 | O51: -0.0004062324794 | P51: 0.000427392891 | Q51: n/a | R51: -0.0004200048791 | S51: n/a | T51: -0.0003792511973 | V51: 50d60 | W51: -5.733781556e-06 | X51: -0.0003629025953 | Y51: -0.000353694249 | Z51: 0.0004554818519 | AA51: n/a | AB51: -0.000469847436 | AC51: n/a | AD51: -0.0004294561477
B52: 30d65 | C52: n/a | D52: n/a | E52: n/a | F52: n/a | G52: n/a | H52: n/a | I52: n/a | J52: n/a | L52: 30d65 | M52: n/a | N52: n/a | O52: n/a | P52: n/a | Q52: n/a | R52: n/a | S52: n/a | T52: n/a | V52: 30d65 | W52: n/a | X52: n/a | Y52: n/a | Z52: n/a | AA52: n/a | AB52: n/a | AC52: n/a | AD52: n/a
B53: 40d65 | C53: n/a | D53: n/a | E53: n/a | F53: n/a | G53: n/a | H53: n/a | I53: n/a | J53: n/a | L53: 40d65 | M53: n/a | N53: n/a | O53: n/a | P53: n/a | Q53: n/a | R53: n/a | S53: n/a | T53: n/a | V53: 40d65 | W53: n/a | X53: n/a | Y53: n/a | Z53: n/a | AA53: n/a | AB53: n/a | AC53: n/a | AD53: n/a
B54: 50d65 | C54: -0.00177948921 | D54: -0.001431430611 | E54: 0.0005502892206 | F54: 0.000375265883 | G54: n/a | H54: -0.000701202786 | I54: n/a | J54: -0.0009718197532 | L54: 50d65 | M54: -0.001894434526 | N54: -0.001611681441 | O54: 0.00059358963 | P54: 0.0003242921254 | Q54: n/a | R54: -0.0007914474934 | S54: n/a | T54: -0.001095542475 | V54: 50d65 | W54: -0.001975132325 | X54: -0.001783099297 | Y54: 0.0006683700464 | Z54: 0.0002801230031 | AA54: n/a | AB54: -0.0008772959566 | AC54: n/a | AD54: -0.001213248651
B55: 60d65 | C55: -0.0002412757071 | D55: -1.459546847e-05 | E55: 0.0003557526876 | F55: 0.0005029770225 | G55: -3.948904904e-05 | H55: 6.786138915e-05 | I55: -0.0001106859243 | J55: 3.698891029e-05 | L55: 60d65 | M55: -0.0004264066818 | N55: -0.0001344842727 | O55: 0.0003351107277 | P55: 0.0004810155858 | Q55: -0.0001072912952 | R55: 1.366598108e-05 | S55: -0.0002199641343 | T55: -4.181467521e-05 | V55: 60d65 | W55: -0.0006998001807 | X55: -0.0003380171804 | Y55: 0.0002381774599 | Z55: 0.0003916213878 | AA55: -0.0001956331975 | AB55: -7.263578861e-05 | AC55: -0.0003737753308 | AD55: -0.0001720429885

Sheet Sample Qx Calc
A1: This worksheet contains sample calculations of mortality rates that may be useful in testing software for a 2-dimensional improvement scale. The approximate improvement scale is not used.
A2: Table: | B2: RP-2014 Total Dataset Healthy Annuitant
A3: Scale: | B3: MP-2016
A4: Sex: | B4: Male
A5: Age\Year | B5: 2014 | C5: 2015 | D5: 2016 | E5: 2017 | F5: 2018 | G5: 2019 | H5: 2020 | I5: 2021 | J5: 2022 | K5: 2023 | L5: 2024 | M5: 2025 | N5: 2026 | O5: 2027 | P5: 2028 | Q5: 2029 | R5: 2030 | S5: 2031 | T5: 2032 | U5: 2033 | V5: 2034 | W5: 2035
A6: 75 | B6: ='Total Dataset'!E62 -> 0.026826 | C6: =B6*(1-'MP-2016 Male'!BO60) -> 0.0264879924 | D6: =C6*(1-'MP-2016 Male'!BP60) -> 0.02616748769 | E6: =D6*(1-'MP-2016 Male'!BQ60) -> 0.02586917833 | F6: =E6*(1-'MP-2016 Male'!BR60) -> 0.02559237812 | G6: =F6*(1-'MP-2016 Male'!BS60) -> 0.02533645434 | H6: =G6*(1-'MP-2016 Male'!BT60) -> 0.02510082532 | I6: =H6*(1-'MP-2016 Male'!BU60) -> 0.02488244814 | J6: =I6*(1-'MP-2016 Male'!BV60) -> 0.02467592382 | K6: =J6*(1-'MP-2016 Male'!BW60) -> 0.02447604883 | L6: =K6*(1-'MP-2016 Male'!BX60) -> 0.02427779284 | M6: =L6*(1-'MP-2016 Male'!BY60) -> 0.02407871494 | N6: =M6*(1-'MP-2016 Male'!BZ60) -> 0.02387404586 | O6: =N6*(1-'MP-2016 Male'!CA60) -> 0.02366156685 | P6: =O6*(1-'MP-2016 Male'!CB60) -> 0.02344151428 | Q6: =P6*(1-'MP-2016 Male'!CC60) -> 0.02321647574 | R6: =Q6*(1-'MP-2016 Male'!$CD60) -> 0.02298895428 | S6: =R6*(1-'MP-2016 Male'!$CD60) -> 0.02276366253 | T6: =S6*(1-'MP-2016 Male'!$CD60) -> 0.02254057864 | U6: =T6*(1-'MP-2016 Male'!$CD60) -> 0.02231968097 | V6: =U6*(1-'MP-2016 Male'!$CD60) -> 0.02210094809 | W6: =V6*(1-'MP-2016 Male'!$CD60) -> 0.0218843588
A7: 76 | B7: ='Total Dataset'!E63 -> 0.029608 | C7: =B7*(1-'MP-2016 Male'!BO61) -> 0.0292319784 | D7: =C7*(1-'MP-2016 Male'!BP61) -> 0.02887242507 | E7: =D7*(1-'MP-2016 Male'!BQ61) -> 0.02853461769 | F7: =E7*(1-'MP-2016 Male'!BR61) -> 0.02821788344 | G7: =F7*(1-'MP-2016 Male'!BS61) -> 0.02792441745 | H7: =G7*(1-'MP-2016 Male'!BT61) -> 0.02765075816 | I7: =H7*(1-'MP-2016 Male'!BU61) -> 0.02739637118 | J7: =I7*(1-'MP-2016 Male'!BV61) -> 0.02715528312 | K7: =J7*(1-'MP-2016 Male'!BW61) -> 0.02692446321 | L7: =K7*(1-'MP-2016 Male'!BX61) -> 0.02669829772 | M7: =L7*(1-'MP-2016 Male'!BY61) -> 0.02647403202 | N7: =M7*(1-'MP-2016 Male'!BZ61) -> 0.02624635534 | O7: =N7*(1-'MP-2016 Male'!CA61) -> 0.02601276278 | P7: =O7*(1-'MP-2016 Male'!CB61) -> 0.02577084409 | Q7: =P7*(1-'MP-2016 Male'!CC61) -> 0.02552344398 | R7: =Q7*(1-'MP-2016 Male'!$CD61) -> 0.02527331423 | S7: =R7*(1-'MP-2016 Male'!$CD61) -> 0.02502563575 | T7: =S7*(1-'MP-2016 Male'!$CD61) -> 0.02478038452 | U7: =T7*(1-'MP-2016 Male'!$CD61) -> 0.02453753675 | V7: =U7*(1-'MP-2016 Male'!$CD61) -> 0.02429706889 | W7: =V7*(1-'MP-2016 Male'!$CD61) -> 0.02405895762
A8: 77 | B8: ='Total Dataset'!E64 -> 0.032735 | C8: =B8*(1-'MP-2016 Male'!BO62) -> 0.0323192655 | D8: =C8*(1-'MP-2016 Male'!BP62) -> 0.03191850661 | E8: =D8*(1-'MP-2016 Male'!BQ62) -> 0.03153867638 | F8: =E8*(1-'MP-2016 Male'!BR62) -> 0.03117913547 | G8: =F8*(1-'MP-2016 Male'!BS62) -> 0.03084240081 | H8: =G8*(1-'MP-2016 Male'!BT62) -> 0.03052780832 | I8: =H8*(1-'MP-2016 Male'!BU62) -> 0.03023168858 | J8: =I8*(1-'MP-2016 Male'!BV62) -> 0.02995053387 | K8: =J8*(1-'MP-2016 Male'!BW62) -> 0.02968097907 | L8: =K8*(1-'MP-2016 Male'!BX62) -> 0.02941978645 | M8: =L8*(1-'MP-2016 Male'!BY62) -> 0.02916383431 | N8: =M8*(1-'MP-2016 Male'!BZ62) -> 0.02890719257 | O8: =N8*(1-'MP-2016 Male'!CA62) -> 0.02864702783 | P8: =O8*(1-'MP-2016 Male'!CB62) -> 0.02838061048 | Q8: =P8*(1-'MP-2016 Male'!CC62) -> 0.02810815662 | R8: =Q8*(1-'MP-2016 Male'!$CD62) -> 0.02783269668 | S8: =R8*(1-'MP-2016 Male'!$CD62) -> 0.02755993625 | T8: =S8*(1-'MP-2016 Male'!$CD62) -> 0.02728984888 | U8: =T8*(1-'MP-2016 Male'!$CD62) -> 0.02702240836 | V8: =U8*(1-'MP-2016 Male'!$CD62) -> 0.02675758876 | W8: =V8*(1-'MP-2016 Male'!$CD62) -> 0.02649536439
A9: 78 | B9: ='Total Dataset'!E65 -> 0.036258 | C9: =B9*(1-'MP-2016 Male'!BO63) -> 0.0358011492 | D9: =C9*(1-'MP-2016 Male'!BP63) -> 0.03536079506 | E9: =D9*(1-'MP-2016 Male'!BQ63) -> 0.03493646552 | F9: =E9*(1-'MP-2016 Male'!BR63) -> 0.03453469617 | G9: =F9*(1-'MP-2016 Male'!BS63) -> 0.03415481451 | H9: =G9*(1-'MP-2016 Male'!BT63) -> 0.03379618896 | I9: =H9*(1-'MP-2016 Male'!BU63) -> 0.03345822707 | J9: =I9*(1-'MP-2016 Male'!BV63) -> 0.03313368227 | K9: =J9*(1-'MP-2016 Male'!BW63) -> 0.03282553902 | L9: =K9*(1-'MP-2016 Male'!BX63) -> 0.03252682662 | M9: =L9*(1-'MP-2016 Male'!BY63) -> 0.03223408518 | N9: =M9*(1-'MP-2016 Male'!BZ63) -> 0.03194397841 | O9: =N9*(1-'MP-2016 Male'!CA63) -> 0.03165328821 | P9: =O9*(1-'MP-2016 Male'!CB63) -> 0.03135891263 | Q9: =P9*(1-'MP-2016 Male'!CC63) -> 0.03105786707 | R9: =Q9*(1-'MP-2016 Male'!$CD63) -> 0.03075349997 | S9: =R9*(1-'MP-2016 Male'!$CD63) -> 0.03045211567 | T9: =S9*(1-'MP-2016 Male'!$CD63) -> 0.03015368494 | U9: =T9*(1-'MP-2016 Male'!$CD63) -> 0.02985817882 | V9: =U9*(1-'MP-2016 Male'!$CD63) -> 0.02956556867 | W9: =V9*(1-'MP-2016 Male'!$CD63) -> 0.0292758261
A10: 79 | B10: ='Total Dataset'!E66 -> 0.040232 | C10: =B10*(1-'MP-2016 Male'!BO64) -> 0.0397291 | D10: =C10*(1-'MP-2016 Male'!BP64) -> 0.03924440498 | E10: =D10*(1-'MP-2016 Male'!BQ64) -> 0.03877739656 | F10: =E10*(1-'MP-2016 Male'!BR64) -> 0.03832757876 | G10: =F10*(1-'MP-2016 Male'!BS64) -> 0.03789830988 | H10: =G10*(1-'MP-2016 Male'!BT64) -> 0.03749279796 | I10: =H10*(1-'MP-2016 Male'!BU64) -> 0.03710662214 | J10: =I10*(1-'MP-2016 Male'!BV64) -> 0.03673555592 | K10: =J10*(1-'MP-2016 Male'!BW64) -> 0.03637922103 | L10: =K10*(1-'MP-2016 Male'!BX64) -> 0.03603725635 | M10: =L10*(1-'MP-2016 Male'!BY64) -> 0.03570210987 | N10: =M10*(1-'MP-2016 Male'!BZ64) -> 0.03537008025 | O10: =N10*(1-'MP-2016 Male'!CA64) -> 0.0350411385 | P10: =O10*(1-'MP-2016 Male'!CB64) -> 0.0347117518 | Q10: =P10*(1-'MP-2016 Male'!CC64) -> 0.03437851898 | R10: =Q10*(1-'MP-2016 Male'!$CD64) -> 0.03404160949 | S10: =R10*(1-'MP-2016 Male'!$CD64) -> 0.03370800172 | T10: =S10*(1-'MP-2016 Male'!$CD64) -> 0.0333776633 | U10: =T10*(1-'MP-2016 Male'!$CD64) -> 0.0330505622 | V10: =U10*(1-'MP-2016 Male'!$CD64) -> 0.03272666669 | W10: =V10*(1-'MP-2016 Male'!$CD64) -> 0.03240594536
A11: 80 | B11: ='Total Dataset'!E67 -> 0.044722 | C11: =B11*(1-'MP-2016 Male'!BO65) -> 0.0441719194 | D11: =C11*(1-'MP-2016 Male'!BP65) -> 0.04363743918 | E11: =D11*(1-'MP-2016 Male'!BQ65) -> 0.04311815365 | F11: =E11*(1-'MP-2016 Male'!BR65) -> 0.04262229488 | G11: =F11*(1-'MP-2016 Male'!BS65) -> 0.04214492518 | H11: =G11*(1-'MP-2016 Male'!BT65) -> 0.04168554549 | I11: =H11*(1-'MP-2016 Male'!BU65) -> 0.04124784727 | J11: =I11*(1-'MP-2016 Male'!BV65) -> 0.04082711923 | K11: =J11*(1-'MP-2016 Male'!BW65) -> 0.04042293074 | L11: =K11*(1-'MP-2016 Male'!BX65) -> 0.04003082832 | M11: =L11*(1-'MP-2016 Male'!BY65) -> 0.03965053545 | N11: =M11*(1-'MP-2016 Male'!BZ65) -> 0.03927782041 | O11: =N11*(1-'MP-2016 Male'!CA65) -> 0.03890468112 | P11: =O11*(1-'MP-2016 Male'!CB65) -> 0.03853508665 | Q11: =P11*(1-'MP-2016 Male'!CC65) -> 0.03816129631 | R11: =Q11*(1-'MP-2016 Male'!$CD65) -> 0.03778731561 | S11: =R11*(1-'MP-2016 Male'!$CD65) -> 0.03741699991 | T11: =S11*(1-'MP-2016 Male'!$CD65) -> 0.03705031331 | U11: =T11*(1-'MP-2016 Male'!$CD65) -> 0.03668722024 | V11: =U11*(1-'MP-2016 Male'!$CD65) -> 0.03632768548 | W11: =V11*(1-'MP-2016 Male'!$CD65) -> 0.03597167417
A12: 81 | B12: ='Total Dataset'!E68 -> 0.049795 | C12: =B12*(1-'MP-2016 Male'!BO66) -> 0.04919746 | D12: =C12*(1-'MP-2016 Male'!BP66) -> 0.04861201023 | E12: =D12*(1-'MP-2016 Male'!BQ66) -> 0.04804324971 | F12: =E12*(1-'MP-2016 Male'!BR66) -> 0.04749075233 | G12: =F12*(1-'MP-2016 Male'!BS66) -> 0.04695885591 | H12: =G12*(1-'MP-2016 Male'!BT66) -> 0.04644700438 | I12: =H12*(1-'MP-2016 Male'!BU66) -> 0.04595466613 | J12: =I12*(1-'MP-2016 Male'!BV66) -> 0.0454767376 | K12: =J12*(1-'MP-2016 Male'!BW66) -> 0.04501742256 | L12: =K12*(1-'MP-2016 Male'!BX66) -> 0.04457175007 | M12: =L12*(1-'MP-2016 Male'!BY66) -> 0.0441394041 | N12: =M12*(1-'MP-2016 Male'!BZ66) -> 0.04371566582 | O12: =N12*(1-'MP-2016 Male'!CA66) -> 0.04329599543 | P12: =O12*(1-'MP-2016 Male'!CB66) -> 0.04288035387 | Q12: =P12*(1-'MP-2016 Male'!CC66) -> 0.04246441444 | R12: =Q12*(1-'MP-2016 Male'!$CD66) -> 0.04204826317 | S12: =R12*(1-'MP-2016 Male'!$CD66) -> 0.0416361902 | T12: =S12*(1-'MP-2016 Male'!$CD66) -> 0.04122815553 | U12: =T12*(1-'MP-2016 Male'!$CD66) -> 0.04082411961 | V12: =U12*(1-'MP-2016 Male'!$CD66) -> 0.04042404324 | W12: =V12*(1-'MP-2016 Male'!$CD66) -> 0.04002788761
A13: 82 | B13: ='Total Dataset'!E69 -> 0.055526 | C13: =B13*(1-'MP-2016 Male'!BO67) -> 0.0548763458 | D13: =C13*(1-'MP-2016 Male'!BP67) -> 0.05423978019 | E13: =D13*(1-'MP-2016 Male'!BQ67) -> 0.05361602272 | F13: =E13*(1-'MP-2016 Male'!BR67) -> 0.05301016166 | G13: =F13*(1-'MP-2016 Male'!BS67) -> 0.05242174887 | H13: =G13*(1-'MP-2016 Male'!BT67) -> 0.0518503518 | I13: =H13*(1-'MP-2016 Male'!BU67) -> 0.05129555304 | J13: =I13*(1-'MP-2016 Male'!BV67) -> 0.05076207929 | K13: =J13*(1-'MP-2016 Male'!BW67) -> 0.05024430608 | L13: =K13*(1-'MP-2016 Male'!BX67) -> 0.04974186302 | M13: =L13*(1-'MP-2016 Male'!BY67) -> 0.04925439276 | N13: =M13*(1-'MP-2016 Male'!BZ67) -> 0.04877662515 | O13: =N13*(1-'MP-2016 Male'!CA67) -> 0.04830349189 | P13: =O13*(1-'MP-2016 Male'!CB67) -> 0.04783494801 | Q13: =P13*(1-'MP-2016 Male'!CC67) -> 0.04736616552 | R13: =Q13*(1-'MP-2016 Male'!$CD67) -> 0.04689724049 | S13: =R13*(1-'MP-2016 Male'!$CD67) -> 0.0464329578 | T13: =S13*(1-'MP-2016 Male'!$CD67) -> 0.04597327152 | U13: =T13*(1-'MP-2016 Male'!$CD67) -> 0.04551813613 | V13: =U13*(1-'MP-2016 Male'!$CD67) -> 0.04506750659 | W13: =V13*(1-'MP-2016 Male'!$CD67) -> 0.04462133827
A14: 83 | B14: ='Total Dataset'!E70 -> 0.061996 | C14: =B14*(1-'MP-2016 Male'!BO68) -> 0.0612892456 | D14: =C14*(1-'MP-2016 Male'!BP68) -> 0.0605905482 | E14: =D14*(1-'MP-2016 Male'!BQ68) -> 0.05990587501 | F14: =E14*(1-'MP-2016 Male'!BR68) -> 0.05923492921 | G14: =F14*(1-'MP-2016 Male'!BS68) -> 0.05858334498 | H14: =G14*(1-'MP-2016 Male'!BT68) -> 0.05794478652 | I14: =H14*(1-'MP-2016 Male'!BU68) -> 0.05732477731 | J14: =I14*(1-'MP-2016 Male'!BV68) -> 0.05672286715 | K14: =J14*(1-'MP-2016 Male'!BW68) -> 0.05613862161 | L14: =K14*(1-'MP-2016 Male'!BX68) -> 0.05557162154 | M14: =L14*(1-'MP-2016 Male'!BY68) -> 0.05502146248 | N14: =M14*(1-'MP-2016 Male'!BZ68) -> 0.05448225215 | O14: =N14*(1-'MP-2016 Male'!CA68) -> 0.0539537743 | P14: =O14*(1-'MP-2016 Male'!CB68) -> 0.05343042269 | Q14: =P14*(1-'MP-2016 Male'!CC68) -> 0.05290680455 | R14: =Q14*(1-'MP-2016 Male'!$CD68) -> 0.05238302719 | S14: =R14*(1-'MP-2016 Male'!$CD68) -> 0.05186443522 | T14: =S14*(1-'MP-2016 Male'!$CD68) -> 0.05135097731 | U14: =T14*(1-'MP-2016 Male'!$CD68) -> 0.05084260263 | V14: =U14*(1-'MP-2016 Male'!$CD68) -> 0.05033926087 | W14: =V14*(1-'MP-2016 Male'!$CD68) -> 0.04984090218
A15: 84 | B15: ='Total Dataset'!E71 -> 0.06929 | C15: =B15*(1-'MP-2016 Male'!BO69) -> 0.068520881 | D15: =C15*(1-'MP-2016 Male'!BP69) -> 0.06776029922 | E15: =D15*(1-'MP-2016 Male'!BQ69) -> 0.06701493593 | F15: =E15*(1-'MP-2016 Male'!BR69) -> 0.06627777163 | G15: =F15*(1-'MP-2016 Male'!BS69) -> 0.06555534392 | H15: =G15*(1-'MP-2016 Male'!BT69) -> 0.06484734621 | I15: =H15*(1-'MP-2016 Male'!BU69) -> 0.06415996434 | J15: =I15*(1-'MP-2016 Male'!BV69) -> 0.06348628471 | K15: =J15*(1-'MP-2016 Male'!BW69) -> 0.06283237598 | L15: =K15*(1-'MP-2016 Male'!BX69) -> 0.06219148575 | M15: =L15*(1-'MP-2016 Male'!BY69) -> 0.06156957089 | N15: =M15*(1-'MP-2016 Male'!BZ69) -> 0.06096003214 | O15: =N15*(1-'MP-2016 Male'!CA69) -> 0.06036262382 | P15: =O15*(1-'MP-2016 Male'!CB69) -> 0.05977710637 | Q15: =P15*(1-'MP-2016 Male'!CC69) -> 0.05919129073 | R15: =Q15*(1-'MP-2016 Male'!$CD69) -> 0.05860529695 | S15: =R15*(1-'MP-2016 Male'!$CD69) -> 0.05802510451 | T15: =S15*(1-'MP-2016 Male'!$CD69) -> 0.05745065598 | U15: =T15*(1-'MP-2016 Male'!$CD69) -> 0.05688189448 | V15: =U15*(1-'MP-2016 Male'!$CD69) -> 0.05631876373 | W15: =V15*(1-'MP-2016 Male'!$CD69) -> 0.05576120797
A16: 85 | B16: ='Total Dataset'!E72 -> 0.077497 | C16: =B16*(1-'MP-2016 Male'!BO70) -> 0.0766600324 | D16: =C16*(1-'MP-2016 Male'!BP70) -> 0.07583210405 | E16: =D16*(1-'MP-2016 Male'!BQ70) -> 0.07501311733 | F16: =E16*(1-'MP-2016 Male'!BR70) -> 0.07420297566 | G16: =F16*(1-'MP-2016 Male'!BS70) -> 0.07340900382 | H16: =G16*(1-'MP-2016 Male'!BT70) -> 0.07263086838 | I16: =H16*(1-'MP-2016 Male'!BU70) -> 0.07186824426 | J16: =I16*(1-'MP-2016 Male'!BV70) -> 0.0711136277 | K16: =J16*(1-'MP-2016 Male'!BW70) -> 0.07038115733 | L16: =K16*(1-'MP-2016 Male'!BX70) -> 0.06966326953 | M16: =L16*(1-'MP-2016 Male'!BY70) -> 0.06896663683 | N16: =M16*(1-'MP-2016 Male'!BZ70) -> 0.06828386713 | O16: =N16*(1-'MP-2016 Male'!CA70) -> 0.06761468523 | P16: =O16*(1-'MP-2016 Male'!CB70) -> 0.06695206131 | Q16: =P16*(1-'MP-2016 Male'!CC70) -> 0.06629593111 | R16: =Q16*(1-'MP-2016 Male'!$CD70) -> 0.06564623099 | S16: =R16*(1-'MP-2016 Male'!$CD70) -> 0.06500289792 | T16: =S16*(1-'MP-2016 Male'!$CD70) -> 0.06436586952 | U16: =T16*(1-'MP-2016 Male'!$CD70) -> 0.063735084 | V16: =U16*(1-'MP-2016 Male'!$CD70) -> 0.06311048018 | W16: =V16*(1-'MP-2016 Male'!$CD70) -> 0.06249199747
A17: 86 | B17: ='Total Dataset'!E73 -> 0.086712 | C17: =B17*(1-'MP-2016 Male'!BO71) -> 0.085801524 | D17: =C17*(1-'MP-2016 Male'!BP71) -> 0.084900608 | E17: =D17*(1-'MP-2016 Male'!BQ71) -> 0.08400915161 | F17: =E17*(1-'MP-2016 Male'!BR71) -> 0.08312705552 | G17: =F17*(1-'MP-2016 Male'!BS71) -> 0.08226253414 | H17: =G17*(1-'MP-2016 Male'!BT71) -> 0.08140700379 | I17: =H17*(1-'MP-2016 Male'!BU71) -> 0.08056851165 | J17: =I17*(1-'MP-2016 Male'!BV71) -> 0.07973865598 | K17: =J17*(1-'MP-2016 Male'!BW71) -> 0.07892532169 | L17: =K17*(1-'MP-2016 Male'!BX71) -> 0.07812817594 | M17: =L17*(1-'MP-2016 Male'!BY71) -> 0.077354707 | N17: =M17*(1-'MP-2016 Male'!BZ71) -> 0.07659663087 | O17: =N17*(1-'MP-2016 Male'!CA71) -> 0.07585364355 | P17: =O17*(1-'MP-2016 Male'!CB71) -> 0.07511786321 | Q17: =P17*(1-'MP-2016 Male'!CC71) -> 0.07438921994 | R17: =Q17*(1-'MP-2016 Male'!$CD71) -> 0.0736676445 | S17: =R17*(1-'MP-2016 Male'!$CD71) -> 0.07295306835 | T17: =S17*(1-'MP-2016 Male'!$CD71) -> 0.07224542359 | U17: =T17*(1-'MP-2016 Male'!$CD71) -> 0.07154464298 | V17: =U17*(1-'MP-2016 Male'!$CD71) -> 0.07085065994 | W17: =V17*(1-'MP-2016 Male'!$CD71) -> 0.07016340854
A18: 87 | B18: ='Total Dataset'!E74 -> 0.097038 | C18: =B18*(1-'MP-2016 Male'!BO72) -> 0.0960482124 | D18: =C18*(1-'MP-2016 Male'!BP72) -> 0.09506852063 | E18: =D18*(1-'MP-2016 Male'!BQ72) -> 0.09409882172 | F18: =E18*(1-'MP-2016 Male'!BR72) -> 0.09313901374 | G18: =F18*(1-'MP-2016 Male'!BS72) -> 0.0921889958 | H18: =G18*(1-'MP-2016 Male'!BT72) -> 0.09125788694 | I18: =H18*(1-'MP-2016 Male'!BU72) -> 0.09033618229 | J18: =I18*(1-'MP-2016 Male'!BV72) -> 0.08943282046 | K18: =J18*(1-'MP-2016 Male'!BW72) -> 0.08853849226 | L18: =K18*(1-'MP-2016 Male'!BX72) -> 0.08766196118 | M18: =L18*(1-'MP-2016 Male'!BY72) -> 0.08680287397 | N18: =M18*(1-'MP-2016 Male'!BZ72) -> 0.08596088609 | O18: =N18*(1-'MP-2016 Male'!CA72) -> 0.08513566158 | P18: =O18*(1-'MP-2016 Male'!CB72) -> 0.08431835923 | Q18: =P18*(1-'MP-2016 Male'!CC72) -> 0.08351733482 | R18: =Q18*(1-'MP-2016 Male'!$CD72) -> 0.0827155684 | S18: =R18*(1-'MP-2016 Male'!$CD72) -> 0.08192149895 | T18: =S18*(1-'MP-2016 Male'!$CD72) -> 0.08113505256 | U18: =T18*(1-'MP-2016 Male'!$CD72) -> 0.08035615605 | V18: =U18*(1-'MP-2016 Male'!$CD72) -> 0.07958473695 | W18: =V18*(1-'MP-2016 Male'!$CD72) -> 0.07882072348
A19: 88 | B19: ='Total Dataset'!E75 -> 0.108591 | C19: =B19*(1-'MP-2016 Male'!BO73) -> 0.1075159491 | D19: =C19*(1-'MP-2016 Male'!BP73) -> 0.1064407896 | E19: =D19*(1-'MP-2016 Male'!BQ73) -> 0.1053763817 | F19: =E19*(1-'MP-2016 Male'!BR73) -> 0.1043331555 | G19: =F19*(1-'MP-2016 Male'!BS73) -> 0.1033002573 | H19: =G19*(1-'MP-2016 Male'!BT73) -> 0.1022775847 | I19: =H19*(1-'MP-2016 Male'!BU73) -> 0.1012752644 | J19: =I19*(1-'MP-2016 Male'!BV73) -> 0.1002827668 | K19: =J19*(1-'MP-2016 Male'!BW73) -> 0.09929999571 | L19: =K19*(1-'MP-2016 Male'!BX73) -> 0.09833678575 | M19: =L19*(1-'MP-2016 Male'!BY73) -> 0.09738291893 | N19: =M19*(1-'MP-2016 Male'!BZ73) -> 0.09644804291 | O19: =N19*(1-'MP-2016 Male'!CA73) -> 0.0955317865 | P19: =O19*(1-'MP-2016 Male'!CB73) -> 0.09462423453 | Q19: =P19*(1-'MP-2016 Male'!CC73) -> 0.09373476672 | R19: =Q19*(1-'MP-2016 Male'!$CD73) -> 0.09285365992 | S19: =R19*(1-'MP-2016 Male'!$CD73) -> 0.09198083551 | T19: =S19*(1-'MP-2016 Male'!$CD73) -> 0.09111621566 | U19: =T19*(1-'MP-2016 Male'!$CD73) -> 0.09025972323 | V19: =U19*(1-'MP-2016 Male'!$CD73) -> 0.08941128183 | W19: =V19*(1-'MP-2016 Male'!$CD73) -> 0.08857081579
A20: 89 | B20: ='Total Dataset'!E76 -> 0.121499 | C20: =B20*(1-'MP-2016 Male'!BO74) -> 0.1203083098 | D20: =C20*(1-'MP-2016 Male'!BP74) -> 0.1191292884 | E20: =D20*(1-'MP-2016 Male'!BQ74) -> 0.1179737343 | F20: =E20*(1-'MP-2016 Male'!BR74) -> 0.116829389 | G20: =F20*(1-'MP-2016 Male'!BS74) -> 0.115696144 | H20: =G20*(1-'MP-2016 Male'!BT74) -> 0.114585461 | I20: =H20*(1-'MP-2016 Male'!BU74) -> 0.1134854406 | J20: =I20*(1-'MP-2016 Male'!BV74) -> 0.1124073289 | K20: =J20*(1-'MP-2016 Male'!BW74) -> 0.1113394593 | L20: =K20*(1-'MP-2016 Male'!BX74) -> 0.1102817344 | M20: =L20*(1-'MP-2016 Male'!BY74) -> 0.1092340579 | N20: =M20*(1-'MP-2016 Male'!BZ74) -> 0.1081963344 | O20: =N20*(1-'MP-2016 Male'!CA74) -> 0.1071792888 | P20: =O20*(1-'MP-2016 Male'!CB74) -> 0.1061825214 | Q20: =P20*(1-'MP-2016 Male'!CC74) -> 0.105195024 | R20: =Q20*(1-'MP-2016 Male'!$CD74) -> 0.1042167103 | S20: =R20*(1-'MP-2016 Male'!$CD74) -> 0.1032474949 | T20: =S20*(1-'MP-2016 Male'!$CD74) -> 0.1022872932 | U20: =T20*(1-'MP-2016 Male'!$CD74) -> 0.1013360213 | V20: =U20*(1-'MP-2016 Male'!$CD74) -> 0.1003935963 | W20: =V20*(1-'MP-2016 Male'!$CD74) -> 0.09945993588
A21: 90 | B21: ='Total Dataset'!E77 -> 0.135908 | C21: =B21*(1-'MP-2016 Male'!BO75) -> 0.1345896924 | D21: =C21*(1-'MP-2016 Male'!BP75) -> 0.1332976314 | E21: =D21*(1-'MP-2016 Male'!BQ75) -> 0.1320313039 | F21: =E21*(1-'MP-2016 Male'!BR75) -> 0.1307770065 | G21: =F21*(1-'MP-2016 Male'!BS75) -> 0.1295477026 | H21: =G21*(1-'MP-2016 Male'!BT75) -> 0.1283299542 | I21: =H21*(1-'MP-2016 Male'!BU75) -> 0.1271364856 | J21: =I21*(1-'MP-2016 Male'!BV75) -> 0.1259541163 | K21: =J21*(1-'MP-2016 Male'!BW75) -> 0.124782743 | L21: =K21*(1-'MP-2016 Male'!BX75) -> 0.1236347418 | M21: =L21*(1-'MP-2016 Male'!BY75) -> 0.1224973022 | N21: =M21*(1-'MP-2016 Male'!BZ75) -> 0.121370327 | O21: =N21*(1-'MP-2016 Male'!CA75) -> 0.1202415829 | P21: =O21*(1-'MP-2016 Male'!CB75) -> 0.1191353604 | Q21: =P21*(1-'MP-2016 Male'!CC75) -> 0.1180393151 | R21: =Q21*(1-'MP-2016 Male'!$CD75) -> 0.1169533534 | S21: =R21*(1-'MP-2016 Male'!$CD75) -> 0.1158773825 | T21: =S21*(1-'MP-2016 Male'!$CD75) -> 0.1148113106 | U21: =T21*(1-'MP-2016 Male'!$CD75) -> 0.1137550465 | V21: =U21*(1-'MP-2016 Male'!$CD75) -> 0.1127085001 | W21: =V21*(1-'MP-2016 Male'!$CD75) -> 0.1116715819
A22: 91 | B22: ='Total Dataset'!E78 -> 0.151322 | C22: =B22*(1-'MP-2016 Male'!BO76) -> 0.1498693088 | D22: =C22*(1-'MP-2016 Male'!BP76) -> 0.1484455504 | E22: =D22*(1-'MP-2016 Male'!BQ76) -> 0.1470501622 | F22: =E22*(1-'MP-2016 Male'!BR76) -> 0.1456825957 | G22: =F22*(1-'MP-2016 Male'!BS76) -> 0.1443423158 | H22: =G22*(1-'MP-2016 Male'!BT76) -> 0.1430288007 | I22: =H22*(1-'MP-2016 Male'!BU76) -> 0.1417272386 | J22: =I22*(1-'MP-2016 Male'!BV76) -> 0.1404516935 | K22: =J22*(1-'MP-2016 Male'!BW76) -> 0.1391876283 | L22: =K22*(1-'MP-2016 Male'!BX76) -> 0.1379349396 | M22: =L22*(1-'MP-2016 Male'!BY76) -> 0.1366935251 | N22: =M22*(1-'MP-2016 Male'!BZ76) -> 0.1354632834 | O22: =N22*(1-'MP-2016 Male'!CA76) -> 0.1342441139 | P22: =O22*(1-'MP-2016 Male'!CB76) -> 0.1330224924 | Q22: =P22*(1-'MP-2016 Male'!CC76) -> 0.13182529 | R22: =Q22*(1-'MP-2016 Male'!$CD76) -> 0.1306388624 | S22: =R22*(1-'MP-2016 Male'!$CD76) -> 0.1294631126 | T22: =S22*(1-'MP-2016 Male'!$CD76) -> 0.1282979446 | U22: =T22*(1-'MP-2016 Male'!$CD76) -> 0.1271432631 | V22: =U22*(1-'MP-2016 Male'!$CD76) -> 0.1259989737 | W22: =V22*(1-'MP-2016 Male'!$CD76) -> 0.124864983
A23: 92 | B23: ='Total Dataset'!E79 -> 0.167422 | C23: =B23*(1-'MP-2016 Male'!BO77) -> 0.1657980066 | D23: =C23*(1-'MP-2016 Male'!BP77) -> 0.1642229255 | E23: =D23*(1-'MP-2016 Male'!BQ77) -> 0.1626956523 | F23: =E23*(1-'MP-2016 Male'!BR77) -> 0.1612151219 | G23: =F23*(1-'MP-2016 Male'!BS77) -> 0.1597641858 | H23: =G23*(1-'MP-2016 Male'!BT77) -> 0.1583422845 | I23: =H23*(1-'MP-2016 Male'!BU77) -> 0.1569488724 | J23: =I23*(1-'MP-2016 Male'!BV77) -> 0.1555834172 | K23: =J23*(1-'MP-2016 Male'!BW77) -> 0.1542298415 | L23: =K23*(1-'MP-2016 Male'!BX77) -> 0.1528880419 | M23: =L23*(1-'MP-2016 Male'!BY77) -> 0.1515579159 | N23: =M23*(1-'MP-2016 Male'!BZ77) -> 0.1502393621 | O23: =N23*(1-'MP-2016 Male'!CA77) -> 0.1489322796 | P23: =O23*(1-'MP-2016 Male'!CB77) -> 0.1476216756 | Q23: =P23*(1-'MP-2016 Male'!CC77) -> 0.1463078426 | R23: =Q23*(1-'MP-2016 Male'!$CD77) -> 0.1450057028 | S23: =R23*(1-'MP-2016 Male'!$CD77) -> 0.1437151521 | T23: =S23*(1-'MP-2016 Male'!$CD77) -> 0.1424360872 | U23: =T23*(1-'MP-2016 Male'!$CD77) -> 0.1411684061 | V23: =U23*(1-'MP-2016 Male'!$CD77) -> 0.1399120072 | W23: =V23*(1-'MP-2016 Male'!$CD77) -> 0.1386667904
A24: 93 | B24: ='Total Dataset'!E80 -> 0.18403 | C24: =B24*(1-'MP-2016 Male'!BO78) -> 0.182208103 | D24: =C24*(1-'MP-2016 Male'!BP78) -> 0.1804589052 | E24: =D24*(1-'MP-2016 Male'!BQ78) -> 0.1787806374 | F24: =E24*(1-'MP-2016 Male'!BR78) -> 0.1771716117 | G24: =F24*(1-'MP-2016 Male'!BS78) -> 0.1756125015 | H24: =G24*(1-'MP-2016 Male'!BT78) -> 0.174102234 | I24: =H24*(1-'MP-2016 Male'!BU78) -> 0.172622365 | J24: =I24*(1-'MP-2016 Male'!BV78) -> 0.1711550749 | K24: =J24*(1-'MP-2016 Male'!BW78) -> 0.1697173722 | L24: =K24*(1-'MP-2016 Male'!BX78) -> 0.1682917463 | M24: =L24*(1-'MP-2016 Male'!BY78) -> 0.1668780956 | N24: =M24*(1-'MP-2016 Male'!BZ78) -> 0.1654763196 | O24: =N24*(1-'MP-2016 Male'!CA78) -> 0.1640697709 | P24: =O24*(1-'MP-2016 Male'!CB78) -> 0.1626751779 | Q24: =P24*(1-'MP-2016 Male'!CC78) -> 0.1612761713 | R24: =Q24*(1-'MP-2016 Male'!$CD78) -> 0.1598730687 | S24: =R24*(1-'MP-2016 Male'!$CD78) -> 0.158482173 | T24: =S24*(1-'MP-2016 Male'!$CD78) -> 0.157103378 | U24: =T24*(1-'MP-2016 Male'!$CD78) -> 0.1557365787 | V24: =U24*(1-'MP-2016 Male'!$CD78) -> 0.1543816704 | W24: =V24*(1-'MP-2016 Male'!$CD78) -> 0.1530385499
A25: 94 | B25: ='Total Dataset'!E81 -> 0.201074 | C25: =B25*(1-'MP-2016 Male'!BO79) -> 0.1990431526 | D25: =C25*(1-'MP-2016 Male'!BP79) -> 0.197112434 | E25: =D25*(1-'MP-2016 Male'!BQ79) -> 0.1952792884 | F25: =E25*(1-'MP-2016 Male'!BR79) -> 0.1935217748 | G25: =F25*(1-'MP-2016 Male'!BS79) -> 0.1918381353 | H25: =G25*(1-'MP-2016 Male'!BT79) -> 0.190226695 | I25: =H25*(1-'MP-2016 Male'!BU79) -> 0.1886478134 | J25: =I25*(1-'MP-2016 Male'!BV79) -> 0.1871009014 | K25: =J25*(1-'MP-2016 Male'!BW79) -> 0.185566674 | L25: =K25*(1-'MP-2016 Male'!BX79) -> 0.1840635839 | M25: =L25*(1-'MP-2016 Male'!BY79) -> 0.1825726689 | N25: =M25*(1-'MP-2016 Male'!BZ79) -> 0.1810938303 | O25: =N25*(1-'MP-2016 Male'!CA79) -> 0.1796088609 | P25: =O25*(1-'MP-2016 Male'!CB79) -> 0.1781360682 | Q25: =P25*(1-'MP-2016 Male'!CC79) -> 0.1766575388 | R25: =Q25*(1-'MP-2016 Male'!$CD79) -> 0.1751736155 | S25: =R25*(1-'MP-2016 Male'!$CD79) -> 0.1737021571 | T25: =S25*(1-'MP-2016 Male'!$CD79) -> 0.172243059 | U25: =T25*(1-'MP-2016 Male'!$CD79) -> 0.1707962173 | V25: =U25*(1-'MP-2016 Male'!$CD79) -> 0.1693615291 | W25: =V25*(1-'MP-2016 Male'!$CD79) -> 0.1679388923
A26: 95 | B26: ='Total Dataset'!E82 -> 0.218559 | C26: =B26*(1-'MP-2016 Male'!BO80) -> 0.2162859864 | D26: =C26*(1-'MP-2016 Male'!BP80) -> 0.2141447551 | E26: =D26*(1-'MP-2016 Male'!BQ80) -> 0.2121317944 | F26: =E26*(1-'MP-2016 Male'!BR80) -> 0.2102226083 | G26: =F26*(1-'MP-2016 Male'!BS80) -> 0.2084146939 | H26: =G26*(1-'MP-2016 Male'!BT80) -> 0.2066848519 | I26: =H26*(1-'MP-2016 Male'!BU80) -> 0.2050313731 | J26: =I26*(1-'MP-2016 Male'!BV80) -> 0.2034116252 | K26: =J26*(1-'MP-2016 Male'!BW80) -> 0.2018046734 | L26: =K26*(1-'MP-2016 Male'!BX80) -> 0.2002104165 | M26: =L26*(1-'MP-2016 Male'!BY80) -> 0.1986287542 | N26: =M26*(1-'MP-2016 Male'!BZ80) -> 0.197059587 | O26: =N26*(1-'MP-2016 Male'!CA80) -> 0.1955028163 | P26: =O26*(1-'MP-2016 Male'!CB80) -> 0.1939387938 | Q26: =P26*(1-'MP-2016 Male'!CC80) -> 0.1923872834 | R26: =Q26*(1-'MP-2016 Male'!$CD80) -> 0.1908097077 | S26: =R26*(1-'MP-2016 Male'!$CD80) -> 0.1892450681 | T26: =S26*(1-'MP-2016 Male'!$CD80) -> 0.1876932585 | U26: =T26*(1-'MP-2016 Male'!$CD80) -> 0.1861541738 | V26: =U26*(1-'MP-2016 Male'!$CD80) -> 0.1846277096 | W26: =V26*(1-'MP-2016 Male'!$CD80) -> 0.1831137624
A27: 96 | B27: ='Total Dataset'!E83 -> 0.236535 | C27: =B27*(1-'MP-2016 Male'!BO81) -> 0.2341933035 | D27: =C27*(1-'MP-2016 Male'!BP81) -> 0.2319918864 | E27: =D27*(1-'MP-2016 Male'!BQ81) -> 0.2299271587 | F27: =E27*(1-'MP-2016 Male'!BR81) -> 0.2279727778 | G27: =F27*(1-'MP-2016 Male'!BS81) -> 0.2261261983 | H27: =G27*(1-'MP-2016 Male'!BT81) -> 0.224362414 | I27: =H27*(1-'MP-2016 Male'!BU81) -> 0.2226572596 | J27: =I27*(1-'MP-2016 Male'!BV81) -> 0.2209873302 | K27: =J27*(1-'MP-2016 Male'!BW81) -> 0.2193299252 | L27: =K27*(1-'MP-2016 Male'!BX81) -> 0.2176849508 | M27: =L27*(1-'MP-2016 Male'!BY81) -> 0.2160523136 | N27: =M27*(1-'MP-2016 Male'!BZ81) -> 0.2144319213 | O27: =N27*(1-'MP-2016 Male'!CA81) -> 0.2128236819 | P27: =O27*(1-'MP-2016 Male'!CB81) -> 0.2112062219 | Q27: =P27*(1-'MP-2016 Male'!CC81) -> 0.2096010546 | R27: =Q27*(1-'MP-2016 Male'!$CD81) -> 0.2079871265 | S27: =R27*(1-'MP-2016 Male'!$CD81) -> 0.2063856256 | T27: =S27*(1-'MP-2016 Male'!$CD81) -> 0.2047964563 | U27: =T27*(1-'MP-2016 Male'!$CD81) -> 0.2032195236 | V27: =U27*(1-'MP-2016 Male'!$CD81) -> 0.2016547332 | W27: =V27*(1-'MP-2016 Male'!$CD81) -> 0.2001019918
A28: 97 | B28: ='Total Dataset'!E84 -> 0.255059 | C28: =B28*(1-'MP-2016 Male'!BO82) -> 0.2526614454 | D28: =C28*(1-'MP-2016 Male'!BP82) -> 0.2504127585 | E28: =D28*(1-'MP-2016 Male'!BQ82) -> 0.2482842501 | F28: =E28*(1-'MP-2016 Male'!BR82) -> 0.2462731477 | G28: =F28*(1-'MP-2016 Male'!BS82) -> 0.2443768444 | H28: =G28*(1-'MP-2016 Male'!BT82) -> 0.2425684558 | I28: =H28*(1-'MP-2016 Male'!BU82) -> 0.2408219629 | J28: =I28*(1-'MP-2016 Male'!BV82) -> 0.239112127 | K28: =J28*(1-'MP-2016 Male'!BW82) -> 0.2374144309 | L28: =K28*(1-'MP-2016 Male'!BX82) -> 0.2357287884 | M28: =L28*(1-'MP-2016 Male'!BY82) -> 0.234055114 | N28: =M28*(1-'MP-2016 Male'!BZ82) -> 0.2323933227 | O28: =N28*(1-'MP-2016 Male'!CA82) -> 0.2307433301 | P28: =O28*(1-'MP-2016 Male'!CB82) -> 0.2290819781 | Q28: =P28*(1-'MP-2016 Male'!CC82) -> 0.2274325879 | R28: =Q28*(1-'MP-2016 Male'!$CD82) -> 0.22577233 | S28: =R28*(1-'MP-2016 Male'!$CD82) -> 0.224124192 | T28: =S28*(1-'MP-2016 Male'!$CD82) -> 0.2224880854 | U28: =T28*(1-'MP-2016 Male'!$CD82) -> 0.2208639224 | V28: =U28*(1-'MP-2016 Male'!$CD82) -> 0.2192516157 | W28: =V28*(1-'MP-2016 Male'!$CD82) -> 0.2176510789
A29: 98 | B29: ='Total Dataset'!E85 -> 0.27417 | C29: =B29*(1-'MP-2016 Male'!BO83) -> 0.271729887 | D29: =C29*(1-'MP-2016 Male'!BP83) -> 0.2694473559 | E29: =D29*(1-'MP-2016 Male'!BQ83) -> 0.2672917771 | F29: =E29*(1-'MP-2016 Male'!BR83) -> 0.2652603596 | G29: =F29*(1-'MP-2016 Male'!BS83) -> 0.263323959 | H29: =G29*(1-'MP-2016 Male'!BT83) -> 0.2614806913 | I29: =H29*(1-'MP-2016 Male'!BU83) -> 0.2597026226 | J29: =I29*(1-'MP-2016 Male'!BV83) -> 0.257962615 | K29: =J29*(1-'MP-2016 Male'!BW83) -> 0.2562342655 | L29: =K29*(1-'MP-2016 Male'!BX83) -> 0.2545174959 | M29: =L29*(1-'MP-2016 Male'!BY83) -> 0.2528122287 | N29: =M29*(1-'MP-2016 Male'!BZ83) -> 0.2511183867 | O29: =N29*(1-'MP-2016 Male'!CA83) -> 0.2494358935 | P29: =O29*(1-'MP-2016 Male'!CB83) -> 0.2477397295 | Q29: =P29*(1-'MP-2016 Male'!CC83) -> 0.2460550993 | R29: =Q29*(1-'MP-2016 Male'!$CD83) -> 0.2443573191 | S29: =R29*(1-'MP-2016 Male'!$CD83) -> 0.2426712536 | T29: =S29*(1-'MP-2016 Male'!$CD83) -> 0.240996822 | U29: =T29*(1-'MP-2016 Male'!$CD83) -> 0.2393339439 | V29: =U29*(1-'MP-2016 Male'!$CD83) -> 0.2376825397 | W29: =V29*(1-'MP-2016 Male'!$CD83) -> 0.2360425302
A30: 99 | B30: ='Total Dataset'!E86 -> 0.293848 | C30: =B30*(1-'MP-2016 Male'!BO84) -> 0.2913796768 | D30: =C30*(1-'MP-2016 Male'!BP84) -> 0.2890777774 | E30: =D30*(1-'MP-2016 Male'!BQ84) -> 0.286909694 | F30: =E30*(1-'MP-2016 Male'!BR84) -> 0.2848439442 | G30: =F30*(1-'MP-2016 Male'!BS84) -> 0.282878521 | H30: =G30*(1-'MP-2016 Male'!BT84) -> 0.2810115228 | I30: =H30*(1-'MP-2016 Male'!BU84) -> 0.279213049 | J30: =I30*(1-'MP-2016 Male'!BV84) -> 0.2774540068 | K30: =J30*(1-'MP-2016 Male'!BW84) -> 0.2757060466 | L30: =K30*(1-'MP-2016 Male'!BX84) -> 0.2739690985 | M30: =L30*(1-'MP-2016 Male'!BY84) -> 0.2722430932 | N30: =M30*(1-'MP-2016 Male'!BZ84) -> 0.2705279617 | O30: =N30*(1-'MP-2016 Male'!CA84) -> 0.2688236355 | P30: =O30*(1-'MP-2016 Male'!CB84) -> 0.2671031642 | Q30: =P30*(1-'MP-2016 Male'!CC84) -> 0.265393704 | R30: =Q30*(1-'MP-2016 Male'!$CD84) -> 0.2636686449 | S30: =R30*(1-'MP-2016 Male'!$CD84) -> 0.2619547987 | T30: =S30*(1-'MP-2016 Male'!$CD84) -> 0.2602520925 | U30: =T30*(1-'MP-2016 Male'!$CD84) -> 0.2585604539 | V30: =U30*(1-'MP-2016 Male'!$CD84) -> 0.256879811 | W30: =V30*(1-'MP-2016 Male'!$CD84) -> 0.2552100922
A31: 100 | B31: ='Total Dataset'!E87 -> 0.313988 | C31: =B31*(1-'MP-2016 Male'!BO85) -> 0.3115388936 | D31: =C31*(1-'MP-2016 Male'!BP85) -> 0.3092335058 | E31: =D31*(1-'MP-2016 Male'!BQ85) -> 0.3070379479 | F31: =E31*(1-'MP-2016 Male'!BR85) -> 0.3049807936 | G31: =F31*(1-'MP-2016 Male'!BS85) -> 0.3030289166 | H31: =G31*(1-'MP-2016 Male'!BT85) -> 0.3011501373 | I31: =H31*(1-'MP-2016 Male'!BU85) -> 0.2993432365 | J31: =I31*(1-'MP-2016 Male'!BV85) -> 0.2975771114 | K31: =J31*(1-'MP-2016 Male'!BW85) -> 0.2958214064 | L31: =K31*(1-'MP-2016 Male'!BX85) -> 0.2940760601 | M31: =L31*(1-'MP-2016 Male'!BY85) -> 0.2923410114 | N31: =M31*(1-'MP-2016 Male'!BZ85) -> 0.2906161994 | O31: =N31*(1-'MP-2016 Male'!CA85) -> 0.2889015638 | P31: =O31*(1-'MP-2016 Male'!CB85) -> 0.2871681544 | Q31: =P31*(1-'MP-2016 Male'!CC85) -> 0.2854451455 | R31: =Q31*(1-'MP-2016 Male'!$CD85) -> 0.2837039301 | S31: =R31*(1-'MP-2016 Male'!$CD85) -> 0.2819733361 | T31: =S31*(1-'MP-2016 Male'!$CD85) -> 0.2802532988 | U31: =T31*(1-'MP-2016 Male'!$CD85) -> 0.2785437537 | V31: =U31*(1-'MP-2016 Male'!$CD85) -> 0.2768446368 | W31: =V31*(1-'MP-2016 Male'!$CD85) -> 0.2751558845

Sheet Total Dataset
A1: RP-2014 Rates: Total Dataset
D3: Total Dataset; Males | H3: Total Dataset; Females
B4: Age | D4: Employee | E4: Healthy Annuitant | F4: Disabled Retiree | H4: Employee | I4: Healthy Annuitant | J4: Disabled Retiree
B5: 18 | D5: 0.000328 | F5: 0.005744 | H5: 0.000157 | J5: 0.002162
B6: 19 | D6: 0.000369 | F6: 0.006462 | H6: 0.000162 | J6: 0.002231
B7: 20 | D7: 0.000406 | F7: 0.00711 | H7: 0.000162 | J7: 0.002231
B8: 21 | D8: 0.000449 | F8: 0.007863 | H8: 0.000162 | J8: 0.002231
B9: 22 | D9: 0.000488 | F9: 0.008546 | H9: 0.000162 | J9: 0.002231
B10: 23 | D10: 0.000509 | F10: 0.008914 | H10: 0.000166 | J10: 0.002286
B11: 24 | D11: 0.000516 | F11: 0.009036 | H11: 0.000169 | J11: 0.002328
B12: 25 | D12: 0.000484 | F12: 0.008476 | H12: 0.000173 | J12: 0.002383
B13: 26 | D13: 0.000462 | F13: 0.00809 | H13: 0.000179 | J13: 0.002465
B14: 27 | D14: 0.000449 | F14: 0.007863 | H14: 0.000187 | J14: 0.002576
B15: 28 | D15: 0.000444 | F15: 0.007775 | H15: 0.000196 | J15: 0.0027
B16: 29 | D16: 0.000446 | F16: 0.00781 | H16: 0.000206 | J16: 0.002837
B17: 30 | D17: 0.000452 | F17: 0.007915 | H17: 0.000218 | J17: 0.003003
B18: 31 | D18: 0.000463 | F18: 0.008108 | H18: 0.000231 | J18: 0.003182
B19: 32 | D19: 0.000477 | F19: 0.008353 | H19: 0.000244 | J19: 0.003361
B20: 33 | D20: 0.000492 | F20: 0.008616 | H20: 0.000258 | J20: 0.003553
B21: 34 | D21: 0.000508 | F21: 0.008896 | H21: 0.000272 | J21: 0.003746
B22: 35 | D22: 0.000523 | F22: 0.009159 | H22: 0.000286 | J22: 0.003939
B23: 36 | D23: 0.000536 | F23: 0.009386 | H23: 0.0003 | J23: 0.004132
B24: 37 | D24: 0.000551 | F24: 0.009649 | H24: 0.000318 | J24: 0.00438
B25: 38 | D25: 0.00057 | F25: 0.009982 | H25: 0.000339 | J25: 0.004669
B26: 39 | D26: 0.000595 | F26: 0.01042 | H26: 0.000365 | J26: 0.005027
B27: 40 | D27: 0.000628 | F27: 0.010997 | H27: 0.000396 | J27: 0.005454
B28: 41 | D28: 0.000671 | F28: 0.01175 | H28: 0.000433 | J28: 0.005964
B29: 42 | D29: 0.000725 | F29: 0.012696 | H29: 0.000477 | J29: 0.00657
B30: 43 | D30: 0.000793 | F30: 0.013887 | H30: 0.000529 | J30: 0.007286
B31: 44 | D31: 0.000876 | F31: 0.01534 | H31: 0.000589 | J31: 0.008112
B32: 45 | D32: 0.000973 | F32: 0.017039 | H32: 0.000657 | J32: 0.009049
B33: 46 | D33: 0.001087 | F33: 0.017741 | H33: 0.000733 | J33: 0.009635
B34: 47 | D34: 0.001215 | F34: 0.018428 | H34: 0.000816 | J34: 0.010215
B35: 48 | D35: 0.001358 | F35: 0.019101 | H35: 0.000906 | J35: 0.010787
B36: 49 | D36: 0.001515 | F36: 0.019757 | H36: 0.001001 | J36: 0.011352
B37: 50 | D37: 0.001686 | E37: 0.004064 | F37: 0.020395 | H37: 0.001102 | I37: 0.002768 | J37: 0.011907
B38: 51 | D38: 0.001871 | E38: 0.004384 | F38: 0.021016 | H38: 0.001206 | I38: 0.002905 | J38: 0.01245
B39: 52 | D39: 0.002072 | E39: 0.004709 | F39: 0.021621 | H39: 0.001315 | I39: 0.003057 | J39: 0.012979
B40: 53 | D40: 0.002289 | E40: 0.005042 | F40: 0.02221 | H40: 0.001429 | I40: 0.003225 | J40: 0.013494
B41: 54 | D41: 0.002527 | E41: 0.005384 | F41: 0.022791 | H41: 0.001548 | I41: 0.003412 | J41: 0.013992
B42: 55 | D42: 0.002788 | E42: 0.005735 | F42: 0.023369 | H42: 0.001673 | I42: 0.003622 | J42: 0.014479
B43: 56 | D43: 0.003079 | E43: 0.006099 | F43: 0.023953 | H43: 0.001805 | I43: 0.003858 | J43: 0.014958
B44: 57 | D44: 0.003407 | E44: 0.006478 | F44: 0.024557 | H44: 0.001946 | I44: 0.004128 | J44: 0.015439
B45: 58 | D45: 0.003779 | E45: 0.006877 | F45: 0.02519 | H45: 0.002097 | I45: 0.004436 | J45: 0.015931
B46: 59 | D46: 0.004204 | E46: 0.007305 | F46: 0.025868 | H46: 0.002261 | I46: 0.004789 | J46: 0.016447
B47: 60 | D47: 0.004688 | E47: 0.007771 | F47: 0.026604 | H47: 0.002442 | I47: 0.005191 | J47: 0.016999
B48: 61 | D48: 0.00524 | E48: 0.008284 | F48: 0.027414 | H48: 0.002642 | I48: 0.005646 | J48: 0.017603
B49: 62 | D49: 0.005867 | E49: 0.008854 | F49: 0.028312 | H49: 0.002864 | I49: 0.006156 | J49: 0.018273
B50: 63 | D50: 0.006577 | E50: 0.009492 | F50: 0.029314 | H50: 0.003113 | I50: 0.006723 | J50: 0.019028
B51: 64 | D51: 0.007377 | E51: 0.010209 | F51: 0.030433 | H51: 0.003389 | I51: 0.007352 | J51: 0.019884
B52: 65 | D52: 0.008277 | E52: 0.011013 | F52: 0.031685 | H52: 0.003696 | I52: 0.008048 | J52: 0.02086
B53: 66 | D53: 0.009175 | E53: 0.011916 | F53: 0.033081 | H53: 0.004113 | I53: 0.008821 | J53: 0.021976
B54: 67 | D54: 0.010171 | E54: 0.01293 | F54: 0.034633 | H54: 0.004577 | I54: 0.009679 | J54: 0.02325
B55: 68 | D55: 0.011275 | E55: 0.014067 | F55: 0.036353 | H55: 0.005094 | I55: 0.010633 | J55: 0.024702
B56: 69 | D56: 0.012498 | E56: 0.015342 | F56: 0.038253 | H56: 0.005669 | I56: 0.011692 | J56: 0.026348
B57: 70 | D57: 0.013854 | E57: 0.016769 | F57: 0.040346 | H57: 0.006309 | I57: 0.012868 | J57: 0.028203
B58: 71 | D58: 0.015357 | E58: 0.018363 | F58: 0.042647 | H58: 0.007021 | I58: 0.014171 | J58: 0.03028
B59: 72 | D59: 0.017023 | E59: 0.020141 | F59: 0.04517 | H59: 0.007813 | I59: 0.015614 | J59: 0.032591
B60: 73 | D60: 0.01887 | E60: 0.022127 | F60: 0.047935 | H60: 0.008695 | I60: 0.01721 | J60: 0.035148
B61: 74 | D61: 0.020918 | E61: 0.024345 | F61: 0.050965 | H61: 0.009676 | I61: 0.018977 | J61: 0.037962
B62: 75 | D62: 0.023188 | E62: 0.026826 | F62: 0.054287 | H62: 0.010768 | I62: 0.020938 | J62: 0.041045
B63: 76 | D63: 0.025704 | E63: 0.029608 | F63: 0.057934 | H63: 0.011983 | I63: 0.023118 | J63: 0.044413
B64: 77 | D64: 0.028493 | E64: 0.032735 | F64: 0.061945 | H64: 0.013336 | I64: 0.025554 | J64: 0.048078
B65: 78 | D65: 0.031585 | E65: 0.036258 | F65: 0.066363 | H65: 0.014841 | I65: 0.028288 | J65: 0.052059
B66: 79 | D66: 0.035012 | E66: 0.040232 | F66: 0.071235 | H66: 0.016516 | I66: 0.031366 | J66: 0.056372
B67: 80 | D67: 0.038811 | E67: 0.044722 | F67: 0.076616 | H67: 0.01838 | I67: 0.034844 | J67: 0.061036
B68: 81 | E68: 0.049795 | F68: 0.082562 | I68: 0.038783 | J68: 0.066074
B69: 82 | E69: 0.055526 | F69: 0.089136 | I69: 0.043246 | J69: 0.071506
B70: 83 | E70: 0.061996 | F70: 0.096405 | I70: 0.048305 | J70: 0.077357
B71: 84 | E71: 0.06929 | F71: 0.104436 | I71: 0.054032 | J71: 0.083652
B72: 85 | E72: 0.077497 | F72: 0.113303 | I72: 0.060504 | J72: 0.09042
B73: 86 | E73: 0.086712 | F73: 0.123081 | I73: 0.067801 | J73: 0.097694
B74: 87 | E74: 0.097038 | F74: 0.13385 | I74: 0.076012 | J74: 0.10551
B75: 88 | E75: 0.108591 | F75: 0.145697 | I75: 0.08523 | J75: 0.113909
B76: 89 | E76: 0.121499 | F76: 0.158714 | I76: 0.095563 | J76: 0.122939
B77: 90 | E77: 0.135908 | F77: 0.173005 | I77: 0.107126 | J77: 0.132652
B78: 91 | E78: 0.151322 | F78: 0.187464 | I78: 0.119744 | J78: 0.14342
B79: 92 | E79: 0.167422 | F79: 0.2021 | I79: 0.133299 | J79: 0.155186
B80: 93 | E80: 0.18403 | F80: 0.216924 | I80: 0.14772 | J80: 0.16789
B81: 94 | E81: 0.201074 | F81: 0.231944 | I81: 0.162971 | J81: 0.181474
B82: 95 | E82: 0.218559 | F82: 0.247169 | I82: 0.179034 | J82: 0.19588
B83: 96 | E83: 0.236535 | F83: 0.26261 | I83: 0.195903 | J83: 0.211049
B84: 97 | E84: 0.255059 | F84: 0.278276 | I84: 0.213565 | J84: 0.226923
B85: 98 | E85: 0.27417 | F85: 0.294176 | I85: 0.231991 | J85: 0.243443
B86: 99 | E86: 0.293848 | F86: 0.31032 | I86: 0.251123 | J86: 0.260551
B87: 100 | E87: 0.313988 | F87: 0.326717 | I87: 0.270858 | J87: 0.278189
B88: 101 | E88: 0.334365 | F88: 0.343376 | I88: 0.29104 | J88: 0.296297
B89: 102 | E89: 0.354599 | F89: 0.360308 | I89: 0.311444 | J89: 0.314819
B90: 103 | E90: 0.374524 | F90: 0.377522 | I90: 0.3319 | J90: 0.333694
B91: 104 | E91: 0.393982 | F91: 0.395026 | I91: 0.352232 | J91: 0.352865
B92: 105 | E92: 0.412831 | F92: 0.412831 | I92: 0.372273 | J92: 0.372273
B93: 106 | E93: 0.430946 | F93: 0.430946 | I93: 0.39186 | J93: 0.39186
B94: 107 | E94: 0.448227 | F94: 0.448227 | I94: 0.410849 | J94: 0.410849
B95: 108 | E95: 0.464592 | F95: 0.464592 | I95: 0.429112 | J95: 0.429112
B96: 109 | E96: 0.479987 | F96: 0.479987 | I96: 0.446544 | J96: 0.446544
B97: 110 | E97: 0.494376 | F97: 0.494376 | I97: 0.463061 | J97: 0.463061
B98: 111 | E98: 0.5 | F98: 0.5 | I98: 0.478604 | J98: 0.478604
B99: 112 | E99: 0.5 | F99: 0.5 | I99: 0.493137 | J99: 0.493137
B100: 113 | E100: 0.5 | F100: 0.5 | I100: 0.5 | J100: 0.5
B101: 114 | E101: 0.5 | F101: 0.5 | I101: 0.5 | J101: 0.5
B102: 115 | E102: 0.5 | F102: 0.5 | I102: 0.5 | J102: 0.5
B103: 116 | E103: 0.5 | F103: 0.5 | I103: 0.5 | J103: 0.5
B104: 117 | E104: 0.5 | F104: 0.5 | I104: 0.5 | J104: 0.5
B105: 118 | E105: 0.5 | F105: 0.5 | I105: 0.5 | J105: 0.5
B106: 119 | E106: 0.5 | F106: 0.5 | I106: 0.5 | J106: 0.5
B107: 120 | E107: 1 | F107: 1 | I107: 1 | J107: 1

Sheet Blue Collar
A1: RP-2014 Rates: Blue Collar
D3: Blue Collar; Males | G3: Blue Collar; Females
B4: Age | D4: Employee | E4: Healthy Annuitant | G4: Employee | H4: Healthy Annuitant
B5: 18 | D5: 0.000473 | G5: 0.000192
B6: 19 | D6: 0.000532 | G6: 0.000198
B7: 20 | D7: 0.000585 | G7: 0.000198
B8: 21 | D8: 0.000647 | G8: 0.000198
B9: 22 | D9: 0.000703 | G9: 0.000198
B10: 23 | D10: 0.000734 | G10: 0.000203
B11: 24 | D11: 0.000744 | G11: 0.000207
B12: 25 | D12: 0.000698 | G12: 0.000211
B13: 26 | D13: 0.000666 | G13: 0.000219
B14: 27 | D14: 0.000647 | G14: 0.000229
B15: 28 | D15: 0.00064 | G15: 0.00024
B16: 29 | D16: 0.000643 | G16: 0.000252
B17: 30 | D17: 0.000652 | G17: 0.000266
B18: 31 | D18: 0.000667 | G18: 0.000282
B19: 32 | D19: 0.000688 | G19: 0.000298
B20: 33 | D20: 0.000709 | G20: 0.000315
B21: 34 | D21: 0.000732 | G21: 0.000332
B22: 35 | D22: 0.000754 | G22: 0.00035
B23: 36 | D23: 0.000773 | G23: 0.000367
B24: 37 | D24: 0.000794 | G24: 0.000389
B25: 38 | D25: 0.000822 | G25: 0.000414
B26: 39 | D26: 0.000858 | G26: 0.000446
B27: 40 | D27: 0.000905 | G27: 0.000484
B28: 41 | D28: 0.000967 | G28: 0.000529
B29: 42 | D29: 0.001045 | G29: 0.000583
B30: 43 | D30: 0.001143 | G30: 0.000646
B31: 44 | D31: 0.001263 | G31: 0.00072
B32: 45 | D32: 0.001403 | G32: 0.000803
B33: 46 | D33: 0.001567 | G33: 0.000896
B34: 47 | D34: 0.001751 | G34: 0.000997
B35: 48 | D35: 0.001958 | G35: 0.001107
B36: 49 | D36: 0.002184 | G36: 0.001223
B37: 50 | D37: 0.00243 | E37: 0.004064 | G37: 0.001347 | H37: 0.002822
B38: 51 | D38: 0.002697 | E38: 0.004384 | G38: 0.001474 | H38: 0.003045
B39: 52 | D39: 0.002987 | E39: 0.004733 | G39: 0.001607 | H39: 0.003275
B40: 53 | D40: 0.0033 | E40: 0.005151 | G40: 0.001746 | H40: 0.003514
B41: 54 | D41: 0.003643 | E41: 0.005573 | G41: 0.001892 | H41: 0.003763
B42: 55 | D42: 0.004019 | E42: 0.005999 | G42: 0.002045 | H42: 0.004025
B43: 56 | D43: 0.004438 | E43: 0.006435 | G43: 0.002206 | H43: 0.004304
B44: 57 | D44: 0.004911 | E44: 0.006887 | G44: 0.002378 | H44: 0.004607
B45: 58 | D45: 0.005447 | E45: 0.007364 | G45: 0.002563 | H45: 0.004941
B46: 59 | D46: 0.00606 | E46: 0.007882 | G46: 0.002763 | H46: 0.005315
B47: 60 | D47: 0.006758 | E47: 0.008456 | G47: 0.002984 | H47: 0.005735
B48: 61 | D48: 0.007553 | E48: 0.009101 | G48: 0.003229 | H48: 0.006208
B49: 62 | D49: 0.008457 | E49: 0.009829 | G49: 0.0035 | H49: 0.006737
B50: 63 | D50: 0.009481 | E50: 0.010653 | G50: 0.003804 | H50: 0.007328
B51: 64 | D51: 0.010634 | E51: 0.01158 | G51: 0.004142 | H51: 0.007987
B52: 65 | D52: 0.011931 | E52: 0.012615 | G52: 0.004517 | H52: 0.008725
B53: 66 | D53: 0.013072 | E53: 0.013765 | G53: 0.004995 | H53: 0.00955
B54: 67 | D54: 0.014323 | E54: 0.015035 | G54: 0.005524 | H54: 0.010476
B55: 68 | D55: 0.015693 | E55: 0.016435 | G55: 0.006109 | H55: 0.011512
B56: 69 | D56: 0.017194 | E56: 0.01798 | G56: 0.006756 | H56: 0.012671
B57: 70 | D57: 0.018839 | E57: 0.019687 | G57: 0.007471 | H57: 0.013966
B58: 71 | D58: 0.020641 | E58: 0.021577 | G58: 0.008262 | H58: 0.015411
B59: 72 | D59: 0.022616 | E59: 0.023674 | G59: 0.009137 | H59: 0.01702
B60: 73 | D60: 0.02478 | E60: 0.026008 | G60: 0.010105 | H60: 0.018806
B61: 74 | D61: 0.027151 | E61: 0.028608 | G61: 0.011175 | H61: 0.020783
B62: 75 | D62: 0.029749 | E62: 0.031507 | G62: 0.012358 | H62: 0.022971
B63: 76 | D63: 0.032595 | E63: 0.03474 | G63: 0.013667 | H63: 0.025393
B64: 77 | D64: 0.035713 | E64: 0.038346 | G64: 0.015114 | H64: 0.028081
B65: 78 | D65: 0.03913 | E65: 0.042369 | G65: 0.016714 | H65: 0.031074
B66: 79 | D66: 0.042874 | E66: 0.046856 | G66: 0.018484 | H66: 0.034418
B67: 80 | D67: 0.046976 | E67: 0.051859 | G67: 0.020441 | H67: 0.038164
B68: 81 | E68: 0.057434 | H68: 0.042368
B69: 82 | E69: 0.063644 | H69: 0.047092
B70: 83 | E70: 0.070561 | H70: 0.052397
B71: 84 | E71: 0.078261 | H71: 0.058348
B72: 85 | E72: 0.086831 | H72: 0.065011
B73: 86 | E73: 0.096365 | H73: 0.072457
B74: 87 | E74: 0.106965 | H74: 0.080765
B75: 88 | E75: 0.11875 | H75: 0.09003
B76: 89 | E76: 0.13185 | H76: 0.100356
B77: 90 | E77: 0.14641 | H77: 0.111865
B78: 91 | E78: 0.161805 | H78: 0.124323
B79: 92 | E79: 0.177682 | H79: 0.137597
B80: 93 | E80: 0.193835 | H80: 0.151596
B81: 94 | E81: 0.210178 | H81: 0.166269
B82: 95 | E82: 0.226707 | H82: 0.181584
B83: 96 | E83: 0.24346 | H83: 0.197517
B84: 97 | E84: 0.260487 | H84: 0.214044
B85: 98 | E85: 0.27781 | H85: 0.231991
B86: 99 | E86: 0.295399 | H86: 0.251123
B87: 100 | E87: 0.313988 | H87: 0.270858
B88: 101 | E88: 0.334365 | H88: 0.29104
B89: 102 | E89: 0.354599 | H89: 0.311444
B90: 103 | E90: 0.374524 | H90: 0.3319
B91: 104 | E91: 0.393982 | H91: 0.352232
B92: 105 | E92: 0.412831 | H92: 0.372273
B93: 106 | E93: 0.430946 | H93: 0.39186
B94: 107 | E94: 0.448227 | H94: 0.410849
B95: 108 | E95: 0.464592 | H95: 0.429112
B96: 109 | E96: 0.479987 | H96: 0.446544
B97: 110 | E97: 0.494376 | H97: 0.463061
B98: 111 | E98: 0.5 | H98: 0.478604
B99: 112 | E99: 0.5 | H99: 0.493137
B100: 113 | E100: 0.5 | H100: 0.5
B101: 114 | E101: 0.5 | H101: 0.5
B102: 115 | E102: 0.5 | H102: 0.5
B103: 116 | E103: 0.5 | H103: 0.5
B104: 117 | E104: 0.5 | H104: 0.5
B105: 118 | E105: 0.5 | H105: 0.5
B106: 119 | E106: 0.5 | H106: 0.5
B107: 120 | E107: 1 | H107: 1

Sheet White Collar
A1: RP-2014 Rates: White Collar
D3: White Collar; Males | G3: White Collar; Females
B4: Age | D4: Employee | E4: Healthy Annuitant | G4: Employee | H4: Healthy Annuitant
B5: 18 | D5: 0.000256 | G5: 0.000144
B6: 19 | D6: 0.000288 | G6: 0.000148
B7: 20 | D7: 0.000317 | G7: 0.000148
B8: 21 | D8: 0.000351 | G8: 0.000148
B9: 22 | D9: 0.000381 | G9: 0.000148
B10: 23 | D10: 0.000397 | G10: 0.000152
B11: 24 | D11: 0.000403 | G11: 0.000155
B12: 25 | D12: 0.000378 | G12: 0.000158
B13: 26 | D13: 0.000361 | G13: 0.000164
B14: 27 | D14: 0.000351 | G14: 0.000171
B15: 28 | D15: 0.000347 | G15: 0.000179
B16: 29 | D16: 0.000348 | G16: 0.000189
B17: 30 | D17: 0.000353 | G17: 0.000199
B18: 31 | D18: 0.000361 | G18: 0.000211
B19: 32 | D19: 0.000372 | G19: 0.000223
B20: 33 | D20: 0.000384 | G20: 0.000236
B21: 34 | D21: 0.000397 | G21: 0.000249
B22: 35 | D22: 0.000408 | G22: 0.000262
B23: 36 | D23: 0.000418 | G23: 0.000275
B24: 37 | D24: 0.00043 | G24: 0.000291
B25: 38 | D25: 0.000445 | G25: 0.00031
B26: 39 | D26: 0.000464 | G26: 0.000334
B27: 40 | D27: 0.00049 | G27: 0.000362
B28: 41 | D28: 0.000524 | G28: 0.000396
B29: 42 | D29: 0.000566 | G29: 0.000436
B30: 43 | D30: 0.000619 | G30: 0.000484
B31: 44 | D31: 0.000684 | G31: 0.000539
B32: 45 | D32: 0.00076 | G32: 0.000601
B33: 46 | D33: 0.000849 | G33: 0.000671
B34: 47 | D34: 0.000949 | G34: 0.000747
B35: 48 | D35: 0.00106 | G35: 0.000829
B36: 49 | D36: 0.001183 | G36: 0.000916
B37: 50 | D37: 0.001316 | E37: 0.002764 | G37: 0.001008 | H37: 0.002076
B38: 51 | D38: 0.001461 | E38: 0.002981 | G38: 0.001104 | H38: 0.002179
B39: 52 | D39: 0.001618 | E39: 0.003202 | G39: 0.001203 | H39: 0.002292
B40: 53 | D40: 0.001787 | E40: 0.003429 | G40: 0.001308 | H40: 0.002419
B41: 54 | D41: 0.001973 | E41: 0.003661 | G41: 0.001417 | H41: 0.002559
B42: 55 | D42: 0.002176 | E42: 0.003908 | G42: 0.001531 | H42: 0.002716
B43: 56 | D43: 0.002404 | E43: 0.004121 | G43: 0.001652 | H43: 0.002894
B44: 57 | D44: 0.00266 | E44: 0.004356 | G44: 0.001781 | H44: 0.003096
B45: 58 | D45: 0.00295 | E45: 0.004616 | G45: 0.001919 | H45: 0.003327
B46: 59 | D46: 0.003282 | E46: 0.004905 | G46: 0.002069 | H46: 0.003591
B47: 60 | D47: 0.00366 | E47: 0.005225 | G47: 0.002235 | H47: 0.003891
B48: 61 | D48: 0.004091 | E48: 0.005582 | G48: 0.002418 | H48: 0.004367
B49: 62 | D49: 0.00458 | E49: 0.005984 | G49: 0.002621 | H49: 0.004867
B50: 63 | D50: 0.005134 | E50: 0.006442 | G50: 0.002849 | H50: 0.005394
B51: 64 | D51: 0.005759 | E51: 0.006969 | G51: 0.003101 | H51: 0.005952
B52: 65 | D52: 0.006462 | E52: 0.00758 | G52: 0.003382 | H52: 0.006549
B53: 66 | D53: 0.007213 | E53: 0.00829 | G53: 0.003767 | H53: 0.007197
B54: 67 | D54: 0.008051 | E54: 0.009114 | G54: 0.004196 | H54: 0.007907
B55: 68 | D55: 0.008987 | E55: 0.010066 | G55: 0.004674 | H55: 0.008694
B56: 69 | D56: 0.010031 | E56: 0.011159 | G56: 0.005206 | H56: 0.009572
B57: 70 | D57: 0.011197 | E57: 0.012402 | G57: 0.005799 | H57: 0.010554
B58: 71 | D58: 0.012498 | E58: 0.013803 | G58: 0.006459 | H58: 0.011653
B59: 72 | D59: 0.013951 | E59: 0.015375 | G59: 0.007194 | H59: 0.012886
B60: 73 | D60: 0.015572 | E60: 0.01713 | G60: 0.008013 | H60: 0.01427
B61: 74 | D61: 0.017382 | E61: 0.019088 | G61: 0.008925 | H61: 0.015825
B62: 75 | D62: 0.019402 | E62: 0.021279 | G62: 0.009941 | H62: 0.017577
B63: 76 | D63: 0.021657 | E63: 0.023738 | G63: 0.011073 | H63: 0.019555
B64: 77 | D64: 0.024174 | E64: 0.02651 | G64: 0.012334 | H64: 0.021789
B65: 78 | D65: 0.026984 | E65: 0.029651 | G65: 0.013738 | H65: 0.024315
B66: 79 | D66: 0.03012 | E66: 0.033225 | G66: 0.015302 | H66: 0.027176
B67: 80 | D67: 0.033621 | E67: 0.037307 | G67: 0.017044 | H67: 0.030419
B68: 81 | E68: 0.04198 | H68: 0.034101
B69: 82 | E69: 0.047333 | H69: 0.038286
B70: 83 | E70: 0.053459 | H70: 0.043044
B71: 84 | E71: 0.060449 | H71: 0.048457
B72: 85 | E72: 0.068396 | H72: 0.054613
B73: 86 | E73: 0.077396 | H73: 0.061611
B74: 87 | E74: 0.087552 | H74: 0.069553
B75: 88 | E75: 0.098978 | H75: 0.07855
B76: 89 | E76: 0.111806 | H76: 0.088723
B77: 90 | E77: 0.12619 | H77: 0.100207
B78: 91 | E78: 0.141713 | H78: 0.112848
B79: 92 | E79: 0.15813 | H79: 0.126555
B80: 93 | E80: 0.175288 | H80: 0.141281
B81: 94 | E81: 0.193131 | H81: 0.157007
B82: 95 | E82: 0.211674 | H82: 0.173736
B83: 96 | E83: 0.230976 | H83: 0.191477
B84: 97 | E84: 0.251106 | H84: 0.210235
B85: 98 | E85: 0.272113 | H85: 0.229998
B86: 99 | E86: 0.293848 | H86: 0.250723
B87: 100 | E87: 0.313988 | H87: 0.270858
B88: 101 | E88: 0.334365 | H88: 0.29104
B89: 102 | E89: 0.354599 | H89: 0.311444
B90: 103 | E90: 0.374524 | H90: 0.3319
B91: 104 | E91: 0.393982 | H91: 0.352232
B92: 105 | E92: 0.412831 | H92: 0.372273
B93: 106 | E93: 0.430946 | H93: 0.39186
B94: 107 | E94: 0.448227 | H94: 0.410849
B95: 108 | E95: 0.464592 | H95: 0.429112
B96: 109 | E96: 0.479987 | H96: 0.446544
B97: 110 | E97: 0.494376 | H97: 0.463061
B98: 111 | E98: 0.5 | H98: 0.478604
B99: 112 | E99: 0.5 | H99: 0.493137
B100: 113 | E100: 0.5 | H100: 0.5
B101: 114 | E101: 0.5 | H101: 0.5
B102: 115 | E102: 0.5 | H102: 0.5
B103: 116 | E103: 0.5 | H103: 0.5
B104: 117 | E104: 0.5 | H104: 0.5
B105: 118 | E105: 0.5 | H105: 0.5
B106: 119 | E106: 0.5 | H106: 0.5
B107: 120 | E107: 1 | H107: 1

Sheet Bottom Quartile
A1: RP-2014 Rates: Bottom Quartile
D3: Bottom Quartile; Males | G3: Bottom Quartile; Females
B4: Age | D4: Employee | E4: Healthy Annuitant | G4: Employee | H4: Healthy Annuitant
B5: 18 | D5: 0.000494 | G5: 0.000245
B6: 19 | D6: 0.000556 | G6: 0.000253
B7: 20 | D7: 0.000611 | G7: 0.000253
B8: 21 | D8: 0.000676 | G8: 0.000253
B9: 22 | D9: 0.000735 | G9: 0.000253
B10: 23 | D10: 0.000766 | G10: 0.000259
B11: 24 | D11: 0.000777 | G11: 0.000264
B12: 25 | D12: 0.000729 | G12: 0.00027
B13: 26 | D13: 0.000696 | G13: 0.00028
B14: 27 | D14: 0.000676 | G14: 0.000292
B15: 28 | D15: 0.000668 | G15: 0.000306
B16: 29 | D16: 0.000671 | G16: 0.000322
B17: 30 | D17: 0.00068 | G17: 0.000341
B18: 31 | D18: 0.000697 | G18: 0.000361
B19: 32 | D19: 0.000718 | G19: 0.000381
B20: 33 | D20: 0.000741 | G20: 0.000403
B21: 34 | D21: 0.000765 | G21: 0.000425
B22: 35 | D22: 0.000787 | G22: 0.000447
B23: 36 | D23: 0.000807 | G23: 0.000469
B24: 37 | D24: 0.000829 | G24: 0.000497
B25: 38 | D25: 0.000858 | G25: 0.00053
B26: 39 | D26: 0.000896 | G26: 0.00057
B27: 40 | D27: 0.000945 | G27: 0.000619
B28: 41 | D28: 0.00101 | G28: 0.000677
B29: 42 | D29: 0.001091 | G29: 0.000745
B30: 43 | D30: 0.001194 | G30: 0.000827
B31: 44 | D31: 0.001319 | G31: 0.00092
B32: 45 | D32: 0.001465 | G32: 0.001027
B33: 46 | D33: 0.001636 | G33: 0.001145
B34: 47 | D34: 0.001829 | G34: 0.001275
B35: 48 | D35: 0.002044 | G35: 0.001416
B36: 49 | D36: 0.002281 | G36: 0.001564
B37: 50 | D37: 0.002538 | E37: 0.010021 | G37: 0.001722 | H37: 0.004429
B38: 51 | D38: 0.002817 | E38: 0.01037 | G38: 0.001885 | H38: 0.004648
B39: 52 | D39: 0.003119 | E39: 0.01067 | G39: 0.002055 | H39: 0.004891
B40: 53 | D40: 0.003446 | E40: 0.01092 | G40: 0.002233 | H40: 0.00516
B41: 54 | D41: 0.003804 | E41: 0.011121 | G41: 0.002419 | H41: 0.005459
B42: 55 | D42: 0.004197 | E42: 0.011273 | G42: 0.002614 | H42: 0.005795
B43: 56 | D43: 0.004635 | E43: 0.011327 | G43: 0.002821 | H43: 0.005941
B44: 57 | D44: 0.005129 | E44: 0.011409 | G44: 0.003041 | H44: 0.005962
B45: 58 | D45: 0.005689 | E45: 0.011522 | G45: 0.003277 | H45: 0.006029
B46: 59 | D46: 0.006329 | E46: 0.011674 | G46: 0.003533 | H46: 0.006147
B47: 60 | D47: 0.007057 | E47: 0.011873 | G47: 0.003816 | H47: 0.006322
B48: 61 | D48: 0.007888 | E48: 0.012133 | G48: 0.004128 | H48: 0.006562
B49: 62 | D49: 0.008832 | E49: 0.012468 | G49: 0.004475 | H49: 0.006877
B50: 63 | D50: 0.009901 | E50: 0.012901 | G50: 0.004864 | H50: 0.007278
B51: 64 | D51: 0.011106 | E51: 0.013453 | G51: 0.005296 | H51: 0.007779
B52: 65 | D52: 0.01246 | E52: 0.014148 | G52: 0.005775 | H52: 0.008394
B53: 66 | D53: 0.013628 | E53: 0.015009 | G53: 0.006317 | H53: 0.00914
B54: 67 | D54: 0.014905 | E54: 0.016054 | G54: 0.00691 | H54: 0.010032
B55: 68 | D55: 0.016302 | E55: 0.017295 | G55: 0.007559 | H55: 0.01108
B56: 69 | D56: 0.01783 | E56: 0.01874 | G56: 0.008269 | H56: 0.012294
B57: 70 | D57: 0.019501 | E57: 0.020396 | G57: 0.009046 | H57: 0.013679
B58: 71 | D58: 0.021329 | E58: 0.022269 | G58: 0.009896 | H58: 0.01524
B59: 72 | D59: 0.023328 | E59: 0.02437 | G59: 0.010826 | H59: 0.016979
B60: 73 | D60: 0.025515 | E60: 0.026713 | G60: 0.011843 | H60: 0.0189
B61: 74 | D61: 0.027907 | E61: 0.029316 | G61: 0.012955 | H61: 0.021009
B62: 75 | D62: 0.030523 | E62: 0.032206 | G62: 0.014172 | H62: 0.023315
B63: 76 | D63: 0.033384 | E63: 0.035415 | G63: 0.015503 | H63: 0.025831
B64: 77 | D64: 0.036513 | E64: 0.038987 | G64: 0.016959 | H64: 0.028576
B65: 78 | D65: 0.039935 | E65: 0.04297 | G65: 0.018552 | H65: 0.031576
B66: 79 | D66: 0.043678 | E66: 0.04742 | G66: 0.020295 | H66: 0.034868
B67: 80 | D67: 0.047772 | E67: 0.052398 | G67: 0.022201 | H67: 0.038501
B68: 81 | E68: 0.057968 | H68: 0.04253
B69: 82 | E69: 0.064194 | H69: 0.047019
B70: 83 | E70: 0.071143 | H70: 0.052039
B71: 84 | E71: 0.078879 | H71: 0.057667
B72: 85 | E72: 0.087472 | H72: 0.063982
B73: 86 | E73: 0.096994 | H73: 0.071068
B74: 87 | E74: 0.107531 | H74: 0.079012
B75: 88 | E75: 0.119182 | H75: 0.087909
B76: 89 | E76: 0.132057 | H76: 0.097861
B77: 90 | E77: 0.146282 | H77: 0.108983
B78: 91 | E78: 0.161209 | H78: 0.120982
B79: 92 | E79: 0.176519 | H79: 0.133744
B80: 93 | E80: 0.192005 | H80: 0.14772
B81: 94 | E81: 0.207575 | H81: 0.162971
B82: 95 | E82: 0.223222 | H82: 0.179034
B83: 96 | E83: 0.238979 | H83: 0.195903
B84: 97 | E84: 0.255059 | H84: 0.213565
B85: 98 | E85: 0.27417 | H85: 0.231991
B86: 99 | E86: 0.293848 | H86: 0.251123
B87: 100 | E87: 0.313988 | H87: 0.270858
B88: 101 | E88: 0.334365 | H88: 0.29104
B89: 102 | E89: 0.354599 | H89: 0.311444
B90: 103 | E90: 0.374524 | H90: 0.3319
B91: 104 | E91: 0.393982 | H91: 0.352232
B92: 105 | E92: 0.412831 | H92: 0.372273
B93: 106 | E93: 0.430946 | H93: 0.39186
B94: 107 | E94: 0.448227 | H94: 0.410849
B95: 108 | E95: 0.464592 | H95: 0.429112
B96: 109 | E96: 0.479987 | H96: 0.446544
B97: 110 | E97: 0.494376 | H97: 0.463061
B98: 111 | E98: 0.5 | H98: 0.478604
B99: 112 | E99: 0.5 | H99: 0.493137
B100: 113 | E100: 0.5 | H100: 0.5
B101: 114 | E101: 0.5 | H101: 0.5
B102: 115 | E102: 0.5 | H102: 0.5
B103: 116 | E103: 0.5 | H103: 0.5
B104: 117 | E104: 0.5 | H104: 0.5
B105: 118 | E105: 0.5 | H105: 0.5
B106: 119 | E106: 0.5 | H106: 0.5
B107: 120 | E107: 1 | H107: 1

Sheet Top Quartile
A1: RP-2014 Rates: Top Quartile
D3: Top Quartile; Males | G3: Top Quartile; Females
B4: Age | D4: Employee | E4: Healthy Annuitant | G4: Employee | H4: Healthy Annuitant
B5: 18 | D5: 0.000189 | G5: 0.000108
B6: 19 | D6: 0.000212 | G6: 0.000112
B7: 20 | D7: 0.000233 | G7: 0.000112
B8: 21 | D8: 0.000258 | G8: 0.000112
B9: 22 | D9: 0.000281 | G9: 0.000112
B10: 23 | D10: 0.000293 | G10: 0.000115
B11: 24 | D11: 0.000297 | G11: 0.000117
B12: 25 | D12: 0.000278 | G12: 0.000119
B13: 26 | D13: 0.000266 | G13: 0.000124
B14: 27 | D14: 0.000258 | G14: 0.000129
B15: 28 | D15: 0.000255 | G15: 0.000135
B16: 29 | D16: 0.000256 | G16: 0.000142
B17: 30 | D17: 0.00026 | G17: 0.00015
B18: 31 | D18: 0.000266 | G18: 0.000159
B19: 32 | D19: 0.000274 | G19: 0.000168
B20: 33 | D20: 0.000283 | G20: 0.000178
B21: 34 | D21: 0.000292 | G21: 0.000188
B22: 35 | D22: 0.000301 | G22: 0.000197
B23: 36 | D23: 0.000308 | G23: 0.000207
B24: 37 | D24: 0.000317 | G24: 0.000219
B25: 38 | D25: 0.000328 | G25: 0.000234
B26: 39 | D26: 0.000342 | G26: 0.000252
B27: 40 | D27: 0.000361 | G27: 0.000273
B28: 41 | D28: 0.000386 | G28: 0.000299
B29: 42 | D29: 0.000417 | G29: 0.000329
B30: 43 | D30: 0.000456 | G30: 0.000365
B31: 44 | D31: 0.000504 | G31: 0.000406
B32: 45 | D32: 0.00056 | G32: 0.000453
B33: 46 | D33: 0.000625 | G33: 0.000506
B34: 47 | D34: 0.000699 | G34: 0.000563
B35: 48 | D35: 0.000781 | G35: 0.000625
B36: 49 | D36: 0.000871 | G36: 0.000691
B37: 50 | D37: 0.00097 | E37: 0.003071 | G37: 0.00076 | H37: 0.001463
B38: 51 | D38: 0.001076 | E38: 0.003465 | G38: 0.000832 | H38: 0.001699
B39: 52 | D39: 0.001192 | E39: 0.003852 | G39: 0.000907 | H39: 0.001947
B40: 53 | D40: 0.001316 | E40: 0.004231 | G40: 0.000986 | H40: 0.00221
B41: 54 | D41: 0.001453 | E41: 0.004601 | G41: 0.001068 | H41: 0.00249
B42: 55 | D42: 0.001603 | E42: 0.004961 | G42: 0.001154 | H42: 0.002789
B43: 56 | D43: 0.001771 | E43: 0.00531 | G43: 0.001245 | H43: 0.003111
B44: 57 | D44: 0.001959 | E44: 0.005649 | G44: 0.001343 | H44: 0.003462
B45: 58 | D45: 0.002173 | E45: 0.005979 | G45: 0.001447 | H45: 0.003846
B46: 59 | D46: 0.002418 | E46: 0.006304 | G46: 0.00156 | H46: 0.004265
B47: 60 | D47: 0.002696 | E47: 0.006631 | G47: 0.001685 | H47: 0.004724
B48: 61 | D48: 0.003013 | E48: 0.006964 | G48: 0.001823 | H48: 0.005223
B49: 62 | D49: 0.003374 | E49: 0.007312 | G49: 0.001976 | H49: 0.005764
B50: 63 | D50: 0.003782 | E50: 0.007685 | G50: 0.002148 | H50: 0.006345
B51: 64 | D51: 0.004242 | E51: 0.008093 | G51: 0.002338 | H51: 0.006967
B52: 65 | D52: 0.00476 | E52: 0.00855 | G52: 0.00255 | H52: 0.007634
B53: 66 | D53: 0.00537 | E53: 0.009065 | G53: 0.002864 | H53: 0.00835
B54: 67 | D54: 0.006058 | E54: 0.009652 | G54: 0.003217 | H54: 0.009119
B55: 68 | D55: 0.006834 | E55: 0.010322 | G55: 0.003613 | H55: 0.00995
B56: 69 | D56: 0.007709 | E56: 0.011086 | G56: 0.004058 | H56: 0.010851
B57: 70 | D57: 0.008696 | E57: 0.011958 | G57: 0.004558 | H57: 0.011829
B58: 71 | D58: 0.00981 | E58: 0.012955 | G58: 0.005119 | H58: 0.012896
B59: 72 | D59: 0.011066 | E59: 0.014096 | G59: 0.00575 | H59: 0.014068
B60: 73 | D60: 0.012483 | E60: 0.015406 | G60: 0.006458 | H60: 0.015359
B61: 74 | D61: 0.014082 | E61: 0.016915 | G61: 0.007254 | H61: 0.016794
B62: 75 | D62: 0.015886 | E62: 0.018659 | G62: 0.008148 | H62: 0.018397
B63: 76 | D63: 0.017921 | E63: 0.020684 | G63: 0.009152 | H63: 0.020201
B64: 77 | D64: 0.020216 | E64: 0.023037 | G64: 0.010279 | H64: 0.022239
B65: 78 | D65: 0.022805 | E65: 0.025777 | G65: 0.011545 | H65: 0.024548
B66: 79 | D66: 0.025726 | E66: 0.028966 | G66: 0.012967 | H66: 0.027168
B67: 80 | D67: 0.029021 | E67: 0.032675 | G67: 0.014564 | H67: 0.030142
B68: 81 | E68: 0.036983 | H68: 0.033516
B69: 82 | E69: 0.041977 | H69: 0.037345
B70: 83 | E70: 0.047754 | H70: 0.041685
B71: 84 | E71: 0.054421 | H71: 0.046604
B72: 85 | E72: 0.062096 | H72: 0.052177
B73: 86 | E73: 0.070916 | H73: 0.058485
B74: 87 | E74: 0.081032 | H74: 0.065622
B75: 88 | E75: 0.092622 | H75: 0.073689
B76: 89 | E76: 0.105887 | H76: 0.082799
B77: 90 | E77: 0.12106 | H77: 0.093082
B78: 91 | E78: 0.137817 | H78: 0.104404
B79: 92 | E79: 0.155829 | H79: 0.116696
B80: 93 | E80: 0.174967 | H80: 0.129928
B81: 94 | E81: 0.195193 | H81: 0.144103
B82: 95 | E82: 0.216538 | H82: 0.159244
B83: 96 | E83: 0.236535 | H83: 0.175384
B84: 97 | E84: 0.255059 | H84: 0.192553
B85: 98 | E85: 0.27417 | H85: 0.210771
B86: 99 | E86: 0.293848 | H86: 0.230031
B87: 100 | E87: 0.313988 | H87: 0.250285
B88: 101 | E88: 0.334365 | H88: 0.271437
B89: 102 | E89: 0.354599 | H89: 0.29332
B90: 103 | E90: 0.374524 | H90: 0.315812
B91: 104 | E91: 0.393982 | H91: 0.338781
B92: 105 | E92: 0.412831 | H92: 0.362092
B93: 106 | E93: 0.430946 | H93: 0.385613
B94: 107 | E94: 0.448227 | H94: 0.409215
B95: 108 | E95: 0.464592 | H95: 0.429112
B96: 109 | E96: 0.479987 | H96: 0.446544
B97: 110 | E97: 0.494376 | H97: 0.463061
B98: 111 | E98: 0.5 | H98: 0.478604
B99: 112 | E99: 0.5 | H99: 0.493137
B100: 113 | E100: 0.5 | H100: 0.5
B101: 114 | E101: 0.5 | H101: 0.5
B102: 115 | E102: 0.5 | H102: 0.5
B103: 116 | E103: 0.5 | H103: 0.5
B104: 117 | E104: 0.5 | H104: 0.5
B105: 118 | E105: 0.5 | H105: 0.5
B106: 119 | E106: 0.5 | H106: 0.5
B107: 120 | E107: 1 | H107: 1

Sheet MP-2016 Male
A1: Scale MP-2016, Males
B4: Age | C4: 1951 | D4: 1952 | E4: 1953 | F4: 1954 | G4: 1955 | H4: 1956 | I4: 1957 | J4: 1958 | K4: 1959 | L4: 1960 | M4: 1961 | N4: 1962 | O4: 1963 | P4: 1964 | Q4: 1965 | R4: 1966 | S4: 1967 | T4: 1968 | U4: 1969 | V4: 1970 | W4: 1971 | X4: 1972 | Y4: 1973 | Z4: 1974 | AA4: 1975 | AB4: 1976 | AC4: 1977 | AD4: 1978 | AE4: 1979 | AF4: 1980 | AG4: 1981 | AH4: 1982 | AI4: 1983 | AJ4: 1984 | AK4: 1985 | AL4: 1986 | AM4: 1987 | AN4: 1988 | AO4: 1989 | AP4: 1990 | AQ4: 1991 | AR4: 1992 | AS4: 1993 | AT4: 1994 | AU4: 1995 | AV4: 1996 | AW4: 1997 | AX4: 1998 | AY4: 1999 | AZ4: 2000 | BA4: 2001 | BB4: 2002 | BC4: 2003 | BD4: 2004 | BE4: 2005 | BF4: 2006 | BG4: 2007 | BH4: 2008 | BI4: 2009 | BJ4: 2010 | BK4: 2011 | BL4: 2012 | BM4: 2013 | BN4: 2014 | BO4: 2015 | BP4: 2016 | BQ4: 2017 | BR4: 2018 | BS4: 2019 | BT4: 2020 | BU4: 2021 | BV4: 2022 | BW4: 2023 | BX4: 2024 | BY4: 2025 | BZ4: 2026 | CA4: 2027 | CB4: 2028 | CC4: 2029 | CD4: 2030 | CE4: 2031 | CF4: 2032+
B5: ≤ 20 | C5: -0.0153 | D5: -0.0067 | E5: 0.0015 | F5: 0.0089 | G5: 0.0149 | H5: 0.0192 | I5: 0.0215 | J5: 0.0214 | K5: 0.0184 | L5: 0.0126 | M5: 0.0043 | N5: -0.0057 | O5: -0.0162 | P5: -0.0258 | Q5: -0.0333 | R5: -0.0374 | S5: -0.0373 | T5: -0.0329 | U5: -0.025 | V5: -0.0151 | W5: -0.0049 | X5: 0.0041 | Y5: 0.0111 | Z5: 0.0158 | AA5: 0.0182 | AB5: 0.0191 | AC5: 0.0199 | AD5: 0.0219 | AE5: 0.0256 | AF5: 0.0302 | AG5: 0.0336 | AH5: 0.0337 | AI5: 0.0296 | AJ5: 0.022 | AK5: 0.013 | AL5: 0.0047 | AM5: -0.0013 | AN5: -0.0045 | AO5: -0.0049 | AP5: -0.0028 | AQ5: 0.0016 | AR5: 0.0077 | AS5: 0.0145 | AT5: 0.0213 | AU5: 0.0269 | AV5: 0.0298 | AW5: 0.0293 | AX5: 0.0251 | AY5: 0.0181 | AZ5: 0.01 | BA5: 0.0028 | BB5: -0.0019 | BC5: -0.003 | BD5: -0.0005 | BE5: 0.0055 | BF5: 0.0141 | BG5: 0.0234 | BH5: 0.0314 | BI5: 0.0363 | BJ5: 0.0375 | BK5: 0.0356 | BL5: 0.0318 | BM5: 0.0315 | BN5: 0.0304 | BO5: 0.0288 | BP5: 0.0269 | BQ5: 0.0247 | BR5: 0.0224 | BS5: 0.0202 | BT5: 0.0182 | BU5: 0.0166 | BV5: 0.0155 | BW5: 0.0146 | BX5: 0.0138 | BY5: 0.0131 | BZ5: 0.0124 | CA5: 0.0117 | CB5: 0.0111 | CC5: 0.0107 | CD5: 0.0103 | CE5: 0.0101 | CF5: 0.01
B6: 21 | C6: -0.0146 | D6: -0.0062 | E6: 0.002 | F6: 0.0092 | G6: 0.0151 | H6: 0.0193 | I6: 0.0215 | J6: 0.0211 | K6: 0.018 | L6: 0.0121 | M6: 0.0038 | N6: -0.0059 | O6: -0.016 | P6: -0.0253 | Q6: -0.0325 | R6: -0.0365 | S6: -0.0363 | T6: -0.0321 | U6: -0.0244 | V6: -0.0146 | W6: -0.0048 | X6: 0.0038 | Y6: 0.0105 | Z6: 0.0148 | AA6: 0.0169 | AB6: 0.0176 | AC6: 0.0183 | AD6: 0.0203 | AE6: 0.024 | AF6: 0.0287 | AG6: 0.0324 | AH6: 0.0328 | AI6: 0.0291 | AJ6: 0.0219 | AK6: 0.0134 | AL6: 0.0055 | AM6: -0.0001 | AN6: -0.0029 | AO6: -0.003 | AP6: -0.0007 | AQ6: 0.0037 | AR6: 0.0095 | AS6: 0.0159 | AT6: 0.0221 | AU6: 0.0269 | AV6: 0.0291 | AW6: 0.0277 | AX6: 0.0228 | AY6: 0.0151 | AZ6: 0.0064 | BA6: -0.0012 | BB6: -0.0062 | BC6: -0.0075 | BD6: -0.005 | BE6: 0.0008 | BF6: 0.0093 | BG6: 0.0187 | BH6: 0.0269 | BI6: 0.032 | BJ6: 0.0335 | BK6: 0.0319 | BL6: 0.0284 | BM6: 0.0298 | BN6: 0.0289 | BO6: 0.0275 | BP6: 0.0258 | BQ6: 0.0238 | BR6: 0.0218 | BS6: 0.0198 | BT6: 0.018 | BU6: 0.0165 | BV6: 0.0155 | BW6: 0.0146 | BX6: 0.0138 | BY6: 0.0131 | BZ6: 0.0124 | CA6: 0.0117 | CB6: 0.0111 | CC6: 0.0107 | CD6: 0.0103 | CE6: 0.0101 | CF6: 0.01
B7: 22 | C7: -0.0121 | D7: -0.0042 | E7: 0.0034 | F7: 0.0103 | G7: 0.0157 | H7: 0.0195 | I7: 0.0212 | J7: 0.0205 | K7: 0.0171 | L7: 0.0111 | M7: 0.0031 | N7: -0.0063 | O7: -0.0159 | P7: -0.0247 | Q7: -0.0314 | R7: -0.035 | S7: -0.0348 | T7: -0.0306 | U7: -0.0231 | V7: -0.0138 | W7: -0.0044 | X7: 0.0038 | Y7: 0.0099 | Z7: 0.0138 | AA7: 0.0156 | AB7: 0.0162 | AC7: 0.0167 | AD7: 0.0185 | AE7: 0.0222 | AF7: 0.0268 | AG7: 0.0307 | AH7: 0.0314 | AI7: 0.028 | AJ7: 0.0212 | AK7: 0.0129 | AL7: 0.0053 | AM7: 0.0001 | AN7: -0.0024 | AO7: -0.002 | AP7: 0.0007 | AQ7: 0.0055 | AR7: 0.0115 | AS7: 0.0179 | AT7: 0.0239 | AU7: 0.0283 | AV7: 0.0298 | AW7: 0.0277 | AX7: 0.0219 | AY7: 0.0133 | AZ7: 0.0038 | BA7: -0.0044 | BB7: -0.0098 | BC7: -0.0114 | BD7: -0.0092 | BE7: -0.0034 | BF7: 0.005 | BG7: 0.0144 | BH7: 0.0226 | BI7: 0.0278 | BJ7: 0.0294 | BK7: 0.028 | BL7: 0.0247 | BM7: 0.0263 | BN7: 0.0272 | BO7: 0.026 | BP7: 0.0246 | BQ7: 0.0229 | BR7: 0.0212 | BS7: 0.0194 | BT7: 0.0178 | BU7: 0.0165 | BV7: 0.0155 | BW7: 0.0146 | BX7: 0.0138 | BY7: 0.0131 | BZ7: 0.0124 | CA7: 0.0117 | CB7: 0.0111 | CC7: 0.0107 | CD7: 0.0103 | CE7: 0.0101 | CF7: 0.01
B8: 23 | C8: -0.0082 | D8: -0.001 | E8: 0.0059 | F8: 0.0119 | G8: 0.0166 | H8: 0.0197 | I8: 0.0208 | J8: 0.0196 | K8: 0.0159 | L8: 0.0099 | M8: 0.0021 | N8: -0.0069 | O8: -0.0159 | P8: -0.0239 | Q8: -0.03 | R8: -0.0332 | S8: -0.0328 | T8: -0.0287 | U8: -0.0215 | V8: -0.0126 | W8: -0.0038 | X8: 0.0039 | Y8: 0.0096 | Z8: 0.0131 | AA8: 0.0146 | AB8: 0.0149 | AC8: 0.0152 | AD8: 0.0168 | AE8: 0.0202 | AF8: 0.0247 | AG8: 0.0285 | AH8: 0.0294 | AI8: 0.0263 | AJ8: 0.0197 | AK8: 0.0116 | AL8: 0.0042 | AM8: -0.0008 | AN8: -0.0029 | AO8: -0.002 | AP8: 0.0014 | AQ8: 0.0068 | AR8: 0.0134 | AS8: 0.0203 | AT8: 0.0265 | AU8: 0.0308 | AV8: 0.032 | AW8: 0.0292 | AX8: 0.0225 | AY8: 0.013 | AZ8: 0.0025 | BA8: -0.0066 | BB8: -0.0126 | BC8: -0.0147 | BD8: -0.0127 | BE8: -0.0071 | BF8: 0.0011 | BG8: 0.0104 | BH8: 0.0185 | BI8: 0.0237 | BJ8: 0.0253 | BK8: 0.024 | BL8: 0.0208 | BM8: 0.0226 | BN8: 0.0238 | BO8: 0.0245 | BP8: 0.0233 | BQ8: 0.0219 | BR8: 0.0205 | BS8: 0.019 | BT8: 0.0176 | BU8: 0.0164 | BV8: 0.0155 | BW8: 0.0146 | BX8: 0.0138 | BY8: 0.0131 | BZ8: 0.0124 | CA8: 0.0117 | CB8: 0.0111 | CC8: 0.0107 | CD8: 0.0103 | CE8: 0.0101 | CF8: 0.01
B9: 24 | C9: -0.0031 | D9: 0.0031 | E9: 0.009 | F9: 0.014 | G9: 0.0177 | H9: 0.0199 | I9: 0.0202 | J9: 0.0183 | K9: 0.0144 | L9: 0.0084 | M9: 0.0009 | N9: -0.0075 | O9: -0.0159 | P9: -0.0232 | Q9: -0.0286 | R9: -0.0312 | S9: -0.0305 | T9: -0.0264 | U9: -0.0196 | V9: -0.0112 | W9: -0.0029 | X9: 0.0042 | Y9: 0.0095 | Z9: 0.0126 | AA9: 0.0138 | AB9: 0.0139 | AC9: 0.0139 | AD9: 0.0151 | AE9: 0.0181 | AF9: 0.0222 | AG9: 0.0259 | AH9: 0.0268 | AI9: 0.0238 | AJ9: 0.0173 | AK9: 0.0094 | AL9: 0.0021 | AM9: -0.0027 | AN9: -0.0045 | AO9: -0.003 | AP9: 0.0012 | AQ9: 0.0076 | AR9: 0.0151 | AS9: 0.0228 | AT9: 0.0296 | AU9: 0.0343 | AV9: 0.0354 | AW9: 0.0322 | AX9: 0.0246 | AY9: 0.014 | AZ9: 0.0025 | BA9: -0.0076 | BB9: -0.0144 | BC9: -0.0171 | BD9: -0.0155 | BE9: -0.0102 | BF9: -0.0022 | BG9: 0.0069 | BH9: 0.0148 | BI9: 0.0198 | BJ9: 0.0213 | BK9: 0.0199 | BL9: 0.0167 | BM9: 0.0186 | BN9: 0.0202 | BO9: 0.0213 | BP9: 0.022 | BQ9: 0.0209 | BR9: 0.0197 | BS9: 0.0186 | BT9: 0.0174 | BU9: 0.0164 | BV9: 0.0155 | BW9: 0.0146 | BX9: 0.0138 | BY9: 0.0131 | BZ9: 0.0124 | CA9: 0.0117 | CB9: 0.0111 | CC9: 0.0107 | CD9: 0.0103 | CE9: 0.0101 | CF9: 0.01
B10: 25 | C10: 0.0028 | D10: 0.0078 | E10: 0.0125 | F10: 0.0163 | G10: 0.0188 | H10: 0.0199 | I10: 0.0193 | J10: 0.0169 | K10: 0.0126 | L10: 0.0067 | M10: -0.0004 | N10: -0.0082 | O10: -0.0159 | P10: -0.0224 | Q10: -0.027 | R10: -0.029 | S10: -0.028 | T10: -0.024 | U10: -0.0175 | V10: -0.0097 | W10: -0.0019 | X10: 0.0048 | Y10: 0.0097 | Z10: 0.0126 | AA10: 0.0135 | AB10: 0.0133 | AC10: 0.0129 | AD10: 0.0137 | AE10: 0.016 | AF10: 0.0196 | AG10: 0.0228 | AH10: 0.0235 | AI10: 0.0205 | AJ10: 0.0141 | AK10: 0.0062 | AL10: -0.0009 | AM10: -0.0056 | AN10: -0.007 | AO10: -0.0049 | AP10: 0.0003 | AQ10: 0.0077 | AR10: 0.0164 | AS10: 0.0251 | AT10: 0.0329 | AU10: 0.0383 | AV10: 0.0398 | AW10: 0.0364 | AX10: 0.0282 | AY10: 0.0165 | AZ10: 0.0038 | BA10: -0.0074 | BB10: -0.0151 | BC10: -0.0185 | BD10: -0.0176 | BE10: -0.0126 | BF10: -0.0049 | BG10: 0.0038 | BH10: 0.0113 | BI10: 0.016 | BJ10: 0.0173 | BK10: 0.0159 | BL10: 0.0126 | BM10: 0.0146 | BN10: 0.0164 | BO10: 0.0179 | BP10: 0.0191 | BQ10: 0.0199 | BR10: 0.019 | BS10: 0.0181 | BT10: 0.0172 | BU10: 0.0163 | BV10: 0.0155 | BW10: 0.0146 | BX10: 0.0138 | BY10: 0.0131 | BZ10: 0.0124 | CA10: 0.0117 | CB10: 0.0111 | CC10: 0.0107 | CD10: 0.0103 | CE10: 0.0101 | CF10: 0.01
B11: 26 | C11: 0.009 | D11: 0.0127 | E11: 0.0161 | F11: 0.0186 | G11: 0.0199 | H11: 0.0198 | I11: 0.0183 | J11: 0.0153 | K11: 0.0107 | L11: 0.005 | M11: -0.0017 | N11: -0.009 | O11: -0.0159 | P11: -0.0216 | Q11: -0.0255 | R11: -0.0269 | S11: -0.0256 | T11: -0.0216 | U11: -0.0154 | V11: -0.008 | W11: -0.0007 | X11: 0.0056 | Y11: 0.0103 | Z11: 0.013 | AA11: 0.0138 | AB11: 0.0134 | AC11: 0.0126 | AD11: 0.0127 | AE11: 0.0142 | AF11: 0.017 | AG11: 0.0195 | AH11: 0.0198 | AI11: 0.0165 | AJ11: 0.0101 | AK11: 0.0023 | AL11: -0.0047 | AM11: -0.0091 | AN11: -0.0101 | AO11: -0.0074 | AP11: -0.0014 | AQ11: 0.0071 | AR11: 0.017 | AS11: 0.027 | AT11: 0.036 | AU11: 0.0425 | AV11: 0.0447 | AW11: 0.0415 | AX11: 0.0328 | AY11: 0.0203 | AZ11: 0.0065 | BA11: -0.0059 | BB11: -0.0146 | BC11: -0.0189 | BD11: -0.0186 | BE11: -0.0143 | BF11: -0.0071 | BG11: 0.0011 | BH11: 0.0082 | BI11: 0.0125 | BJ11: 0.0136 | BK11: 0.0119 | BL11: 0.0085 | BM11: 0.0106 | BN11: 0.0126 | BO11: 0.0145 | BP11: 0.0161 | BQ11: 0.0174 | BR11: 0.0183 | BS11: 0.0177 | BT11: 0.017 | BU11: 0.0163 | BV11: 0.0155 | BW11: 0.0146 | BX11: 0.0138 | BY11: 0.0131 | BZ11: 0.0124 | CA11: 0.0117 | CB11: 0.0111 | CC11: 0.0107 | CD11: 0.0103 | CE11: 0.0101 | CF11: 0.01
B12: 27 | C12: 0.0153 | D12: 0.0176 | E12: 0.0196 | F12: 0.0207 | G12: 0.0207 | H12: 0.0195 | I12: 0.0171 | J12: 0.0136 | K12: 0.0089 | L12: 0.0033 | M12: -0.003 | N12: -0.0096 | O12: -0.0158 | P12: -0.0209 | Q12: -0.024 | R12: -0.0249 | S12: -0.0234 | T12: -0.0194 | U12: -0.0134 | V12: -0.0064 | W12: 0.0005 | X12: 0.0066 | Y12: 0.0112 | Z12: 0.0139 | AA12: 0.0147 | AB12: 0.0141 | AC12: 0.0129 | AD12: 0.0122 | AE12: 0.0128 | AF12: 0.0145 | AG12: 0.016 | AH12: 0.0156 | AI12: 0.0119 | AJ12: 0.0054 | AK12: -0.0024 | AL12: -0.0092 | AM12: -0.0132 | AN12: -0.0137 | AO12: -0.0104 | AP12: -0.0035 | AQ12: 0.0059 | AR12: 0.0168 | AS12: 0.0281 | AT12: 0.0386 | AU12: 0.0465 | AV12: 0.0498 | AW12: 0.047 | AX12: 0.0382 | AY12: 0.0251 | AZ12: 0.0103 | BA12: -0.0032 | BB12: -0.013 | BC12: -0.0182 | BD12: -0.0187 | BE12: -0.0151 | BF12: -0.0085 | BG12: -0.001 | BH12: 0.0054 | BI12: 0.0093 | BJ12: 0.01 | BK12: 0.0082 | BL12: 0.0047 | BM12: 0.0067 | BN12: 0.0089 | BO12: 0.0111 | BP12: 0.0131 | BQ12: 0.0149 | BR12: 0.0163 | BS12: 0.0173 | BT12: 0.0168 | BU12: 0.0162 | BV12: 0.0155 | BW12: 0.0146 | BX12: 0.0138 | BY12: 0.0131 | BZ12: 0.0124 | CA12: 0.0117 | CB12: 0.0111 | CC12: 0.0107 | CD12: 0.0103 | CE12: 0.0101 | CF12: 0.01
B13: 28 | C13: 0.0212 | D13: 0.0221 | E13: 0.0227 | F13: 0.0224 | G13: 0.0212 | H13: 0.019 | I13: 0.0159 | J13: 0.012 | K13: 0.0072 | L13: 0.0019 | M13: -0.004 | N13: -0.0101 | O13: -0.0157 | P13: -0.0201 | Q13: -0.0227 | R13: -0.0232 | S13: -0.0214 | T13: -0.0174 | U13: -0.0117 | V13: -0.0049 | W13: 0.0019 | X13: 0.0079 | Y13: 0.0125 | Z13: 0.0154 | AA13: 0.0163 | AB13: 0.0155 | AC13: 0.0139 | AD13: 0.0125 | AE13: 0.012 | AF13: 0.0124 | AG13: 0.0127 | AH13: 0.0112 | AI13: 0.0069 | AJ13: 0.0001 | AK13: -0.0076 | AL13: -0.0141 | AM13: -0.0176 | AN13: -0.0175 | AO13: -0.0136 | AP13: -0.0061 | AQ13: 0.004 | AR13: 0.0159 | AS13: 0.0285 | AT13: 0.0405 | AU13: 0.0499 | AV13: 0.0546 | AW13: 0.0526 | AX13: 0.044 | AY13: 0.0304 | AZ13: 0.0149 | BA13: 0.0006 | BB13: -0.0102 | BC13: -0.0164 | BD13: -0.0177 | BE13: -0.015 | BF13: -0.0093 | BG13: -0.0026 | BH13: 0.0032 | BI13: 0.0065 | BJ13: 0.0069 | BK13: 0.0048 | BL13: 0.0011 | BM13: 0.003 | BN13: 0.0053 | BO13: 0.0077 | BP13: 0.0101 | BQ13: 0.0123 | BR13: 0.0142 | BS13: 0.0157 | BT13: 0.0166 | BU13: 0.0162 | BV13: 0.0155 | BW13: 0.0146 | BX13: 0.0138 | BY13: 0.0131 | BZ13: 0.0124 | CA13: 0.0117 | CB13: 0.0111 | CC13: 0.0107 | CD13: 0.0103 | CE13: 0.0101 | CF13: 0.01
B14: 29 | C14: 0.0265 | D14: 0.026 | E14: 0.0253 | F14: 0.0238 | G14: 0.0215 | H14: 0.0184 | I14: 0.0146 | J14: 0.0104 | K14: 0.0057 | L14: 0.0006 | M14: -0.0049 | N14: -0.0104 | O14: -0.0155 | P14: -0.0194 | Q14: -0.0215 | R14: -0.0216 | S14: -0.0197 | T14: -0.0157 | U14: -0.0101 | V14: -0.0035 | W14: 0.0032 | X14: 0.0093 | Y14: 0.0141 | Z14: 0.0172 | AA14: 0.0183 | AB14: 0.0175 | AC14: 0.0155 | AD14: 0.0134 | AE14: 0.0118 | AF14: 0.0108 | AG14: 0.0097 | AH14: 0.007 | AI14: 0.0019 | AJ14: -0.0053 | AK14: -0.013 | AL14: -0.0191 | AM14: -0.0221 | AN14: -0.0214 | AO14: -0.0169 | AP14: -0.009 | AQ14: 0.0017 | AR14: 0.0143 | AS14: 0.028 | AT14: 0.0415 | AU14: 0.0526 | AV14: 0.0587 | AW14: 0.0577 | AX14: 0.0495 | AY14: 0.0359 | AZ14: 0.0199 | BA14: 0.0049 | BB14: -0.0066 | BC14: -0.0135 | BD14: -0.0158 | BE14: -0.0139 | BF14: -0.0092 | BG14: -0.0034 | BH14: 0.0015 | BI14: 0.0042 | BJ14: 0.0042 | BK14: 0.0019 | BL14: -0.002 | BM14: -0.0002 | BN14: 0.002 | BO14: 0.0046 | BP14: 0.0073 | BQ14: 0.0098 | BR14: 0.0121 | BS14: 0.014 | BT14: 0.0153 | BU14: 0.0161 | BV14: 0.0155 | BW14: 0.0146 | BX14: 0.0138 | BY14: 0.0131 | BZ14: 0.0124 | CA14: 0.0117 | CB14: 0.0111 | CC14: 0.0107 | CD14: 0.0103 | CE14: 0.0101 | CF14: 0.01
B15: 30 | C15: 0.0309 | D15: 0.0293 | E15: 0.0273 | F15: 0.0248 | G15: 0.0215 | H15: 0.0176 | I15: 0.0134 | J15: 0.009 | K15: 0.0044 | L15: -0.0004 | M15: -0.0055 | N15: -0.0107 | O15: -0.0152 | P15: -0.0187 | Q15: -0.0204 | R15: -0.0203 | S15: -0.0183 | T15: -0.0143 | U15: -0.0088 | V15: -0.0022 | W15: 0.0045 | X15: 0.0108 | Y15: 0.0159 | Z15: 0.0193 | AA15: 0.0206 | AB15: 0.0199 | AC15: 0.0177 | AD15: 0.0149 | AE15: 0.0122 | AF15: 0.0099 | AG15: 0.0073 | AH15: 0.0033 | AI15: -0.0028 | AJ15: -0.0104 | AK15: -0.0182 | AL15: -0.0241 | AM15: -0.0265 | AN15: -0.0252 | AO15: -0.0202 | AP15: -0.0119 | AQ15: -0.0009 | AR15: 0.0123 | AS15: 0.0269 | AT15: 0.0418 | AU15: 0.0544 | AV15: 0.0619 | AW15: 0.062 | AX15: 0.0544 | AY15: 0.0409 | AZ15: 0.0249 | BA15: 0.0096 | BB15: -0.0024 | BC15: -0.01 | BD15: -0.0129 | BE15: -0.012 | BF15: -0.0083 | BG15: -0.0035 | BH15: 0.0006 | BI15: 0.0027 | BJ15: 0.0022 | BK15: -0.0004 | BL15: -0.0045 | BM15: -0.003 | BN15: -0.0008 | BO15: 0.0018 | BP15: 0.0046 | BQ15: 0.0075 | BR15: 0.0101 | BS15: 0.0123 | BT15: 0.014 | BU15: 0.0151 | BV15: 0.0155 | BW15: 0.0146 | BX15: 0.0138 | BY15: 0.0131 | BZ15: 0.0124 | CA15: 0.0117 | CB15: 0.0111 | CC15: 0.0107 | CD15: 0.0103 | CE15: 0.0101 | CF15: 0.01
B16: 31 | C16: 0.0345 | D16: 0.0318 | E16: 0.0289 | F16: 0.0254 | G16: 0.0214 | H16: 0.0168 | I16: 0.0123 | J16: 0.0078 | K16: 0.0033 | L16: -0.0012 | M16: -0.006 | N16: -0.0108 | O16: -0.0149 | P16: -0.018 | Q16: -0.0195 | R16: -0.0192 | S16: -0.0171 | T16: -0.0132 | U16: -0.0076 | V16: -0.001 | W16: 0.0059 | X16: 0.0123 | Y16: 0.0178 | Z16: 0.0215 | AA16: 0.0231 | AB16: 0.0226 | AC16: 0.0202 | AD16: 0.0169 | AE16: 0.0133 | AF16: 0.0098 | AG16: 0.0058 | AH16: 0.0004 | AI16: -0.0066 | AJ16: -0.0149 | AK16: -0.0228 | AL16: -0.0285 | AM16: -0.0306 | AN16: -0.0289 | AO16: -0.0235 | AP16: -0.015 | AQ16: -0.0037 | AR16: 0.0099 | AS16: 0.0253 | AT16: 0.0413 | AU16: 0.0552 | AV16: 0.064 | AW16: 0.0651 | AX16: 0.0581 | AY16: 0.0451 | AZ16: 0.0293 | BA16: 0.014 | BB16: 0.0019 | BC16: -0.0059 | BD16: -0.0094 | BE16: -0.0093 | BF16: -0.0065 | BG16: -0.0027 | BH16: 0.0005 | BI16: 0.0019 | BJ16: 0.001 | BK16: -0.002 | BL16: -0.0064 | BM16: -0.0051 | BN16: -0.0032 | BO16: -0.0006 | BP16: 0.0023 | BQ16: 0.0053 | BR16: 0.0081 | BS16: 0.0107 | BT16: 0.0127 | BU16: 0.014 | BV16: 0.0146 | BW16: 0.0146 | BX16: 0.0138 | BY16: 0.0131 | BZ16: 0.0124 | CA16: 0.0117 | CB16: 0.0111 | CC16: 0.0107 | CD16: 0.0103 | CE16: 0.0101 | CF16: 0.01
B17: 32 | C17: 0.0372 | D17: 0.0336 | E17: 0.0299 | F17: 0.0258 | G17: 0.0211 | H17: 0.0161 | I17: 0.0113 | J17: 0.0068 | K17: 0.0025 | L17: -0.0019 | M17: -0.0064 | N17: -0.0108 | O17: -0.0146 | P17: -0.0174 | Q17: -0.0186 | R17: -0.0182 | S17: -0.0161 | T17: -0.0121 | U17: -0.0066 | V17: 0.0001 | W17: 0.0071 | X17: 0.0138 | Y17: 0.0196 | Z17: 0.0237 | AA17: 0.0256 | AB17: 0.0252 | AC17: 0.0228 | AD17: 0.0192 | AE17: 0.015 | AF17: 0.0105 | AG17: 0.0053 | AH17: -0.0012 | AI17: -0.0093 | AJ17: -0.0182 | AK17: -0.0265 | AL17: -0.0323 | AM17: -0.0342 | AN17: -0.0323 | AO17: -0.0266 | AP17: -0.0179 | AQ17: -0.0064 | AR17: 0.0075 | AS17: 0.0235 | AT17: 0.0402 | AU17: 0.0551 | AV17: 0.0649 | AW17: 0.0669 | AX17: 0.0606 | AY17: 0.0481 | AZ17: 0.0328 | BA17: 0.0179 | BB17: 0.0061 | BC17: -0.0016 | BD17: -0.0054 | BE17: -0.0058 | BF17: -0.0039 | BG17: -0.0011 | BH17: 0.0013 | BI17: 0.002 | BJ17: 0.0006 | BK17: -0.0027 | BL17: -0.0074 | BM17: -0.0066 | BN17: -0.0049 | BO17: -0.0025 | BP17: 0.0004 | BQ17: 0.0034 | BR17: 0.0064 | BS17: 0.0091 | BT17: 0.0113 | BU17: 0.0129 | BV17: 0.0137 | BW17: 0.0139 | BX17: 0.0138 | BY17: 0.0131 | BZ17: 0.0124 | CA17: 0.0117 | CB17: 0.0111 | CC17: 0.0107 | CD17: 0.0103 | CE17: 0.0101 | CF17: 0.01
B18: 33 | C18: 0.039 | D18: 0.0348 | E18: 0.0305 | F18: 0.0259 | G18: 0.0207 | H18: 0.0155 | I18: 0.0105 | J18: 0.006 | K18: 0.0018 | L18: -0.0024 | M18: -0.0066 | N18: -0.0107 | O18: -0.0143 | P18: -0.0168 | Q18: -0.0178 | R18: -0.0174 | S18: -0.0152 | T18: -0.0112 | U18: -0.0056 | V18: 0.0011 | W18: 0.0083 | X18: 0.0152 | Y18: 0.0212 | Z18: 0.0256 | AA18: 0.0278 | AB18: 0.0276 | AC18: 0.0254 | AD18: 0.0217 | AE18: 0.0172 | AF18: 0.012 | AG18: 0.0059 | AH18: -0.0017 | AI18: -0.0106 | AJ18: -0.0202 | AK18: -0.029 | AL18: -0.035 | AM18: -0.0371 | AN18: -0.0351 | AO18: -0.0294 | AP18: -0.0206 | AQ18: -0.009 | AR18: 0.0051 | AS18: 0.0214 | AT18: 0.0386 | AU18: 0.0541 | AV18: 0.0646 | AW18: 0.0672 | AX18: 0.0615 | AY18: 0.0497 | AZ18: 0.0351 | BA18: 0.021 | BB18: 0.0098 | BC18: 0.0025 | BD18: -0.0012 | BE18: -0.0019 | BF18: -0.0007 | BG18: 0.0014 | BH18: 0.003 | BI18: 0.003 | BJ18: 0.0011 | BK18: -0.0026 | BL18: -0.0077 | BM18: -0.0072 | BN18: -0.0059 | BO18: -0.0037 | BP18: -0.0011 | BQ18: 0.0018 | BR18: 0.0048 | BS18: 0.0076 | BT18: 0.0099 | BU18: 0.0117 | BV18: 0.0127 | BW18: 0.0131 | BX18: 0.0132 | BY18: 0.0131 | BZ18: 0.0124 | CA18: 0.0117 | CB18: 0.0111 | CC18: 0.0107 | CD18: 0.0103 | CE18: 0.0101 | CF18: 0.01
B19: 34 | C19: 0.04 | D19: 0.0355 | E19: 0.0308 | F19: 0.0258 | G19: 0.0204 | H19: 0.0151 | I19: 0.01 | J19: 0.0055 | K19: 0.0013 | L19: -0.0027 | M19: -0.0067 | N19: -0.0106 | O19: -0.0139 | P19: -0.0162 | Q19: -0.0171 | R19: -0.0166 | S19: -0.0143 | T19: -0.0103 | U19: -0.0047 | V19: 0.0021 | W19: 0.0094 | X19: 0.0165 | Y19: 0.0227 | Z19: 0.0273 | AA19: 0.0297 | AB19: 0.0298 | AC19: 0.0278 | AD19: 0.0242 | AE19: 0.0196 | AF19: 0.0141 | AG19: 0.0073 | AH19: -0.0009 | AI19: -0.0105 | AJ19: -0.0208 | AK19: -0.03 | AL19: -0.0365 | AM19: -0.0389 | AN19: -0.0372 | AO19: -0.0317 | AP19: -0.0229 | AQ19: -0.0114 | AR19: 0.0028 | AS19: 0.0192 | AT19: 0.0365 | AU19: 0.0522 | AV19: 0.0631 | AW19: 0.0661 | AX19: 0.061 | AY19: 0.0499 | AZ19: 0.0361 | BA19: 0.023 | BB19: 0.0128 | BC19: 0.0062 | BD19: 0.0029 | BE19: 0.0021 | BF19: 0.003 | BG19: 0.0045 | BH19: 0.0054 | BI19: 0.0049 | BJ19: 0.0026 | BK19: -0.0016 | BL19: -0.0071 | BM19: -0.0071 | BN19: -0.0061 | BO19: -0.0044 | BP19: -0.002 | BQ19: 0.0007 | BR19: 0.0035 | BS19: 0.0062 | BT19: 0.0086 | BU19: 0.0105 | BV19: 0.0117 | BW19: 0.0123 | BX19: 0.0126 | BY19: 0.0126 | BZ19: 0.0124 | CA19: 0.0117 | CB19: 0.0111 | CC19: 0.0107 | CD19: 0.0103 | CE19: 0.0101 | CF19: 0.01
B20: 35 | C20: 0.0402 | D20: 0.0356 | E20: 0.0308 | F20: 0.0256 | G20: 0.0202 | H20: 0.0148 | I20: 0.0097 | J20: 0.0052 | K20: 0.0011 | L20: -0.0029 | M20: -0.0067 | N20: -0.0103 | O20: -0.0134 | P20: -0.0155 | Q20: -0.0164 | R20: -0.0158 | S20: -0.0136 | T20: -0.0095 | U20: -0.0038 | V20: 0.0031 | W20: 0.0105 | X20: 0.0176 | Y20: 0.0239 | Z20: 0.0286 | AA20: 0.0312 | AB20: 0.0316 | AC20: 0.0299 | AD20: 0.0266 | AE20: 0.0222 | AF20: 0.0165 | AG20: 0.0096 | AH20: 0.001 | AI20: -0.0091 | AJ20: -0.0199 | AK20: -0.0296 | AL20: -0.0365 | AM20: -0.0395 | AN20: -0.0382 | AO20: -0.0332 | AP20: -0.0248 | AQ20: -0.0135 | AR20: 0.0005 | AS20: 0.0167 | AT20: 0.0339 | AU20: 0.0496 | AV20: 0.0605 | AW20: 0.0638 | AX20: 0.0593 | AY20: 0.0489 | AZ20: 0.036 | BA20: 0.024 | BB20: 0.0149 | BC20: 0.0093 | BD20: 0.0067 | BE20: 0.0062 | BF20: 0.0069 | BG20: 0.0081 | BH20: 0.0085 | BI20: 0.0076 | BJ20: 0.0048 | BK20: 0.0002 | BL20: -0.0057 | BM20: -0.0061 | BN20: -0.0056 | BO20: -0.0043 | BP20: -0.0024 | BQ20: 0 | BR20: 0.0025 | BS20: 0.0051 | BT20: 0.0075 | BU20: 0.0094 | BV20: 0.0107 | BW20: 0.0114 | BX20: 0.0119 | BY20: 0.0121 | BZ20: 0.012 | CA20: 0.0117 | CB20: 0.0111 | CC20: 0.0107 | CD20: 0.0103 | CE20: 0.0101 | CF20: 0.01
B21: 36 | C21: 0.0398 | D21: 0.0352 | E21: 0.0305 | F21: 0.0254 | G21: 0.02 | H21: 0.0147 | I21: 0.0096 | J21: 0.0051 | K21: 0.0011 | L21: -0.0028 | M21: -0.0065 | N21: -0.0099 | O21: -0.0129 | P21: -0.0149 | Q21: -0.0157 | R21: -0.0151 | S21: -0.0128 | T21: -0.0087 | U21: -0.003 | V21: 0.004 | W21: 0.0114 | X21: 0.0185 | Y21: 0.0248 | Z21: 0.0296 | AA21: 0.0323 | AB21: 0.0329 | AC21: 0.0316 | AD21: 0.0288 | AE21: 0.0247 | AF21: 0.0192 | AG21: 0.0123 | AH21: 0.0036 | AI21: -0.0067 | AJ21: -0.0177 | AK21: -0.0277 | AL21: -0.0351 | AM21: -0.0387 | AN21: -0.0381 | AO21: -0.0338 | AP21: -0.026 | AQ21: -0.0153 | AR21: -0.0018 | AS21: 0.014 | AT21: 0.0308 | AU21: 0.0461 | AV21: 0.057 | AW21: 0.0605 | AX21: 0.0564 | AY21: 0.0468 | AZ21: 0.035 | BA21: 0.0241 | BB21: 0.0162 | BC21: 0.0116 | BD21: 0.0098 | BE21: 0.0098 | BF21: 0.0107 | BG21: 0.0118 | BH21: 0.012 | BI21: 0.0107 | BJ21: 0.0076 | BK21: 0.0027 | BL21: -0.0036 | BM21: -0.0044 | BN21: -0.0044 | BO21: -0.0036 | BP21: -0.0022 | BQ21: -0.0003 | BR21: 0.0019 | BS21: 0.0042 | BT21: 0.0064 | BU21: 0.0083 | BV21: 0.0096 | BW21: 0.0106 | BX21: 0.0112 | BY21: 0.0115 | BZ21: 0.0116 | CA21: 0.0114 | CB21: 0.0111 | CC21: 0.0107 | CD21: 0.0103 | CE21: 0.0101 | CF21: 0.01
B22: 37 | C22: 0.0388 | D22: 0.0345 | E22: 0.0299 | F22: 0.025 | G22: 0.0198 | H22: 0.0146 | I22: 0.0097 | J22: 0.0053 | K22: 0.0013 | L22: -0.0025 | M22: -0.006 | N22: -0.0094 | O22: -0.0122 | P22: -0.0141 | Q22: -0.015 | R22: -0.0143 | S22: -0.0121 | T22: -0.008 | U22: -0.0022 | V22: 0.0047 | W22: 0.0121 | X22: 0.0193 | Y22: 0.0255 | Z22: 0.0302 | AA22: 0.0331 | AB22: 0.0339 | AC22: 0.033 | AD22: 0.0307 | AE22: 0.027 | AF22: 0.0219 | AG22: 0.0152 | AH22: 0.0066 | AI22: -0.0035 | AJ22: -0.0145 | AK22: -0.0246 | AL22: -0.0322 | AM22: -0.0364 | AN22: -0.0367 | AO22: -0.0333 | AP22: -0.0265 | AQ22: -0.0167 | AR22: -0.004 | AS22: 0.011 | AT22: 0.0272 | AU22: 0.0421 | AV22: 0.0527 | AW22: 0.0564 | AX22: 0.0528 | AY22: 0.0439 | AZ22: 0.0331 | BA22: 0.0234 | BB22: 0.0167 | BC22: 0.0131 | BD22: 0.0122 | BE22: 0.0129 | BF22: 0.0142 | BG22: 0.0154 | BH22: 0.0157 | BI22: 0.0142 | BJ22: 0.0109 | BK22: 0.0057 | BL22: -0.0008 | BM22: -0.002 | BN22: -0.0025 | BO22: -0.0023 | BP22: -0.0014 | BQ22: -0.0001 | BR22: 0.0017 | BS22: 0.0036 | BT22: 0.0056 | BU22: 0.0073 | BV22: 0.0087 | BW22: 0.0097 | BX22: 0.0105 | BY22: 0.0109 | BZ22: 0.0112 | CA22: 0.0112 | CB22: 0.011 | CC22: 0.0107 | CD22: 0.0103 | CE22: 0.0101 | CF22: 0.01
B23: 38 | C23: 0.0374 | D23: 0.0334 | E23: 0.0292 | F23: 0.0246 | G23: 0.0197 | H23: 0.0147 | I23: 0.0099 | J23: 0.0057 | K23: 0.0018 | L23: -0.0019 | M23: -0.0054 | N23: -0.0087 | O23: -0.0114 | P23: -0.0133 | Q23: -0.0141 | R23: -0.0136 | S23: -0.0113 | T23: -0.0073 | U23: -0.0015 | V23: 0.0054 | W23: 0.0127 | X23: 0.0198 | Y23: 0.0259 | Z23: 0.0306 | AA23: 0.0335 | AB23: 0.0346 | AC23: 0.0341 | AD23: 0.0322 | AE23: 0.029 | AF23: 0.0243 | AG23: 0.018 | AH23: 0.0099 | AI23: 0.0001 | AJ23: -0.0105 | AK23: -0.0204 | AL23: -0.0282 | AM23: -0.0329 | AN23: -0.0341 | AO23: -0.0318 | AP23: -0.0263 | AQ23: -0.0177 | AR23: -0.0061 | AS23: 0.0079 | AT23: 0.0233 | AU23: 0.0376 | AV23: 0.0479 | AW23: 0.0517 | AX23: 0.0485 | AY23: 0.0405 | AZ23: 0.0307 | BA23: 0.0221 | BB23: 0.0164 | BC23: 0.0138 | BD23: 0.0138 | BE23: 0.0152 | BF23: 0.0171 | BG23: 0.0188 | BH23: 0.0192 | BI23: 0.0178 | BJ23: 0.0144 | BK23: 0.009 | BL23: 0.0023 | BM23: 0.0009 | BN23: 0 | BO23: -0.0004 | BP23: -0.0002 | BQ23: 0.0006 | BR23: 0.0018 | BS23: 0.0033 | BT23: 0.0049 | BU23: 0.0064 | BV23: 0.0078 | BW23: 0.0089 | BX23: 0.0097 | BY23: 0.0104 | BZ23: 0.0107 | CA23: 0.0108 | CB23: 0.0108 | CC23: 0.0106 | CD23: 0.0103 | CE23: 0.0101 | CF23: 0.01
B24: 39 | C24: 0.0357 | D24: 0.0322 | E24: 0.0284 | F24: 0.0242 | G24: 0.0195 | H24: 0.0147 | I24: 0.0102 | J24: 0.0061 | K24: 0.0023 | L24: -0.0012 | M24: -0.0046 | N24: -0.0078 | O24: -0.0105 | P24: -0.0124 | Q24: -0.0132 | R24: -0.0127 | S24: -0.0105 | T24: -0.0066 | U24: -0.0009 | V24: 0.0059 | W24: 0.0132 | X24: 0.0201 | Y24: 0.0261 | Z24: 0.0307 | AA24: 0.0336 | AB24: 0.0349 | AC24: 0.0348 | AD24: 0.0334 | AE24: 0.0306 | AF24: 0.0265 | AG24: 0.0207 | AH24: 0.0131 | AI24: 0.0039 | AJ24: -0.0061 | AK24: -0.0155 | AL24: -0.0232 | AM24: -0.0283 | AN24: -0.0304 | AO24: -0.0293 | AP24: -0.0252 | AQ24: -0.0181 | AR24: -0.008 | AS24: 0.0049 | AT24: 0.0193 | AU24: 0.0329 | AV24: 0.0428 | AW24: 0.0465 | AX24: 0.0438 | AY24: 0.0367 | AZ24: 0.0279 | BA24: 0.0203 | BB24: 0.0155 | BC24: 0.0139 | BD24: 0.0146 | BE24: 0.0168 | BF24: 0.0194 | BG24: 0.0215 | BH24: 0.0223 | BI24: 0.0211 | BJ24: 0.0178 | BK24: 0.0124 | BL24: 0.0056 | BM24: 0.004 | BN24: 0.0028 | BO24: 0.0019 | BP24: 0.0016 | BQ24: 0.0017 | BR24: 0.0023 | BS24: 0.0033 | BT24: 0.0045 | BU24: 0.0058 | BV24: 0.007 | BW24: 0.0081 | BX24: 0.0091 | BY24: 0.0098 | BZ24: 0.0103 | CA24: 0.0105 | CB24: 0.0106 | CC24: 0.0104 | CD24: 0.0103 | CE24: 0.0101 | CF24: 0.01
B25: 40 | C25: 0.0339 | D25: 0.0307 | E25: 0.0274 | F25: 0.0235 | G25: 0.0192 | H25: 0.0147 | I25: 0.0104 | J25: 0.0066 | K25: 0.003 | L25: -0.0005 | M25: -0.0037 | N25: -0.0068 | O25: -0.0095 | P25: -0.0114 | Q25: -0.0123 | R25: -0.0118 | S25: -0.0097 | T25: -0.0059 | U25: -0.0004 | V25: 0.0063 | W25: 0.0134 | X25: 0.0202 | Y25: 0.026 | Z25: 0.0305 | AA25: 0.0335 | AB25: 0.035 | AC25: 0.0352 | AD25: 0.0342 | AE25: 0.0319 | AF25: 0.0282 | AG25: 0.023 | AH25: 0.0161 | AI25: 0.0077 | AJ25: -0.0015 | AK25: -0.0103 | AL25: -0.0177 | AM25: -0.023 | AN25: -0.0259 | AO25: -0.026 | AP25: -0.0234 | AQ25: -0.0178 | AR25: -0.0092 | AS25: 0.0023 | AT25: 0.0155 | AU25: 0.0282 | AV25: 0.0375 | AW25: 0.0412 | AX25: 0.0389 | AY25: 0.0325 | AZ25: 0.0248 | BA25: 0.0181 | BB25: 0.0142 | BC25: 0.0133 | BD25: 0.0149 | BE25: 0.0177 | BF25: 0.021 | BG25: 0.0236 | BH25: 0.0248 | BI25: 0.0239 | BJ25: 0.0208 | BK25: 0.0156 | BL25: 0.009 | BM25: 0.0073 | BN25: 0.0058 | BO25: 0.0045 | BP25: 0.0036 | BQ25: 0.0031 | BR25: 0.0031 | BS25: 0.0035 | BT25: 0.0043 | BU25: 0.0053 | BV25: 0.0064 | BW25: 0.0075 | BX25: 0.0084 | BY25: 0.0092 | BZ25: 0.0098 | CA25: 0.0102 | CB25: 0.0103 | CC25: 0.0103 | CD25: 0.0102 | CE25: 0.0101 | CF25: 0.01
B26: 41 | C26: 0.032 | D26: 0.0292 | E26: 0.0262 | F26: 0.0228 | G26: 0.0188 | H26: 0.0147 | I26: 0.0106 | J26: 0.007 | K26: 0.0035 | L26: 0.0003 | M26: -0.0029 | N26: -0.0058 | O26: -0.0084 | P26: -0.0103 | Q26: -0.0112 | R26: -0.0108 | S26: -0.0088 | T26: -0.0052 | U26: 0.0001 | V26: 0.0066 | W26: 0.0135 | X26: 0.02 | Y26: 0.0258 | Z26: 0.0302 | AA26: 0.0333 | AB26: 0.035 | AC26: 0.0354 | AD26: 0.0346 | AE26: 0.0327 | AF26: 0.0295 | AG26: 0.0249 | AH26: 0.0188 | AI26: 0.0113 | AJ26: 0.0031 | AK26: -0.005 | AL26: -0.012 | AM26: -0.0174 | AN26: -0.0209 | AO26: -0.0221 | AP26: -0.0208 | AQ26: -0.0167 | AR26: -0.0097 | AS26: 0.0004 | AT26: 0.0122 | AU26: 0.0237 | AV26: 0.0323 | AW26: 0.0357 | AX26: 0.0338 | AY26: 0.0282 | AZ26: 0.0214 | BA26: 0.0157 | BB26: 0.0126 | BC26: 0.0124 | BD26: 0.0146 | BE26: 0.018 | BF26: 0.0218 | BG26: 0.025 | BH26: 0.0265 | BI26: 0.026 | BJ26: 0.0232 | BK26: 0.0183 | BL26: 0.0121 | BM26: 0.0105 | BN26: 0.0088 | BO26: 0.0072 | BP26: 0.0058 | BQ26: 0.0048 | BR26: 0.0042 | BS26: 0.0041 | BT26: 0.0044 | BU26: 0.005 | BV26: 0.0059 | BW26: 0.0069 | BX26: 0.0079 | BY26: 0.0087 | BZ26: 0.0094 | CA26: 0.0099 | CB26: 0.0101 | CC26: 0.0102 | CD26: 0.0102 | CE26: 0.0101 | CF26: 0.01
B27: 42 | C27: 0.0302 | D27: 0.0277 | E27: 0.025 | F27: 0.0219 | G27: 0.0183 | H27: 0.0144 | I27: 0.0107 | J27: 0.0072 | K27: 0.004 | L27: 0.0009 | M27: -0.0021 | N27: -0.0049 | O27: -0.0073 | P27: -0.0091 | Q27: -0.01 | R27: -0.0096 | S27: -0.0078 | T27: -0.0044 | U27: 0.0006 | V27: 0.0068 | W27: 0.0134 | X27: 0.0197 | Y27: 0.0253 | Z27: 0.0298 | AA27: 0.0329 | AB27: 0.0347 | AC27: 0.0353 | AD27: 0.0348 | AE27: 0.0331 | AF27: 0.0304 | AG27: 0.0264 | AH27: 0.0211 | AI27: 0.0146 | AJ27: 0.0073 | AK27: 0.0001 | AL27: -0.0064 | AM27: -0.0118 | AN27: -0.0157 | AO27: -0.0177 | AP27: -0.0175 | AQ27: -0.0148 | AR27: -0.0092 | AS27: -0.0007 | AT27: 0.0096 | AU27: 0.0198 | AV27: 0.0274 | AW27: 0.0304 | AX27: 0.0287 | AY27: 0.0238 | AZ27: 0.0179 | BA27: 0.0132 | BB27: 0.0108 | BC27: 0.0113 | BD27: 0.0139 | BE27: 0.0178 | BF27: 0.022 | BG27: 0.0255 | BH27: 0.0274 | BI27: 0.0272 | BJ27: 0.0249 | BK27: 0.0205 | BL27: 0.0149 | BM27: 0.0134 | BN27: 0.0117 | BO27: 0.0099 | BP27: 0.0081 | BQ27: 0.0066 | BR27: 0.0055 | BS27: 0.0049 | BT27: 0.0047 | BU27: 0.005 | BV27: 0.0056 | BW27: 0.0065 | BX27: 0.0074 | BY27: 0.0083 | BZ27: 0.009 | CA27: 0.0096 | CB27: 0.0099 | CC27: 0.0101 | CD27: 0.0101 | CE27: 0.01 | CF27: 0.01
B28: 43 | C28: 0.0285 | D28: 0.0262 | E28: 0.0238 | F28: 0.021 | G28: 0.0176 | H28: 0.0141 | I28: 0.0106 | J28: 0.0073 | K28: 0.0043 | L28: 0.0014 | M28: -0.0014 | N28: -0.004 | O28: -0.0063 | P28: -0.0079 | Q28: -0.0087 | R28: -0.0084 | S28: -0.0067 | T28: -0.0035 | U28: 0.0012 | V28: 0.007 | W28: 0.0132 | X28: 0.0193 | Y28: 0.0247 | Z28: 0.0292 | AA28: 0.0324 | AB28: 0.0343 | AC28: 0.035 | AD28: 0.0346 | AE28: 0.0332 | AF28: 0.0309 | AG28: 0.0275 | AH28: 0.023 | AI28: 0.0175 | AJ28: 0.0112 | AK28: 0.0048 | AL28: -0.0013 | AM28: -0.0066 | AN28: -0.0107 | AO28: -0.0132 | AP28: -0.0138 | AQ28: -0.0121 | AR28: -0.0077 | AS28: -0.0007 | AT28: 0.008 | AU28: 0.0166 | AV28: 0.023 | AW28: 0.0255 | AX28: 0.0238 | AY28: 0.0195 | AZ28: 0.0144 | BA28: 0.0105 | BB28: 0.0089 | BC28: 0.0099 | BD28: 0.0129 | BE28: 0.0171 | BF28: 0.0215 | BG28: 0.0252 | BH28: 0.0274 | BI28: 0.0276 | BJ28: 0.0257 | BK28: 0.0221 | BL28: 0.0171 | BM28: 0.0159 | BN28: 0.0142 | BO28: 0.0123 | BP28: 0.0103 | BQ28: 0.0085 | BR28: 0.007 | BS28: 0.0059 | BT28: 0.0053 | BU28: 0.0052 | BV28: 0.0056 | BW28: 0.0063 | BX28: 0.0071 | BY28: 0.008 | BZ28: 0.0087 | CA28: 0.0093 | CB28: 0.0097 | CC28: 0.01 | CD28: 0.01 | CE28: 0.01 | CF28: 0.01
B29: 44 | C29: 0.0269 | D29: 0.0247 | E29: 0.0225 | F29: 0.0199 | G29: 0.0169 | H29: 0.0136 | I29: 0.0103 | J29: 0.0073 | K29: 0.0044 | L29: 0.0017 | M29: -0.0009 | N29: -0.0032 | O29: -0.0053 | P29: -0.0067 | Q29: -0.0074 | R29: -0.007 | S29: -0.0054 | T29: -0.0024 | U29: 0.0019 | V29: 0.0072 | W29: 0.013 | X29: 0.0187 | Y29: 0.024 | Z29: 0.0285 | AA29: 0.0318 | AB29: 0.0337 | AC29: 0.0345 | AD29: 0.0342 | AE29: 0.033 | AF29: 0.031 | AG29: 0.0282 | AH29: 0.0245 | AI29: 0.0199 | AJ29: 0.0145 | AK29: 0.0088 | AL29: 0.0033 | AM29: -0.0017 | AN29: -0.0059 | AO29: -0.0087 | AP29: -0.0097 | AQ29: -0.0087 | AR29: -0.0054 | AS29: 0.0002 | AT29: 0.0072 | AU29: 0.0142 | AV29: 0.0193 | AW29: 0.0211 | AX29: 0.0194 | AY29: 0.0154 | AZ29: 0.011 | BA29: 0.0079 | BB29: 0.0069 | BC29: 0.0083 | BD29: 0.0116 | BE29: 0.0159 | BF29: 0.0204 | BG29: 0.0242 | BH29: 0.0266 | BI29: 0.0272 | BJ29: 0.0259 | BK29: 0.0229 | BL29: 0.0188 | BM29: 0.0178 | BN29: 0.0163 | BO29: 0.0144 | BP29: 0.0124 | BQ29: 0.0103 | BR29: 0.0085 | BS29: 0.0071 | BT29: 0.0061 | BU29: 0.0056 | BV29: 0.0057 | BW29: 0.0062 | BX29: 0.0069 | BY29: 0.0077 | BZ29: 0.0084 | CA29: 0.0091 | CB29: 0.0095 | CC29: 0.0098 | CD29: 0.01 | CE29: 0.01 | CF29: 0.01
B30: 45 | C30: 0.0254 | D30: 0.0233 | E30: 0.0212 | F30: 0.0188 | G30: 0.016 | H30: 0.013 | I30: 0.01 | J30: 0.0071 | K30: 0.0044 | L30: 0.0018 | M30: -0.0005 | N30: -0.0026 | O30: -0.0044 | P30: -0.0056 | Q30: -0.0061 | R30: -0.0056 | S30: -0.0041 | T30: -0.0013 | U30: 0.0027 | V30: 0.0076 | W30: 0.0129 | X30: 0.0183 | Y30: 0.0234 | Z30: 0.0277 | AA30: 0.031 | AB30: 0.033 | AC30: 0.0337 | AD30: 0.0335 | AE30: 0.0324 | AF30: 0.0308 | AG30: 0.0285 | AH30: 0.0255 | AI30: 0.0217 | AJ30: 0.0171 | AK30: 0.0122 | AL30: 0.0072 | AM30: 0.0025 | AN30: -0.0014 | AO30: -0.0042 | AP30: -0.0054 | AQ30: -0.0049 | AR30: -0.0024 | AS30: 0.0019 | AT30: 0.0073 | AU30: 0.0127 | AV30: 0.0165 | AW30: 0.0175 | AX30: 0.0156 | AY30: 0.0119 | AZ30: 0.008 | BA30: 0.0054 | BB30: 0.0048 | BC30: 0.0065 | BD30: 0.01 | BE30: 0.0144 | BF30: 0.0189 | BG30: 0.0227 | BH30: 0.0252 | BI30: 0.0261 | BJ30: 0.0253 | BK30: 0.023 | BL30: 0.0197 | BM30: 0.0191 | BN30: 0.0178 | BO30: 0.0161 | BP30: 0.0141 | BQ30: 0.012 | BR30: 0.01 | BS30: 0.0083 | BT30: 0.007 | BU30: 0.0062 | BV30: 0.0061 | BW30: 0.0064 | BX30: 0.0069 | BY30: 0.0075 | BZ30: 0.0082 | CA30: 0.0089 | CB30: 0.0094 | CC30: 0.0097 | CD30: 0.0099 | CE30: 0.01 | CF30: 0.01
B31: 46 | C31: 0.0239 | D31: 0.022 | E31: 0.02 | F31: 0.0177 | G31: 0.0151 | H31: 0.0123 | I31: 0.0095 | J31: 0.0067 | K31: 0.0042 | L31: 0.0019 | M31: -0.0002 | N31: -0.0021 | O31: -0.0036 | P31: -0.0045 | Q31: -0.0048 | R31: -0.0042 | S31: -0.0027 | T31: 0 | U31: 0.0037 | V31: 0.0082 | W31: 0.013 | X31: 0.018 | Y31: 0.0227 | Z31: 0.0269 | AA31: 0.0301 | AB31: 0.032 | AC31: 0.0328 | AD31: 0.0326 | AE31: 0.0317 | AF31: 0.0303 | AG31: 0.0285 | AH31: 0.0261 | AI31: 0.023 | AJ31: 0.0191 | AK31: 0.0148 | AL31: 0.0104 | AM31: 0.0063 | AN31: 0.0027 | AO31: 0.0001 | AP31: -0.0012 | AQ31: -0.0009 | AR31: 0.0009 | AS31: 0.0041 | AT31: 0.0081 | AU31: 0.0121 | AV31: 0.0147 | AW31: 0.0149 | AX31: 0.0127 | AY31: 0.0091 | AZ31: 0.0054 | BA31: 0.0031 | BB31: 0.0028 | BC31: 0.0046 | BD31: 0.0081 | BE31: 0.0124 | BF31: 0.0169 | BG31: 0.0208 | BH31: 0.0234 | BI31: 0.0245 | BJ31: 0.0242 | BK31: 0.0226 | BL31: 0.02 | BM31: 0.0197 | BN31: 0.0187 | BO31: 0.0173 | BP31: 0.0154 | BQ31: 0.0134 | BR31: 0.0113 | BS31: 0.0095 | BT31: 0.008 | BU31: 0.007 | BV31: 0.0066 | BW31: 0.0067 | BX31: 0.007 | BY31: 0.0075 | BZ31: 0.0081 | CA31: 0.0087 | CB31: 0.0092 | CC31: 0.0096 | CD31: 0.0099 | CE31: 0.01 | CF31: 0.01
B32: 47 | C32: 0.0225 | D32: 0.0207 | E32: 0.0188 | F32: 0.0167 | G32: 0.0143 | H32: 0.0116 | I32: 0.0089 | J32: 0.0063 | K32: 0.0039 | L32: 0.0018 | M32: 0 | N32: -0.0016 | O32: -0.0028 | P32: -0.0035 | Q32: -0.0036 | R32: -0.0029 | S32: -0.0013 | T32: 0.0013 | U32: 0.0048 | V32: 0.0089 | W32: 0.0133 | X32: 0.0178 | Y32: 0.0222 | Z32: 0.0261 | AA32: 0.0291 | AB32: 0.0309 | AC32: 0.0316 | AD32: 0.0315 | AE32: 0.0308 | AF32: 0.0297 | AG32: 0.0283 | AH32: 0.0263 | AI32: 0.0237 | AJ32: 0.0205 | AK32: 0.0168 | AL32: 0.013 | AM32: 0.0094 | AN32: 0.0064 | AO32: 0.0042 | AP32: 0.003 | AQ32: 0.003 | AR32: 0.0043 | AS32: 0.0066 | AT32: 0.0095 | AU32: 0.0122 | AV32: 0.0138 | AW32: 0.0134 | AX32: 0.0109 | AY32: 0.0071 | AZ32: 0.0035 | BA32: 0.0011 | BB32: 0.0008 | BC32: 0.0025 | BD32: 0.0059 | BE32: 0.0102 | BF32: 0.0147 | BG32: 0.0185 | BH32: 0.0212 | BI32: 0.0226 | BJ32: 0.0227 | BK32: 0.0215 | BL32: 0.0195 | BM32: 0.0196 | BN32: 0.019 | BO32: 0.0178 | BP32: 0.0163 | BQ32: 0.0144 | BR32: 0.0125 | BS32: 0.0107 | BT32: 0.0091 | BU32: 0.0079 | BV32: 0.0073 | BW32: 0.0071 | BX32: 0.0072 | BY32: 0.0076 | BZ32: 0.0081 | CA32: 0.0086 | CB32: 0.0091 | CC32: 0.0096 | CD32: 0.0098 | CE32: 0.01 | CF32: 0.01
B33: 48 | C33: 0.0212 | D33: 0.0195 | E33: 0.0178 | F33: 0.0158 | G33: 0.0135 | H33: 0.0109 | I33: 0.0083 | J33: 0.0058 | K33: 0.0036 | L33: 0.0017 | M33: 0.0001 | N33: -0.0013 | O33: -0.0022 | P33: -0.0027 | Q33: -0.0026 | R33: -0.0017 | S33: 0 | T33: 0.0026 | U33: 0.0059 | V33: 0.0097 | W33: 0.0138 | X33: 0.0179 | Y33: 0.0219 | Z33: 0.0254 | AA33: 0.0281 | AB33: 0.0297 | AC33: 0.0303 | AD33: 0.0303 | AE33: 0.0297 | AF33: 0.0289 | AG33: 0.0277 | AH33: 0.0261 | AI33: 0.024 | AJ33: 0.0212 | AK33: 0.0181 | AL33: 0.015 | AM33: 0.0121 | AN33: 0.0097 | AO33: 0.0079 | AP33: 0.0069 | AQ33: 0.0068 | AR33: 0.0076 | AS33: 0.0091 | AT33: 0.0112 | AU33: 0.013 | AV33: 0.0139 | AW33: 0.0129 | AX33: 0.0101 | AY33: 0.0062 | AZ33: 0.0023 | BA33: -0.0003 | BB33: -0.001 | BC33: 0.0005 | BD33: 0.0036 | BE33: 0.0078 | BF33: 0.0122 | BG33: 0.0161 | BH33: 0.0189 | BI33: 0.0205 | BJ33: 0.0208 | BK33: 0.02 | BL33: 0.0185 | BM33: 0.0188 | BN33: 0.0186 | BO33: 0.0179 | BP33: 0.0167 | BQ33: 0.0151 | BR33: 0.0134 | BS33: 0.0117 | BT33: 0.0101 | BU33: 0.0089 | BV33: 0.0081 | BW33: 0.0077 | BX33: 0.0076 | BY33: 0.0078 | BZ33: 0.0082 | CA33: 0.0086 | CB33: 0.0091 | CC33: 0.0095 | CD33: 0.0098 | CE33: 0.01 | CF33: 0.01
B34: 49 | C34: 0.02 | D34: 0.0185 | E34: 0.0169 | F34: 0.015 | G34: 0.0128 | H34: 0.0103 | I34: 0.0077 | J34: 0.0054 | K34: 0.0034 | L34: 0.0016 | M34: 0.0002 | N34: -0.001 | O34: -0.0018 | P34: -0.0021 | Q34: -0.0017 | R34: -0.0007 | S34: 0.0011 | T34: 0.0037 | U34: 0.0069 | V34: 0.0106 | W34: 0.0144 | X34: 0.0182 | Y34: 0.0218 | Z34: 0.0249 | AA34: 0.0272 | AB34: 0.0285 | AC34: 0.0291 | AD34: 0.029 | AE34: 0.0286 | AF34: 0.0279 | AG34: 0.0269 | AH34: 0.0256 | AI34: 0.0237 | AJ34: 0.0214 | AK34: 0.0189 | AL34: 0.0164 | AM34: 0.0143 | AN34: 0.0125 | AO34: 0.0112 | AP34: 0.0104 | AQ34: 0.0102 | AR34: 0.0106 | AS34: 0.0116 | AT34: 0.013 | AU34: 0.0143 | AV34: 0.0146 | AW34: 0.0133 | AX34: 0.0102 | AY34: 0.006 | AZ34: 0.0019 | BA34: -0.0011 | BB34: -0.0023 | BC34: -0.0013 | BD34: 0.0015 | BE34: 0.0055 | BF34: 0.0098 | BG34: 0.0136 | BH34: 0.0165 | BI34: 0.0182 | BJ34: 0.0186 | BK34: 0.0181 | BL34: 0.0169 | BM34: 0.0175 | BN34: 0.0177 | BO34: 0.0174 | BP34: 0.0166 | BQ34: 0.0154 | BR34: 0.014 | BS34: 0.0125 | BT34: 0.011 | BU34: 0.0098 | BV34: 0.0089 | BW34: 0.0084 | BX34: 0.0081 | BY34: 0.0081 | BZ34: 0.0083 | CA34: 0.0087 | CB34: 0.0091 | CC34: 0.0095 | CD34: 0.0098 | CE34: 0.0099 | CF34: 0.01
B35: 50 | C35: 0.0189 | D35: 0.0176 | E35: 0.0161 | F35: 0.0143 | G35: 0.0122 | H35: 0.0097 | I35: 0.0073 | J35: 0.005 | K35: 0.0031 | L35: 0.0016 | M35: 0.0003 | N35: -0.0007 | O35: -0.0014 | P35: -0.0016 | Q35: -0.0012 | R35: 0 | S35: 0.0019 | T35: 0.0045 | U35: 0.0078 | V35: 0.0113 | W35: 0.015 | X35: 0.0186 | Y35: 0.0219 | Z35: 0.0246 | AA35: 0.0265 | AB35: 0.0275 | AC35: 0.0279 | AD35: 0.0278 | AE35: 0.0274 | AF35: 0.0268 | AG35: 0.0259 | AH35: 0.0247 | AI35: 0.0231 | AJ35: 0.0212 | AK35: 0.0192 | AL35: 0.0175 | AM35: 0.016 | AN35: 0.0149 | AO35: 0.014 | AP35: 0.0134 | AQ35: 0.0131 | AR35: 0.0133 | AS35: 0.0139 | AT35: 0.0149 | AU35: 0.0158 | AV35: 0.0158 | AW35: 0.0143 | AX35: 0.011 | AY35: 0.0067 | AZ35: 0.0023 | BA35: -0.0012 | BB35: -0.0029 | BC35: -0.0025 | BD35: -0.0001 | BE35: 0.0034 | BF35: 0.0075 | BG35: 0.0112 | BH35: 0.014 | BI35: 0.0157 | BJ35: 0.0163 | BK35: 0.0158 | BL35: 0.0148 | BM35: 0.0157 | BN35: 0.0163 | BO35: 0.0164 | BP35: 0.016 | BQ35: 0.0153 | BR35: 0.0143 | BS35: 0.0131 | BT35: 0.0118 | BU35: 0.0107 | BV35: 0.0097 | BW35: 0.0091 | BX35: 0.0086 | BY35: 0.0085 | BZ35: 0.0085 | CA35: 0.0088 | CB35: 0.0091 | CC35: 0.0095 | CD35: 0.0098 | CE35: 0.0099 | CF35: 0.01
B36: 51 | C36: 0.0181 | D36: 0.0168 | E36: 0.0154 | F36: 0.0137 | G36: 0.0116 | H36: 0.0092 | I36: 0.0069 | J36: 0.0048 | K36: 0.003 | L36: 0.0016 | M36: 0.0004 | N36: -0.0006 | O36: -0.0012 | P36: -0.0013 | Q36: -0.0008 | R36: 0.0004 | S36: 0.0024 | T36: 0.005 | U36: 0.0083 | V36: 0.0119 | W36: 0.0156 | X36: 0.0191 | Y36: 0.0221 | Z36: 0.0245 | AA36: 0.0261 | AB36: 0.0269 | AC36: 0.027 | AD36: 0.0267 | AE36: 0.0262 | AF36: 0.0255 | AG36: 0.0246 | AH36: 0.0235 | AI36: 0.0221 | AJ36: 0.0207 | AK36: 0.0193 | AL36: 0.0181 | AM36: 0.0173 | AN36: 0.0167 | AO36: 0.0163 | AP36: 0.0159 | AQ36: 0.0156 | AR36: 0.0156 | AS36: 0.016 | AT36: 0.0167 | AU36: 0.0174 | AV36: 0.0172 | AW36: 0.0156 | AX36: 0.0123 | AY36: 0.0079 | AZ36: 0.0033 | BA36: -0.0005 | BB36: -0.0027 | BC36: -0.0028 | BD36: -0.0011 | BE36: 0.0019 | BF36: 0.0055 | BG36: 0.0089 | BH36: 0.0116 | BI36: 0.0132 | BJ36: 0.0137 | BK36: 0.0133 | BL36: 0.0125 | BM36: 0.0136 | BN36: 0.0144 | BO36: 0.0149 | BP36: 0.0151 | BQ36: 0.0148 | BR36: 0.0142 | BS36: 0.0134 | BT36: 0.0124 | BU36: 0.0114 | BV36: 0.0105 | BW36: 0.0098 | BX36: 0.0092 | BY36: 0.0089 | BZ36: 0.0088 | CA36: 0.0089 | CB36: 0.0092 | CC36: 0.0095 | CD36: 0.0098 | CE36: 0.0099 | CF36: 0.01
B37: 52 | C37: 0.0174 | D37: 0.0162 | E37: 0.0149 | F37: 0.0132 | G37: 0.0111 | H37: 0.0088 | I37: 0.0065 | J37: 0.0046 | K37: 0.0029 | L37: 0.0016 | M37: 0.0005 | N37: -0.0005 | O37: -0.0011 | P37: -0.0012 | Q37: -0.0008 | R37: 0.0004 | S37: 0.0025 | T37: 0.0052 | U37: 0.0086 | V37: 0.0122 | W37: 0.016 | X37: 0.0195 | Y37: 0.0225 | Z37: 0.0247 | AA37: 0.0261 | AB37: 0.0266 | AC37: 0.0264 | AD37: 0.0259 | AE37: 0.0251 | AF37: 0.0242 | AG37: 0.0232 | AH37: 0.0222 | AI37: 0.021 | AJ37: 0.0199 | AK37: 0.019 | AL37: 0.0184 | AM37: 0.0181 | AN37: 0.018 | AO37: 0.0179 | AP37: 0.0178 | AQ37: 0.0176 | AR37: 0.0176 | AS37: 0.0178 | AT37: 0.0184 | AU37: 0.0189 | AV37: 0.0186 | AW37: 0.0169 | AX37: 0.0137 | AY37: 0.0094 | AZ37: 0.0049 | BA37: 0.001 | BB37: -0.0015 | BC37: -0.0022 | BD37: -0.0012 | BE37: 0.0011 | BF37: 0.004 | BG37: 0.0069 | BH37: 0.0092 | BI37: 0.0105 | BJ37: 0.011 | BK37: 0.0107 | BL37: 0.0099 | BM37: 0.0112 | BN37: 0.0123 | BO37: 0.0132 | BP37: 0.0138 | BQ37: 0.014 | BR37: 0.0139 | BS37: 0.0135 | BT37: 0.0128 | BU37: 0.012 | BV37: 0.0112 | BW37: 0.0104 | BX37: 0.0098 | BY37: 0.0094 | BZ37: 0.0092 | CA37: 0.0092 | CB37: 0.0093 | CC37: 0.0095 | CD37: 0.0098 | CE37: 0.0099 | CF37: 0.01
B38: 53 | C38: 0.0168 | D38: 0.0157 | E38: 0.0143 | F38: 0.0127 | G38: 0.0107 | H38: 0.0084 | I38: 0.0063 | J38: 0.0044 | K38: 0.0029 | L38: 0.0016 | M38: 0.0005 | N38: -0.0004 | O38: -0.0011 | P38: -0.0013 | Q38: -0.0009 | R38: 0.0003 | S38: 0.0023 | T38: 0.005 | U38: 0.0085 | V38: 0.0123 | W38: 0.0163 | X38: 0.0199 | Y38: 0.0229 | Z38: 0.0251 | AA38: 0.0264 | AB38: 0.0266 | AC38: 0.0262 | AD38: 0.0252 | AE38: 0.0241 | AF38: 0.0229 | AG38: 0.0217 | AH38: 0.0207 | AI38: 0.0198 | AJ38: 0.019 | AK38: 0.0186 | AL38: 0.0185 | AM38: 0.0186 | AN38: 0.0189 | AO38: 0.0191 | AP38: 0.0191 | AQ38: 0.0191 | AR38: 0.0192 | AS38: 0.0194 | AT38: 0.0199 | AU38: 0.0202 | AV38: 0.0198 | AW38: 0.0182 | AX38: 0.0152 | AY38: 0.0112 | AZ38: 0.0069 | BA38: 0.0032 | BB38: 0.0005 | BC38: -0.0006 | BD38: -0.0003 | BE38: 0.0011 | BF38: 0.0032 | BG38: 0.0053 | BH38: 0.007 | BI38: 0.008 | BJ38: 0.0084 | BK38: 0.008 | BL38: 0.0073 | BM38: 0.0086 | BN38: 0.01 | BO38: 0.0112 | BP38: 0.0122 | BQ38: 0.0129 | BR38: 0.0133 | BS38: 0.0133 | BT38: 0.013 | BU38: 0.0125 | BV38: 0.0118 | BW38: 0.011 | BX38: 0.0104 | BY38: 0.0099 | BZ38: 0.0095 | CA38: 0.0094 | CB38: 0.0094 | CC38: 0.0096 | CD38: 0.0098 | CE38: 0.0099 | CF38: 0.01
B39: 54 | C39: 0.0164 | D39: 0.0152 | E39: 0.0139 | F39: 0.0122 | G39: 0.0102 | H39: 0.008 | I39: 0.006 | J39: 0.0042 | K39: 0.0028 | L39: 0.0016 | M39: 0.0005 | N39: -0.0005 | O39: -0.0013 | P39: -0.0015 | Q39: -0.0012 | R39: -0.0001 | S39: 0.0019 | T39: 0.0047 | U39: 0.0082 | V39: 0.0122 | W39: 0.0163 | X39: 0.0202 | Y39: 0.0234 | Z39: 0.0257 | AA39: 0.0269 | AB39: 0.027 | AC39: 0.0262 | AD39: 0.0248 | AE39: 0.0232 | AF39: 0.0216 | AG39: 0.0203 | AH39: 0.0193 | AI39: 0.0185 | AJ39: 0.0181 | AK39: 0.018 | AL39: 0.0183 | AM39: 0.0187 | AN39: 0.0193 | AO39: 0.0197 | AP39: 0.02 | AQ39: 0.0202 | AR39: 0.0204 | AS39: 0.0207 | AT39: 0.0211 | AU39: 0.0212 | AV39: 0.0208 | AW39: 0.0192 | AX39: 0.0165 | AY39: 0.013 | AZ39: 0.0092 | BA39: 0.0058 | BB39: 0.0032 | BC39: 0.0017 | BD39: 0.0014 | BE39: 0.0019 | BF39: 0.003 | BG39: 0.0042 | BH39: 0.0052 | BI39: 0.0058 | BJ39: 0.0059 | BK39: 0.0054 | BL39: 0.0047 | BM39: 0.0061 | BN39: 0.0076 | BO39: 0.0091 | BP39: 0.0104 | BQ39: 0.0116 | BR39: 0.0124 | BS39: 0.0128 | BT39: 0.013 | BU39: 0.0127 | BV39: 0.0122 | BW39: 0.0115 | BX39: 0.0109 | BY39: 0.0103 | BZ39: 0.0099 | CA39: 0.0097 | CB39: 0.0096 | CC39: 0.0097 | CD39: 0.0098 | CE39: 0.0099 | CF39: 0.01
B40: 55 | C40: 0.0161 | D40: 0.0148 | E40: 0.0134 | F40: 0.0117 | G40: 0.0097 | H40: 0.0075 | I40: 0.0056 | J40: 0.004 | K40: 0.0026 | L40: 0.0014 | M40: 0.0003 | N40: -0.0008 | O40: -0.0015 | P40: -0.0018 | Q40: -0.0016 | R40: -0.0006 | S40: 0.0014 | T40: 0.0042 | U40: 0.0079 | V40: 0.012 | W40: 0.0163 | X40: 0.0203 | Y40: 0.0237 | Z40: 0.0262 | AA40: 0.0274 | AB40: 0.0274 | AC40: 0.0264 | AD40: 0.0247 | AE40: 0.0226 | AF40: 0.0206 | AG40: 0.0191 | AH40: 0.0179 | AI40: 0.0173 | AJ40: 0.0171 | AK40: 0.0174 | AL40: 0.0179 | AM40: 0.0186 | AN40: 0.0193 | AO40: 0.0199 | AP40: 0.0205 | AQ40: 0.0209 | AR40: 0.0212 | AS40: 0.0216 | AT40: 0.022 | AU40: 0.022 | AV40: 0.0215 | AW40: 0.02 | AX40: 0.0177 | AY40: 0.0147 | AZ40: 0.0116 | BA40: 0.0086 | BB40: 0.0063 | BC40: 0.0046 | BD40: 0.0038 | BE40: 0.0034 | BF40: 0.0036 | BG40: 0.0038 | BH40: 0.0041 | BI40: 0.0041 | BJ40: 0.0038 | BK40: 0.0031 | BL40: 0.0022 | BM40: 0.0036 | BN40: 0.0052 | BO40: 0.0069 | BP40: 0.0086 | BQ40: 0.0101 | BR40: 0.0113 | BS40: 0.0122 | BT40: 0.0127 | BU40: 0.0128 | BV40: 0.0124 | BW40: 0.0119 | BX40: 0.0113 | BY40: 0.0107 | BZ40: 0.0102 | CA40: 0.0099 | CB40: 0.0098 | CC40: 0.0098 | CD40: 0.0098 | CE40: 0.01 | CF40: 0.01
B41: 56 | C41: 0.0157 | D41: 0.0143 | E41: 0.0128 | F41: 0.011 | G41: 0.009 | H41: 0.007 | I41: 0.0051 | J41: 0.0036 | K41: 0.0022 | L41: 0.0011 | M41: -0.0001 | N41: -0.0011 | O41: -0.0019 | P41: -0.0022 | Q41: -0.002 | R41: -0.001 | S41: 0.001 | T41: 0.0038 | U41: 0.0075 | V41: 0.0118 | W41: 0.0162 | X41: 0.0203 | Y41: 0.0239 | Z41: 0.0265 | AA41: 0.0278 | AB41: 0.0278 | AC41: 0.0266 | AD41: 0.0246 | AE41: 0.0222 | AF41: 0.0199 | AG41: 0.0181 | AH41: 0.0169 | AI41: 0.0162 | AJ41: 0.0162 | AK41: 0.0166 | AL41: 0.0174 | AM41: 0.0182 | AN41: 0.0191 | AO41: 0.0199 | AP41: 0.0206 | AQ41: 0.0212 | AR41: 0.0217 | AS41: 0.0222 | AT41: 0.0225 | AU41: 0.0225 | AV41: 0.0219 | AW41: 0.0207 | AX41: 0.0188 | AY41: 0.0164 | AZ41: 0.0139 | BA41: 0.0115 | BB41: 0.0095 | BC41: 0.0078 | BD41: 0.0065 | BE41: 0.0055 | BF41: 0.0048 | BG41: 0.0042 | BH41: 0.0037 | BI41: 0.0031 | BJ41: 0.0023 | BK41: 0.0013 | BL41: 0 | BM41: 0.0012 | BN41: 0.0029 | BO41: 0.0048 | BP41: 0.0067 | BQ41: 0.0085 | BR41: 0.0101 | BS41: 0.0114 | BT41: 0.0122 | BU41: 0.0126 | BV41: 0.0125 | BW41: 0.0121 | BX41: 0.0115 | BY41: 0.011 | BZ41: 0.0105 | CA41: 0.0102 | CB41: 0.0099 | CC41: 0.0099 | CD41: 0.0099 | CE41: 0.01 | CF41: 0.01
B42: 57 | C42: 0.0152 | D42: 0.0137 | E42: 0.0121 | F42: 0.0103 | G42: 0.0083 | H42: 0.0063 | I42: 0.0045 | J42: 0.003 | K42: 0.0017 | L42: 0.0006 | M42: -0.0005 | N42: -0.0016 | O42: -0.0023 | P42: -0.0026 | Q42: -0.0023 | R42: -0.0012 | S42: 0.0008 | T42: 0.0036 | U42: 0.0074 | V42: 0.0116 | W42: 0.016 | X42: 0.0203 | Y42: 0.0239 | Z42: 0.0266 | AA42: 0.028 | AB42: 0.028 | AC42: 0.0268 | AD42: 0.0247 | AE42: 0.0221 | AF42: 0.0195 | AG42: 0.0175 | AH42: 0.0161 | AI42: 0.0154 | AJ42: 0.0153 | AK42: 0.0158 | AL42: 0.0167 | AM42: 0.0177 | AN42: 0.0186 | AO42: 0.0196 | AP42: 0.0205 | AQ42: 0.0212 | AR42: 0.0218 | AS42: 0.0223 | AT42: 0.0226 | AU42: 0.0226 | AV42: 0.0222 | AW42: 0.0213 | AX42: 0.0198 | AY42: 0.018 | AZ42: 0.0161 | BA42: 0.0143 | BB42: 0.0125 | BC42: 0.0109 | BD42: 0.0095 | BE42: 0.008 | BF42: 0.0067 | BG42: 0.0054 | BH42: 0.0042 | BI42: 0.0029 | BJ42: 0.0016 | BK42: -0.0001 | BL42: -0.0019 | BM42: -0.0008 | BN42: 0.0009 | BO42: 0.0028 | BP42: 0.0049 | BQ42: 0.007 | BR42: 0.0089 | BS42: 0.0104 | BT42: 0.0116 | BU42: 0.0123 | BV42: 0.0124 | BW42: 0.0121 | BX42: 0.0117 | BY42: 0.0112 | BZ42: 0.0108 | CA42: 0.0104 | CB42: 0.0101 | CC42: 0.01 | CD42: 0.0099 | CE42: 0.01 | CF42: 0.01
B43: 58 | C43: 0.0146 | D43: 0.013 | E43: 0.0113 | F43: 0.0095 | G43: 0.0074 | H43: 0.0054 | I43: 0.0037 | J43: 0.0023 | K43: 0.001 | L43: -0.0001 | M43: -0.0012 | N43: -0.0021 | O43: -0.0028 | P43: -0.0029 | Q43: -0.0025 | R43: -0.0013 | S43: 0.0008 | T43: 0.0037 | U43: 0.0073 | V43: 0.0115 | W43: 0.0159 | X43: 0.02 | Y43: 0.0237 | Z43: 0.0264 | AA43: 0.0279 | AB43: 0.0279 | AC43: 0.0268 | AD43: 0.0247 | AE43: 0.0221 | AF43: 0.0194 | AG43: 0.0172 | AH43: 0.0156 | AI43: 0.0147 | AJ43: 0.0146 | AK43: 0.0151 | AL43: 0.016 | AM43: 0.017 | AN43: 0.0181 | AO43: 0.0192 | AP43: 0.0202 | AQ43: 0.021 | AR43: 0.0216 | AS43: 0.0221 | AT43: 0.0224 | AU43: 0.0225 | AV43: 0.0223 | AW43: 0.0217 | AX43: 0.0207 | AY43: 0.0195 | AZ43: 0.0181 | BA43: 0.0167 | BB43: 0.0153 | BC43: 0.0139 | BD43: 0.0124 | BE43: 0.0107 | BF43: 0.009 | BG43: 0.0072 | BH43: 0.0054 | BI43: 0.0036 | BJ43: 0.0015 | BK43: -0.0008 | BL43: -0.0033 | BM43: -0.0024 | BN43: -0.0009 | BO43: 0.0011 | BP43: 0.0033 | BQ43: 0.0055 | BR43: 0.0076 | BS43: 0.0095 | BT43: 0.0109 | BU43: 0.0118 | BV43: 0.0121 | BW43: 0.012 | BX43: 0.0118 | BY43: 0.0114 | BZ43: 0.0109 | CA43: 0.0106 | CB43: 0.0103 | CC43: 0.0101 | CD43: 0.01 | CE43: 0.01 | CF43: 0.01
B44: 59 | C44: 0.0139 | D44: 0.0122 | E44: 0.0104 | F44: 0.0085 | G44: 0.0065 | H44: 0.0045 | I44: 0.0028 | J44: 0.0014 | K44: 0.0002 | L44: -0.0009 | M44: -0.0019 | N44: -0.0027 | O44: -0.0032 | P44: -0.0032 | Q44: -0.0025 | R44: -0.0012 | S44: 0.001 | T44: 0.0039 | U44: 0.0075 | V44: 0.0115 | W44: 0.0157 | X44: 0.0197 | Y44: 0.0232 | Z44: 0.0259 | AA44: 0.0274 | AB44: 0.0276 | AC44: 0.0266 | AD44: 0.0246 | AE44: 0.0222 | AF44: 0.0195 | AG44: 0.0172 | AH44: 0.0154 | AI44: 0.0144 | AJ44: 0.0141 | AK44: 0.0145 | AL44: 0.0153 | AM44: 0.0164 | AN44: 0.0176 | AO44: 0.0188 | AP44: 0.0198 | AQ44: 0.0206 | AR44: 0.0212 | AS44: 0.0216 | AT44: 0.0219 | AU44: 0.0221 | AV44: 0.0222 | AW44: 0.022 | AX44: 0.0215 | AY44: 0.0208 | AZ44: 0.0199 | BA44: 0.0188 | BB44: 0.0177 | BC44: 0.0165 | BD44: 0.0151 | BE44: 0.0135 | BF44: 0.0116 | BG44: 0.0095 | BH44: 0.0073 | BI44: 0.0049 | BJ44: 0.0022 | BK44: -0.0008 | BL44: -0.0041 | BM44: -0.0035 | BN44: -0.0021 | BO44: -0.0003 | BP44: 0.0019 | BQ44: 0.0042 | BR44: 0.0064 | BS44: 0.0084 | BT44: 0.0101 | BU44: 0.0112 | BV44: 0.0117 | BW44: 0.0118 | BX44: 0.0117 | BY44: 0.0114 | BZ44: 0.011 | CA44: 0.0107 | CB44: 0.0104 | CC44: 0.0101 | CD44: 0.01 | CE44: 0.01 | CF44: 0.01
B45: 60 | C45: 0.013 | D45: 0.0112 | E45: 0.0094 | F45: 0.0075 | G45: 0.0054 | H45: 0.0035 | I45: 0.0018 | J45: 0.0005 | K45: -0.0007 | L45: -0.0017 | M45: -0.0026 | N45: -0.0032 | O45: -0.0035 | P45: -0.0033 | Q45: -0.0024 | R45: -0.0009 | S45: 0.0014 | T45: 0.0043 | U45: 0.0078 | V45: 0.0116 | W45: 0.0155 | X45: 0.0192 | Y45: 0.0226 | Z45: 0.0251 | AA45: 0.0266 | AB45: 0.0269 | AC45: 0.0261 | AD45: 0.0244 | AE45: 0.0222 | AF45: 0.0197 | AG45: 0.0174 | AH45: 0.0154 | AI45: 0.0142 | AJ45: 0.0137 | AK45: 0.014 | AL45: 0.0148 | AM45: 0.0159 | AN45: 0.0172 | AO45: 0.0184 | AP45: 0.0194 | AQ45: 0.0201 | AR45: 0.0205 | AS45: 0.0208 | AT45: 0.0212 | AU45: 0.0215 | AV45: 0.0219 | AW45: 0.0221 | AX45: 0.0221 | AY45: 0.0218 | AZ45: 0.0213 | BA45: 0.0206 | BB45: 0.0198 | BC45: 0.0188 | BD45: 0.0176 | BE45: 0.0161 | BF45: 0.0143 | BG45: 0.0121 | BH45: 0.0096 | BI45: 0.0067 | BJ45: 0.0034 | BK45: -0.0003 | BL45: -0.0043 | BM45: -0.004 | BN45: -0.0029 | BO45: -0.0012 | BP45: 0.0009 | BQ45: 0.0031 | BR45: 0.0054 | BS45: 0.0075 | BT45: 0.0092 | BU45: 0.0105 | BV45: 0.0112 | BW45: 0.0115 | BX45: 0.0115 | BY45: 0.0113 | BZ45: 0.0111 | CA45: 0.0108 | CB45: 0.0105 | CC45: 0.0102 | CD45: 0.0101 | CE45: 0.01 | CF45: 0.01
B46: 61 | C46: 0.012 | D46: 0.0101 | E46: 0.0083 | F46: 0.0064 | G46: 0.0044 | H46: 0.0025 | I46: 0.0008 | J46: -0.0005 | K46: -0.0016 | L46: -0.0025 | M46: -0.0032 | N46: -0.0037 | O46: -0.0037 | P46: -0.0032 | Q46: -0.0021 | R46: -0.0004 | S46: 0.0019 | T46: 0.0047 | U46: 0.008 | V46: 0.0116 | W46: 0.0152 | X46: 0.0186 | Y46: 0.0217 | Z46: 0.0241 | AA46: 0.0256 | AB46: 0.026 | AC46: 0.0254 | AD46: 0.0241 | AE46: 0.0221 | AF46: 0.0198 | AG46: 0.0176 | AH46: 0.0156 | AI46: 0.0142 | AJ46: 0.0136 | AK46: 0.0137 | AL46: 0.0145 | AM46: 0.0156 | AN46: 0.0169 | AO46: 0.018 | AP46: 0.0189 | AQ46: 0.0194 | AR46: 0.0197 | AS46: 0.0199 | AT46: 0.0203 | AU46: 0.0208 | AV46: 0.0215 | AW46: 0.0221 | AX46: 0.0225 | AY46: 0.0226 | AZ46: 0.0224 | BA46: 0.022 | BB46: 0.0215 | BC46: 0.0208 | BD46: 0.0198 | BE46: 0.0186 | BF46: 0.0169 | BG46: 0.0147 | BH46: 0.012 | BI46: 0.0089 | BJ46: 0.0051 | BK46: 0.0008 | BL46: -0.0038 | BM46: -0.0038 | BN46: -0.0031 | BO46: -0.0017 | BP46: 0.0002 | BQ46: 0.0023 | BR46: 0.0045 | BS46: 0.0066 | BT46: 0.0084 | BU46: 0.0098 | BV46: 0.0106 | BW46: 0.011 | BX46: 0.0112 | BY46: 0.0112 | BZ46: 0.011 | CA46: 0.0108 | CB46: 0.0105 | CC46: 0.0103 | CD46: 0.0101 | CE46: 0.01 | CF46: 0.01
B47: 62 | C47: 0.0109 | D47: 0.0091 | E47: 0.0072 | F47: 0.0053 | G47: 0.0033 | H47: 0.0015 | I47: -0.0001 | J47: -0.0013 | K47: -0.0023 | L47: -0.0031 | M47: -0.0037 | N47: -0.004 | O47: -0.0038 | P47: -0.0031 | Q47: -0.0018 | R47: 0 | S47: 0.0024 | T47: 0.0052 | U47: 0.0083 | V47: 0.0115 | W47: 0.0148 | X47: 0.0179 | Y47: 0.0208 | Z47: 0.023 | AA47: 0.0244 | AB47: 0.0249 | AC47: 0.0245 | AD47: 0.0235 | AE47: 0.0218 | AF47: 0.0198 | AG47: 0.0177 | AH47: 0.0157 | AI47: 0.0143 | AJ47: 0.0136 | AK47: 0.0137 | AL47: 0.0144 | AM47: 0.0155 | AN47: 0.0167 | AO47: 0.0177 | AP47: 0.0184 | AQ47: 0.0187 | AR47: 0.0188 | AS47: 0.0189 | AT47: 0.0193 | AU47: 0.02 | AV47: 0.0209 | AW47: 0.0219 | AX47: 0.0227 | AY47: 0.0231 | AZ47: 0.0233 | BA47: 0.0232 | BB47: 0.0229 | BC47: 0.0225 | BD47: 0.0218 | BE47: 0.0208 | BF47: 0.0193 | BG47: 0.0172 | BH47: 0.0144 | BI47: 0.0111 | BJ47: 0.007 | BK47: 0.0023 | BL47: -0.0027 | BM47: -0.003 | BN47: -0.0026 | BO47: -0.0016 | BP47: -0.0001 | BQ47: 0.0018 | BR47: 0.0038 | BS47: 0.0058 | BT47: 0.0076 | BU47: 0.009 | BV47: 0.01 | BW47: 0.0105 | BX47: 0.0108 | BY47: 0.011 | BZ47: 0.0109 | CA47: 0.0107 | CB47: 0.0105 | CC47: 0.0103 | CD47: 0.0101 | CE47: 0.01 | CF47: 0.01
B48: 63 | C48: 0.0099 | D48: 0.008 | E48: 0.0062 | F48: 0.0043 | G48: 0.0024 | H48: 0.0006 | I48: -0.0009 | J48: -0.0021 | K48: -0.003 | L48: -0.0036 | M48: -0.0041 | N48: -0.0041 | O48: -0.0037 | P48: -0.0028 | Q48: -0.0014 | R48: 0.0005 | S48: 0.0028 | T48: 0.0055 | U48: 0.0084 | V48: 0.0113 | W48: 0.0143 | X48: 0.0172 | Y48: 0.0197 | Z48: 0.0218 | AA48: 0.0231 | AB48: 0.0237 | AC48: 0.0235 | AD48: 0.0227 | AE48: 0.0213 | AF48: 0.0196 | AG48: 0.0177 | AH48: 0.0159 | AI48: 0.0145 | AJ48: 0.0139 | AK48: 0.0139 | AL48: 0.0145 | AM48: 0.0155 | AN48: 0.0166 | AO48: 0.0175 | AP48: 0.0179 | AQ48: 0.018 | AR48: 0.0179 | AS48: 0.0179 | AT48: 0.0183 | AU48: 0.0191 | AV48: 0.0202 | AW48: 0.0215 | AX48: 0.0225 | AY48: 0.0234 | AZ48: 0.0238 | BA48: 0.024 | BB48: 0.0241 | BC48: 0.0239 | BD48: 0.0235 | BE48: 0.0227 | BF48: 0.0214 | BG48: 0.0193 | BH48: 0.0166 | BI48: 0.0131 | BJ48: 0.009 | BK48: 0.0042 | BL48: -0.001 | BM48: -0.0016 | BN48: -0.0016 | BO48: -0.001 | BP48: 0.0001 | BQ48: 0.0016 | BR48: 0.0034 | BS48: 0.0052 | BT48: 0.0069 | BU48: 0.0083 | BV48: 0.0093 | BW48: 0.01 | BX48: 0.0104 | BY48: 0.0107 | BZ48: 0.0107 | CA48: 0.0107 | CB48: 0.0105 | CC48: 0.0103 | CD48: 0.0101 | CE48: 0.01 | CF48: 0.01
B49: 64 | C49: 0.0089 | D49: 0.0071 | E49: 0.0053 | F49: 0.0034 | G49: 0.0016 | H49: -0.0002 | I49: -0.0016 | J49: -0.0026 | K49: -0.0034 | L49: -0.004 | M49: -0.0042 | N49: -0.0041 | O49: -0.0036 | P49: -0.0025 | Q49: -0.001 | R49: 0.0009 | S49: 0.0031 | T49: 0.0056 | U49: 0.0083 | V49: 0.011 | W49: 0.0137 | X49: 0.0163 | Y49: 0.0187 | Z49: 0.0206 | AA49: 0.0219 | AB49: 0.0224 | AC49: 0.0224 | AD49: 0.0217 | AE49: 0.0205 | AF49: 0.0191 | AG49: 0.0174 | AH49: 0.0159 | AI49: 0.0147 | AJ49: 0.0141 | AK49: 0.0142 | AL49: 0.0148 | AM49: 0.0157 | AN49: 0.0167 | AO49: 0.0174 | AP49: 0.0176 | AQ49: 0.0174 | AR49: 0.0171 | AS49: 0.017 | AT49: 0.0173 | AU49: 0.0181 | AV49: 0.0194 | AW49: 0.0208 | AX49: 0.0222 | AY49: 0.0233 | AZ49: 0.0241 | BA49: 0.0247 | BB49: 0.025 | BC49: 0.0252 | BD49: 0.025 | BE49: 0.0243 | BF49: 0.0231 | BG49: 0.0211 | BH49: 0.0184 | BI49: 0.015 | BJ49: 0.0109 | BK49: 0.0061 | BL49: 0.001 | BM49: 0.0001 | BN49: -0.0002 | BO49: 0 | BP49: 0.0007 | BQ49: 0.0018 | BR49: 0.0032 | BS49: 0.0047 | BT49: 0.0063 | BU49: 0.0076 | BV49: 0.0087 | BW49: 0.0094 | BX49: 0.01 | BY49: 0.0103 | BZ49: 0.0105 | CA49: 0.0105 | CB49: 0.0104 | CC49: 0.0103 | CD49: 0.0101 | CE49: 0.01 | CF49: 0.01
B50: 65 | C50: 0.0082 | D50: 0.0064 | E50: 0.0046 | F50: 0.0027 | G50: 0.0009 | H50: -0.0007 | I50: -0.002 | J50: -0.003 | K50: -0.0037 | L50: -0.0041 | M50: -0.0042 | N50: -0.004 | O50: -0.0034 | P50: -0.0022 | Q50: -0.0007 | R50: 0.0011 | S50: 0.0032 | T50: 0.0056 | U50: 0.0081 | V50: 0.0106 | W50: 0.0131 | X50: 0.0155 | Y50: 0.0177 | Z50: 0.0195 | AA50: 0.0207 | AB50: 0.0212 | AC50: 0.0212 | AD50: 0.0206 | AE50: 0.0196 | AF50: 0.0184 | AG50: 0.017 | AH50: 0.0158 | AI50: 0.0148 | AJ50: 0.0144 | AK50: 0.0146 | AL50: 0.0152 | AM50: 0.0161 | AN50: 0.0169 | AO50: 0.0173 | AP50: 0.0173 | AQ50: 0.0169 | AR50: 0.0164 | AS50: 0.0162 | AT50: 0.0164 | AU50: 0.0172 | AV50: 0.0185 | AW50: 0.02 | AX50: 0.0216 | AY50: 0.023 | AZ50: 0.0242 | BA50: 0.0251 | BB50: 0.0258 | BC50: 0.0262 | BD50: 0.0262 | BE50: 0.0257 | BF50: 0.0245 | BG50: 0.0226 | BH50: 0.0199 | BI50: 0.0166 | BJ50: 0.0127 | BK50: 0.0081 | BL50: 0.0032 | BM50: 0.0022 | BN50: 0.0016 | BO50: 0.0014 | BP50: 0.0016 | BQ50: 0.0023 | BR50: 0.0033 | BS50: 0.0045 | BT50: 0.0058 | BU50: 0.007 | BV50: 0.008 | BW50: 0.0089 | BX50: 0.0095 | BY50: 0.01 | BZ50: 0.0103 | CA50: 0.0104 | CB50: 0.0104 | CC50: 0.0103 | CD50: 0.0101 | CE50: 0.01 | CF50: 0.01
B51: 66 | C51: 0.0077 | D51: 0.0059 | E51: 0.0041 | F51: 0.0023 | G51: 0.0005 | H51: -0.001 | I51: -0.0023 | J51: -0.0031 | K51: -0.0037 | L51: -0.0041 | M51: -0.0041 | N51: -0.0038 | O51: -0.0031 | P51: -0.002 | Q51: -0.0006 | R51: 0.0012 | S51: 0.0032 | T51: 0.0054 | U51: 0.0077 | V51: 0.01 | W51: 0.0124 | X51: 0.0147 | Y51: 0.0168 | Z51: 0.0184 | AA51: 0.0195 | AB51: 0.02 | AC51: 0.02 | AD51: 0.0194 | AE51: 0.0185 | AF51: 0.0175 | AG51: 0.0164 | AH51: 0.0154 | AI51: 0.0148 | AJ51: 0.0146 | AK51: 0.0149 | AL51: 0.0156 | AM51: 0.0164 | AN51: 0.0171 | AO51: 0.0174 | AP51: 0.0172 | AQ51: 0.0166 | AR51: 0.0159 | AS51: 0.0155 | AT51: 0.0156 | AU51: 0.0163 | AV51: 0.0175 | AW51: 0.0191 | AX51: 0.0209 | AY51: 0.0226 | AZ51: 0.024 | BA51: 0.0253 | BB51: 0.0263 | BC51: 0.0269 | BD51: 0.0271 | BE51: 0.0267 | BF51: 0.0255 | BG51: 0.0237 | BH51: 0.0211 | BI51: 0.018 | BJ51: 0.0142 | BK51: 0.0099 | BL51: 0.0053 | BM51: 0.0043 | BN51: 0.0035 | BO51: 0.003 | BP51: 0.0028 | BQ51: 0.003 | BR51: 0.0036 | BS51: 0.0044 | BT51: 0.0054 | BU51: 0.0065 | BV51: 0.0075 | BW51: 0.0083 | BX51: 0.0091 | BY51: 0.0096 | BZ51: 0.01 | CA51: 0.0102 | CB51: 0.0103 | CC51: 0.0102 | CD51: 0.0101 | CE51: 0.01 | CF51: 0.01
B52: 67 | C52: 0.0075 | D52: 0.0057 | E52: 0.0039 | F52: 0.0021 | G52: 0.0004 | H52: -0.0011 | I52: -0.0023 | J52: -0.0031 | K52: -0.0036 | L52: -0.0039 | M52: -0.0039 | N52: -0.0035 | O52: -0.0029 | P52: -0.0018 | Q52: -0.0005 | R52: 0.0011 | S52: 0.0029 | T52: 0.005 | U52: 0.0072 | V52: 0.0094 | W52: 0.0117 | X52: 0.0139 | Y52: 0.0159 | Z52: 0.0175 | AA52: 0.0185 | AB52: 0.0189 | AC52: 0.0188 | AD52: 0.0183 | AE52: 0.0174 | AF52: 0.0165 | AG52: 0.0156 | AH52: 0.0149 | AI52: 0.0146 | AJ52: 0.0146 | AK52: 0.0151 | AL52: 0.0159 | AM52: 0.0167 | AN52: 0.0174 | AO52: 0.0176 | AP52: 0.0172 | AQ52: 0.0165 | AR52: 0.0156 | AS52: 0.015 | AT52: 0.015 | AU52: 0.0155 | AV52: 0.0166 | AW52: 0.0181 | AX52: 0.02 | AY52: 0.0219 | AZ52: 0.0237 | BA52: 0.0253 | BB52: 0.0266 | BC52: 0.0275 | BD52: 0.0278 | BE52: 0.0274 | BF52: 0.0263 | BG52: 0.0245 | BH52: 0.0221 | BI52: 0.0191 | BJ52: 0.0156 | BK52: 0.0116 | BL52: 0.0073 | BM52: 0.0064 | BN52: 0.0055 | BO52: 0.0047 | BP52: 0.0042 | BQ52: 0.004 | BR52: 0.0041 | BS52: 0.0046 | BT52: 0.0053 | BU52: 0.0061 | BV52: 0.007 | BW52: 0.0079 | BX52: 0.0086 | BY52: 0.0092 | BZ52: 0.0097 | CA52: 0.01 | CB52: 0.0101 | CC52: 0.0101 | CD52: 0.0101 | CE52: 0.01 | CF52: 0.01
B53: 68 | C53: 0.0076 | D53: 0.0058 | E53: 0.004 | F53: 0.0022 | G53: 0.0004 | H53: -0.001 | I53: -0.0022 | J53: -0.0029 | K53: -0.0034 | L53: -0.0036 | M53: -0.0036 | N53: -0.0033 | O53: -0.0027 | P53: -0.0018 | Q53: -0.0006 | R53: 0.0009 | S53: 0.0026 | T53: 0.0045 | U53: 0.0066 | V53: 0.0089 | W53: 0.0111 | X53: 0.0132 | Y53: 0.0152 | Z53: 0.0167 | AA53: 0.0176 | AB53: 0.018 | AC53: 0.0177 | AD53: 0.0171 | AE53: 0.0163 | AF53: 0.0155 | AG53: 0.0148 | AH53: 0.0143 | AI53: 0.0141 | AJ53: 0.0144 | AK53: 0.0151 | AL53: 0.016 | AM53: 0.0169 | AN53: 0.0176 | AO53: 0.0178 | AP53: 0.0173 | AQ53: 0.0165 | AR53: 0.0155 | AS53: 0.0147 | AT53: 0.0145 | AU53: 0.0148 | AV53: 0.0157 | AW53: 0.0172 | AX53: 0.0191 | AY53: 0.0211 | AZ53: 0.0232 | BA53: 0.0251 | BB53: 0.0266 | BC53: 0.0277 | BD53: 0.0282 | BE53: 0.0279 | BF53: 0.0269 | BG53: 0.0252 | BH53: 0.0228 | BI53: 0.02 | BJ53: 0.0167 | BK53: 0.013 | BL53: 0.0091 | BM53: 0.0082 | BN53: 0.0073 | BO53: 0.0064 | BP53: 0.0057 | BQ53: 0.0051 | BR53: 0.0049 | BS53: 0.0049 | BT53: 0.0053 | BU53: 0.0059 | BV53: 0.0067 | BW53: 0.0075 | BX53: 0.0082 | BY53: 0.0089 | BZ53: 0.0094 | CA53: 0.0098 | CB53: 0.01 | CC53: 0.0101 | CD53: 0.0101 | CE53: 0.01 | CF53: 0.01
B54: 69 | C54: 0.008 | D54: 0.0061 | E54: 0.0042 | F54: 0.0024 | G54: 0.0007 | H54: -0.0007 | I54: -0.0019 | J54: -0.0026 | K54: -0.0031 | L54: -0.0033 | M54: -0.0033 | N54: -0.0031 | O54: -0.0026 | P54: -0.0018 | Q54: -0.0008 | R54: 0.0005 | S54: 0.0021 | T54: 0.004 | U54: 0.0061 | V54: 0.0083 | W54: 0.0105 | X54: 0.0126 | Y54: 0.0145 | Z54: 0.016 | AA54: 0.0168 | AB54: 0.0171 | AC54: 0.0168 | AD54: 0.0161 | AE54: 0.0152 | AF54: 0.0144 | AG54: 0.0138 | AH54: 0.0135 | AI54: 0.0135 | AJ54: 0.014 | AK54: 0.0149 | AL54: 0.016 | AM54: 0.017 | AN54: 0.0177 | AO54: 0.0179 | AP54: 0.0175 | AQ54: 0.0166 | AR54: 0.0155 | AS54: 0.0146 | AT54: 0.0141 | AU54: 0.0142 | AV54: 0.015 | AW54: 0.0163 | AX54: 0.0181 | AY54: 0.0203 | AZ54: 0.0225 | BA54: 0.0247 | BB54: 0.0265 | BC54: 0.0278 | BD54: 0.0284 | BE54: 0.0282 | BF54: 0.0273 | BG54: 0.0256 | BH54: 0.0234 | BI54: 0.0207 | BJ54: 0.0175 | BK54: 0.0141 | BL54: 0.0105 | BM54: 0.0097 | BN54: 0.0089 | BO54: 0.008 | BP54: 0.0071 | BQ54: 0.0063 | BR54: 0.0058 | BS54: 0.0055 | BT54: 0.0056 | BU54: 0.0059 | BV54: 0.0065 | BW54: 0.0072 | BX54: 0.0079 | BY54: 0.0086 | BZ54: 0.0092 | CA54: 0.0096 | CB54: 0.0099 | CC54: 0.01 | CD54: 0.01 | CE54: 0.01 | CF54: 0.01
B55: 70 | C55: 0.0085 | D55: 0.0066 | E55: 0.0047 | F55: 0.0029 | G55: 0.0012 | H55: -0.0003 | I55: -0.0014 | J55: -0.0022 | K55: -0.0027 | L55: -0.0029 | M55: -0.003 | N55: -0.0029 | O55: -0.0025 | P55: -0.0019 | Q55: -0.001 | R55: 0.0001 | S55: 0.0017 | T55: 0.0035 | U55: 0.0056 | V55: 0.0078 | W55: 0.01 | X55: 0.0122 | Y55: 0.014 | Z55: 0.0154 | AA55: 0.0162 | AB55: 0.0163 | AC55: 0.0159 | AD55: 0.0151 | AE55: 0.0142 | AF55: 0.0134 | AG55: 0.0129 | AH55: 0.0126 | AI55: 0.0128 | AJ55: 0.0135 | AK55: 0.0145 | AL55: 0.0157 | AM55: 0.0169 | AN55: 0.0177 | AO55: 0.018 | AP55: 0.0176 | AQ55: 0.0167 | AR55: 0.0156 | AS55: 0.0145 | AT55: 0.0139 | AU55: 0.0138 | AV55: 0.0143 | AW55: 0.0155 | AX55: 0.0172 | AY55: 0.0194 | AZ55: 0.0218 | BA55: 0.0241 | BB55: 0.0261 | BC55: 0.0276 | BD55: 0.0283 | BE55: 0.0283 | BF55: 0.0275 | BG55: 0.0259 | BH55: 0.0238 | BI55: 0.0212 | BJ55: 0.0182 | BK55: 0.015 | BL55: 0.0115 | BM55: 0.011 | BN55: 0.0102 | BO55: 0.0093 | BP55: 0.0084 | BQ55: 0.0075 | BR55: 0.0067 | BS55: 0.0062 | BT55: 0.006 | BU55: 0.0061 | BV55: 0.0064 | BW55: 0.007 | BX55: 0.0077 | BY55: 0.0083 | BZ55: 0.0089 | CA55: 0.0094 | CB55: 0.0097 | CC55: 0.0099 | CD55: 0.01 | CE55: 0.01 | CF55: 0.01
B56: 71 | C56: 0.0091 | D56: 0.0071 | E56: 0.0053 | F56: 0.0034 | G56: 0.0017 | H56: 0.0002 | I56: -0.0009 | J56: -0.0017 | K56: -0.0022 | L56: -0.0026 | M56: -0.0027 | N56: -0.0028 | O56: -0.0026 | P56: -0.0021 | Q56: -0.0013 | R56: -0.0002 | S56: 0.0013 | T56: 0.0031 | U56: 0.0052 | V56: 0.0074 | W56: 0.0097 | X56: 0.0118 | Y56: 0.0136 | Z56: 0.0149 | AA56: 0.0156 | AB56: 0.0156 | AC56: 0.0151 | AD56: 0.0143 | AE56: 0.0133 | AF56: 0.0125 | AG56: 0.0119 | AH56: 0.0117 | AI56: 0.0119 | AJ56: 0.0127 | AK56: 0.0139 | AL56: 0.0153 | AM56: 0.0166 | AN56: 0.0175 | AO56: 0.0179 | AP56: 0.0177 | AQ56: 0.0168 | AR56: 0.0157 | AS56: 0.0146 | AT56: 0.0137 | AU56: 0.0135 | AV56: 0.0138 | AW56: 0.0148 | AX56: 0.0164 | AY56: 0.0186 | AZ56: 0.021 | BA56: 0.0234 | BB56: 0.0256 | BC56: 0.0272 | BD56: 0.0281 | BE56: 0.0282 | BF56: 0.0275 | BG56: 0.0261 | BH56: 0.0241 | BI56: 0.0216 | BJ56: 0.0187 | BK56: 0.0156 | BL56: 0.0123 | BM56: 0.0119 | BN56: 0.0113 | BO56: 0.0104 | BP56: 0.0095 | BQ56: 0.0086 | BR56: 0.0077 | BS56: 0.007 | BT56: 0.0065 | BU56: 0.0064 | BV56: 0.0065 | BW56: 0.007 | BX56: 0.0075 | BY56: 0.0081 | BZ56: 0.0087 | CA56: 0.0092 | CB56: 0.0096 | CC56: 0.0098 | CD56: 0.01 | CE56: 0.01 | CF56: 0.01
B57: 72 | C57: 0.0096 | D57: 0.0077 | E57: 0.0058 | F57: 0.004 | G57: 0.0023 | H57: 0.0008 | I57: -0.0003 | J57: -0.0012 | K57: -0.0018 | L57: -0.0023 | M57: -0.0025 | N57: -0.0027 | O57: -0.0026 | P57: -0.0022 | Q57: -0.0016 | R57: -0.0005 | S57: 0.0009 | T57: 0.0028 | U57: 0.0049 | V57: 0.0071 | W57: 0.0094 | X57: 0.0115 | Y57: 0.0133 | Z57: 0.0146 | AA57: 0.0152 | AB57: 0.0151 | AC57: 0.0145 | AD57: 0.0136 | AE57: 0.0125 | AF57: 0.0116 | AG57: 0.011 | AH57: 0.0107 | AI57: 0.011 | AJ57: 0.0119 | AK57: 0.0131 | AL57: 0.0146 | AM57: 0.0161 | AN57: 0.0172 | AO57: 0.0178 | AP57: 0.0176 | AQ57: 0.0169 | AR57: 0.0158 | AS57: 0.0146 | AT57: 0.0137 | AU57: 0.0133 | AV57: 0.0134 | AW57: 0.0143 | AX57: 0.0158 | AY57: 0.0178 | AZ57: 0.0202 | BA57: 0.0227 | BB57: 0.0249 | BC57: 0.0267 | BD57: 0.0277 | BE57: 0.0279 | BF57: 0.0274 | BG57: 0.0261 | BH57: 0.0242 | BI57: 0.0218 | BJ57: 0.0191 | BK57: 0.016 | BL57: 0.0128 | BM57: 0.0125 | BN57: 0.012 | BO57: 0.0113 | BP57: 0.0105 | BQ57: 0.0096 | BR57: 0.0087 | BS57: 0.0079 | BT57: 0.0072 | BU57: 0.0069 | BV57: 0.0068 | BW57: 0.0071 | BX57: 0.0075 | BY57: 0.008 | BZ57: 0.0086 | CA57: 0.0091 | CB57: 0.0095 | CC57: 0.0098 | CD57: 0.0099 | CE57: 0.01 | CF57: 0.01
B58: 73 | C58: 0.0101 | D58: 0.0083 | E58: 0.0064 | F58: 0.0046 | G58: 0.0029 | H58: 0.0014 | I58: 0.0002 | J58: -0.0007 | K58: -0.0014 | L58: -0.002 | M58: -0.0024 | N58: -0.0026 | O58: -0.0027 | P58: -0.0024 | Q58: -0.0018 | R58: -0.0007 | S58: 0.0007 | T58: 0.0026 | U58: 0.0047 | V58: 0.007 | W58: 0.0092 | X58: 0.0113 | Y58: 0.013 | Z58: 0.0143 | AA58: 0.0148 | AB58: 0.0147 | AC58: 0.014 | AD58: 0.013 | AE58: 0.0118 | AF58: 0.0108 | AG58: 0.0101 | AH58: 0.0098 | AI58: 0.0101 | AJ58: 0.0109 | AK58: 0.0123 | AL58: 0.0139 | AM58: 0.0154 | AN58: 0.0167 | AO58: 0.0174 | AP58: 0.0174 | AQ58: 0.0168 | AR58: 0.0158 | AS58: 0.0146 | AT58: 0.0137 | AU58: 0.0131 | AV58: 0.0132 | AW58: 0.0139 | AX58: 0.0152 | AY58: 0.0171 | AZ58: 0.0195 | BA58: 0.0219 | BB58: 0.0242 | BC58: 0.026 | BD58: 0.0272 | BE58: 0.0276 | BF58: 0.0272 | BG58: 0.026 | BH58: 0.0242 | BI58: 0.0219 | BJ58: 0.0192 | BK58: 0.0163 | BL58: 0.0132 | BM58: 0.0129 | BN58: 0.0125 | BO58: 0.0119 | BP58: 0.0112 | BQ58: 0.0104 | BR58: 0.0095 | BS58: 0.0086 | BT58: 0.0079 | BU58: 0.0075 | BV58: 0.0072 | BW58: 0.0073 | BX58: 0.0076 | BY58: 0.008 | BZ58: 0.0085 | CA58: 0.009 | CB58: 0.0094 | CC58: 0.0097 | CD58: 0.0099 | CE58: 0.01 | CF58: 0.01
B59: 74 | C59: 0.0105 | D59: 0.0086 | E59: 0.0068 | F59: 0.0051 | G59: 0.0034 | H59: 0.002 | I59: 0.0008 | J59: -0.0002 | K59: -0.0011 | L59: -0.0017 | M59: -0.0022 | N59: -0.0026 | O59: -0.0027 | P59: -0.0025 | Q59: -0.0018 | R59: -0.0008 | S59: 0.0007 | T59: 0.0025 | U59: 0.0046 | V59: 0.0069 | W59: 0.0091 | X59: 0.0112 | Y59: 0.0129 | Z59: 0.014 | AA59: 0.0145 | AB59: 0.0143 | AC59: 0.0136 | AD59: 0.0125 | AE59: 0.0112 | AF59: 0.0101 | AG59: 0.0093 | AH59: 0.0089 | AI59: 0.0091 | AJ59: 0.01 | AK59: 0.0113 | AL59: 0.013 | AM59: 0.0146 | AN59: 0.016 | AO59: 0.0169 | AP59: 0.017 | AQ59: 0.0166 | AR59: 0.0156 | AS59: 0.0145 | AT59: 0.0136 | AU59: 0.013 | AV59: 0.013 | AW59: 0.0135 | AX59: 0.0147 | AY59: 0.0165 | AZ59: 0.0187 | BA59: 0.0211 | BB59: 0.0234 | BC59: 0.0253 | BD59: 0.0266 | BE59: 0.0271 | BF59: 0.0268 | BG59: 0.0258 | BH59: 0.0241 | BI59: 0.0219 | BJ59: 0.0193 | BK59: 0.0164 | BL59: 0.0133 | BM59: 0.0132 | BN59: 0.0128 | BO59: 0.0124 | BP59: 0.0117 | BQ59: 0.011 | BR59: 0.0102 | BS59: 0.0094 | BT59: 0.0086 | BU59: 0.0081 | BV59: 0.0077 | BW59: 0.0077 | BX59: 0.0078 | BY59: 0.0081 | BZ59: 0.0085 | CA59: 0.0089 | CB59: 0.0093 | CC59: 0.0096 | CD59: 0.0099 | CE59: 0.01 | CF59: 0.01
B60: 75 | C60: 0.0106 | D60: 0.0089 | E60: 0.0071 | F60: 0.0055 | G60: 0.0038 | H60: 0.0024 | I60: 0.0012 | J60: 0.0001 | K60: -0.0008 | L60: -0.0015 | M60: -0.0021 | N60: -0.0025 | O60: -0.0027 | P60: -0.0024 | Q60: -0.0018 | R60: -0.0008 | S60: 0.0007 | T60: 0.0026 | U60: 0.0047 | V60: 0.0069 | W60: 0.0091 | X60: 0.0111 | Y60: 0.0128 | Z60: 0.0139 | AA60: 0.0143 | AB60: 0.0141 | AC60: 0.0133 | AD60: 0.0121 | AE60: 0.0108 | AF60: 0.0095 | AG60: 0.0086 | AH60: 0.0081 | AI60: 0.0083 | AJ60: 0.009 | AK60: 0.0103 | AL60: 0.012 | AM60: 0.0137 | AN60: 0.0152 | AO60: 0.0161 | AP60: 0.0164 | AQ60: 0.0161 | AR60: 0.0153 | AS60: 0.0143 | AT60: 0.0134 | AU60: 0.0128 | AV60: 0.0127 | AW60: 0.0132 | AX60: 0.0143 | AY60: 0.016 | AZ60: 0.0181 | BA60: 0.0204 | BB60: 0.0226 | BC60: 0.0245 | BD60: 0.0259 | BE60: 0.0265 | BF60: 0.0264 | BG60: 0.0255 | BH60: 0.0239 | BI60: 0.0218 | BJ60: 0.0192 | BK60: 0.0163 | BL60: 0.0133 | BM60: 0.0132 | BN60: 0.013 | BO60: 0.0126 | BP60: 0.0121 | BQ60: 0.0114 | BR60: 0.0107 | BS60: 0.01 | BT60: 0.0093 | BU60: 0.0087 | BV60: 0.0083 | BW60: 0.0081 | BX60: 0.0081 | BY60: 0.0082 | BZ60: 0.0085 | CA60: 0.0089 | CB60: 0.0093 | CC60: 0.0096 | CD60: 0.0098 | CE60: 0.01 | CF60: 0.01
B61: 76 | C61: 0.0105 | D61: 0.0089 | E61: 0.0073 | F61: 0.0057 | G61: 0.0041 | H61: 0.0027 | I61: 0.0015 | J61: 0.0004 | K61: -0.0005 | L61: -0.0014 | M61: -0.002 | N61: -0.0025 | O61: -0.0026 | P61: -0.0023 | Q61: -0.0017 | R61: -0.0006 | S61: 0.0009 | T61: 0.0027 | U61: 0.0048 | V61: 0.007 | W61: 0.0092 | X61: 0.0112 | Y61: 0.0128 | Z61: 0.0138 | AA61: 0.0142 | AB61: 0.0139 | AC61: 0.013 | AD61: 0.0118 | AE61: 0.0104 | AF61: 0.009 | AG61: 0.008 | AH61: 0.0074 | AI61: 0.0074 | AJ61: 0.0081 | AK61: 0.0094 | AL61: 0.011 | AM61: 0.0127 | AN61: 0.0142 | AO61: 0.0152 | AP61: 0.0157 | AQ61: 0.0155 | AR61: 0.0148 | AS61: 0.0139 | AT61: 0.0131 | AU61: 0.0126 | AV61: 0.0125 | AW61: 0.013 | AX61: 0.014 | AY61: 0.0155 | AZ61: 0.0175 | BA61: 0.0197 | BB61: 0.0218 | BC61: 0.0238 | BD61: 0.0252 | BE61: 0.0259 | BF61: 0.0258 | BG61: 0.025 | BH61: 0.0235 | BI61: 0.0215 | BJ61: 0.019 | BK61: 0.0162 | BL61: 0.0132 | BM61: 0.0132 | BN61: 0.013 | BO61: 0.0127 | BP61: 0.0123 | BQ61: 0.0117 | BR61: 0.0111 | BS61: 0.0104 | BT61: 0.0098 | BU61: 0.0092 | BV61: 0.0088 | BW61: 0.0085 | BX61: 0.0084 | BY61: 0.0084 | BZ61: 0.0086 | CA61: 0.0089 | CB61: 0.0093 | CC61: 0.0096 | CD61: 0.0098 | CE61: 0.01 | CF61: 0.01
B62: 77 | C62: 0.0102 | D62: 0.0087 | E62: 0.0072 | F62: 0.0057 | G62: 0.0042 | H62: 0.0029 | I62: 0.0016 | J62: 0.0005 | K62: -0.0004 | L62: -0.0012 | M62: -0.0019 | N62: -0.0023 | O62: -0.0024 | P62: -0.0021 | Q62: -0.0014 | R62: -0.0003 | S62: 0.0012 | T62: 0.003 | U62: 0.0051 | V62: 0.0072 | W62: 0.0093 | X62: 0.0112 | Y62: 0.0128 | Z62: 0.0138 | AA62: 0.0141 | AB62: 0.0137 | AC62: 0.0128 | AD62: 0.0115 | AE62: 0.0101 | AF62: 0.0086 | AG62: 0.0075 | AH62: 0.0068 | AI62: 0.0067 | AJ62: 0.0073 | AK62: 0.0084 | AL62: 0.0099 | AM62: 0.0116 | AN62: 0.0131 | AO62: 0.0142 | AP62: 0.0147 | AQ62: 0.0146 | AR62: 0.0141 | AS62: 0.0134 | AT62: 0.0127 | AU62: 0.0122 | AV62: 0.0122 | AW62: 0.0126 | AX62: 0.0136 | AY62: 0.0151 | AZ62: 0.017 | BA62: 0.019 | BB62: 0.0212 | BC62: 0.023 | BD62: 0.0244 | BE62: 0.0252 | BF62: 0.0252 | BG62: 0.0245 | BH62: 0.0231 | BI62: 0.0211 | BJ62: 0.0187 | BK62: 0.016 | BL62: 0.0131 | BM62: 0.0131 | BN62: 0.013 | BO62: 0.0127 | BP62: 0.0124 | BQ62: 0.0119 | BR62: 0.0114 | BS62: 0.0108 | BT62: 0.0102 | BU62: 0.0097 | BV62: 0.0093 | BW62: 0.009 | BX62: 0.0088 | BY62: 0.0087 | BZ62: 0.0088 | CA62: 0.009 | CB62: 0.0093 | CC62: 0.0096 | CD62: 0.0098 | CE62: 0.01 | CF62: 0.01
B63: 78 | C63: 0.0098 | D63: 0.0084 | E63: 0.0069 | F63: 0.0055 | G63: 0.0041 | H63: 0.0028 | I63: 0.0016 | J63: 0.0005 | K63: -0.0004 | L63: -0.0012 | M63: -0.0018 | N63: -0.0021 | O63: -0.0022 | P63: -0.0018 | Q63: -0.0011 | R63: 0 | S63: 0.0015 | T63: 0.0033 | U63: 0.0053 | V63: 0.0074 | W63: 0.0095 | X63: 0.0113 | Y63: 0.0128 | Z63: 0.0138 | AA63: 0.014 | AB63: 0.0137 | AC63: 0.0127 | AD63: 0.0114 | AE63: 0.0098 | AF63: 0.0083 | AG63: 0.0071 | AH63: 0.0063 | AI63: 0.0061 | AJ63: 0.0065 | AK63: 0.0075 | AL63: 0.0089 | AM63: 0.0104 | AN63: 0.0119 | AO63: 0.013 | AP63: 0.0135 | AQ63: 0.0136 | AR63: 0.0132 | AS63: 0.0126 | AT63: 0.012 | AU63: 0.0117 | AV63: 0.0117 | AW63: 0.0122 | AX63: 0.0132 | AY63: 0.0146 | AZ63: 0.0164 | BA63: 0.0185 | BB63: 0.0205 | BC63: 0.0223 | BD63: 0.0237 | BE63: 0.0245 | BF63: 0.0245 | BG63: 0.0238 | BH63: 0.0225 | BI63: 0.0206 | BJ63: 0.0183 | BK63: 0.0156 | BL63: 0.0129 | BM63: 0.0129 | BN63: 0.0128 | BO63: 0.0126 | BP63: 0.0123 | BQ63: 0.012 | BR63: 0.0115 | BS63: 0.011 | BT63: 0.0105 | BU63: 0.01 | BV63: 0.0097 | BW63: 0.0093 | BX63: 0.0091 | BY63: 0.009 | BZ63: 0.009 | CA63: 0.0091 | CB63: 0.0093 | CC63: 0.0096 | CD63: 0.0098 | CE63: 0.0099 | CF63: 0.01
B64: 79 | C64: 0.0092 | D64: 0.0079 | E64: 0.0065 | F64: 0.0052 | G64: 0.0039 | H64: 0.0026 | I64: 0.0014 | J64: 0.0004 | K64: -0.0005 | L64: -0.0012 | M64: -0.0017 | N64: -0.002 | O64: -0.0019 | P64: -0.0015 | Q64: -0.0007 | R64: 0.0005 | S64: 0.0019 | T64: 0.0037 | U64: 0.0057 | V64: 0.0077 | W64: 0.0097 | X64: 0.0115 | Y64: 0.0129 | Z64: 0.0138 | AA64: 0.014 | AB64: 0.0136 | AC64: 0.0126 | AD64: 0.0113 | AE64: 0.0097 | AF64: 0.0081 | AG64: 0.0068 | AH64: 0.0059 | AI64: 0.0055 | AJ64: 0.0058 | AK64: 0.0066 | AL64: 0.0078 | AM64: 0.0092 | AN64: 0.0106 | AO64: 0.0116 | AP64: 0.0122 | AQ64: 0.0124 | AR64: 0.0121 | AS64: 0.0116 | AT64: 0.0112 | AU64: 0.011 | AV64: 0.0111 | AW64: 0.0117 | AX64: 0.0127 | AY64: 0.0141 | AZ64: 0.0159 | BA64: 0.0179 | BB64: 0.0199 | BC64: 0.0217 | BD64: 0.023 | BE64: 0.0237 | BF64: 0.0238 | BG64: 0.0232 | BH64: 0.0219 | BI64: 0.02 | BJ64: 0.0178 | BK64: 0.0153 | BL64: 0.0126 | BM64: 0.0127 | BN64: 0.0126 | BO64: 0.0125 | BP64: 0.0122 | BQ64: 0.0119 | BR64: 0.0116 | BS64: 0.0112 | BT64: 0.0107 | BU64: 0.0103 | BV64: 0.01 | BW64: 0.0097 | BX64: 0.0094 | BY64: 0.0093 | BZ64: 0.0093 | CA64: 0.0093 | CB64: 0.0094 | CC64: 0.0096 | CD64: 0.0098 | CE64: 0.0099 | CF64: 0.01
B65: 80 | C65: 0.0085 | D65: 0.0072 | E65: 0.006 | F65: 0.0047 | G65: 0.0034 | H65: 0.0022 | I65: 0.0011 | J65: 0.0001 | K65: -0.0007 | L65: -0.0013 | M65: -0.0017 | N65: -0.0018 | O65: -0.0016 | P65: -0.0011 | Q65: -0.0003 | R65: 0.0009 | S65: 0.0024 | T65: 0.0041 | U65: 0.0061 | V65: 0.0081 | W65: 0.01 | X65: 0.0117 | Y65: 0.013 | Z65: 0.0138 | AA65: 0.014 | AB65: 0.0136 | AC65: 0.0126 | AD65: 0.0112 | AE65: 0.0096 | AF65: 0.008 | AG65: 0.0066 | AH65: 0.0056 | AI65: 0.0051 | AJ65: 0.0052 | AK65: 0.0058 | AL65: 0.0068 | AM65: 0.008 | AN65: 0.0093 | AO65: 0.0102 | AP65: 0.0108 | AQ65: 0.011 | AR65: 0.0109 | AS65: 0.0105 | AT65: 0.0103 | AU65: 0.0102 | AV65: 0.0104 | AW65: 0.011 | AX65: 0.0121 | AY65: 0.0136 | AZ65: 0.0154 | BA65: 0.0174 | BB65: 0.0193 | BC65: 0.021 | BD65: 0.0223 | BE65: 0.023 | BF65: 0.023 | BG65: 0.0224 | BH65: 0.0212 | BI65: 0.0194 | BJ65: 0.0172 | BK65: 0.0148 | BL65: 0.0123 | BM65: 0.0124 | BN65: 0.0124 | BO65: 0.0123 | BP65: 0.0121 | BQ65: 0.0119 | BR65: 0.0115 | BS65: 0.0112 | BT65: 0.0109 | BU65: 0.0105 | BV65: 0.0102 | BW65: 0.0099 | BX65: 0.0097 | BY65: 0.0095 | BZ65: 0.0094 | CA65: 0.0095 | CB65: 0.0095 | CC65: 0.0097 | CD65: 0.0098 | CE65: 0.0099 | CF65: 0.01
B66: 81 | C66: 0.0077 | D66: 0.0065 | E66: 0.0053 | F66: 0.0041 | G66: 0.0028 | H66: 0.0017 | I66: 0.0006 | J66: -0.0003 | K66: -0.001 | L66: -0.0015 | M66: -0.0018 | N66: -0.0017 | O66: -0.0014 | P66: -0.0008 | Q66: 0.0002 | R66: 0.0014 | S66: 0.0029 | T66: 0.0046 | U66: 0.0065 | V66: 0.0084 | W66: 0.0103 | X66: 0.0119 | Y66: 0.0131 | Z66: 0.0139 | AA66: 0.014 | AB66: 0.0136 | AC66: 0.0126 | AD66: 0.0112 | AE66: 0.0096 | AF66: 0.0079 | AG66: 0.0065 | AH66: 0.0054 | AI66: 0.0048 | AJ66: 0.0046 | AK66: 0.005 | AL66: 0.0059 | AM66: 0.0069 | AN66: 0.0079 | AO66: 0.0088 | AP66: 0.0094 | AQ66: 0.0096 | AR66: 0.0095 | AS66: 0.0093 | AT66: 0.0091 | AU66: 0.0092 | AV66: 0.0095 | AW66: 0.0103 | AX66: 0.0114 | AY66: 0.013 | AZ66: 0.0148 | BA66: 0.0167 | BB66: 0.0186 | BC66: 0.0203 | BD66: 0.0215 | BE66: 0.0222 | BF66: 0.0222 | BG66: 0.0216 | BH66: 0.0204 | BI66: 0.0188 | BJ66: 0.0167 | BK66: 0.0144 | BL66: 0.0119 | BM66: 0.012 | BN66: 0.0121 | BO66: 0.012 | BP66: 0.0119 | BQ66: 0.0117 | BR66: 0.0115 | BS66: 0.0112 | BT66: 0.0109 | BU66: 0.0106 | BV66: 0.0104 | BW66: 0.0101 | BX66: 0.0099 | BY66: 0.0097 | BZ66: 0.0096 | CA66: 0.0096 | CB66: 0.0096 | CC66: 0.0097 | CD66: 0.0098 | CE66: 0.01 | CF66: 0.01
B67: 82 | C67: 0.0069 | D67: 0.0057 | E67: 0.0045 | F67: 0.0033 | G67: 0.0021 | H67: 0.001 | I67: 0 | J67: -0.0008 | K67: -0.0014 | L67: -0.0018 | M67: -0.0019 | N67: -0.0017 | O67: -0.0012 | P67: -0.0004 | Q67: 0.0006 | R67: 0.0019 | S67: 0.0034 | T67: 0.0051 | U67: 0.007 | V67: 0.0088 | W67: 0.0106 | X67: 0.0121 | Y67: 0.0132 | Z67: 0.0139 | AA67: 0.0141 | AB67: 0.0136 | AC67: 0.0126 | AD67: 0.0112 | AE67: 0.0096 | AF67: 0.008 | AG67: 0.0065 | AH67: 0.0053 | AI67: 0.0045 | AJ67: 0.0042 | AK67: 0.0044 | AL67: 0.0049 | AM67: 0.0057 | AN67: 0.0066 | AO67: 0.0073 | AP67: 0.0078 | AQ67: 0.008 | AR67: 0.008 | AS67: 0.0079 | AT67: 0.0079 | AU67: 0.0081 | AV67: 0.0085 | AW67: 0.0094 | AX67: 0.0106 | AY67: 0.0122 | AZ67: 0.0141 | BA67: 0.016 | BB67: 0.0179 | BC67: 0.0196 | BD67: 0.0207 | BE67: 0.0214 | BF67: 0.0214 | BG67: 0.0208 | BH67: 0.0197 | BI67: 0.0181 | BJ67: 0.0161 | BK67: 0.0139 | BL67: 0.0115 | BM67: 0.0117 | BN67: 0.0117 | BO67: 0.0117 | BP67: 0.0116 | BQ67: 0.0115 | BR67: 0.0113 | BS67: 0.0111 | BT67: 0.0109 | BU67: 0.0107 | BV67: 0.0104 | BW67: 0.0102 | BX67: 0.01 | BY67: 0.0098 | BZ67: 0.0097 | CA67: 0.0097 | CB67: 0.0097 | CC67: 0.0098 | CD67: 0.0099 | CE67: 0.01 | CF67: 0.01
B68: 83 | C68: 0.006 | D68: 0.0048 | E68: 0.0036 | F68: 0.0024 | G68: 0.0013 | H68: 0.0002 | I68: -0.0007 | J68: -0.0014 | K68: -0.0019 | L68: -0.0021 | M68: -0.0021 | N68: -0.0017 | O68: -0.0011 | P68: -0.0002 | Q68: 0.001 | R68: 0.0024 | S68: 0.004 | T68: 0.0057 | U68: 0.0075 | V68: 0.0092 | W68: 0.0109 | X68: 0.0123 | Y68: 0.0134 | Z68: 0.014 | AA68: 0.0141 | AB68: 0.0136 | AC68: 0.0126 | AD68: 0.0112 | AE68: 0.0096 | AF68: 0.008 | AG68: 0.0065 | AH68: 0.0052 | AI68: 0.0043 | AJ68: 0.0038 | AK68: 0.0037 | AL68: 0.0041 | AM68: 0.0046 | AN68: 0.0053 | AO68: 0.0059 | AP68: 0.0063 | AQ68: 0.0064 | AR68: 0.0065 | AS68: 0.0064 | AT68: 0.0065 | AU68: 0.0068 | AV68: 0.0074 | AW68: 0.0084 | AX68: 0.0097 | AY68: 0.0114 | AZ68: 0.0133 | BA68: 0.0152 | BB68: 0.0171 | BC68: 0.0187 | BD68: 0.0199 | BE68: 0.0205 | BF68: 0.0206 | BG68: 0.02 | BH68: 0.0189 | BI68: 0.0174 | BJ68: 0.0155 | BK68: 0.0134 | BL68: 0.0112 | BM68: 0.0113 | BN68: 0.0114 | BO68: 0.0114 | BP68: 0.0114 | BQ68: 0.0113 | BR68: 0.0112 | BS68: 0.011 | BT68: 0.0109 | BU68: 0.0107 | BV68: 0.0105 | BW68: 0.0103 | BX68: 0.0101 | BY68: 0.0099 | BZ68: 0.0098 | CA68: 0.0097 | CB68: 0.0097 | CC68: 0.0098 | CD68: 0.0099 | CE68: 0.01 | CF68: 0.01
B69: 84 | C69: 0.005 | D69: 0.0038 | E69: 0.0026 | F69: 0.0014 | G69: 0.0003 | H69: -0.0007 | I69: -0.0015 | J69: -0.0021 | K69: -0.0025 | L69: -0.0026 | M69: -0.0024 | N69: -0.0018 | O69: -0.001 | P69: 0 | Q69: 0.0013 | R69: 0.0028 | S69: 0.0045 | T69: 0.0062 | U69: 0.0079 | V69: 0.0096 | W69: 0.0112 | X69: 0.0125 | Y69: 0.0135 | Z69: 0.014 | AA69: 0.014 | AB69: 0.0135 | AC69: 0.0126 | AD69: 0.0113 | AE69: 0.0097 | AF69: 0.0081 | AG69: 0.0065 | AH69: 0.0052 | AI69: 0.0041 | AJ69: 0.0034 | AK69: 0.0032 | AL69: 0.0033 | AM69: 0.0036 | AN69: 0.004 | AO69: 0.0044 | AP69: 0.0047 | AQ69: 0.0049 | AR69: 0.0049 | AS69: 0.0049 | AT69: 0.0051 | AU69: 0.0055 | AV69: 0.0062 | AW69: 0.0073 | AX69: 0.0087 | AY69: 0.0104 | AZ69: 0.0123 | BA69: 0.0143 | BB69: 0.0162 | BC69: 0.0178 | BD69: 0.019 | BE69: 0.0196 | BF69: 0.0197 | BG69: 0.0192 | BH69: 0.0181 | BI69: 0.0167 | BJ69: 0.0149 | BK69: 0.0129 | BL69: 0.0108 | BM69: 0.0109 | BN69: 0.011 | BO69: 0.0111 | BP69: 0.0111 | BQ69: 0.011 | BR69: 0.011 | BS69: 0.0109 | BT69: 0.0108 | BU69: 0.0106 | BV69: 0.0105 | BW69: 0.0103 | BX69: 0.0102 | BY69: 0.01 | BZ69: 0.0099 | CA69: 0.0098 | CB69: 0.0097 | CC69: 0.0098 | CD69: 0.0099 | CE69: 0.01 | CF69: 0.01
B70: 85 | C70: 0.0039 | D70: 0.0027 | E70: 0.0015 | F70: 0.0004 | G70: -0.0007 | H70: -0.0016 | I70: -0.0024 | J70: -0.0029 | K70: -0.0031 | L70: -0.003 | M70: -0.0027 | N70: -0.002 | O70: -0.001 | P70: 0.0002 | Q70: 0.0017 | R70: 0.0033 | S70: 0.0049 | T70: 0.0067 | U70: 0.0084 | V70: 0.01 | W70: 0.0115 | X70: 0.0127 | Y70: 0.0136 | Z70: 0.014 | AA70: 0.014 | AB70: 0.0135 | AC70: 0.0126 | AD70: 0.0113 | AE70: 0.0098 | AF70: 0.0081 | AG70: 0.0066 | AH70: 0.0052 | AI70: 0.004 | AJ70: 0.0031 | AK70: 0.0027 | AL70: 0.0025 | AM70: 0.0026 | AN70: 0.0028 | AO70: 0.003 | AP70: 0.0032 | AQ70: 0.0033 | AR70: 0.0033 | AS70: 0.0034 | AT70: 0.0037 | AU70: 0.0041 | AV70: 0.0049 | AW70: 0.0061 | AX70: 0.0076 | AY70: 0.0093 | AZ70: 0.0113 | BA70: 0.0133 | BB70: 0.0152 | BC70: 0.0168 | BD70: 0.018 | BE70: 0.0187 | BF70: 0.0188 | BG70: 0.0183 | BH70: 0.0173 | BI70: 0.016 | BJ70: 0.0143 | BK70: 0.0124 | BL70: 0.0105 | BM70: 0.0106 | BN70: 0.0107 | BO70: 0.0108 | BP70: 0.0108 | BQ70: 0.0108 | BR70: 0.0108 | BS70: 0.0107 | BT70: 0.0106 | BU70: 0.0105 | BV70: 0.0105 | BW70: 0.0103 | BX70: 0.0102 | BY70: 0.01 | BZ70: 0.0099 | CA70: 0.0098 | CB70: 0.0098 | CC70: 0.0098 | CD70: 0.0098 | CE70: 0.0099 | CF70: 0.01
B71: 86 | C71: 0.0026 | D71: 0.0014 | E71: 0.0003 | F71: -0.0008 | G71: -0.0018 | H71: -0.0026 | I71: -0.0032 | J71: -0.0036 | K71: -0.0037 | L71: -0.0035 | M71: -0.003 | N71: -0.0021 | O71: -0.001 | P71: 0.0004 | Q71: 0.0019 | R71: 0.0036 | S71: 0.0054 | T71: 0.0071 | U71: 0.0088 | V71: 0.0104 | W71: 0.0118 | X71: 0.0129 | Y71: 0.0137 | Z71: 0.014 | AA71: 0.014 | AB71: 0.0135 | AC71: 0.0126 | AD71: 0.0113 | AE71: 0.0098 | AF71: 0.0082 | AG71: 0.0066 | AH71: 0.0052 | AI71: 0.0039 | AJ71: 0.0029 | AK71: 0.0022 | AL71: 0.0018 | AM71: 0.0016 | AN71: 0.0016 | AO71: 0.0017 | AP71: 0.0017 | AQ71: 0.0017 | AR71: 0.0018 | AS71: 0.0019 | AT71: 0.0022 | AU71: 0.0028 | AV71: 0.0036 | AW71: 0.0048 | AX71: 0.0063 | AY71: 0.0081 | AZ71: 0.0101 | BA71: 0.0121 | BB71: 0.014 | BC71: 0.0157 | BD71: 0.0169 | BE71: 0.0176 | BF71: 0.0178 | BG71: 0.0174 | BH71: 0.0165 | BI71: 0.0153 | BJ71: 0.0137 | BK71: 0.012 | BL71: 0.0102 | BM71: 0.0103 | BN71: 0.0104 | BO71: 0.0105 | BP71: 0.0105 | BQ71: 0.0105 | BR71: 0.0105 | BS71: 0.0104 | BT71: 0.0104 | BU71: 0.0103 | BV71: 0.0103 | BW71: 0.0102 | BX71: 0.0101 | BY71: 0.0099 | BZ71: 0.0098 | CA71: 0.0097 | CB71: 0.0097 | CC71: 0.0097 | CD71: 0.0097 | CE71: 0.0098 | CF71: 0.0099
B72: 87 | C72: 0.0011 | D72: 0 | E72: -0.001 | F72: -0.002 | G72: -0.0029 | H72: -0.0036 | I72: -0.0041 | J72: -0.0044 | K72: -0.0043 | L72: -0.004 | M72: -0.0033 | N72: -0.0023 | O72: -0.001 | P72: 0.0005 | Q72: 0.0022 | R72: 0.004 | S72: 0.0058 | T72: 0.0075 | U72: 0.0092 | V72: 0.0107 | W72: 0.012 | X72: 0.013 | Y72: 0.0137 | Z72: 0.014 | AA72: 0.0139 | AB72: 0.0134 | AC72: 0.0125 | AD72: 0.0113 | AE72: 0.0099 | AF72: 0.0083 | AG72: 0.0067 | AH72: 0.0052 | AI72: 0.0038 | AJ72: 0.0026 | AK72: 0.0018 | AL72: 0.0011 | AM72: 0.0008 | AN72: 0.0005 | AO72: 0.0004 | AP72: 0.0003 | AQ72: 0.0003 | AR72: 0.0003 | AS72: 0.0004 | AT72: 0.0007 | AU72: 0.0014 | AV72: 0.0023 | AW72: 0.0035 | AX72: 0.0051 | AY72: 0.0069 | AZ72: 0.0088 | BA72: 0.0109 | BB72: 0.0128 | BC72: 0.0144 | BD72: 0.0157 | BE72: 0.0165 | BF72: 0.0167 | BG72: 0.0164 | BH72: 0.0157 | BI72: 0.0146 | BJ72: 0.0132 | BK72: 0.0116 | BL72: 0.01 | BM72: 0.0101 | BN72: 0.0101 | BO72: 0.0102 | BP72: 0.0102 | BQ72: 0.0102 | BR72: 0.0102 | BS72: 0.0102 | BT72: 0.0101 | BU72: 0.0101 | BV72: 0.01 | BW72: 0.01 | BX72: 0.0099 | BY72: 0.0098 | BZ72: 0.0097 | CA72: 0.0096 | CB72: 0.0096 | CC72: 0.0095 | CD72: 0.0096 | CE72: 0.0096 | CF72: 0.0097
B73: 88 | C73: -0.0006 | D73: -0.0016 | E73: -0.0025 | F73: -0.0033 | G73: -0.0041 | H73: -0.0046 | I73: -0.005 | J73: -0.0051 | K73: -0.0049 | L73: -0.0044 | M73: -0.0036 | N73: -0.0024 | O73: -0.001 | P73: 0.0006 | Q73: 0.0024 | R73: 0.0043 | S73: 0.0061 | T73: 0.0079 | U73: 0.0095 | V73: 0.011 | W73: 0.0122 | X73: 0.0131 | Y73: 0.0138 | Z73: 0.014 | AA73: 0.0139 | AB73: 0.0133 | AC73: 0.0125 | AD73: 0.0113 | AE73: 0.0099 | AF73: 0.0084 | AG73: 0.0068 | AH73: 0.0052 | AI73: 0.0037 | AJ73: 0.0024 | AK73: 0.0014 | AL73: 0.0005 | AM73: 0 | AN73: -0.0005 | AO73: -0.0008 | AP73: -0.001 | AQ73: -0.0011 | AR73: -0.0012 | AS73: -0.0011 | AT73: -0.0007 | AU73: 0 | AV73: 0.0009 | AW73: 0.0022 | AX73: 0.0037 | AY73: 0.0055 | AZ73: 0.0075 | BA73: 0.0095 | BB73: 0.0114 | BC73: 0.0131 | BD73: 0.0144 | BE73: 0.0152 | BF73: 0.0156 | BG73: 0.0154 | BH73: 0.0148 | BI73: 0.0139 | BJ73: 0.0127 | BK73: 0.0113 | BL73: 0.0099 | BM73: 0.0099 | BN73: 0.0099 | BO73: 0.0099 | BP73: 0.01 | BQ73: 0.01 | BR73: 0.0099 | BS73: 0.0099 | BT73: 0.0099 | BU73: 0.0098 | BV73: 0.0098 | BW73: 0.0098 | BX73: 0.0097 | BY73: 0.0097 | BZ73: 0.0096 | CA73: 0.0095 | CB73: 0.0095 | CC73: 0.0094 | CD73: 0.0094 | CE73: 0.0095 | CF73: 0.0096
B74: 89 | C74: -0.0026 | D74: -0.0033 | E74: -0.004 | F74: -0.0047 | G74: -0.0053 | H74: -0.0057 | I74: -0.0059 | J74: -0.0058 | K74: -0.0054 | L74: -0.0048 | M74: -0.0038 | N74: -0.0025 | O74: -0.001 | P74: 0.0007 | Q74: 0.0026 | R74: 0.0045 | S74: 0.0064 | T74: 0.0082 | U74: 0.0098 | V74: 0.0112 | W74: 0.0124 | X74: 0.0132 | Y74: 0.0138 | Z74: 0.014 | AA74: 0.0138 | AB74: 0.0133 | AC74: 0.0124 | AD74: 0.0113 | AE74: 0.0099 | AF74: 0.0084 | AG74: 0.0068 | AH74: 0.0052 | AI74: 0.0036 | AJ74: 0.0022 | AK74: 0.001 | AL74: 0 | AM74: -0.0008 | AN74: -0.0014 | AO74: -0.0019 | AP74: -0.0022 | AQ74: -0.0025 | AR74: -0.0025 | AS74: -0.0024 | AT74: -0.0021 | AU74: -0.0014 | AV74: -0.0005 | AW74: 0.0008 | AX74: 0.0023 | AY74: 0.0041 | AZ74: 0.006 | BA74: 0.008 | BB74: 0.0099 | BC74: 0.0116 | BD74: 0.0129 | BE74: 0.0138 | BF74: 0.0143 | BG74: 0.0143 | BH74: 0.0139 | BI74: 0.0132 | BJ74: 0.0122 | BK74: 0.0111 | BL74: 0.0098 | BM74: 0.0098 | BN74: 0.0098 | BO74: 0.0098 | BP74: 0.0098 | BQ74: 0.0097 | BR74: 0.0097 | BS74: 0.0097 | BT74: 0.0096 | BU74: 0.0096 | BV74: 0.0095 | BW74: 0.0095 | BX74: 0.0095 | BY74: 0.0095 | BZ74: 0.0095 | CA74: 0.0094 | CB74: 0.0093 | CC74: 0.0093 | CD74: 0.0093 | CE74: 0.0093 | CF74: 0.0094
B75: 90 | C75: -0.0048 | D75: -0.0053 | E75: -0.0058 | F75: -0.0062 | G75: -0.0065 | H75: -0.0067 | I75: -0.0067 | J75: -0.0064 | K75: -0.0059 | L75: -0.0051 | M75: -0.004 | N75: -0.0026 | O75: -0.0009 | P75: 0.0009 | Q75: 0.0028 | R75: 0.0047 | S75: 0.0066 | T75: 0.0084 | U75: 0.01 | V75: 0.0113 | W75: 0.0124 | X75: 0.0132 | Y75: 0.0137 | Z75: 0.0139 | AA75: 0.0137 | AB75: 0.0132 | AC75: 0.0123 | AD75: 0.0112 | AE75: 0.0099 | AF75: 0.0084 | AG75: 0.0068 | AH75: 0.0051 | AI75: 0.0035 | AJ75: 0.002 | AK75: 0.0007 | AL75: -0.0005 | AM75: -0.0015 | AN75: -0.0023 | AO75: -0.0029 | AP75: -0.0034 | AQ75: -0.0037 | AR75: -0.0038 | AS75: -0.0037 | AT75: -0.0034 | AU75: -0.0028 | AV75: -0.0018 | AW75: -0.0006 | AX75: 0.0009 | AY75: 0.0026 | AZ75: 0.0045 | BA75: 0.0064 | BB75: 0.0083 | BC75: 0.01 | BD75: 0.0114 | BE75: 0.0124 | BF75: 0.013 | BG75: 0.0132 | BH75: 0.013 | BI75: 0.0125 | BJ75: 0.0118 | BK75: 0.0109 | BL75: 0.0099 | BM75: 0.0098 | BN75: 0.0097 | BO75: 0.0097 | BP75: 0.0096 | BQ75: 0.0095 | BR75: 0.0095 | BS75: 0.0094 | BT75: 0.0094 | BU75: 0.0093 | BV75: 0.0093 | BW75: 0.0093 | BX75: 0.0092 | BY75: 0.0092 | BZ75: 0.0092 | CA75: 0.0093 | CB75: 0.0092 | CC75: 0.0092 | CD75: 0.0092 | CE75: 0.0092 | CF75: 0.0093
B76: 91 | C76: -0.0072 | D76: -0.0074 | E76: -0.0076 | F76: -0.0078 | G76: -0.0078 | H76: -0.0078 | I76: -0.0075 | J76: -0.007 | K76: -0.0063 | L76: -0.0053 | M76: -0.0041 | N76: -0.0026 | O76: -0.0009 | P76: 0.001 | Q76: 0.0029 | R76: 0.0049 | S76: 0.0068 | T76: 0.0085 | U76: 0.0101 | V76: 0.0114 | W76: 0.0125 | X76: 0.0132 | Y76: 0.0137 | Z76: 0.0138 | AA76: 0.0136 | AB76: 0.013 | AC76: 0.0122 | AD76: 0.0111 | AE76: 0.0098 | AF76: 0.0084 | AG76: 0.0068 | AH76: 0.0051 | AI76: 0.0034 | AJ76: 0.0018 | AK76: 0.0004 | AL76: -0.0009 | AM76: -0.0021 | AN76: -0.003 | AO76: -0.0038 | AP76: -0.0044 | AQ76: -0.0048 | AR76: -0.005 | AS76: -0.005 | AT76: -0.0047 | AU76: -0.0041 | AV76: -0.0032 | AW76: -0.002 | AX76: -0.0005 | AY76: 0.0011 | AZ76: 0.0029 | BA76: 0.0048 | BB76: 0.0066 | BC76: 0.0083 | BD76: 0.0097 | BE76: 0.0108 | BF76: 0.0116 | BG76: 0.012 | BH76: 0.012 | BI76: 0.0118 | BJ76: 0.0113 | BK76: 0.0107 | BL76: 0.0101 | BM76: 0.0099 | BN76: 0.0098 | BO76: 0.0096 | BP76: 0.0095 | BQ76: 0.0094 | BR76: 0.0093 | BS76: 0.0092 | BT76: 0.0091 | BU76: 0.0091 | BV76: 0.009 | BW76: 0.009 | BX76: 0.009 | BY76: 0.009 | BZ76: 0.009 | CA76: 0.009 | CB76: 0.0091 | CC76: 0.009 | CD76: 0.009 | CE76: 0.009 | CF76: 0.0091
B77: 92 | C77: -0.0098 | D77: -0.0097 | E77: -0.0096 | F77: -0.0094 | G77: -0.0092 | H77: -0.0088 | I77: -0.0083 | J77: -0.0076 | K77: -0.0067 | L77: -0.0055 | M77: -0.0041 | N77: -0.0025 | O77: -0.0007 | P77: 0.0012 | Q77: 0.0031 | R77: 0.005 | S77: 0.0069 | T77: 0.0086 | U77: 0.0101 | V77: 0.0114 | W77: 0.0124 | X77: 0.0131 | Y77: 0.0135 | Z77: 0.0136 | AA77: 0.0134 | AB77: 0.0129 | AC77: 0.0121 | AD77: 0.011 | AE77: 0.0098 | AF77: 0.0083 | AG77: 0.0067 | AH77: 0.005 | AI77: 0.0033 | AJ77: 0.0017 | AK77: 0.0001 | AL77: -0.0013 | AM77: -0.0026 | AN77: -0.0037 | AO77: -0.0046 | AP77: -0.0053 | AQ77: -0.0058 | AR77: -0.0061 | AS77: -0.0061 | AT77: -0.0059 | AU77: -0.0053 | AV77: -0.0045 | AW77: -0.0034 | AX77: -0.002 | AY77: -0.0005 | AZ77: 0.0012 | BA77: 0.003 | BB77: 0.0048 | BC77: 0.0065 | BD77: 0.0079 | BE77: 0.0092 | BF77: 0.0101 | BG77: 0.0107 | BH77: 0.011 | BI77: 0.0111 | BJ77: 0.0109 | BK77: 0.0107 | BL77: 0.0103 | BM77: 0.0102 | BN77: 0.0099 | BO77: 0.0097 | BP77: 0.0095 | BQ77: 0.0093 | BR77: 0.0091 | BS77: 0.009 | BT77: 0.0089 | BU77: 0.0088 | BV77: 0.0087 | BW77: 0.0087 | BX77: 0.0087 | BY77: 0.0087 | BZ77: 0.0087 | CA77: 0.0087 | CB77: 0.0088 | CC77: 0.0089 | CD77: 0.0089 | CE77: 0.0089 | CF77: 0.009
B78: 93 | C78: -0.0127 | D78: -0.0122 | E78: -0.0117 | F78: -0.0112 | G78: -0.0106 | H78: -0.0099 | I78: -0.0091 | J78: -0.0081 | K78: -0.0069 | L78: -0.0056 | M78: -0.0041 | N78: -0.0024 | O78: -0.0006 | P78: 0.0013 | Q78: 0.0033 | R78: 0.0052 | S78: 0.007 | T78: 0.0086 | U78: 0.0101 | V78: 0.0114 | W78: 0.0123 | X78: 0.013 | Y78: 0.0134 | Z78: 0.0135 | AA78: 0.0132 | AB78: 0.0127 | AC78: 0.0119 | AD78: 0.0109 | AE78: 0.0097 | AF78: 0.0082 | AG78: 0.0066 | AH78: 0.0049 | AI78: 0.0032 | AJ78: 0.0015 | AK78: -0.0002 | AL78: -0.0017 | AM78: -0.0031 | AN78: -0.0043 | AO78: -0.0053 | AP78: -0.0061 | AQ78: -0.0067 | AR78: -0.0071 | AS78: -0.0072 | AT78: -0.007 | AU78: -0.0066 | AV78: -0.0058 | AW78: -0.0048 | AX78: -0.0036 | AY78: -0.0021 | AZ78: -0.0005 | BA78: 0.0012 | BB78: 0.0029 | BC78: 0.0046 | BD78: 0.0061 | BE78: 0.0074 | BF78: 0.0085 | BG78: 0.0094 | BH78: 0.01 | BI78: 0.0104 | BJ78: 0.0106 | BK78: 0.0107 | BL78: 0.0107 | BM78: 0.0105 | BN78: 0.0102 | BO78: 0.0099 | BP78: 0.0096 | BQ78: 0.0093 | BR78: 0.009 | BS78: 0.0088 | BT78: 0.0086 | BU78: 0.0085 | BV78: 0.0085 | BW78: 0.0084 | BX78: 0.0084 | BY78: 0.0084 | BZ78: 0.0084 | CA78: 0.0085 | CB78: 0.0085 | CC78: 0.0086 | CD78: 0.0087 | CE78: 0.0087 | CF78: 0.0088
B79: 94 | C79: -0.0158 | D79: -0.0149 | E79: -0.0139 | F79: -0.013 | G79: -0.012 | H79: -0.0109 | I79: -0.0098 | J79: -0.0085 | K79: -0.0071 | L79: -0.0056 | M79: -0.004 | N79: -0.0022 | O79: -0.0004 | P79: 0.0015 | Q79: 0.0034 | R79: 0.0053 | S79: 0.007 | T79: 0.0086 | U79: 0.01 | V79: 0.0112 | W79: 0.0121 | X79: 0.0128 | Y79: 0.0132 | Z79: 0.0132 | AA79: 0.013 | AB79: 0.0125 | AC79: 0.0118 | AD79: 0.0108 | AE79: 0.0095 | AF79: 0.0081 | AG79: 0.0065 | AH79: 0.0048 | AI79: 0.0031 | AJ79: 0.0013 | AK79: -0.0004 | AL79: -0.002 | AM79: -0.0035 | AN79: -0.0048 | AO79: -0.0059 | AP79: -0.0068 | AQ79: -0.0075 | AR79: -0.008 | AS79: -0.0082 | AT79: -0.0081 | AU79: -0.0078 | AV79: -0.0071 | AW79: -0.0063 | AX79: -0.0051 | AY79: -0.0038 | AZ79: -0.0023 | BA79: -0.0007 | BB79: 0.0009 | BC79: 0.0026 | BD79: 0.0041 | BE79: 0.0056 | BF79: 0.0069 | BG79: 0.008 | BH79: 0.0089 | BI79: 0.0096 | BJ79: 0.0102 | BK79: 0.0108 | BL79: 0.0112 | BM79: 0.0109 | BN79: 0.0105 | BO79: 0.0101 | BP79: 0.0097 | BQ79: 0.0093 | BR79: 0.009 | BS79: 0.0087 | BT79: 0.0084 | BU79: 0.0083 | BV79: 0.0082 | BW79: 0.0082 | BX79: 0.0081 | BY79: 0.0081 | BZ79: 0.0081 | CA79: 0.0082 | CB79: 0.0082 | CC79: 0.0083 | CD79: 0.0084 | CE79: 0.0086 | CF79: 0.0087
B80: 95 | C80: -0.0191 | D80: -0.0177 | E80: -0.0163 | F80: -0.0149 | G80: -0.0135 | H80: -0.012 | I80: -0.0105 | J80: -0.0089 | K80: -0.0073 | L80: -0.0056 | M80: -0.0038 | N80: -0.002 | O80: -0.0001 | P80: 0.0017 | Q80: 0.0036 | R80: 0.0053 | S80: 0.007 | T80: 0.0085 | U80: 0.0099 | V80: 0.011 | W80: 0.0119 | X80: 0.0125 | Y80: 0.0129 | Z80: 0.013 | AA80: 0.0128 | AB80: 0.0123 | AC80: 0.0116 | AD80: 0.0106 | AE80: 0.0093 | AF80: 0.0079 | AG80: 0.0064 | AH80: 0.0047 | AI80: 0.0029 | AJ80: 0.0012 | AK80: -0.0006 | AL80: -0.0022 | AM80: -0.0038 | AN80: -0.0052 | AO80: -0.0064 | AP80: -0.0074 | AQ80: -0.0082 | AR80: -0.0087 | AS80: -0.0091 | AT80: -0.0091 | AU80: -0.0089 | AV80: -0.0084 | AW80: -0.0077 | AX80: -0.0067 | AY80: -0.0056 | AZ80: -0.0042 | BA80: -0.0027 | BB80: -0.0011 | BC80: 0.0005 | BD80: 0.0021 | BE80: 0.0037 | BF80: 0.0051 | BG80: 0.0065 | BH80: 0.0077 | BI80: 0.0089 | BJ80: 0.0099 | BK80: 0.0109 | BL80: 0.0118 | BM80: 0.0114 | BN80: 0.011 | BO80: 0.0104 | BP80: 0.0099 | BQ80: 0.0094 | BR80: 0.009 | BS80: 0.0086 | BT80: 0.0083 | BU80: 0.008 | BV80: 0.0079 | BW80: 0.0079 | BX80: 0.0079 | BY80: 0.0079 | BZ80: 0.0079 | CA80: 0.0079 | CB80: 0.008 | CC80: 0.008 | CD80: 0.0082 | CE80: 0.0083 | CF80: 0.0085
B81: 96 | C81: -0.0181 | D81: -0.0168 | E81: -0.0155 | F81: -0.0141 | G81: -0.0128 | H81: -0.0114 | I81: -0.01 | J81: -0.0085 | K81: -0.0069 | L81: -0.0053 | M81: -0.0036 | N81: -0.0019 | O81: -0.0001 | P81: 0.0016 | Q81: 0.0034 | R81: 0.0051 | S81: 0.0067 | T81: 0.0081 | U81: 0.0094 | V81: 0.0105 | W81: 0.0113 | X81: 0.0119 | Y81: 0.0123 | Z81: 0.0123 | AA81: 0.0121 | AB81: 0.0117 | AC81: 0.011 | AD81: 0.01 | AE81: 0.0089 | AF81: 0.0075 | AG81: 0.006 | AH81: 0.0044 | AI81: 0.0028 | AJ81: 0.0011 | AK81: -0.0006 | AL81: -0.0021 | AM81: -0.0036 | AN81: -0.0049 | AO81: -0.006 | AP81: -0.007 | AQ81: -0.0078 | AR81: -0.0083 | AS81: -0.0086 | AT81: -0.0087 | AU81: -0.0085 | AV81: -0.008 | AW81: -0.0073 | AX81: -0.0064 | AY81: -0.0053 | AZ81: -0.004 | BA81: -0.0026 | BB81: -0.0011 | BC81: 0.0005 | BD81: 0.002 | BE81: 0.0035 | BF81: 0.0049 | BG81: 0.0062 | BH81: 0.0074 | BI81: 0.0084 | BJ81: 0.0094 | BK81: 0.0103 | BL81: 0.0112 | BM81: 0.0109 | BN81: 0.0104 | BO81: 0.0099 | BP81: 0.0094 | BQ81: 0.0089 | BR81: 0.0085 | BS81: 0.0081 | BT81: 0.0078 | BU81: 0.0076 | BV81: 0.0075 | BW81: 0.0075 | BX81: 0.0075 | BY81: 0.0075 | BZ81: 0.0075 | CA81: 0.0075 | CB81: 0.0076 | CC81: 0.0076 | CD81: 0.0077 | CE81: 0.0079 | CF81: 0.0081
B82: 97 | C82: -0.0172 | D82: -0.0159 | E82: -0.0147 | F82: -0.0134 | G82: -0.0121 | H82: -0.0108 | I82: -0.0094 | J82: -0.008 | K82: -0.0066 | L82: -0.005 | M82: -0.0034 | N82: -0.0018 | O82: -0.0001 | P82: 0.0016 | Q82: 0.0032 | R82: 0.0048 | S82: 0.0063 | T82: 0.0077 | U82: 0.0089 | V82: 0.0099 | W82: 0.0107 | X82: 0.0113 | Y82: 0.0116 | Z82: 0.0117 | AA82: 0.0115 | AB82: 0.0111 | AC82: 0.0104 | AD82: 0.0095 | AE82: 0.0084 | AF82: 0.0071 | AG82: 0.0057 | AH82: 0.0042 | AI82: 0.0026 | AJ82: 0.001 | AK82: -0.0005 | AL82: -0.002 | AM82: -0.0034 | AN82: -0.0046 | AO82: -0.0057 | AP82: -0.0066 | AQ82: -0.0074 | AR82: -0.0079 | AS82: -0.0081 | AT82: -0.0082 | AU82: -0.008 | AV82: -0.0076 | AW82: -0.0069 | AX82: -0.0061 | AY82: -0.005 | AZ82: -0.0038 | BA82: -0.0024 | BB82: -0.001 | BC82: 0.0004 | BD82: 0.0019 | BE82: 0.0033 | BF82: 0.0046 | BG82: 0.0058 | BH82: 0.007 | BI82: 0.008 | BJ82: 0.0089 | BK82: 0.0098 | BL82: 0.0106 | BM82: 0.0103 | BN82: 0.0099 | BO82: 0.0094 | BP82: 0.0089 | BQ82: 0.0085 | BR82: 0.0081 | BS82: 0.0077 | BT82: 0.0074 | BU82: 0.0072 | BV82: 0.0071 | BW82: 0.0071 | BX82: 0.0071 | BY82: 0.0071 | BZ82: 0.0071 | CA82: 0.0071 | CB82: 0.0072 | CC82: 0.0072 | CD82: 0.0073 | CE82: 0.0075 | CF82: 0.0077
B83: 98 | C83: -0.0162 | D83: -0.015 | E83: -0.0138 | F83: -0.0127 | G83: -0.0114 | H83: -0.0102 | I83: -0.0089 | J83: -0.0076 | K83: -0.0062 | L83: -0.0047 | M83: -0.0032 | N83: -0.0017 | O83: -0.0001 | P83: 0.0015 | Q83: 0.003 | R83: 0.0045 | S83: 0.006 | T83: 0.0072 | U83: 0.0084 | V83: 0.0094 | W83: 0.0101 | X83: 0.0107 | Y83: 0.011 | Z83: 0.011 | AA83: 0.0109 | AB83: 0.0105 | AC83: 0.0098 | AD83: 0.009 | AE83: 0.0079 | AF83: 0.0067 | AG83: 0.0054 | AH83: 0.004 | AI83: 0.0025 | AJ83: 0.001 | AK83: -0.0005 | AL83: -0.0019 | AM83: -0.0032 | AN83: -0.0044 | AO83: -0.0054 | AP83: -0.0063 | AQ83: -0.0069 | AR83: -0.0074 | AS83: -0.0077 | AT83: -0.0077 | AU83: -0.0076 | AV83: -0.0072 | AW83: -0.0065 | AX83: -0.0057 | AY83: -0.0047 | AZ83: -0.0036 | BA83: -0.0023 | BB83: -0.001 | BC83: 0.0004 | BD83: 0.0018 | BE83: 0.0031 | BF83: 0.0044 | BG83: 0.0055 | BH83: 0.0066 | BI83: 0.0075 | BJ83: 0.0084 | BK83: 0.0093 | BL83: 0.0101 | BM83: 0.0097 | BN83: 0.0093 | BO83: 0.0089 | BP83: 0.0084 | BQ83: 0.008 | BR83: 0.0076 | BS83: 0.0073 | BT83: 0.007 | BU83: 0.0068 | BV83: 0.0067 | BW83: 0.0067 | BX83: 0.0067 | BY83: 0.0067 | BZ83: 0.0067 | CA83: 0.0067 | CB83: 0.0068 | CC83: 0.0068 | CD83: 0.0069 | CE83: 0.0071 | CF83: 0.0072
B84: 99 | C84: -0.0153 | D84: -0.0141 | E84: -0.013 | F84: -0.0119 | G84: -0.0108 | H84: -0.0096 | I84: -0.0084 | J84: -0.0071 | K84: -0.0058 | L84: -0.0045 | M84: -0.003 | N84: -0.0016 | O84: -0.0001 | P84: 0.0014 | Q84: 0.0029 | R84: 0.0043 | S84: 0.0056 | T84: 0.0068 | U84: 0.0079 | V84: 0.0088 | W84: 0.0095 | X84: 0.01 | Y84: 0.0103 | Z84: 0.0104 | AA84: 0.0102 | AB84: 0.0098 | AC84: 0.0092 | AD84: 0.0085 | AE84: 0.0075 | AF84: 0.0063 | AG84: 0.0051 | AH84: 0.0037 | AI84: 0.0023 | AJ84: 0.0009 | AK84: -0.0005 | AL84: -0.0018 | AM84: -0.003 | AN84: -0.0041 | AO84: -0.0051 | AP84: -0.0059 | AQ84: -0.0065 | AR84: -0.007 | AS84: -0.0072 | AT84: -0.0073 | AU84: -0.0071 | AV84: -0.0067 | AW84: -0.0062 | AX84: -0.0054 | AY84: -0.0045 | AZ84: -0.0034 | BA84: -0.0022 | BB84: -0.0009 | BC84: 0.0004 | BD84: 0.0017 | BE84: 0.0029 | BF84: 0.0041 | BG84: 0.0052 | BH84: 0.0062 | BI84: 0.0071 | BJ84: 0.0079 | BK84: 0.0087 | BL84: 0.0095 | BM84: 0.0091 | BN84: 0.0088 | BO84: 0.0084 | BP84: 0.0079 | BQ84: 0.0075 | BR84: 0.0072 | BS84: 0.0069 | BT84: 0.0066 | BU84: 0.0064 | BV84: 0.0063 | BW84: 0.0063 | BX84: 0.0063 | BY84: 0.0063 | BZ84: 0.0063 | CA84: 0.0063 | CB84: 0.0064 | CC84: 0.0064 | CD84: 0.0065 | CE84: 0.0066 | CF84: 0.0068
B85: 100 | C85: -0.0143 | D85: -0.0133 | E85: -0.0122 | F85: -0.0112 | G85: -0.0101 | H85: -0.009 | I85: -0.0079 | J85: -0.0067 | K85: -0.0055 | L85: -0.0042 | M85: -0.0029 | N85: -0.0015 | O85: -0.0001 | P85: 0.0013 | Q85: 0.0027 | R85: 0.004 | S85: 0.0053 | T85: 0.0064 | U85: 0.0074 | V85: 0.0083 | W85: 0.0089 | X85: 0.0094 | Y85: 0.0097 | Z85: 0.0097 | AA85: 0.0096 | AB85: 0.0092 | AC85: 0.0087 | AD85: 0.0079 | AE85: 0.007 | AF85: 0.006 | AG85: 0.0048 | AH85: 0.0035 | AI85: 0.0022 | AJ85: 0.0009 | AK85: -0.0004 | AL85: -0.0017 | AM85: -0.0028 | AN85: -0.0039 | AO85: -0.0048 | AP85: -0.0055 | AQ85: -0.0061 | AR85: -0.0066 | AS85: -0.0068 | AT85: -0.0068 | AU85: -0.0067 | AV85: -0.0063 | AW85: -0.0058 | AX85: -0.0051 | AY85: -0.0042 | AZ85: -0.0032 | BA85: -0.002 | BB85: -0.0009 | BC85: 0.0004 | BD85: 0.0016 | BE85: 0.0027 | BF85: 0.0038 | BG85: 0.0049 | BH85: 0.0058 | BI85: 0.0067 | BJ85: 0.0074 | BK85: 0.0082 | BL85: 0.0089 | BM85: 0.0086 | BN85: 0.0082 | BO85: 0.0078 | BP85: 0.0074 | BQ85: 0.0071 | BR85: 0.0067 | BS85: 0.0064 | BT85: 0.0062 | BU85: 0.006 | BV85: 0.0059 | BW85: 0.0059 | BX85: 0.0059 | BY85: 0.0059 | BZ85: 0.0059 | CA85: 0.0059 | CB85: 0.006 | CC85: 0.006 | CD85: 0.0061 | CE85: 0.0062 | CF85: 0.0064
B86: 101 | C86: -0.0134 | D86: -0.0124 | E86: -0.0114 | F86: -0.0104 | G86: -0.0094 | H86: -0.0084 | I86: -0.0073 | J86: -0.0062 | K86: -0.0051 | L86: -0.0039 | M86: -0.0027 | N86: -0.0014 | O86: -0.0001 | P86: 0.0012 | Q86: 0.0025 | R86: 0.0037 | S86: 0.0049 | T86: 0.006 | U86: 0.0069 | V86: 0.0077 | W86: 0.0083 | X86: 0.0088 | Y86: 0.009 | Z86: 0.0091 | AA86: 0.009 | AB86: 0.0086 | AC86: 0.0081 | AD86: 0.0074 | AE86: 0.0065 | AF86: 0.0056 | AG86: 0.0045 | AH86: 0.0033 | AI86: 0.002 | AJ86: 0.0008 | AK86: -0.0004 | AL86: -0.0016 | AM86: -0.0026 | AN86: -0.0036 | AO86: -0.0045 | AP86: -0.0052 | AQ86: -0.0057 | AR86: -0.0061 | AS86: -0.0063 | AT86: -0.0064 | AU86: -0.0062 | AV86: -0.0059 | AW86: -0.0054 | AX86: -0.0047 | AY86: -0.0039 | AZ86: -0.0029 | BA86: -0.0019 | BB86: -0.0008 | BC86: 0.0003 | BD86: 0.0015 | BE86: 0.0026 | BF86: 0.0036 | BG86: 0.0045 | BH86: 0.0054 | BI86: 0.0062 | BJ86: 0.0069 | BK86: 0.0076 | BL86: 0.0083 | BM86: 0.008 | BN86: 0.0077 | BO86: 0.0073 | BP86: 0.0069 | BQ86: 0.0066 | BR86: 0.0063 | BS86: 0.006 | BT86: 0.0058 | BU86: 0.0056 | BV86: 0.0056 | BW86: 0.0055 | BX86: 0.0055 | BY86: 0.0055 | BZ86: 0.0055 | CA86: 0.0055 | CB86: 0.0056 | CC86: 0.0056 | CD86: 0.0057 | CE86: 0.0058 | CF86: 0.006
B87: 102 | C87: -0.0124 | D87: -0.0115 | E87: -0.0106 | F87: -0.0097 | G87: -0.0087 | H87: -0.0078 | I87: -0.0068 | J87: -0.0058 | K87: -0.0047 | L87: -0.0036 | M87: -0.0025 | N87: -0.0013 | O87: -0.0001 | P87: 0.0011 | Q87: 0.0023 | R87: 0.0035 | S87: 0.0046 | T87: 0.0055 | U87: 0.0064 | V87: 0.0072 | W87: 0.0077 | X87: 0.0082 | Y87: 0.0084 | Z87: 0.0084 | AA87: 0.0083 | AB87: 0.008 | AC87: 0.0075 | AD87: 0.0069 | AE87: 0.0061 | AF87: 0.0052 | AG87: 0.0041 | AH87: 0.003 | AI87: 0.0019 | AJ87: 0.0008 | AK87: -0.0004 | AL87: -0.0015 | AM87: -0.0025 | AN87: -0.0034 | AO87: -0.0041 | AP87: -0.0048 | AQ87: -0.0053 | AR87: -0.0057 | AS87: -0.0059 | AT87: -0.0059 | AU87: -0.0058 | AV87: -0.0055 | AW87: -0.005 | AX87: -0.0044 | AY87: -0.0036 | AZ87: -0.0027 | BA87: -0.0018 | BB87: -0.0007 | BC87: 0.0003 | BD87: 0.0014 | BE87: 0.0024 | BF87: 0.0033 | BG87: 0.0042 | BH87: 0.005 | BI87: 0.0058 | BJ87: 0.0064 | BK87: 0.0071 | BL87: 0.0077 | BM87: 0.0074 | BN87: 0.0071 | BO87: 0.0068 | BP87: 0.0065 | BQ87: 0.0061 | BR87: 0.0058 | BS87: 0.0056 | BT87: 0.0054 | BU87: 0.0052 | BV87: 0.0052 | BW87: 0.0051 | BX87: 0.0051 | BY87: 0.0051 | BZ87: 0.0051 | CA87: 0.0051 | CB87: 0.0052 | CC87: 0.0052 | CD87: 0.0053 | CE87: 0.0054 | CF87: 0.0055
B88: 103 | C88: -0.0114 | D88: -0.0106 | E88: -0.0098 | F88: -0.0089 | G88: -0.0081 | H88: -0.0072 | I88: -0.0063 | J88: -0.0054 | K88: -0.0044 | L88: -0.0033 | M88: -0.0023 | N88: -0.0012 | O88: -0.0001 | P88: 0.001 | Q88: 0.0021 | R88: 0.0032 | S88: 0.0042 | T88: 0.0051 | U88: 0.0059 | V88: 0.0066 | W88: 0.0071 | X88: 0.0075 | Y88: 0.0077 | Z88: 0.0078 | AA88: 0.0077 | AB88: 0.0074 | AC88: 0.0069 | AD88: 0.0063 | AE88: 0.0056 | AF88: 0.0048 | AG88: 0.0038 | AH88: 0.0028 | AI88: 0.0018 | AJ88: 0.0007 | AK88: -0.0003 | AL88: -0.0013 | AM88: -0.0023 | AN88: -0.0031 | AO88: -0.0038 | AP88: -0.0044 | AQ88: -0.0049 | AR88: -0.0052 | AS88: -0.0054 | AT88: -0.0055 | AU88: -0.0053 | AV88: -0.0051 | AW88: -0.0046 | AX88: -0.004 | AY88: -0.0033 | AZ88: -0.0025 | BA88: -0.0016 | BB88: -0.0007 | BC88: 0.0003 | BD88: 0.0013 | BE88: 0.0022 | BF88: 0.0031 | BG88: 0.0039 | BH88: 0.0046 | BI88: 0.0053 | BJ88: 0.0059 | BK88: 0.0065 | BL88: 0.0071 | BM88: 0.0069 | BN88: 0.0066 | BO88: 0.0063 | BP88: 0.006 | BQ88: 0.0057 | BR88: 0.0054 | BS88: 0.0051 | BT88: 0.005 | BU88: 0.0048 | BV88: 0.0048 | BW88: 0.0047 | BX88: 0.0047 | BY88: 0.0047 | BZ88: 0.0047 | CA88: 0.0047 | CB88: 0.0048 | CC88: 0.0048 | CD88: 0.0049 | CE88: 0.005 | CF88: 0.0051
B89: 104 | C89: -0.0105 | D89: -0.0097 | E89: -0.009 | F89: -0.0082 | G89: -0.0074 | H89: -0.0066 | I89: -0.0058 | J89: -0.0049 | K89: -0.004 | L89: -0.0031 | M89: -0.0021 | N89: -0.0011 | O89: -0.0001 | P89: 0.001 | Q89: 0.002 | R89: 0.0029 | S89: 0.0039 | T89: 0.0047 | U89: 0.0054 | V89: 0.0061 | W89: 0.0065 | X89: 0.0069 | Y89: 0.0071 | Z89: 0.0071 | AA89: 0.007 | AB89: 0.0068 | AC89: 0.0064 | AD89: 0.0058 | AE89: 0.0051 | AF89: 0.0044 | AG89: 0.0035 | AH89: 0.0026 | AI89: 0.0016 | AJ89: 0.0006 | AK89: -0.0003 | AL89: -0.0012 | AM89: -0.0021 | AN89: -0.0028 | AO89: -0.0035 | AP89: -0.0041 | AQ89: -0.0045 | AR89: -0.0048 | AS89: -0.005 | AT89: -0.005 | AU89: -0.0049 | AV89: -0.0046 | AW89: -0.0042 | AX89: -0.0037 | AY89: -0.0031 | AZ89: -0.0023 | BA89: -0.0015 | BB89: -0.0006 | BC89: 0.0003 | BD89: 0.0012 | BE89: 0.002 | BF89: 0.0028 | BG89: 0.0036 | BH89: 0.0043 | BI89: 0.0049 | BJ89: 0.0055 | BK89: 0.006 | BL89: 0.0065 | BM89: 0.0063 | BN89: 0.006 | BO89: 0.0057 | BP89: 0.0055 | BQ89: 0.0052 | BR89: 0.0049 | BS89: 0.0047 | BT89: 0.0045 | BU89: 0.0044 | BV89: 0.0044 | BW89: 0.0043 | BX89: 0.0043 | BY89: 0.0043 | BZ89: 0.0043 | CA89: 0.0043 | CB89: 0.0044 | CC89: 0.0044 | CD89: 0.0045 | CE89: 0.0046 | CF89: 0.0047
B90: 105 | C90: -0.0095 | D90: -0.0088 | E90: -0.0081 | F90: -0.0074 | G90: -0.0067 | H90: -0.006 | I90: -0.0052 | J90: -0.0045 | K90: -0.0036 | L90: -0.0028 | M90: -0.0019 | N90: -0.001 | O90: -0.0001 | P90: 0.0009 | Q90: 0.0018 | R90: 0.0027 | S90: 0.0035 | T90: 0.0043 | U90: 0.0049 | V90: 0.0055 | W90: 0.006 | X90: 0.0063 | Y90: 0.0065 | Z90: 0.0065 | AA90: 0.0064 | AB90: 0.0062 | AC90: 0.0058 | AD90: 0.0053 | AE90: 0.0047 | AF90: 0.004 | AG90: 0.0032 | AH90: 0.0023 | AI90: 0.0015 | AJ90: 0.0006 | AK90: -0.0003 | AL90: -0.0011 | AM90: -0.0019 | AN90: -0.0026 | AO90: -0.0032 | AP90: -0.0037 | AQ90: -0.0041 | AR90: -0.0044 | AS90: -0.0045 | AT90: -0.0046 | AU90: -0.0045 | AV90: -0.0042 | AW90: -0.0039 | AX90: -0.0034 | AY90: -0.0028 | AZ90: -0.0021 | BA90: -0.0014 | BB90: -0.0006 | BC90: 0.0002 | BD90: 0.001 | BE90: 0.0018 | BF90: 0.0026 | BG90: 0.0032 | BH90: 0.0039 | BI90: 0.0044 | BJ90: 0.005 | BK90: 0.0054 | BL90: 0.0059 | BM90: 0.0057 | BN90: 0.0055 | BO90: 0.0052 | BP90: 0.005 | BQ90: 0.0047 | BR90: 0.0045 | BS90: 0.0043 | BT90: 0.0041 | BU90: 0.004 | BV90: 0.004 | BW90: 0.0039 | BX90: 0.0039 | BY90: 0.0039 | BZ90: 0.0039 | CA90: 0.0039 | CB90: 0.004 | CC90: 0.004 | CD90: 0.0041 | CE90: 0.0042 | CF90: 0.0043
B91: 106 | C91: -0.0086 | D91: -0.008 | E91: -0.0073 | F91: -0.0067 | G91: -0.0061 | H91: -0.0054 | I91: -0.0047 | J91: -0.004 | K91: -0.0033 | L91: -0.0025 | M91: -0.0017 | N91: -0.0009 | O91: -0.0001 | P91: 0.0008 | Q91: 0.0016 | R91: 0.0024 | S91: 0.0032 | T91: 0.0038 | U91: 0.0044 | V91: 0.005 | W91: 0.0054 | X91: 0.0056 | Y91: 0.0058 | Z91: 0.0058 | AA91: 0.0058 | AB91: 0.0055 | AC91: 0.0052 | AD91: 0.0048 | AE91: 0.0042 | AF91: 0.0036 | AG91: 0.0029 | AH91: 0.0021 | AI91: 0.0013 | AJ91: 0.0005 | AK91: -0.0003 | AL91: -0.001 | AM91: -0.0017 | AN91: -0.0023 | AO91: -0.0029 | AP91: -0.0033 | AQ91: -0.0037 | AR91: -0.0039 | AS91: -0.0041 | AT91: -0.0041 | AU91: -0.004 | AV91: -0.0038 | AW91: -0.0035 | AX91: -0.003 | AY91: -0.0025 | AZ91: -0.0019 | BA91: -0.0012 | BB91: -0.0005 | BC91: 0.0002 | BD91: 0.0009 | BE91: 0.0016 | BF91: 0.0023 | BG91: 0.0029 | BH91: 0.0035 | BI91: 0.004 | BJ91: 0.0045 | BK91: 0.0049 | BL91: 0.0053 | BM91: 0.0051 | BN91: 0.0049 | BO91: 0.0047 | BP91: 0.0045 | BQ91: 0.0042 | BR91: 0.004 | BS91: 0.0039 | BT91: 0.0037 | BU91: 0.0036 | BV91: 0.0036 | BW91: 0.0036 | BX91: 0.0035 | BY91: 0.0035 | BZ91: 0.0035 | CA91: 0.0036 | CB91: 0.0036 | CC91: 0.0036 | CD91: 0.0037 | CE91: 0.0037 | CF91: 0.0038
B92: 107 | C92: -0.0076 | D92: -0.0071 | E92: -0.0065 | F92: -0.006 | G92: -0.0054 | H92: -0.0048 | I92: -0.0042 | J92: -0.0036 | K92: -0.0029 | L92: -0.0022 | M92: -0.0015 | N92: -0.0008 | O92: -0.0001 | P92: 0.0007 | Q92: 0.0014 | R92: 0.0021 | S92: 0.0028 | T92: 0.0034 | U92: 0.004 | V92: 0.0044 | W92: 0.0048 | X92: 0.005 | Y92: 0.0052 | Z92: 0.0052 | AA92: 0.0051 | AB92: 0.0049 | AC92: 0.0046 | AD92: 0.0042 | AE92: 0.0037 | AF92: 0.0032 | AG92: 0.0025 | AH92: 0.0019 | AI92: 0.0012 | AJ92: 0.0005 | AK92: -0.0002 | AL92: -0.0009 | AM92: -0.0015 | AN92: -0.0021 | AO92: -0.0025 | AP92: -0.0029 | AQ92: -0.0033 | AR92: -0.0035 | AS92: -0.0036 | AT92: -0.0036 | AU92: -0.0036 | AV92: -0.0034 | AW92: -0.0031 | AX92: -0.0027 | AY92: -0.0022 | AZ92: -0.0017 | BA92: -0.0011 | BB92: -0.0005 | BC92: 0.0002 | BD92: 0.0008 | BE92: 0.0015 | BF92: 0.0021 | BG92: 0.0026 | BH92: 0.0031 | BI92: 0.0035 | BJ92: 0.004 | BK92: 0.0044 | BL92: 0.0047 | BM92: 0.0046 | BN92: 0.0044 | BO92: 0.0042 | BP92: 0.004 | BQ92: 0.0038 | BR92: 0.0036 | BS92: 0.0034 | BT92: 0.0033 | BU92: 0.0032 | BV92: 0.0032 | BW92: 0.0032 | BX92: 0.0031 | BY92: 0.0031 | BZ92: 0.0031 | CA92: 0.0032 | CB92: 0.0032 | CC92: 0.0032 | CD92: 0.0033 | CE92: 0.0033 | CF92: 0.0034
B93: 108 | C93: -0.0067 | D93: -0.0062 | E93: -0.0057 | F93: -0.0052 | G93: -0.0047 | H93: -0.0042 | I93: -0.0037 | J93: -0.0031 | K93: -0.0025 | L93: -0.002 | M93: -0.0013 | N93: -0.0007 | O93: 0 | P93: 0.0006 | Q93: 0.0012 | R93: 0.0019 | S93: 0.0025 | T93: 0.003 | U93: 0.0035 | V93: 0.0039 | W93: 0.0042 | X93: 0.0044 | Y93: 0.0045 | Z93: 0.0045 | AA93: 0.0045 | AB93: 0.0043 | AC93: 0.004 | AD93: 0.0037 | AE93: 0.0033 | AF93: 0.0028 | AG93: 0.0022 | AH93: 0.0016 | AI93: 0.001 | AJ93: 0.0004 | AK93: -0.0002 | AL93: -0.0008 | AM93: -0.0013 | AN93: -0.0018 | AO93: -0.0022 | AP93: -0.0026 | AQ93: -0.0029 | AR93: -0.0031 | AS93: -0.0032 | AT93: -0.0032 | AU93: -0.0031 | AV93: -0.003 | AW93: -0.0027 | AX93: -0.0024 | AY93: -0.0019 | AZ93: -0.0015 | BA93: -0.001 | BB93: -0.0004 | BC93: 0.0002 | BD93: 0.0007 | BE93: 0.0013 | BF93: 0.0018 | BG93: 0.0023 | BH93: 0.0027 | BI93: 0.0031 | BJ93: 0.0035 | BK93: 0.0038 | BL93: 0.0041 | BM93: 0.004 | BN93: 0.0038 | BO93: 0.0037 | BP93: 0.0035 | BQ93: 0.0033 | BR93: 0.0031 | BS93: 0.003 | BT93: 0.0029 | BU93: 0.0028 | BV93: 0.0028 | BW93: 0.0028 | BX93: 0.0028 | BY93: 0.0028 | BZ93: 0.0028 | CA93: 0.0028 | CB93: 0.0028 | CC93: 0.0028 | CD93: 0.0029 | CE93: 0.0029 | CF93: 0.003
B94: 109 | C94: -0.0057 | D94: -0.0053 | E94: -0.0049 | F94: -0.0045 | G94: -0.004 | H94: -0.0036 | I94: -0.0031 | J94: -0.0027 | K94: -0.0022 | L94: -0.0017 | M94: -0.0011 | N94: -0.0006 | O94: 0 | P94: 0.0005 | Q94: 0.0011 | R94: 0.0016 | S94: 0.0021 | T94: 0.0026 | U94: 0.003 | V94: 0.0033 | W94: 0.0036 | X94: 0.0038 | Y94: 0.0039 | Z94: 0.0039 | AA94: 0.0038 | AB94: 0.0037 | AC94: 0.0035 | AD94: 0.0032 | AE94: 0.0028 | AF94: 0.0024 | AG94: 0.0019 | AH94: 0.0014 | AI94: 0.0009 | AJ94: 0.0003 | AK94: -0.0002 | AL94: -0.0007 | AM94: -0.0011 | AN94: -0.0015 | AO94: -0.0019 | AP94: -0.0022 | AQ94: -0.0025 | AR94: -0.0026 | AS94: -0.0027 | AT94: -0.0027 | AU94: -0.0027 | AV94: -0.0025 | AW94: -0.0023 | AX94: -0.002 | AY94: -0.0017 | AZ94: -0.0013 | BA94: -0.0008 | BB94: -0.0003 | BC94: 0.0001 | BD94: 0.0006 | BE94: 0.0011 | BF94: 0.0015 | BG94: 0.0019 | BH94: 0.0023 | BI94: 0.0027 | BJ94: 0.003 | BK94: 0.0033 | BL94: 0.0035 | BM94: 0.0034 | BN94: 0.0033 | BO94: 0.0031 | BP94: 0.003 | BQ94: 0.0028 | BR94: 0.0027 | BS94: 0.0026 | BT94: 0.0025 | BU94: 0.0024 | BV94: 0.0024 | BW94: 0.0024 | BX94: 0.0024 | BY94: 0.0024 | BZ94: 0.0024 | CA94: 0.0024 | CB94: 0.0024 | CC94: 0.0024 | CD94: 0.0024 | CE94: 0.0025 | CF94: 0.0026
B95: 110 | C95: -0.0048 | D95: -0.0044 | E95: -0.0041 | F95: -0.0037 | G95: -0.0034 | H95: -0.003 | I95: -0.0026 | J95: -0.0022 | K95: -0.0018 | L95: -0.0014 | M95: -0.001 | N95: -0.0005 | O95: 0 | P95: 0.0004 | Q95: 0.0009 | R95: 0.0013 | S95: 0.0018 | T95: 0.0021 | U95: 0.0025 | V95: 0.0028 | W95: 0.003 | X95: 0.0031 | Y95: 0.0032 | Z95: 0.0032 | AA95: 0.0032 | AB95: 0.0031 | AC95: 0.0029 | AD95: 0.0026 | AE95: 0.0023 | AF95: 0.002 | AG95: 0.0016 | AH95: 0.0012 | AI95: 0.0007 | AJ95: 0.0003 | AK95: -0.0001 | AL95: -0.0006 | AM95: -0.0009 | AN95: -0.0013 | AO95: -0.0016 | AP95: -0.0018 | AQ95: -0.002 | AR95: -0.0022 | AS95: -0.0023 | AT95: -0.0023 | AU95: -0.0022 | AV95: -0.0021 | AW95: -0.0019 | AX95: -0.0017 | AY95: -0.0014 | AZ95: -0.0011 | BA95: -0.0007 | BB95: -0.0003 | BC95: 0.0001 | BD95: 0.0005 | BE95: 0.0009 | BF95: 0.0013 | BG95: 0.0016 | BH95: 0.0019 | BI95: 0.0022 | BJ95: 0.0025 | BK95: 0.0027 | BL95: 0.003 | BM95: 0.0029 | BN95: 0.0027 | BO95: 0.0026 | BP95: 0.0025 | BQ95: 0.0024 | BR95: 0.0022 | BS95: 0.0021 | BT95: 0.0021 | BU95: 0.002 | BV95: 0.002 | BW95: 0.002 | BX95: 0.002 | BY95: 0.002 | BZ95: 0.002 | CA95: 0.002 | CB95: 0.002 | CC95: 0.002 | CD95: 0.002 | CE95: 0.0021 | CF95: 0.0021
B96: 111 | C96: -0.0038 | D96: -0.0035 | E96: -0.0033 | F96: -0.003 | G96: -0.0027 | H96: -0.0024 | I96: -0.0021 | J96: -0.0018 | K96: -0.0015 | L96: -0.0011 | M96: -0.0008 | N96: -0.0004 | O96: 0 | P96: 0.0003 | Q96: 0.0007 | R96: 0.0011 | S96: 0.0014 | T96: 0.0017 | U96: 0.002 | V96: 0.0022 | W96: 0.0024 | X96: 0.0025 | Y96: 0.0026 | Z96: 0.0026 | AA96: 0.0026 | AB96: 0.0025 | AC96: 0.0023 | AD96: 0.0021 | AE96: 0.0019 | AF96: 0.0016 | AG96: 0.0013 | AH96: 0.0009 | AI96: 0.0006 | AJ96: 0.0002 | AK96: -0.0001 | AL96: -0.0004 | AM96: -0.0008 | AN96: -0.001 | AO96: -0.0013 | AP96: -0.0015 | AQ96: -0.0016 | AR96: -0.0017 | AS96: -0.0018 | AT96: -0.0018 | AU96: -0.0018 | AV96: -0.0017 | AW96: -0.0015 | AX96: -0.0013 | AY96: -0.0011 | AZ96: -0.0008 | BA96: -0.0005 | BB96: -0.0002 | BC96: 0.0001 | BD96: 0.0004 | BE96: 0.0007 | BF96: 0.001 | BG96: 0.0013 | BH96: 0.0015 | BI96: 0.0018 | BJ96: 0.002 | BK96: 0.0022 | BL96: 0.0024 | BM96: 0.0023 | BN96: 0.0022 | BO96: 0.0021 | BP96: 0.002 | BQ96: 0.0019 | BR96: 0.0018 | BS96: 0.0017 | BT96: 0.0017 | BU96: 0.0016 | BV96: 0.0016 | BW96: 0.0016 | BX96: 0.0016 | BY96: 0.0016 | BZ96: 0.0016 | CA96: 0.0016 | CB96: 0.0016 | CC96: 0.0016 | CD96: 0.0016 | CE96: 0.0017 | CF96: 0.0017
B97: 112 | C97: -0.0029 | D97: -0.0027 | E97: -0.0024 | F97: -0.0022 | G97: -0.002 | H97: -0.0018 | I97: -0.0016 | J97: -0.0013 | K97: -0.0011 | L97: -0.0008 | M97: -0.0006 | N97: -0.0003 | O97: 0 | P97: 0.0003 | Q97: 0.0005 | R97: 0.0008 | S97: 0.0011 | T97: 0.0013 | U97: 0.0015 | V97: 0.0017 | W97: 0.0018 | X97: 0.0019 | Y97: 0.0019 | Z97: 0.0019 | AA97: 0.0019 | AB97: 0.0018 | AC97: 0.0017 | AD97: 0.0016 | AE97: 0.0014 | AF97: 0.0012 | AG97: 0.001 | AH97: 0.0007 | AI97: 0.0004 | AJ97: 0.0002 | AK97: -0.0001 | AL97: -0.0003 | AM97: -0.0006 | AN97: -0.0008 | AO97: -0.001 | AP97: -0.0011 | AQ97: -0.0012 | AR97: -0.0013 | AS97: -0.0014 | AT97: -0.0014 | AU97: -0.0013 | AV97: -0.0013 | AW97: -0.0012 | AX97: -0.001 | AY97: -0.0008 | AZ97: -0.0006 | BA97: -0.0004 | BB97: -0.0002 | BC97: 0.0001 | BD97: 0.0003 | BE97: 0.0005 | BF97: 0.0008 | BG97: 0.001 | BH97: 0.0012 | BI97: 0.0013 | BJ97: 0.0015 | BK97: 0.0016 | BL97: 0.0018 | BM97: 0.0017 | BN97: 0.0016 | BO97: 0.0016 | BP97: 0.0015 | BQ97: 0.0014 | BR97: 0.0013 | BS97: 0.0013 | BT97: 0.0012 | BU97: 0.0012 | BV97: 0.0012 | BW97: 0.0012 | BX97: 0.0012 | BY97: 0.0012 | BZ97: 0.0012 | CA97: 0.0012 | CB97: 0.0012 | CC97: 0.0012 | CD97: 0.0012 | CE97: 0.0012 | CF97: 0.0013
B98: 113 | C98: -0.0019 | D98: -0.0018 | E98: -0.0016 | F98: -0.0015 | G98: -0.0013 | H98: -0.0012 | I98: -0.001 | J98: -0.0009 | K98: -0.0007 | L98: -0.0006 | M98: -0.0004 | N98: -0.0002 | O98: 0 | P98: 0.0002 | Q98: 0.0004 | R98: 0.0005 | S98: 0.0007 | T98: 0.0009 | U98: 0.001 | V98: 0.0011 | W98: 0.0012 | X98: 0.0013 | Y98: 0.0013 | Z98: 0.0013 | AA98: 0.0013 | AB98: 0.0012 | AC98: 0.0012 | AD98: 0.0011 | AE98: 0.0009 | AF98: 0.0008 | AG98: 0.0006 | AH98: 0.0005 | AI98: 0.0003 | AJ98: 0.0001 | AK98: -0.0001 | AL98: -0.0002 | AM98: -0.0004 | AN98: -0.0005 | AO98: -0.0006 | AP98: -0.0007 | AQ98: -0.0008 | AR98: -0.0009 | AS98: -0.0009 | AT98: -0.0009 | AU98: -0.0009 | AV98: -0.0008 | AW98: -0.0008 | AX98: -0.0007 | AY98: -0.0006 | AZ98: -0.0004 | BA98: -0.0003 | BB98: -0.0001 | BC98: 0 | BD98: 0.0002 | BE98: 0.0004 | BF98: 0.0005 | BG98: 0.0006 | BH98: 0.0008 | BI98: 0.0009 | BJ98: 0.001 | BK98: 0.0011 | BL98: 0.0012 | BM98: 0.0011 | BN98: 0.0011 | BO98: 0.001 | BP98: 0.001 | BQ98: 0.0009 | BR98: 0.0009 | BS98: 0.0009 | BT98: 0.0008 | BU98: 0.0008 | BV98: 0.0008 | BW98: 0.0008 | BX98: 0.0008 | BY98: 0.0008 | BZ98: 0.0008 | CA98: 0.0008 | CB98: 0.0008 | CC98: 0.0008 | CD98: 0.0008 | CE98: 0.0008 | CF98: 0.0009
B99: 114 | C99: -0.001 | D99: -0.0009 | E99: -0.0008 | F99: -0.0007 | G99: -0.0007 | H99: -0.0006 | I99: -0.0005 | J99: -0.0004 | K99: -0.0004 | L99: -0.0003 | M99: -0.0002 | N99: -0.0001 | O99: 0 | P99: 0.0001 | Q99: 0.0002 | R99: 0.0003 | S99: 0.0004 | T99: 0.0004 | U99: 0.0005 | V99: 0.0006 | W99: 0.0006 | X99: 0.0006 | Y99: 0.0006 | Z99: 0.0006 | AA99: 0.0006 | AB99: 0.0006 | AC99: 0.0006 | AD99: 0.0005 | AE99: 0.0005 | AF99: 0.0004 | AG99: 0.0003 | AH99: 0.0002 | AI99: 0.0001 | AJ99: 0.0001 | AK99: 0 | AL99: -0.0001 | AM99: -0.0002 | AN99: -0.0003 | AO99: -0.0003 | AP99: -0.0004 | AQ99: -0.0004 | AR99: -0.0004 | AS99: -0.0005 | AT99: -0.0005 | AU99: -0.0004 | AV99: -0.0004 | AW99: -0.0004 | AX99: -0.0003 | AY99: -0.0003 | AZ99: -0.0002 | BA99: -0.0001 | BB99: -0.0001 | BC99: 0 | BD99: 0.0001 | BE99: 0.0002 | BF99: 0.0003 | BG99: 0.0003 | BH99: 0.0004 | BI99: 0.0004 | BJ99: 0.0005 | BK99: 0.0005 | BL99: 0.0006 | BM99: 0.0006 | BN99: 0.0005 | BO99: 0.0005 | BP99: 0.0005 | BQ99: 0.0005 | BR99: 0.0004 | BS99: 0.0004 | BT99: 0.0004 | BU99: 0.0004 | BV99: 0.0004 | BW99: 0.0004 | BX99: 0.0004 | BY99: 0.0004 | BZ99: 0.0004 | CA99: 0.0004 | CB99: 0.0004 | CC99: 0.0004 | CD99: 0.0004 | CE99: 0.0004 | CF99: 0.0004
B100: 115 | C100: 0 | D100: 0 | E100: 0 | F100: 0 | G100: 0 | H100: 0 | I100: 0 | J100: 0 | K100: 0 | L100: 0 | M100: 0 | N100: 0 | O100: 0 | P100: 0 | Q100: 0 | R100: 0 | S100: 0 | T100: 0 | U100: 0 | V100: 0 | W100: 0 | X100: 0 | Y100: 0 | Z100: 0 | AA100: 0 | AB100: 0 | AC100: 0 | AD100: 0 | AE100: 0 | AF100: 0 | AG100: 0 | AH100: 0 | AI100: 0 | AJ100: 0 | AK100: 0 | AL100: 0 | AM100: 0 | AN100: 0 | AO100: 0 | AP100: 0 | AQ100: 0 | AR100: 0 | AS100: 0 | AT100: 0 | AU100: 0 | AV100: 0 | AW100: 0 | AX100: 0 | AY100: 0 | AZ100: 0 | BA100: 0 | BB100: 0 | BC100: 0 | BD100: 0 | BE100: 0 | BF100: 0 | BG100: 0 | BH100: 0 | BI100: 0 | BJ100: 0 | BK100: 0 | BL100: 0 | BM100: 0 | BN100: 0 | BO100: 0 | BP100: 0 | BQ100: 0 | BR100: 0 | BS100: 0 | BT100: 0 | BU100: 0 | BV100: 0 | BW100: 0 | BX100: 0 | BY100: 0 | BZ100: 0 | CA100: 0 | CB100: 0 | CC100: 0 | CD100: 0 | CE100: 0 | CF100: 0
B101: 116 | C101: 0 | D101: 0 | E101: 0 | F101: 0 | G101: 0 | H101: 0 | I101: 0 | J101: 0 | K101: 0 | L101: 0 | M101: 0 | N101: 0 | O101: 0 | P101: 0 | Q101: 0 | R101: 0 | S101: 0 | T101: 0 | U101: 0 | V101: 0 | W101: 0 | X101: 0 | Y101: 0 | Z101: 0 | AA101: 0 | AB101: 0 | AC101: 0 | AD101: 0 | AE101: 0 | AF101: 0 | AG101: 0 | AH101: 0 | AI101: 0 | AJ101: 0 | AK101: 0 | AL101: 0 | AM101: 0 | AN101: 0 | AO101: 0 | AP101: 0 | AQ101: 0 | AR101: 0 | AS101: 0 | AT101: 0 | AU101: 0 | AV101: 0 | AW101: 0 | AX101: 0 | AY101: 0 | AZ101: 0 | BA101: 0 | BB101: 0 | BC101: 0 | BD101: 0 | BE101: 0 | BF101: 0 | BG101: 0 | BH101: 0 | BI101: 0 | BJ101: 0 | BK101: 0 | BL101: 0 | BM101: 0 | BN101: 0 | BO101: 0 | BP101: 0 | BQ101: 0 | BR101: 0 | BS101: 0 | BT101: 0 | BU101: 0 | BV101: 0 | BW101: 0 | BX101: 0 | BY101: 0 | BZ101: 0 | CA101: 0 | CB101: 0 | CC101: 0 | CD101: 0 | CE101: 0 | CF101: 0
B102: 117 | C102: 0 | D102: 0 | E102: 0 | F102: 0 | G102: 0 | H102: 0 | I102: 0 | J102: 0 | K102: 0 | L102: 0 | M102: 0 | N102: 0 | O102: 0 | P102: 0 | Q102: 0 | R102: 0 | S102: 0 | T102: 0 | U102: 0 | V102: 0 | W102: 0 | X102: 0 | Y102: 0 | Z102: 0 | AA102: 0 | AB102: 0 | AC102: 0 | AD102: 0 | AE102: 0 | AF102: 0 | AG102: 0 | AH102: 0 | AI102: 0 | AJ102: 0 | AK102: 0 | AL102: 0 | AM102: 0 | AN102: 0 | AO102: 0 | AP102: 0 | AQ102: 0 | AR102: 0 | AS102: 0 | AT102: 0 | AU102: 0 | AV102: 0 | AW102: 0 | AX102: 0 | AY102: 0 | AZ102: 0 | BA102: 0 | BB102: 0 | BC102: 0 | BD102: 0 | BE102: 0 | BF102: 0 | BG102: 0 | BH102: 0 | BI102: 0 | BJ102: 0 | BK102: 0 | BL102: 0 | BM102: 0 | BN102: 0 | BO102: 0 | BP102: 0 | BQ102: 0 | BR102: 0 | BS102: 0 | BT102: 0 | BU102: 0 | BV102: 0 | BW102: 0 | BX102: 0 | BY102: 0 | BZ102: 0 | CA102: 0 | CB102: 0 | CC102: 0 | CD102: 0 | CE102: 0 | CF102: 0
B103: 118 | C103: 0 | D103: 0 | E103: 0 | F103: 0 | G103: 0 | H103: 0 | I103: 0 | J103: 0 | K103: 0 | L103: 0 | M103: 0 | N103: 0 | O103: 0 | P103: 0 | Q103: 0 | R103: 0 | S103: 0 | T103: 0 | U103: 0 | V103: 0 | W103: 0 | X103: 0 | Y103: 0 | Z103: 0 | AA103: 0 | AB103: 0 | AC103: 0 | AD103: 0 | AE103: 0 | AF103: 0 | AG103: 0 | AH103: 0 | AI103: 0 | AJ103: 0 | AK103: 0 | AL103: 0 | AM103: 0 | AN103: 0 | AO103: 0 | AP103: 0 | AQ103: 0 | AR103: 0 | AS103: 0 | AT103: 0 | AU103: 0 | AV103: 0 | AW103: 0 | AX103: 0 | AY103: 0 | AZ103: 0 | BA103: 0 | BB103: 0 | BC103: 0 | BD103: 0 | BE103: 0 | BF103: 0 | BG103: 0 | BH103: 0 | BI103: 0 | BJ103: 0 | BK103: 0 | BL103: 0 | BM103: 0 | BN103: 0 | BO103: 0 | BP103: 0 | BQ103: 0 | BR103: 0 | BS103: 0 | BT103: 0 | BU103: 0 | BV103: 0 | BW103: 0 | BX103: 0 | BY103: 0 | BZ103: 0 | CA103: 0 | CB103: 0 | CC103: 0 | CD103: 0 | CE103: 0 | CF103: 0
B104: 119 | C104: 0 | D104: 0 | E104: 0 | F104: 0 | G104: 0 | H104: 0 | I104: 0 | J104: 0 | K104: 0 | L104: 0 | M104: 0 | N104: 0 | O104: 0 | P104: 0 | Q104: 0 | R104: 0 | S104: 0 | T104: 0 | U104: 0 | V104: 0 | W104: 0 | X104: 0 | Y104: 0 | Z104: 0 | AA104: 0 | AB104: 0 | AC104: 0 | AD104: 0 | AE104: 0 | AF104: 0 | AG104: 0 | AH104: 0 | AI104: 0 | AJ104: 0 | AK104: 0 | AL104: 0 | AM104: 0 | AN104: 0 | AO104: 0 | AP104: 0 | AQ104: 0 | AR104: 0 | AS104: 0 | AT104: 0 | AU104: 0 | AV104: 0 | AW104: 0 | AX104: 0 | AY104: 0 | AZ104: 0 | BA104: 0 | BB104: 0 | BC104: 0 | BD104: 0 | BE104: 0 | BF104: 0 | BG104: 0 | BH104: 0 | BI104: 0 | BJ104: 0 | BK104: 0 | BL104: 0 | BM104: 0 | BN104: 0 | BO104: 0 | BP104: 0 | BQ104: 0 | BR104: 0 | BS104: 0 | BT104: 0 | BU104: 0 | BV104: 0 | BW104: 0 | BX104: 0 | BY104: 0 | BZ104: 0 | CA104: 0 | CB104: 0 | CC104: 0 | CD104: 0 | CE104: 0 | CF104: 0
B105: 120 | C105: 0 | D105: 0 | E105: 0 | F105: 0 | G105: 0 | H105: 0 | I105: 0 | J105: 0 | K105: 0 | L105: 0 | M105: 0 | N105: 0 | O105: 0 | P105: 0 | Q105: 0 | R105: 0 | S105: 0 | T105: 0 | U105: 0 | V105: 0 | W105: 0 | X105: 0 | Y105: 0 | Z105: 0 | AA105: 0 | AB105: 0 | AC105: 0 | AD105: 0 | AE105: 0 | AF105: 0 | AG105: 0 | AH105: 0 | AI105: 0 | AJ105: 0 | AK105: 0 | AL105: 0 | AM105: 0 | AN105: 0 | AO105: 0 | AP105: 0 | AQ105: 0 | AR105: 0 | AS105: 0 | AT105: 0 | AU105: 0 | AV105: 0 | AW105: 0 | AX105: 0 | AY105: 0 | AZ105: 0 | BA105: 0 | BB105: 0 | BC105: 0 | BD105: 0 | BE105: 0 | BF105: 0 | BG105: 0 | BH105: 0 | BI105: 0 | BJ105: 0 | BK105: 0 | BL105: 0 | BM105: 0 | BN105: 0 | BO105: 0 | BP105: 0 | BQ105: 0 | BR105: 0 | BS105: 0 | BT105: 0 | BU105: 0 | BV105: 0 | BW105: 0 | BX105: 0 | BY105: 0 | BZ105: 0 | CA105: 0 | CB105: 0 | CC105: 0 | CD105: 0 | CE105: 0 | CF105: 0

Sheet MP-2016 Female
A1: Scale MP-2016, Females
B4: Age | C4: 1951 | D4: 1952 | E4: 1953 | F4: 1954 | G4: 1955 | H4: 1956 | I4: 1957 | J4: 1958 | K4: 1959 | L4: 1960 | M4: 1961 | N4: 1962 | O4: 1963 | P4: 1964 | Q4: 1965 | R4: 1966 | S4: 1967 | T4: 1968 | U4: 1969 | V4: 1970 | W4: 1971 | X4: 1972 | Y4: 1973 | Z4: 1974 | AA4: 1975 | AB4: 1976 | AC4: 1977 | AD4: 1978 | AE4: 1979 | AF4: 1980 | AG4: 1981 | AH4: 1982 | AI4: 1983 | AJ4: 1984 | AK4: 1985 | AL4: 1986 | AM4: 1987 | AN4: 1988 | AO4: 1989 | AP4: 1990 | AQ4: 1991 | AR4: 1992 | AS4: 1993 | AT4: 1994 | AU4: 1995 | AV4: 1996 | AW4: 1997 | AX4: 1998 | AY4: 1999 | AZ4: 2000 | BA4: 2001 | BB4: 2002 | BC4: 2003 | BD4: 2004 | BE4: 2005 | BF4: 2006 | BG4: 2007 | BH4: 2008 | BI4: 2009 | BJ4: 2010 | BK4: 2011 | BL4: 2012 | BM4: 2013 | BN4: 2014 | BO4: 2015 | BP4: 2016 | BQ4: 2017 | BR4: 2018 | BS4: 2019 | BT4: 2020 | BU4: 2021 | BV4: 2022 | BW4: 2023 | BX4: 2024 | BY4: 2025 | BZ4: 2026 | CA4: 2027 | CB4: 2028 | CC4: 2029 | CD4: 2030 | CE4: 2031 | CF4: 2032+
B5: ≤ 20 | C5: 0.0666 | D5: 0.0602 | E5: 0.0536 | F5: 0.0468 | G5: 0.0398 | H5: 0.0331 | I5: 0.0269 | J5: 0.0209 | K5: 0.015 | L5: 0.0088 | M5: 0.0026 | N5: -0.0035 | O5: -0.0089 | P5: -0.0132 | Q5: -0.0161 | R5: -0.0173 | S5: -0.0165 | T5: -0.0136 | U5: -0.0085 | V5: -0.0019 | W5: 0.0051 | X5: 0.0116 | Y5: 0.0168 | Z5: 0.0199 | AA5: 0.021 | AB5: 0.0208 | AC5: 0.0207 | AD5: 0.0214 | AE5: 0.023 | AF5: 0.0247 | AG5: 0.0252 | AH5: 0.0237 | AI5: 0.0201 | AJ5: 0.0152 | AK5: 0.0105 | AL5: 0.0069 | AM5: 0.0054 | AN5: 0.0057 | AO5: 0.0073 | AP5: 0.0095 | AQ5: 0.0117 | AR5: 0.0136 | AS5: 0.0147 | AT5: 0.0154 | AU5: 0.0152 | AV5: 0.0142 | AW5: 0.012 | AX5: 0.009 | AY5: 0.0054 | AZ5: 0.002 | BA5: -0.0003 | BB5: -0.0009 | BC5: 0.001 | BD5: 0.0052 | BE5: 0.011 | BF5: 0.0174 | BG5: 0.0232 | BH5: 0.0274 | BI5: 0.0289 | BJ5: 0.0279 | BK5: 0.0247 | BL5: 0.0202 | BM5: 0.02 | BN5: 0.0195 | BO5: 0.0188 | BP5: 0.0179 | BQ5: 0.0168 | BR5: 0.0158 | BS5: 0.0148 | BT5: 0.0138 | BU5: 0.0131 | BV5: 0.0125 | BW5: 0.0122 | BX5: 0.0118 | BY5: 0.0114 | BZ5: 0.0111 | CA5: 0.0108 | CB5: 0.0105 | CC5: 0.0103 | CD5: 0.0101 | CE5: 0.01 | CF5: 0.01
B6: 21 | C6: 0.0691 | D6: 0.0618 | E6: 0.0544 | F6: 0.0468 | G6: 0.0393 | H6: 0.0322 | I6: 0.0256 | J6: 0.0196 | K6: 0.0137 | L6: 0.008 | M6: 0.0023 | N6: -0.003 | O6: -0.0075 | P6: -0.0111 | Q6: -0.0134 | R6: -0.0143 | S6: -0.0135 | T6: -0.0108 | U6: -0.0062 | V6: -0.0002 | W6: 0.0063 | X6: 0.0124 | Y6: 0.0172 | Z6: 0.0202 | AA6: 0.0213 | AB6: 0.0212 | AC6: 0.0209 | AD6: 0.0214 | AE6: 0.0228 | AF6: 0.0243 | AG6: 0.0248 | AH6: 0.0235 | AI6: 0.0202 | AJ6: 0.0157 | AK6: 0.0111 | AL6: 0.0075 | AM6: 0.0058 | AN6: 0.0059 | AO6: 0.0073 | AP6: 0.0094 | AQ6: 0.0115 | AR6: 0.0136 | AS6: 0.015 | AT6: 0.016 | AU6: 0.016 | AV6: 0.0149 | AW6: 0.0124 | AX6: 0.0088 | AY6: 0.0045 | AZ6: 0.0005 | BA6: -0.0025 | BB6: -0.0037 | BC6: -0.0025 | BD6: 0.0009 | BE6: 0.0059 | BF6: 0.0117 | BG6: 0.0171 | BH6: 0.021 | BI6: 0.0227 | BJ6: 0.0221 | BK6: 0.0196 | BL6: 0.0159 | BM6: 0.0179 | BN6: 0.0176 | BO6: 0.0171 | BP6: 0.0165 | BQ6: 0.0158 | BR6: 0.015 | BS6: 0.0143 | BT6: 0.0136 | BU6: 0.013 | BV6: 0.0125 | BW6: 0.0122 | BX6: 0.0118 | BY6: 0.0114 | BZ6: 0.0111 | CA6: 0.0108 | CB6: 0.0105 | CC6: 0.0103 | CD6: 0.0101 | CE6: 0.01 | CF6: 0.01
B7: 22 | C7: 0.0711 | D7: 0.0631 | E7: 0.0551 | F7: 0.0468 | G7: 0.0388 | H7: 0.0312 | I7: 0.0244 | J7: 0.0182 | K7: 0.0125 | L7: 0.0072 | M7: 0.0022 | N7: -0.0023 | O7: -0.006 | P7: -0.0088 | Q7: -0.0106 | R7: -0.0112 | S7: -0.0104 | T7: -0.0079 | U7: -0.0037 | V7: 0.0018 | W7: 0.0079 | X7: 0.0135 | Y7: 0.0181 | Z7: 0.021 | AA7: 0.022 | AB7: 0.0219 | AC7: 0.0214 | AD7: 0.0216 | AE7: 0.0226 | AF7: 0.0237 | AG7: 0.0241 | AH7: 0.0229 | AI7: 0.0198 | AJ7: 0.0155 | AK7: 0.0109 | AL7: 0.0073 | AM7: 0.0054 | AN7: 0.0053 | AO7: 0.0067 | AP7: 0.0087 | AQ7: 0.0111 | AR7: 0.0134 | AS7: 0.0153 | AT7: 0.0167 | AU7: 0.0171 | AV7: 0.0161 | AW7: 0.0135 | AX7: 0.0095 | AY7: 0.0047 | AZ7: -0.0001 | BA7: -0.0037 | BB7: -0.0057 | BC7: -0.0053 | BD7: -0.0027 | BE7: 0.0014 | BF7: 0.0064 | BG7: 0.0113 | BH7: 0.015 | BI7: 0.0168 | BJ7: 0.0166 | BK7: 0.0147 | BL7: 0.0117 | BM7: 0.0138 | BN7: 0.0157 | BO7: 0.0155 | BP7: 0.0151 | BQ7: 0.0147 | BR7: 0.0143 | BS7: 0.0138 | BT7: 0.0134 | BU7: 0.013 | BV7: 0.0125 | BW7: 0.0122 | BX7: 0.0118 | BY7: 0.0114 | BZ7: 0.0111 | CA7: 0.0108 | CB7: 0.0105 | CC7: 0.0103 | CD7: 0.0101 | CE7: 0.01 | CF7: 0.01
B8: 23 | C8: 0.0725 | D8: 0.0641 | E8: 0.0556 | F8: 0.0469 | G8: 0.0383 | H8: 0.0303 | I8: 0.0232 | J8: 0.0169 | K8: 0.0113 | L8: 0.0064 | M8: 0.0021 | N8: -0.0016 | O8: -0.0044 | P8: -0.0065 | Q8: -0.0077 | R8: -0.0081 | S8: -0.0073 | T8: -0.0051 | U8: -0.0012 | V8: 0.0039 | W8: 0.0097 | X8: 0.0151 | Y8: 0.0195 | Z8: 0.0222 | AA8: 0.0232 | AB8: 0.0229 | AC8: 0.0222 | AD8: 0.0219 | AE8: 0.0224 | AF8: 0.0231 | AG8: 0.0232 | AH8: 0.0219 | AI8: 0.0189 | AJ8: 0.0146 | AK8: 0.0099 | AL8: 0.0061 | AM8: 0.004 | AN8: 0.0039 | AO8: 0.0054 | AP8: 0.0077 | AQ8: 0.0103 | AR8: 0.0129 | AS8: 0.0153 | AT8: 0.0173 | AU8: 0.0184 | AV8: 0.0178 | AW8: 0.0154 | AX8: 0.0111 | AY8: 0.0057 | AZ8: 0.0003 | BA8: -0.0042 | BB8: -0.0069 | BC8: -0.0073 | BD8: -0.0056 | BE8: -0.0024 | BF8: 0.0018 | BG8: 0.0061 | BH8: 0.0096 | BI8: 0.0115 | BJ8: 0.0116 | BK8: 0.0103 | BL8: 0.0079 | BM8: 0.0099 | BN8: 0.0119 | BO8: 0.014 | BP8: 0.0139 | BQ8: 0.0138 | BR8: 0.0136 | BS8: 0.0134 | BT8: 0.0132 | BU8: 0.0129 | BV8: 0.0125 | BW8: 0.0122 | BX8: 0.0118 | BY8: 0.0114 | BZ8: 0.0111 | CA8: 0.0108 | CB8: 0.0105 | CC8: 0.0103 | CD8: 0.0101 | CE8: 0.01 | CF8: 0.01
B9: 24 | C9: 0.0733 | D9: 0.0647 | E9: 0.0559 | F9: 0.0468 | G9: 0.0378 | H9: 0.0294 | I9: 0.0219 | J9: 0.0156 | K9: 0.0102 | L9: 0.0057 | M9: 0.002 | N9: -0.0009 | O9: -0.003 | P9: -0.0043 | Q9: -0.0051 | R9: -0.0052 | S9: -0.0044 | T9: -0.0023 | U9: 0.0013 | V9: 0.0061 | W9: 0.0117 | X9: 0.017 | Y9: 0.0213 | Z9: 0.0239 | AA9: 0.0248 | AB9: 0.0244 | AC9: 0.0233 | AD9: 0.0225 | AE9: 0.0224 | AF9: 0.0225 | AG9: 0.0221 | AH9: 0.0206 | AI9: 0.0174 | AJ9: 0.013 | AK9: 0.0081 | AL9: 0.004 | AM9: 0.0019 | AN9: 0.0019 | AO9: 0.0036 | AP9: 0.0063 | AQ9: 0.0092 | AR9: 0.0123 | AS9: 0.0152 | AT9: 0.0179 | AU9: 0.0197 | AV9: 0.0198 | AW9: 0.0177 | AX9: 0.0134 | AY9: 0.0076 | AZ9: 0.0015 | BA9: -0.0037 | BB9: -0.0072 | BC9: -0.0085 | BD9: -0.0077 | BE9: -0.0054 | BF9: -0.0021 | BG9: 0.0016 | BH9: 0.0048 | BI9: 0.0068 | BJ9: 0.0073 | BK9: 0.0064 | BL9: 0.0045 | BM9: 0.0063 | BN9: 0.0084 | BO9: 0.0106 | BP9: 0.0128 | BQ9: 0.0129 | BR9: 0.013 | BS9: 0.0131 | BT9: 0.013 | BU9: 0.0129 | BV9: 0.0125 | BW9: 0.0122 | BX9: 0.0118 | BY9: 0.0114 | BZ9: 0.0111 | CA9: 0.0108 | CB9: 0.0105 | CC9: 0.0103 | CD9: 0.0101 | CE9: 0.01 | CF9: 0.01
B10: 25 | C10: 0.0735 | D10: 0.0648 | E10: 0.0559 | F10: 0.0466 | G10: 0.0373 | H10: 0.0285 | I10: 0.0207 | J10: 0.0143 | K10: 0.0091 | L10: 0.005 | M10: 0.0019 | N10: -0.0003 | O10: -0.0017 | P10: -0.0025 | Q10: -0.0029 | R10: -0.0028 | S10: -0.0018 | T10: 0.0002 | U10: 0.0037 | V10: 0.0084 | W10: 0.0138 | X10: 0.0191 | Y10: 0.0233 | Z10: 0.026 | AA10: 0.0269 | AB10: 0.0262 | AC10: 0.0248 | AD10: 0.0234 | AE10: 0.0225 | AF10: 0.0219 | AG10: 0.021 | AH10: 0.0191 | AI10: 0.0156 | AJ10: 0.0108 | AK10: 0.0057 | AL10: 0.0014 | AM10: -0.0008 | AN10: -0.0006 | AO10: 0.0015 | AP10: 0.0045 | AQ10: 0.0079 | AR10: 0.0114 | AS10: 0.0148 | AT10: 0.0182 | AU10: 0.0208 | AV10: 0.0218 | AW10: 0.0203 | AX10: 0.0161 | AY10: 0.0101 | AZ10: 0.0034 | BA10: -0.0025 | BB10: -0.0067 | BC10: -0.0089 | BD10: -0.009 | BE10: -0.0076 | BF10: -0.0051 | BG10: -0.002 | BH10: 0.0009 | BI10: 0.0028 | BJ10: 0.0035 | BK10: 0.003 | BL10: 0.0014 | BM10: 0.0031 | BN10: 0.0052 | BO10: 0.0075 | BP10: 0.0099 | BQ10: 0.0122 | BR10: 0.0125 | BS10: 0.0127 | BT10: 0.0129 | BU10: 0.0128 | BV10: 0.0125 | BW10: 0.0122 | BX10: 0.0118 | BY10: 0.0114 | BZ10: 0.0111 | CA10: 0.0108 | CB10: 0.0105 | CC10: 0.0103 | CD10: 0.0101 | CE10: 0.01 | CF10: 0.01
B11: 26 | C11: 0.0732 | D11: 0.0645 | E11: 0.0556 | F11: 0.0462 | G11: 0.0366 | H11: 0.0275 | I11: 0.0196 | J11: 0.0132 | K11: 0.0082 | L11: 0.0044 | M11: 0.0018 | N11: 0.0001 | O11: -0.0008 | P11: -0.0012 | Q11: -0.0012 | R11: -0.0008 | S11: 0.0004 | T11: 0.0025 | U11: 0.006 | V11: 0.0106 | W11: 0.016 | X11: 0.0213 | Y11: 0.0256 | Z11: 0.0283 | AA11: 0.0292 | AB11: 0.0284 | AC11: 0.0266 | AD11: 0.0246 | AE11: 0.023 | AF11: 0.0216 | AG11: 0.02 | AH11: 0.0174 | AI11: 0.0134 | AJ11: 0.0083 | AK11: 0.0028 | AL11: -0.0017 | AM11: -0.0039 | AN11: -0.0034 | AO11: -0.0009 | AP11: 0.0026 | AQ11: 0.0064 | AR11: 0.0102 | AS11: 0.0141 | AT11: 0.0182 | AU11: 0.0217 | AV11: 0.0235 | AW11: 0.0227 | AX11: 0.019 | AY11: 0.0128 | AZ11: 0.0058 | BA11: -0.0007 | BB11: -0.0055 | BC11: -0.0084 | BD11: -0.0093 | BE11: -0.0088 | BF11: -0.0071 | BG11: -0.0047 | BH11: -0.0023 | BI11: -0.0005 | BJ11: 0.0003 | BK11: 0 | BL11: -0.0012 | BM11: 0.0003 | BN11: 0.0023 | BO11: 0.0046 | BP11: 0.0072 | BQ11: 0.0097 | BR11: 0.012 | BS11: 0.0125 | BT11: 0.0127 | BU11: 0.0128 | BV11: 0.0125 | BW11: 0.0122 | BX11: 0.0118 | BY11: 0.0114 | BZ11: 0.0111 | CA11: 0.0108 | CB11: 0.0105 | CC11: 0.0103 | CD11: 0.0101 | CE11: 0.01 | CF11: 0.01
B12: 27 | C12: 0.0726 | D12: 0.0639 | E12: 0.0549 | F12: 0.0454 | G12: 0.0357 | H12: 0.0265 | I12: 0.0185 | J12: 0.0122 | K12: 0.0074 | L12: 0.0039 | M12: 0.0016 | N12: 0.0002 | O12: -0.0004 | P12: -0.0004 | Q12: 0 | R12: 0.0007 | S12: 0.0021 | T12: 0.0045 | U12: 0.008 | V12: 0.0127 | W12: 0.0182 | X12: 0.0236 | Y12: 0.028 | Z12: 0.0308 | AA12: 0.0317 | AB12: 0.0308 | AC12: 0.0287 | AD12: 0.0262 | AE12: 0.0238 | AF12: 0.0216 | AG12: 0.0191 | AH12: 0.0158 | AI12: 0.0111 | AJ12: 0.0055 | AK12: -0.0003 | AL12: -0.0048 | AM12: -0.0069 | AN12: -0.0062 | AO12: -0.0034 | AP12: 0.0005 | AQ12: 0.0046 | AR12: 0.0087 | AS12: 0.0131 | AT12: 0.0178 | AU12: 0.0221 | AV12: 0.0248 | AW12: 0.0248 | AX12: 0.0215 | AY12: 0.0156 | AZ12: 0.0085 | BA12: 0.0017 | BB12: -0.0036 | BC12: -0.0071 | BD12: -0.0088 | BE12: -0.009 | BF12: -0.0081 | BG12: -0.0064 | BH12: -0.0045 | BI12: -0.003 | BJ12: -0.0023 | BK12: -0.0025 | BL12: -0.0034 | BM12: -0.0021 | BN12: -0.0002 | BO12: 0.0022 | BP12: 0.0047 | BQ12: 0.0074 | BR12: 0.0099 | BS12: 0.0122 | BT12: 0.0126 | BU12: 0.0127 | BV12: 0.0125 | BW12: 0.0122 | BX12: 0.0118 | BY12: 0.0114 | BZ12: 0.0111 | CA12: 0.0108 | CB12: 0.0105 | CC12: 0.0103 | CD12: 0.0101 | CE12: 0.01 | CF12: 0.01
B13: 28 | C13: 0.0715 | D13: 0.0628 | E13: 0.0538 | F13: 0.0444 | G13: 0.0347 | H13: 0.0255 | I13: 0.0176 | J13: 0.0114 | K13: 0.0068 | L13: 0.0036 | M13: 0.0014 | N13: 0.0002 | O13: -0.0003 | P13: -0.0001 | Q13: 0.0005 | R13: 0.0017 | S13: 0.0035 | T13: 0.0061 | U13: 0.0099 | V13: 0.0147 | W13: 0.0202 | X13: 0.0257 | Y13: 0.0303 | Z13: 0.0333 | AA13: 0.0344 | AB13: 0.0335 | AC13: 0.0311 | AD13: 0.0281 | AE13: 0.025 | AF13: 0.0219 | AG13: 0.0184 | AH13: 0.0142 | AI13: 0.0089 | AJ13: 0.0027 | AK13: -0.0033 | AL13: -0.0078 | AM13: -0.0097 | AN13: -0.0088 | AO13: -0.0058 | AP13: -0.0018 | AQ13: 0.0026 | AR13: 0.007 | AS13: 0.0117 | AT13: 0.0169 | AU13: 0.0219 | AV13: 0.0255 | AW13: 0.0263 | AX13: 0.0237 | AY13: 0.0182 | AZ13: 0.0112 | BA13: 0.0043 | BB13: -0.0013 | BC13: -0.0052 | BD13: -0.0075 | BE13: -0.0084 | BF13: -0.0081 | BG13: -0.0071 | BH13: -0.0059 | BI13: -0.0049 | BJ13: -0.0044 | BK13: -0.0045 | BL13: -0.0052 | BM13: -0.0041 | BN13: -0.0023 | BO13: 0 | BP13: 0.0026 | BQ13: 0.0053 | BR13: 0.008 | BS13: 0.0105 | BT13: 0.0125 | BU13: 0.0127 | BV13: 0.0125 | BW13: 0.0122 | BX13: 0.0118 | BY13: 0.0114 | BZ13: 0.0111 | CA13: 0.0108 | CB13: 0.0105 | CC13: 0.0103 | CD13: 0.0101 | CE13: 0.01 | CF13: 0.01
B14: 29 | C14: 0.0701 | D14: 0.0615 | E14: 0.0525 | F14: 0.0431 | G14: 0.0335 | H14: 0.0245 | I14: 0.0168 | J14: 0.0108 | K14: 0.0064 | L14: 0.0033 | M14: 0.0012 | N14: -0.0001 | O14: -0.0006 | P14: -0.0004 | Q14: 0.0005 | R14: 0.0021 | S14: 0.0043 | T14: 0.0074 | U14: 0.0114 | V14: 0.0164 | W14: 0.0221 | X14: 0.0277 | Y14: 0.0325 | Z14: 0.0358 | AA14: 0.037 | AB14: 0.0362 | AC14: 0.0337 | AD14: 0.0303 | AE14: 0.0265 | AF14: 0.0225 | AG14: 0.0181 | AH14: 0.013 | AI14: 0.007 | AJ14: 0.0003 | AK14: -0.0059 | AL14: -0.0103 | AM14: -0.0121 | AN14: -0.0111 | AO14: -0.0081 | AP14: -0.004 | AQ14: 0.0004 | AR14: 0.005 | AS14: 0.01 | AT14: 0.0156 | AU14: 0.0212 | AV14: 0.0254 | AW14: 0.027 | AX14: 0.0251 | AY14: 0.0202 | AZ14: 0.0137 | BA14: 0.007 | BB14: 0.0014 | BC14: -0.0028 | BD14: -0.0055 | BE14: -0.0069 | BF14: -0.0072 | BG14: -0.0068 | BH14: -0.0063 | BI14: -0.0059 | BJ14: -0.0058 | BK14: -0.0062 | BL14: -0.0068 | BM14: -0.0057 | BN14: -0.004 | BO14: -0.0018 | BP14: 0.0007 | BQ14: 0.0035 | BR14: 0.0062 | BS14: 0.0088 | BT14: 0.011 | BU14: 0.0127 | BV14: 0.0125 | BW14: 0.0122 | BX14: 0.0118 | BY14: 0.0114 | BZ14: 0.0111 | CA14: 0.0108 | CB14: 0.0105 | CC14: 0.0103 | CD14: 0.0101 | CE14: 0.01 | CF14: 0.01
B15: 30 | C15: 0.0685 | D15: 0.0599 | E15: 0.051 | F15: 0.0418 | G15: 0.0324 | H15: 0.0236 | I15: 0.0161 | J15: 0.0103 | K15: 0.0061 | L15: 0.003 | M15: 0.0009 | N15: -0.0006 | O15: -0.0012 | P15: -0.001 | Q15: 0.0001 | R15: 0.0021 | S15: 0.0048 | T15: 0.0082 | U15: 0.0126 | V15: 0.0178 | W15: 0.0236 | X15: 0.0295 | Y15: 0.0345 | Z15: 0.038 | AA15: 0.0395 | AB15: 0.0387 | AC15: 0.0362 | AD15: 0.0325 | AE15: 0.0282 | AF15: 0.0234 | AG15: 0.0182 | AH15: 0.0123 | AI15: 0.0056 | AJ15: -0.0015 | AK15: -0.0078 | AL15: -0.0122 | AM15: -0.0139 | AN15: -0.013 | AO15: -0.0101 | AP15: -0.0062 | AQ15: -0.0018 | AR15: 0.0028 | AS15: 0.0079 | AT15: 0.0138 | AU15: 0.0198 | AV15: 0.0247 | AW15: 0.0269 | AX15: 0.0257 | AY15: 0.0216 | AZ15: 0.0157 | BA15: 0.0094 | BB15: 0.004 | BC15: -0.0002 | BD15: -0.003 | BE15: -0.0046 | BF15: -0.0054 | BG15: -0.0056 | BH15: -0.0058 | BI15: -0.0062 | BJ15: -0.0066 | BK15: -0.0073 | BL15: -0.008 | BM15: -0.0071 | BN15: -0.0055 | BO15: -0.0033 | BP15: -0.0008 | BQ15: 0.0019 | BR15: 0.0047 | BS15: 0.0073 | BT15: 0.0096 | BU15: 0.0114 | BV15: 0.0125 | BW15: 0.0122 | BX15: 0.0118 | BY15: 0.0114 | BZ15: 0.0111 | CA15: 0.0108 | CB15: 0.0105 | CC15: 0.0103 | CD15: 0.0101 | CE15: 0.01 | CF15: 0.01
B16: 31 | C16: 0.0665 | D16: 0.0581 | E16: 0.0495 | F16: 0.0405 | G16: 0.0314 | H16: 0.0229 | I16: 0.0157 | J16: 0.0101 | K16: 0.0059 | L16: 0.0028 | M16: 0.0004 | N16: -0.0012 | O16: -0.002 | P16: -0.0018 | Q16: -0.0006 | R16: 0.0017 | S16: 0.0048 | T16: 0.0086 | U16: 0.0133 | V16: 0.0189 | W16: 0.0249 | X16: 0.0309 | Y16: 0.0363 | Z16: 0.04 | AA16: 0.0417 | AB16: 0.0411 | AC16: 0.0386 | AD16: 0.0347 | AE16: 0.0299 | AF16: 0.0245 | AG16: 0.0187 | AH16: 0.0122 | AI16: 0.0049 | AJ16: -0.0024 | AK16: -0.0088 | AL16: -0.0132 | AM16: -0.0149 | AN16: -0.0143 | AO16: -0.0118 | AP16: -0.0082 | AQ16: -0.0041 | AR16: 0.0004 | AS16: 0.0056 | AT16: 0.0116 | AU16: 0.0179 | AV16: 0.0232 | AW16: 0.0259 | AX16: 0.0254 | AY16: 0.022 | AZ16: 0.0169 | BA16: 0.0114 | BB16: 0.0065 | BC16: 0.0026 | BD16: -0.0001 | BE16: -0.0018 | BF16: -0.0028 | BG16: -0.0036 | BH16: -0.0045 | BI16: -0.0056 | BJ16: -0.0067 | BK16: -0.0079 | BL16: -0.0089 | BM16: -0.0081 | BN16: -0.0066 | BO16: -0.0046 | BP16: -0.0021 | BQ16: 0.0006 | BR16: 0.0033 | BS16: 0.006 | BT16: 0.0083 | BU16: 0.0102 | BV16: 0.0115 | BW16: 0.0122 | BX16: 0.0118 | BY16: 0.0114 | BZ16: 0.0111 | CA16: 0.0108 | CB16: 0.0105 | CC16: 0.0103 | CD16: 0.0101 | CE16: 0.01 | CF16: 0.01
B17: 32 | C17: 0.0644 | D17: 0.0563 | E17: 0.0479 | F17: 0.0393 | G17: 0.0306 | H17: 0.0225 | I17: 0.0155 | J17: 0.01 | K17: 0.0058 | L17: 0.0025 | M17: -0.0001 | N17: -0.0019 | O17: -0.0029 | P17: -0.0028 | Q17: -0.0014 | R17: 0.001 | S17: 0.0044 | T17: 0.0086 | U17: 0.0136 | V17: 0.0195 | W17: 0.0258 | X17: 0.0321 | Y17: 0.0376 | Z17: 0.0417 | AA17: 0.0435 | AB17: 0.0431 | AC17: 0.0406 | AD17: 0.0366 | AE17: 0.0316 | AF17: 0.0259 | AG17: 0.0197 | AH17: 0.0127 | AI17: 0.0052 | AJ17: -0.0023 | AK17: -0.0088 | AL17: -0.0132 | AM17: -0.0152 | AN17: -0.0149 | AO17: -0.013 | AP17: -0.0099 | AQ17: -0.0062 | AR17: -0.002 | AS17: 0.0031 | AT17: 0.0091 | AU17: 0.0156 | AV17: 0.0211 | AW17: 0.0242 | AX17: 0.0242 | AY17: 0.0216 | AZ17: 0.0173 | BA17: 0.0126 | BB17: 0.0085 | BC17: 0.0053 | BD17: 0.003 | BE17: 0.0014 | BF17: 0.0002 | BG17: -0.0009 | BH17: -0.0024 | BI17: -0.0042 | BJ17: -0.0061 | BK17: -0.0079 | BL17: -0.0095 | BM17: -0.0089 | BN17: -0.0075 | BO17: -0.0055 | BP17: -0.0032 | BQ17: -0.0005 | BR17: 0.0022 | BS17: 0.0048 | BT17: 0.0072 | BU17: 0.0091 | BV17: 0.0104 | BW17: 0.0112 | BX17: 0.0118 | BY17: 0.0114 | BZ17: 0.0111 | CA17: 0.0108 | CB17: 0.0105 | CC17: 0.0103 | CD17: 0.0101 | CE17: 0.01 | CF17: 0.01
B18: 33 | C18: 0.0621 | D18: 0.0544 | E18: 0.0465 | F18: 0.0383 | G18: 0.0301 | H18: 0.0223 | I18: 0.0155 | J18: 0.0101 | K18: 0.0058 | L18: 0.0022 | M18: -0.0006 | N18: -0.0027 | O18: -0.0038 | P18: -0.0037 | Q18: -0.0023 | R18: 0.0002 | S18: 0.0037 | T18: 0.0081 | U18: 0.0135 | V18: 0.0197 | W18: 0.0263 | X18: 0.0328 | Y18: 0.0386 | Z18: 0.0428 | AA18: 0.0449 | AB18: 0.0446 | AC18: 0.0422 | AD18: 0.0382 | AE18: 0.0332 | AF18: 0.0274 | AG18: 0.021 | AH18: 0.0139 | AI18: 0.0063 | AJ18: -0.0013 | AK18: -0.0077 | AL18: -0.0124 | AM18: -0.0147 | AN18: -0.015 | AO18: -0.0136 | AP18: -0.0112 | AQ18: -0.0082 | AR18: -0.0043 | AS18: 0.0005 | AT18: 0.0064 | AU18: 0.0129 | AV18: 0.0185 | AW18: 0.0219 | AX18: 0.0223 | AY18: 0.0202 | AZ18: 0.0168 | BA18: 0.0131 | BB18: 0.01 | BC18: 0.0077 | BD18: 0.006 | BE18: 0.0047 | BF18: 0.0036 | BG18: 0.0022 | BH18: 0.0003 | BI18: -0.0021 | BJ18: -0.0047 | BK18: -0.0073 | BL18: -0.0098 | BM18: -0.0093 | BN18: -0.0081 | BO18: -0.0062 | BP18: -0.0039 | BQ18: -0.0014 | BR18: 0.0013 | BS18: 0.0039 | BT18: 0.0062 | BU18: 0.0081 | BV18: 0.0095 | BW18: 0.0104 | BX18: 0.011 | BY18: 0.0114 | BZ18: 0.0111 | CA18: 0.0108 | CB18: 0.0105 | CC18: 0.0103 | CD18: 0.0101 | CE18: 0.01 | CF18: 0.01
B19: 34 | C19: 0.0596 | D19: 0.0525 | E19: 0.0451 | F19: 0.0375 | G19: 0.0298 | H19: 0.0223 | I19: 0.0158 | J19: 0.0103 | K19: 0.0058 | L19: 0.002 | M19: -0.0011 | N19: -0.0034 | O19: -0.0046 | P19: -0.0045 | Q19: -0.0032 | R19: -0.0007 | S19: 0.0028 | T19: 0.0073 | U19: 0.0129 | V19: 0.0194 | W19: 0.0263 | X19: 0.0331 | Y19: 0.0391 | Z19: 0.0435 | AA19: 0.0458 | AB19: 0.0456 | AC19: 0.0434 | AD19: 0.0395 | AE19: 0.0346 | AF19: 0.0289 | AG19: 0.0226 | AH19: 0.0156 | AI19: 0.0081 | AJ19: 0.0007 | AK19: -0.0058 | AL19: -0.0106 | AM19: -0.0134 | AN19: -0.0143 | AO19: -0.0137 | AP19: -0.0121 | AQ19: -0.0098 | AR19: -0.0065 | AS19: -0.002 | AT19: 0.0037 | AU19: 0.01 | AV19: 0.0155 | AW19: 0.0189 | AX19: 0.0196 | AY19: 0.0181 | AZ19: 0.0155 | BA19: 0.0128 | BB19: 0.0108 | BC19: 0.0096 | BD19: 0.0087 | BE19: 0.008 | BF19: 0.0071 | BG19: 0.0057 | BH19: 0.0035 | BI19: 0.0006 | BJ19: -0.0026 | BK19: -0.0061 | BL19: -0.0096 | BM19: -0.0093 | BN19: -0.0083 | BO19: -0.0066 | BP19: -0.0044 | BQ19: -0.002 | BR19: 0.0006 | BS19: 0.0031 | BT19: 0.0054 | BU19: 0.0073 | BV19: 0.0086 | BW19: 0.0096 | BX19: 0.0103 | BY19: 0.0108 | BZ19: 0.0111 | CA19: 0.0108 | CB19: 0.0105 | CC19: 0.0103 | CD19: 0.0101 | CE19: 0.01 | CF19: 0.01
B20: 35 | C20: 0.0572 | D20: 0.0506 | E20: 0.0439 | F20: 0.0369 | G20: 0.0296 | H20: 0.0226 | I20: 0.0162 | J20: 0.0107 | K20: 0.0059 | L20: 0.0018 | M20: -0.0015 | N20: -0.0039 | O20: -0.0052 | P20: -0.0052 | Q20: -0.004 | R20: -0.0017 | S20: 0.0017 | T20: 0.0063 | U20: 0.0121 | V20: 0.0188 | W20: 0.026 | X20: 0.033 | Y20: 0.0392 | Z20: 0.0437 | AA20: 0.0461 | AB20: 0.0461 | AC20: 0.0441 | AD20: 0.0405 | AE20: 0.0358 | AF20: 0.0303 | AG20: 0.0243 | AH20: 0.0177 | AI20: 0.0105 | AJ20: 0.0033 | AK20: -0.0031 | AL20: -0.0081 | AM20: -0.0114 | AN20: -0.0128 | AO20: -0.013 | AP20: -0.0123 | AQ20: -0.0108 | AR20: -0.0082 | AS20: -0.0043 | AT20: 0.001 | AU20: 0.007 | AV20: 0.0123 | AW20: 0.0155 | AX20: 0.0163 | AY20: 0.0152 | AZ20: 0.0134 | BA20: 0.0117 | BB20: 0.0109 | BC20: 0.0108 | BD20: 0.0109 | BE20: 0.0109 | BF20: 0.0104 | BG20: 0.0092 | BH20: 0.007 | BI20: 0.0038 | BJ20: 0 | BK20: -0.0043 | BL20: -0.0089 | BM20: -0.0089 | BN20: -0.0081 | BO20: -0.0066 | BP20: -0.0046 | BQ20: -0.0023 | BR20: 0.0001 | BS20: 0.0025 | BT20: 0.0047 | BU20: 0.0065 | BV20: 0.0079 | BW20: 0.0088 | BX20: 0.0096 | BY20: 0.0102 | BZ20: 0.0106 | CA20: 0.0108 | CB20: 0.0105 | CC20: 0.0103 | CD20: 0.0101 | CE20: 0.01 | CF20: 0.01
B21: 36 | C21: 0.0548 | D21: 0.0489 | E21: 0.0428 | F21: 0.0364 | G21: 0.0296 | H21: 0.0229 | I21: 0.0167 | J21: 0.0111 | K21: 0.0062 | L21: 0.0018 | M21: -0.0017 | N21: -0.0043 | O21: -0.0056 | P21: -0.0057 | Q21: -0.0046 | R21: -0.0025 | S21: 0.0007 | T21: 0.0052 | U21: 0.0111 | V21: 0.018 | W21: 0.0253 | X21: 0.0325 | Y21: 0.0387 | Z21: 0.0434 | AA21: 0.0459 | AB21: 0.0461 | AC21: 0.0444 | AD21: 0.0411 | AE21: 0.0367 | AF21: 0.0317 | AG21: 0.0261 | AH21: 0.0199 | AI21: 0.0131 | AJ21: 0.0063 | AK21: 0 | AL21: -0.0051 | AM21: -0.0087 | AN21: -0.0107 | AO21: -0.0116 | AP21: -0.0119 | AQ21: -0.0113 | AR21: -0.0095 | AS21: -0.0062 | AT21: -0.0015 | AU21: 0.004 | AV21: 0.0089 | AW21: 0.0119 | AX21: 0.0127 | AY21: 0.0119 | AZ21: 0.0107 | BA21: 0.0099 | BB21: 0.0102 | BC21: 0.0112 | BD21: 0.0124 | BE21: 0.0132 | BF21: 0.0134 | BG21: 0.0126 | BH21: 0.0105 | BI21: 0.0072 | BJ21: 0.003 | BK21: -0.002 | BL21: -0.0076 | BM21: -0.0079 | BN21: -0.0074 | BO21: -0.0062 | BP21: -0.0044 | BQ21: -0.0024 | BR21: -0.0001 | BS21: 0.0021 | BT21: 0.0041 | BU21: 0.0059 | BV21: 0.0072 | BW21: 0.0082 | BX21: 0.009 | BY21: 0.0097 | BZ21: 0.0102 | CA21: 0.0105 | CB21: 0.0105 | CC21: 0.0103 | CD21: 0.0101 | CE21: 0.01 | CF21: 0.01
B22: 37 | C22: 0.0526 | D22: 0.0473 | E22: 0.0418 | F22: 0.0359 | G22: 0.0296 | H22: 0.0233 | I22: 0.0172 | J22: 0.0116 | K22: 0.0065 | L22: 0.0019 | M22: -0.0018 | N22: -0.0044 | O22: -0.0058 | P22: -0.006 | Q22: -0.0051 | R22: -0.0033 | S22: -0.0002 | T22: 0.0042 | U22: 0.01 | V22: 0.0169 | W22: 0.0243 | X22: 0.0315 | Y22: 0.0378 | Z22: 0.0426 | AA22: 0.0452 | AB22: 0.0457 | AC22: 0.0443 | AD22: 0.0414 | AE22: 0.0375 | AF22: 0.033 | AG22: 0.0278 | AH22: 0.022 | AI22: 0.0158 | AJ22: 0.0094 | AK22: 0.0034 | AL22: -0.0016 | AM22: -0.0055 | AN22: -0.008 | AO22: -0.0096 | AP22: -0.0107 | AQ22: -0.011 | AR22: -0.0101 | AS22: -0.0076 | AT22: -0.0036 | AU22: 0.0013 | AV22: 0.0056 | AW22: 0.0083 | AX22: 0.0089 | AY22: 0.0084 | AZ22: 0.0076 | BA22: 0.0076 | BB22: 0.0088 | BC22: 0.0108 | BD22: 0.0131 | BE22: 0.0148 | BF22: 0.0157 | BG22: 0.0155 | BH22: 0.0138 | BI22: 0.0106 | BJ22: 0.0062 | BK22: 0.0007 | BL22: -0.0057 | BM22: -0.0064 | BN22: -0.0062 | BO22: -0.0054 | BP22: -0.004 | BQ22: -0.0022 | BR22: -0.0002 | BS22: 0.0018 | BT22: 0.0037 | BU22: 0.0054 | BV22: 0.0067 | BW22: 0.0076 | BX22: 0.0085 | BY22: 0.0092 | BZ22: 0.0098 | CA22: 0.0101 | CB22: 0.0103 | CC22: 0.0103 | CD22: 0.0101 | CE22: 0.01 | CF22: 0.01
B23: 38 | C23: 0.0506 | D23: 0.0458 | E23: 0.0408 | F23: 0.0354 | G23: 0.0296 | H23: 0.0236 | I23: 0.0176 | J23: 0.012 | K23: 0.0068 | L23: 0.0022 | M23: -0.0016 | N23: -0.0043 | O23: -0.0058 | P23: -0.0062 | Q23: -0.0055 | R23: -0.0039 | S23: -0.0011 | T23: 0.0032 | U23: 0.0089 | V23: 0.0157 | W23: 0.0231 | X23: 0.0302 | Y23: 0.0365 | Z23: 0.0414 | AA23: 0.0442 | AB23: 0.0449 | AC23: 0.0439 | AD23: 0.0414 | AE23: 0.038 | AF23: 0.0339 | AG23: 0.0293 | AH23: 0.024 | AI23: 0.0182 | AJ23: 0.0123 | AK23: 0.0068 | AL23: 0.002 | AM23: -0.0019 | AN23: -0.0049 | AO23: -0.0071 | AP23: -0.0089 | AQ23: -0.01 | AR23: -0.0099 | AS23: -0.0083 | AT23: -0.0052 | AU23: -0.0011 | AV23: 0.0026 | AW23: 0.0048 | AX23: 0.0053 | AY23: 0.0048 | AZ23: 0.0043 | BA23: 0.0048 | BB23: 0.0067 | BC23: 0.0097 | BD23: 0.0129 | BE23: 0.0156 | BF23: 0.0173 | BG23: 0.0178 | BH23: 0.0166 | BI23: 0.0138 | BJ23: 0.0094 | BK23: 0.0036 | BL23: -0.0033 | BM23: -0.0043 | BN23: -0.0045 | BO23: -0.0041 | BP23: -0.0031 | BQ23: -0.0017 | BR23: 0 | BS23: 0.0018 | BT23: 0.0035 | BU23: 0.005 | BV23: 0.0062 | BW23: 0.0072 | BX23: 0.008 | BY23: 0.0088 | BZ23: 0.0094 | CA23: 0.0098 | CB23: 0.0101 | CC23: 0.0102 | CD23: 0.0101 | CE23: 0.01 | CF23: 0.01
B24: 39 | C24: 0.0489 | D24: 0.0444 | E24: 0.0398 | F24: 0.0348 | G24: 0.0294 | H24: 0.0237 | I24: 0.0179 | J24: 0.0124 | K24: 0.0072 | L24: 0.0026 | M24: -0.0012 | N24: -0.004 | O24: -0.0057 | P24: -0.0062 | Q24: -0.0058 | R24: -0.0043 | S24: -0.0017 | T24: 0.0023 | U24: 0.0078 | V24: 0.0145 | W24: 0.0217 | X24: 0.0288 | Y24: 0.035 | Z24: 0.0399 | AA24: 0.0428 | AB24: 0.0439 | AC24: 0.0432 | AD24: 0.0412 | AE24: 0.0383 | AF24: 0.0346 | AG24: 0.0304 | AH24: 0.0256 | AI24: 0.0203 | AJ24: 0.015 | AK24: 0.01 | AL24: 0.0055 | AM24: 0.0017 | AN24: -0.0015 | AO24: -0.0042 | AP24: -0.0065 | AQ24: -0.0084 | AR24: -0.0091 | AS24: -0.0084 | AT24: -0.0061 | AU24: -0.003 | AV24: 0 | AW24: 0.0017 | AX24: 0.0019 | AY24: 0.0014 | AZ24: 0.001 | BA24: 0.0018 | BB24: 0.0043 | BC24: 0.0079 | BD24: 0.0119 | BE24: 0.0155 | BF24: 0.0181 | BG24: 0.0193 | BH24: 0.0188 | BI24: 0.0165 | BJ24: 0.0123 | BK24: 0.0065 | BL24: -0.0006 | BM24: -0.0018 | BN24: -0.0024 | BO24: -0.0024 | BP24: -0.0019 | BQ24: -0.0009 | BR24: 0.0004 | BS24: 0.0018 | BT24: 0.0033 | BU24: 0.0047 | BV24: 0.0058 | BW24: 0.0068 | BX24: 0.0076 | BY24: 0.0084 | BZ24: 0.0091 | CA24: 0.0096 | CB24: 0.0099 | CC24: 0.0101 | CD24: 0.0101 | CE24: 0.01 | CF24: 0.01
B25: 40 | C25: 0.0474 | D25: 0.0432 | E25: 0.0389 | F25: 0.0342 | G25: 0.029 | H25: 0.0236 | I25: 0.018 | J25: 0.0127 | K25: 0.0076 | L25: 0.003 | M25: -0.0008 | N25: -0.0036 | O25: -0.0054 | P25: -0.0062 | Q25: -0.0059 | R25: -0.0046 | S25: -0.0021 | T25: 0.0017 | U25: 0.007 | V25: 0.0134 | W25: 0.0203 | X25: 0.0272 | Y25: 0.0334 | Z25: 0.0382 | AA25: 0.0413 | AB25: 0.0426 | AC25: 0.0423 | AD25: 0.0407 | AE25: 0.0382 | AF25: 0.0349 | AG25: 0.0311 | AH25: 0.0267 | AI25: 0.022 | AJ25: 0.0173 | AK25: 0.0128 | AL25: 0.0087 | AM25: 0.0051 | AN25: 0.0019 | AO25: -0.0011 | AP25: -0.0038 | AQ25: -0.0062 | AR25: -0.0077 | AS25: -0.0077 | AT25: -0.0063 | AU25: -0.0041 | AV25: -0.0019 | AW25: -0.0008 | AX25: -0.0009 | AY25: -0.0017 | AZ25: -0.0021 | BA25: -0.0012 | BB25: 0.0015 | BC25: 0.0056 | BD25: 0.0103 | BE25: 0.0146 | BF25: 0.018 | BG25: 0.02 | BH25: 0.0202 | BI25: 0.0185 | BJ25: 0.0148 | BK25: 0.0093 | BL25: 0.0024 | BM25: 0.001 | BN25: 0.0001 | BO25: -0.0004 | BP25: -0.0003 | BQ25: 0.0001 | BR25: 0.001 | BS25: 0.0021 | BT25: 0.0033 | BU25: 0.0045 | BV25: 0.0055 | BW25: 0.0064 | BX25: 0.0073 | BY25: 0.0081 | BZ25: 0.0088 | CA25: 0.0093 | CB25: 0.0097 | CC25: 0.0099 | CD25: 0.01 | CE25: 0.01 | CF25: 0.01
B26: 41 | C26: 0.0463 | D26: 0.0422 | E26: 0.038 | F26: 0.0334 | G26: 0.0285 | H26: 0.0233 | I26: 0.018 | J26: 0.0128 | K26: 0.0078 | L26: 0.0034 | M26: -0.0003 | N26: -0.0032 | O26: -0.0051 | P26: -0.006 | Q26: -0.0058 | R26: -0.0046 | S26: -0.0023 | T26: 0.0013 | U26: 0.0063 | V26: 0.0124 | W26: 0.0191 | X26: 0.0257 | Y26: 0.0317 | Z26: 0.0365 | AA26: 0.0397 | AB26: 0.0412 | AC26: 0.0411 | AD26: 0.0399 | AE26: 0.0377 | AF26: 0.0348 | AG26: 0.0313 | AH26: 0.0274 | AI26: 0.0232 | AJ26: 0.0191 | AK26: 0.0152 | AL26: 0.0115 | AM26: 0.0082 | AN26: 0.005 | AO26: 0.0019 | AP26: -0.001 | AQ26: -0.0037 | AR26: -0.0057 | AS26: -0.0063 | AT26: -0.0057 | AU26: -0.0043 | AV26: -0.003 | AW26: -0.0025 | AX26: -0.0031 | AY26: -0.0043 | AZ26: -0.0049 | BA26: -0.0041 | BB26: -0.0014 | BC26: 0.003 | BD26: 0.0081 | BE26: 0.013 | BF26: 0.0171 | BG26: 0.0198 | BH26: 0.0207 | BI26: 0.0197 | BJ26: 0.0166 | BK26: 0.0117 | BL26: 0.0054 | BM26: 0.004 | BN26: 0.0028 | BO26: 0.0019 | BP26: 0.0015 | BQ26: 0.0014 | BR26: 0.0018 | BS26: 0.0025 | BT26: 0.0033 | BU26: 0.0043 | BV26: 0.0053 | BW26: 0.0062 | BX26: 0.007 | BY26: 0.0079 | BZ26: 0.0086 | CA26: 0.0091 | CB26: 0.0096 | CC26: 0.0098 | CD26: 0.01 | CE26: 0.01 | CF26: 0.01
B27: 42 | C27: 0.0454 | D27: 0.0413 | E27: 0.0371 | F27: 0.0326 | G27: 0.0278 | H27: 0.0228 | I27: 0.0177 | J27: 0.0127 | K27: 0.008 | L27: 0.0037 | M27: 0.0001 | N27: -0.0027 | O27: -0.0047 | P27: -0.0057 | Q27: -0.0057 | R27: -0.0046 | S27: -0.0023 | T27: 0.0011 | U27: 0.0059 | V27: 0.0117 | W27: 0.018 | X27: 0.0244 | Y27: 0.0302 | Z27: 0.0349 | AA27: 0.0381 | AB27: 0.0397 | AC27: 0.0398 | AD27: 0.0388 | AE27: 0.0369 | AF27: 0.0343 | AG27: 0.0311 | AH27: 0.0276 | AI27: 0.024 | AJ27: 0.0204 | AK27: 0.017 | AL27: 0.0138 | AM27: 0.0108 | AN27: 0.0078 | AO27: 0.0048 | AP27: 0.0018 | AQ27: -0.001 | AR27: -0.0032 | AS27: -0.0043 | AT27: -0.0043 | AU27: -0.0037 | AV27: -0.0031 | AW27: -0.0033 | AX27: -0.0046 | AY27: -0.0062 | AZ27: -0.0072 | BA27: -0.0067 | BB27: -0.0041 | BC27: 0.0002 | BD27: 0.0055 | BE27: 0.0108 | BF27: 0.0154 | BG27: 0.0188 | BH27: 0.0204 | BI27: 0.0201 | BJ27: 0.0178 | BK27: 0.0136 | BL27: 0.0081 | BM27: 0.0068 | BN27: 0.0054 | BO27: 0.0043 | BP27: 0.0034 | BQ27: 0.0029 | BR27: 0.0028 | BS27: 0.003 | BT27: 0.0036 | BU27: 0.0043 | BV27: 0.0051 | BW27: 0.006 | BX27: 0.0068 | BY27: 0.0076 | BZ27: 0.0084 | CA27: 0.009 | CB27: 0.0094 | CC27: 0.0097 | CD27: 0.0099 | CE27: 0.01 | CF27: 0.01
B28: 43 | C28: 0.0447 | D28: 0.0405 | E28: 0.0362 | F28: 0.0318 | G28: 0.027 | H28: 0.0221 | I28: 0.0173 | J28: 0.0125 | K28: 0.0081 | L28: 0.004 | M28: 0.0005 | N28: -0.0023 | O28: -0.0043 | P28: -0.0054 | Q28: -0.0054 | R28: -0.0043 | S28: -0.0021 | T28: 0.0012 | U28: 0.0058 | V28: 0.0112 | W28: 0.0172 | X28: 0.0232 | Y28: 0.0288 | Z28: 0.0333 | AA28: 0.0365 | AB28: 0.0381 | AC28: 0.0384 | AD28: 0.0375 | AE28: 0.0357 | AF28: 0.0333 | AG28: 0.0305 | AH28: 0.0274 | AI28: 0.0243 | AJ28: 0.0211 | AK28: 0.0182 | AL28: 0.0155 | AM28: 0.0128 | AN28: 0.01 | AO28: 0.0072 | AP28: 0.0044 | AQ28: 0.0017 | AR28: -0.0005 | AS28: -0.0018 | AT28: -0.0023 | AU28: -0.0022 | AV28: -0.0023 | AW28: -0.0033 | AX28: -0.0052 | AY28: -0.0074 | AZ28: -0.0089 | BA28: -0.0088 | BB28: -0.0066 | BC28: -0.0024 | BD28: 0.0028 | BE28: 0.0083 | BF28: 0.0132 | BG28: 0.017 | BH28: 0.0192 | BI28: 0.0196 | BJ28: 0.0181 | BK28: 0.0149 | BL28: 0.0104 | BM28: 0.0092 | BN28: 0.0079 | BO28: 0.0066 | BP28: 0.0054 | BQ28: 0.0045 | BR28: 0.0039 | BS28: 0.0037 | BT28: 0.0039 | BU28: 0.0044 | BV28: 0.0051 | BW28: 0.0058 | BX28: 0.0067 | BY28: 0.0075 | BZ28: 0.0082 | CA28: 0.0088 | CB28: 0.0093 | CC28: 0.0097 | CD28: 0.0099 | CE28: 0.01 | CF28: 0.01
B29: 44 | C29: 0.0439 | D29: 0.0397 | E29: 0.0354 | F29: 0.0309 | G29: 0.0262 | H29: 0.0215 | I29: 0.0168 | J29: 0.0123 | K29: 0.0081 | L29: 0.0042 | M29: 0.0008 | N29: -0.002 | O29: -0.004 | P29: -0.005 | Q29: -0.005 | R29: -0.0039 | S29: -0.0017 | T29: 0.0016 | U29: 0.0059 | V29: 0.011 | W29: 0.0166 | X29: 0.0223 | Y29: 0.0276 | Z29: 0.0319 | AA29: 0.035 | AB29: 0.0365 | AC29: 0.0368 | AD29: 0.0359 | AE29: 0.0342 | AF29: 0.032 | AG29: 0.0295 | AH29: 0.0268 | AI29: 0.0241 | AJ29: 0.0214 | AK29: 0.0189 | AL29: 0.0165 | AM29: 0.0142 | AN29: 0.0118 | AO29: 0.0093 | AP29: 0.0067 | AQ29: 0.0043 | AR29: 0.0022 | AS29: 0.0009 | AT29: 0.0003 | AU29: -0.0001 | AV29: -0.0008 | AW29: -0.0024 | AX29: -0.0049 | AY29: -0.0077 | AZ29: -0.0098 | BA29: -0.0102 | BB29: -0.0085 | BC29: -0.0048 | BD29: 0.0002 | BE29: 0.0055 | BF29: 0.0106 | BG29: 0.0146 | BH29: 0.0172 | BI29: 0.0183 | BJ29: 0.0177 | BK29: 0.0154 | BL29: 0.012 | BM29: 0.0112 | BN29: 0.01 | BO29: 0.0086 | BP29: 0.0072 | BQ29: 0.006 | BR29: 0.0051 | BS29: 0.0046 | BT29: 0.0044 | BU29: 0.0046 | BV29: 0.0051 | BW29: 0.0058 | BX29: 0.0066 | BY29: 0.0073 | BZ29: 0.0081 | CA29: 0.0087 | CB29: 0.0092 | CC29: 0.0096 | CD29: 0.0098 | CE29: 0.01 | CF29: 0.01
B30: 45 | C30: 0.0429 | D30: 0.0387 | E30: 0.0345 | F30: 0.0301 | G30: 0.0255 | H30: 0.0209 | I30: 0.0164 | J30: 0.0121 | K30: 0.0081 | L30: 0.0043 | M30: 0.001 | N30: -0.0017 | O30: -0.0036 | P30: -0.0046 | Q30: -0.0045 | R30: -0.0034 | S30: -0.0012 | T30: 0.002 | U30: 0.0062 | V30: 0.0111 | W30: 0.0163 | X30: 0.0216 | Y30: 0.0265 | Z30: 0.0306 | AA30: 0.0335 | AB30: 0.0349 | AC30: 0.035 | AD30: 0.0342 | AE30: 0.0325 | AF30: 0.0304 | AG30: 0.0281 | AH30: 0.0258 | AI30: 0.0235 | AJ30: 0.0212 | AK30: 0.019 | AL30: 0.017 | AM30: 0.015 | AN30: 0.013 | AO30: 0.0109 | AP30: 0.0087 | AQ30: 0.0067 | AR30: 0.005 | AS30: 0.0037 | AT30: 0.003 | AU30: 0.0024 | AV30: 0.0013 | AW30: -0.0008 | AX30: -0.0039 | AY30: -0.0072 | AZ30: -0.0098 | BA30: -0.0109 | BB30: -0.0097 | BC30: -0.0066 | BD30: -0.0022 | BE30: 0.0028 | BF30: 0.0077 | BG30: 0.0118 | BH30: 0.0147 | BI30: 0.0163 | BJ30: 0.0165 | BK30: 0.0152 | BL30: 0.0129 | BM30: 0.0124 | BN30: 0.0115 | BO30: 0.0102 | BP30: 0.0089 | BQ30: 0.0075 | BR30: 0.0064 | BS30: 0.0055 | BT30: 0.0051 | BU30: 0.005 | BV30: 0.0053 | BW30: 0.0058 | BX30: 0.0065 | BY30: 0.0072 | BZ30: 0.008 | CA30: 0.0086 | CB30: 0.0091 | CC30: 0.0095 | CD30: 0.0098 | CE30: 0.01 | CF30: 0.01
B31: 46 | C31: 0.0415 | D31: 0.0376 | E31: 0.0336 | F31: 0.0294 | G31: 0.025 | H31: 0.0205 | I31: 0.0162 | J31: 0.0121 | K31: 0.0081 | L31: 0.0045 | M31: 0.0012 | N31: -0.0014 | O31: -0.0033 | P31: -0.0041 | Q31: -0.004 | R31: -0.0028 | S31: -0.0006 | T31: 0.0027 | U31: 0.0067 | V31: 0.0113 | W31: 0.0162 | X31: 0.0211 | Y31: 0.0257 | Z31: 0.0294 | AA31: 0.032 | AB31: 0.0332 | AC31: 0.0332 | AD31: 0.0323 | AE31: 0.0307 | AF31: 0.0287 | AG31: 0.0266 | AH31: 0.0246 | AI31: 0.0225 | AJ31: 0.0205 | AK31: 0.0187 | AL31: 0.017 | AM31: 0.0154 | AN31: 0.0138 | AO31: 0.0122 | AP31: 0.0104 | AQ31: 0.0088 | AR31: 0.0075 | AS31: 0.0064 | AT31: 0.0057 | AU31: 0.005 | AV31: 0.0037 | AW31: 0.0012 | AX31: -0.0022 | AY31: -0.0059 | AZ31: -0.009 | BA31: -0.0106 | BB31: -0.0102 | BC31: -0.0078 | BD31: -0.0041 | BE31: 0.0004 | BF31: 0.0049 | BG31: 0.0089 | BH31: 0.0119 | BI31: 0.0139 | BJ31: 0.0147 | BK31: 0.0142 | BL31: 0.0129 | BM31: 0.0128 | BN31: 0.0123 | BO31: 0.0113 | BP31: 0.0101 | BQ31: 0.0088 | BR31: 0.0075 | BS31: 0.0065 | BT31: 0.0058 | BU31: 0.0055 | BV31: 0.0056 | BW31: 0.006 | BX31: 0.0066 | BY31: 0.0072 | BZ31: 0.0079 | CA31: 0.0085 | CB31: 0.0091 | CC31: 0.0095 | CD31: 0.0098 | CE31: 0.01 | CF31: 0.01
B32: 47 | C32: 0.0398 | D32: 0.0362 | E32: 0.0326 | F32: 0.0288 | G32: 0.0246 | H32: 0.0204 | I32: 0.0162 | J32: 0.0121 | K32: 0.0083 | L32: 0.0047 | M32: 0.0015 | N32: -0.0011 | O32: -0.0029 | P32: -0.0037 | Q32: -0.0034 | R32: -0.0022 | S32: 0.0001 | T32: 0.0033 | U32: 0.0072 | V32: 0.0116 | W32: 0.0162 | X32: 0.0208 | Y32: 0.025 | Z32: 0.0283 | AA32: 0.0306 | AB32: 0.0315 | AC32: 0.0314 | AD32: 0.0304 | AE32: 0.0288 | AF32: 0.0269 | AG32: 0.0249 | AH32: 0.0231 | AI32: 0.0212 | AJ32: 0.0194 | AK32: 0.0179 | AL32: 0.0165 | AM32: 0.0153 | AN32: 0.0142 | AO32: 0.0131 | AP32: 0.0119 | AQ32: 0.0107 | AR32: 0.0097 | AS32: 0.0089 | AT32: 0.0083 | AU32: 0.0076 | AV32: 0.0061 | AW32: 0.0036 | AX32: 0.0001 | AY32: -0.0039 | AZ32: -0.0074 | BA32: -0.0095 | BB32: -0.0098 | BC32: -0.0082 | BD32: -0.0053 | BE32: -0.0015 | BF32: 0.0024 | BG32: 0.0061 | BH32: 0.009 | BI32: 0.0112 | BJ32: 0.0124 | BK32: 0.0126 | BL32: 0.012 | BM32: 0.0124 | BN32: 0.0123 | BO32: 0.0117 | BP32: 0.0108 | BQ32: 0.0097 | BR32: 0.0085 | BS32: 0.0075 | BT32: 0.0067 | BU32: 0.0062 | BV32: 0.0061 | BW32: 0.0063 | BX32: 0.0067 | BY32: 0.0072 | BZ32: 0.0079 | CA32: 0.0085 | CB32: 0.009 | CC32: 0.0095 | CD32: 0.0098 | CE32: 0.0099 | CF32: 0.01
B33: 48 | C33: 0.0377 | D33: 0.0347 | E33: 0.0316 | F33: 0.0282 | G33: 0.0245 | H33: 0.0204 | I33: 0.0164 | J33: 0.0124 | K33: 0.0086 | L33: 0.0051 | M33: 0.0019 | N33: -0.0007 | O33: -0.0024 | P33: -0.0031 | Q33: -0.0029 | R33: -0.0015 | S33: 0.0008 | T33: 0.0039 | U33: 0.0077 | V33: 0.0119 | W33: 0.0163 | X33: 0.0205 | Y33: 0.0243 | Z33: 0.0273 | AA33: 0.0292 | AB33: 0.0299 | AC33: 0.0295 | AD33: 0.0284 | AE33: 0.0269 | AF33: 0.025 | AG33: 0.0232 | AH33: 0.0214 | AI33: 0.0196 | AJ33: 0.018 | AK33: 0.0167 | AL33: 0.0157 | AM33: 0.015 | AN33: 0.0144 | AO33: 0.0137 | AP33: 0.013 | AQ33: 0.0122 | AR33: 0.0115 | AS33: 0.0109 | AT33: 0.0104 | AU33: 0.0098 | AV33: 0.0084 | AW33: 0.006 | AX33: 0.0026 | AY33: -0.0014 | AZ33: -0.0051 | BA33: -0.0077 | BB33: -0.0086 | BC33: -0.0078 | BD33: -0.0057 | BE33: -0.0028 | BF33: 0.0005 | BG33: 0.0036 | BH33: 0.0063 | BI33: 0.0084 | BJ33: 0.0098 | BK33: 0.0104 | BL33: 0.0104 | BM33: 0.0112 | BN33: 0.0116 | BO33: 0.0115 | BP33: 0.011 | BQ33: 0.0103 | BR33: 0.0093 | BS33: 0.0084 | BT33: 0.0076 | BU33: 0.007 | BV33: 0.0067 | BW33: 0.0067 | BX33: 0.0069 | BY33: 0.0073 | BZ33: 0.0079 | CA33: 0.0085 | CB33: 0.009 | CC33: 0.0094 | CD33: 0.0097 | CE33: 0.0099 | CF33: 0.01
B34: 49 | C34: 0.0355 | D34: 0.0331 | E34: 0.0306 | F34: 0.0277 | G34: 0.0244 | H34: 0.0207 | I34: 0.0168 | J34: 0.0129 | K34: 0.0092 | L34: 0.0056 | M34: 0.0024 | N34: -0.0001 | O34: -0.0019 | P34: -0.0026 | Q34: -0.0023 | R34: -0.001 | S34: 0.0013 | T34: 0.0043 | U34: 0.008 | V34: 0.012 | W34: 0.0163 | X34: 0.0203 | Y34: 0.0238 | Z34: 0.0264 | AA34: 0.0279 | AB34: 0.0283 | AC34: 0.0278 | AD34: 0.0266 | AE34: 0.0251 | AF34: 0.0232 | AG34: 0.0214 | AH34: 0.0196 | AI34: 0.0179 | AJ34: 0.0165 | AK34: 0.0154 | AL34: 0.0147 | AM34: 0.0144 | AN34: 0.0143 | AO34: 0.0141 | AP34: 0.0138 | AQ34: 0.0133 | AR34: 0.0129 | AS34: 0.0125 | AT34: 0.0121 | AU34: 0.0116 | AV34: 0.0105 | AW34: 0.0083 | AX34: 0.0051 | AY34: 0.0013 | AZ34: -0.0023 | BA34: -0.0051 | BB34: -0.0066 | BC34: -0.0065 | BD34: -0.0053 | BE34: -0.0033 | BF34: -0.0008 | BG34: 0.0017 | BH34: 0.0039 | BI34: 0.0058 | BJ34: 0.0071 | BK34: 0.0078 | BL34: 0.008 | BM34: 0.0092 | BN34: 0.0101 | BO34: 0.0106 | BP34: 0.0107 | BQ34: 0.0104 | BR34: 0.0098 | BS34: 0.0091 | BT34: 0.0084 | BU34: 0.0078 | BV34: 0.0074 | BW34: 0.0072 | BX34: 0.0072 | BY34: 0.0075 | BZ34: 0.008 | CA34: 0.0085 | CB34: 0.009 | CC34: 0.0094 | CD34: 0.0097 | CE34: 0.0099 | CF34: 0.01
B35: 50 | C35: 0.0333 | D35: 0.0315 | E35: 0.0295 | F35: 0.0272 | G35: 0.0244 | H35: 0.0209 | I35: 0.0172 | J35: 0.0135 | K35: 0.0099 | L35: 0.0064 | M35: 0.0032 | N35: 0.0006 | O35: -0.0012 | P35: -0.002 | Q35: -0.0018 | R35: -0.0005 | S35: 0.0016 | T35: 0.0044 | U35: 0.008 | V35: 0.012 | W35: 0.0161 | X35: 0.02 | Y35: 0.0232 | Z35: 0.0255 | AA35: 0.0268 | AB35: 0.0269 | AC35: 0.0263 | AD35: 0.025 | AE35: 0.0233 | AF35: 0.0215 | AG35: 0.0196 | AH35: 0.0178 | AI35: 0.0161 | AJ35: 0.0148 | AK35: 0.0139 | AL35: 0.0135 | AM35: 0.0136 | AN35: 0.0139 | AO35: 0.0142 | AP35: 0.0142 | AQ35: 0.0141 | AR35: 0.0138 | AS35: 0.0136 | AT35: 0.0134 | AU35: 0.013 | AV35: 0.0122 | AW35: 0.0104 | AX35: 0.0076 | AY35: 0.0041 | AZ35: 0.0007 | BA35: -0.0022 | BB35: -0.0039 | BC35: -0.0045 | BD35: -0.004 | BE35: -0.0028 | BF35: -0.0012 | BG35: 0.0005 | BH35: 0.0022 | BI35: 0.0035 | BJ35: 0.0045 | BK35: 0.0051 | BL35: 0.0052 | BM35: 0.0067 | BN35: 0.008 | BO35: 0.0091 | BP35: 0.0097 | BQ35: 0.01 | BR35: 0.0099 | BS35: 0.0096 | BT35: 0.0091 | BU35: 0.0086 | BV35: 0.0081 | BW35: 0.0077 | BX35: 0.0077 | BY35: 0.0078 | BZ35: 0.0081 | CA35: 0.0085 | CB35: 0.009 | CC35: 0.0094 | CD35: 0.0097 | CE35: 0.0099 | CF35: 0.01
B36: 51 | C36: 0.0313 | D36: 0.0301 | E36: 0.0286 | F36: 0.0267 | G36: 0.0242 | H36: 0.0211 | I36: 0.0177 | J36: 0.0142 | K36: 0.0107 | L36: 0.0073 | M36: 0.0041 | N36: 0.0015 | O36: -0.0004 | P36: -0.0013 | Q36: -0.0013 | R36: -0.0003 | S36: 0.0016 | T36: 0.0043 | U36: 0.0078 | V36: 0.0117 | W36: 0.0158 | X36: 0.0195 | Y36: 0.0226 | Z36: 0.0248 | AA36: 0.0259 | AB36: 0.0258 | AC36: 0.025 | AD36: 0.0235 | AE36: 0.0218 | AF36: 0.0198 | AG36: 0.0178 | AH36: 0.016 | AI36: 0.0143 | AJ36: 0.0131 | AK36: 0.0125 | AL36: 0.0124 | AM36: 0.0128 | AN36: 0.0134 | AO36: 0.014 | AP36: 0.0144 | AQ36: 0.0145 | AR36: 0.0144 | AS36: 0.0143 | AT36: 0.0142 | AU36: 0.014 | AV36: 0.0134 | AW36: 0.012 | AX36: 0.0097 | AY36: 0.0067 | AZ36: 0.0036 | BA36: 0.001 | BB36: -0.0009 | BC36: -0.0018 | BD36: -0.0019 | BE36: -0.0015 | BF36: -0.0006 | BG36: 0.0003 | BH36: 0.0011 | BI36: 0.0018 | BJ36: 0.0023 | BK36: 0.0024 | BL36: 0.0021 | BM36: 0.0038 | BN36: 0.0055 | BO36: 0.0071 | BP36: 0.0084 | BQ36: 0.0093 | BR36: 0.0097 | BS36: 0.0099 | BT36: 0.0097 | BU36: 0.0093 | BV36: 0.0088 | BW36: 0.0084 | BX36: 0.0081 | BY36: 0.0081 | BZ36: 0.0083 | CA36: 0.0086 | CB36: 0.009 | CC36: 0.0094 | CD36: 0.0097 | CE36: 0.0099 | CF36: 0.01
B37: 52 | C37: 0.0299 | D37: 0.0289 | E37: 0.0277 | F37: 0.0261 | G37: 0.024 | H37: 0.0212 | I37: 0.018 | J37: 0.0148 | K37: 0.0115 | L37: 0.0083 | M37: 0.0053 | N37: 0.0026 | O37: 0.0005 | P37: -0.0006 | Q37: -0.0008 | R37: -0.0001 | S37: 0.0015 | T37: 0.004 | U37: 0.0073 | V37: 0.0112 | W37: 0.0152 | X37: 0.019 | Y37: 0.0221 | Z37: 0.0242 | AA37: 0.0251 | AB37: 0.025 | AC37: 0.024 | AD37: 0.0223 | AE37: 0.0203 | AF37: 0.0182 | AG37: 0.0161 | AH37: 0.0142 | AI37: 0.0126 | AJ37: 0.0116 | AK37: 0.0111 | AL37: 0.0113 | AM37: 0.0119 | AN37: 0.0128 | AO37: 0.0136 | AP37: 0.0142 | AQ37: 0.0145 | AR37: 0.0146 | AS37: 0.0147 | AT37: 0.0147 | AU37: 0.0146 | AV37: 0.0143 | AW37: 0.0132 | AX37: 0.0114 | AY37: 0.009 | AZ37: 0.0064 | BA37: 0.0042 | BB37: 0.0025 | BC37: 0.0014 | BD37: 0.0009 | BE37: 0.0007 | BF37: 0.0008 | BG37: 0.0009 | BH37: 0.0009 | BI37: 0.0008 | BJ37: 0.0005 | BK37: -0.0001 | BL37: -0.0009 | BM37: 0.0008 | BN37: 0.0028 | BO37: 0.0048 | BP37: 0.0066 | BQ37: 0.0081 | BR37: 0.0092 | BS37: 0.0099 | BT37: 0.0101 | BU37: 0.01 | BV37: 0.0095 | BW37: 0.009 | BX37: 0.0087 | BY37: 0.0085 | BZ37: 0.0086 | CA37: 0.0088 | CB37: 0.0091 | CC37: 0.0094 | CD37: 0.0097 | CE37: 0.0099 | CF37: 0.01
B38: 53 | C38: 0.029 | D38: 0.0281 | E38: 0.027 | F38: 0.0255 | G38: 0.0235 | H38: 0.021 | I38: 0.0181 | J38: 0.0152 | K38: 0.0123 | L38: 0.0093 | M38: 0.0064 | N38: 0.0037 | O38: 0.0016 | P38: 0.0002 | Q38: -0.0004 | R38: 0 | S38: 0.0013 | T38: 0.0035 | U38: 0.0067 | V38: 0.0105 | W38: 0.0145 | X38: 0.0183 | Y38: 0.0214 | Z38: 0.0236 | AA38: 0.0246 | AB38: 0.0244 | AC38: 0.0232 | AD38: 0.0213 | AE38: 0.019 | AF38: 0.0166 | AG38: 0.0144 | AH38: 0.0125 | AI38: 0.011 | AJ38: 0.0102 | AK38: 0.0099 | AL38: 0.0102 | AM38: 0.011 | AN38: 0.012 | AO38: 0.013 | AP38: 0.0137 | AQ38: 0.0143 | AR38: 0.0145 | AS38: 0.0147 | AT38: 0.0149 | AU38: 0.0149 | AV38: 0.0147 | AW38: 0.0139 | AX38: 0.0126 | AY38: 0.0108 | AZ38: 0.0088 | BA38: 0.0071 | BB38: 0.0058 | BC38: 0.0049 | BD38: 0.0042 | BE38: 0.0037 | BF38: 0.0031 | BG38: 0.0025 | BH38: 0.0016 | BI38: 0.0006 | BJ38: -0.0007 | BK38: -0.0021 | BL38: -0.0037 | BM38: -0.0021 | BN38: 0 | BO38: 0.0024 | BP38: 0.0047 | BQ38: 0.0067 | BR38: 0.0084 | BS38: 0.0096 | BT38: 0.0102 | BU38: 0.0104 | BV38: 0.0101 | BW38: 0.0096 | BX38: 0.0092 | BY38: 0.0089 | BZ38: 0.0089 | CA38: 0.009 | CB38: 0.0092 | CC38: 0.0095 | CD38: 0.0097 | CE38: 0.0099 | CF38: 0.01
B39: 54 | C39: 0.0288 | D39: 0.0277 | E39: 0.0264 | F39: 0.0249 | G39: 0.0229 | H39: 0.0205 | I39: 0.018 | J39: 0.0154 | K39: 0.0129 | L39: 0.0102 | M39: 0.0075 | N39: 0.0049 | O39: 0.0026 | P39: 0.001 | Q39: 0.0002 | R39: 0.0001 | S39: 0.0011 | T39: 0.0031 | U39: 0.006 | V39: 0.0097 | W39: 0.0137 | X39: 0.0175 | Y39: 0.0208 | Z39: 0.0231 | AA39: 0.0241 | AB39: 0.0239 | AC39: 0.0226 | AD39: 0.0204 | AE39: 0.0178 | AF39: 0.0151 | AG39: 0.0128 | AH39: 0.0109 | AI39: 0.0096 | AJ39: 0.0089 | AK39: 0.0089 | AL39: 0.0093 | AM39: 0.0102 | AN39: 0.0112 | AO39: 0.0123 | AP39: 0.0131 | AQ39: 0.0138 | AR39: 0.0142 | AS39: 0.0145 | AT39: 0.0147 | AU39: 0.0148 | AV39: 0.0147 | AW39: 0.0142 | AX39: 0.0133 | AY39: 0.0121 | AZ39: 0.0108 | BA39: 0.0098 | BB39: 0.0089 | BC39: 0.0083 | BD39: 0.0078 | BE39: 0.007 | BF39: 0.006 | BG39: 0.0047 | BH39: 0.0031 | BI39: 0.0011 | BJ39: -0.0011 | BK39: -0.0034 | BL39: -0.0059 | BM39: -0.0046 | BN39: -0.0025 | BO39: 0.0001 | BP39: 0.0027 | BQ39: 0.0052 | BR39: 0.0073 | BS39: 0.009 | BT39: 0.0101 | BU39: 0.0106 | BV39: 0.0105 | BW39: 0.0101 | BX39: 0.0097 | BY39: 0.0093 | BZ39: 0.0092 | CA39: 0.0092 | CB39: 0.0093 | CC39: 0.0095 | CD39: 0.0098 | CE39: 0.0099 | CF39: 0.01
B40: 55 | C40: 0.029 | D40: 0.0275 | E40: 0.026 | F40: 0.0242 | G40: 0.0221 | H40: 0.0198 | I40: 0.0175 | J40: 0.0153 | K40: 0.0131 | L40: 0.0108 | M40: 0.0084 | N40: 0.0059 | O40: 0.0037 | P40: 0.002 | Q40: 0.0008 | R40: 0.0005 | S40: 0.0011 | T40: 0.0028 | U40: 0.0055 | V40: 0.009 | W40: 0.0129 | X40: 0.0168 | Y40: 0.0201 | Z40: 0.0225 | AA40: 0.0236 | AB40: 0.0234 | AC40: 0.022 | AD40: 0.0196 | AE40: 0.0167 | AF40: 0.0138 | AG40: 0.0113 | AH40: 0.0094 | AI40: 0.0083 | AJ40: 0.0078 | AK40: 0.008 | AL40: 0.0085 | AM40: 0.0094 | AN40: 0.0104 | AO40: 0.0115 | AP40: 0.0124 | AQ40: 0.0132 | AR40: 0.0137 | AS40: 0.0141 | AT40: 0.0144 | AU40: 0.0145 | AV40: 0.0145 | AW40: 0.0142 | AX40: 0.0136 | AY40: 0.013 | AZ40: 0.0124 | BA40: 0.012 | BB40: 0.0118 | BC40: 0.0116 | BD40: 0.0113 | BE40: 0.0105 | BF40: 0.0093 | BG40: 0.0075 | BH40: 0.0052 | BI40: 0.0024 | BJ40: -0.0006 | BK40: -0.004 | BL40: -0.0074 | BM40: -0.0064 | BN40: -0.0045 | BO40: -0.002 | BP40: 0.0008 | BQ40: 0.0036 | BR40: 0.0062 | BS40: 0.0083 | BT40: 0.0098 | BU40: 0.0106 | BV40: 0.0107 | BW40: 0.0104 | BX40: 0.0101 | BY40: 0.0097 | BZ40: 0.0095 | CA40: 0.0094 | CB40: 0.0094 | CC40: 0.0096 | CD40: 0.0098 | CE40: 0.0099 | CF40: 0.01
B41: 56 | C41: 0.0295 | D41: 0.0276 | E41: 0.0257 | F41: 0.0236 | G41: 0.0213 | H41: 0.0189 | I41: 0.0168 | J41: 0.0149 | K41: 0.013 | L41: 0.011 | M41: 0.0089 | N41: 0.0067 | O41: 0.0047 | P41: 0.003 | Q41: 0.0018 | R41: 0.0012 | S41: 0.0015 | T41: 0.0029 | U41: 0.0053 | V41: 0.0086 | W41: 0.0123 | X41: 0.0161 | Y41: 0.0194 | Z41: 0.0219 | AA41: 0.0231 | AB41: 0.0229 | AC41: 0.0214 | AD41: 0.0188 | AE41: 0.0158 | AF41: 0.0126 | AG41: 0.01 | AH41: 0.0082 | AI41: 0.0071 | AJ41: 0.0068 | AK41: 0.0071 | AL41: 0.0078 | AM41: 0.0087 | AN41: 0.0097 | AO41: 0.0108 | AP41: 0.0118 | AQ41: 0.0125 | AR41: 0.0131 | AS41: 0.0135 | AT41: 0.0138 | AU41: 0.0139 | AV41: 0.0139 | AW41: 0.0138 | AX41: 0.0137 | AY41: 0.0135 | AZ41: 0.0135 | BA41: 0.0138 | BB41: 0.0142 | BC41: 0.0145 | BD41: 0.0145 | BE41: 0.0139 | BF41: 0.0126 | BG41: 0.0105 | BH41: 0.0078 | BI41: 0.0044 | BJ41: 0.0006 | BK41: -0.0036 | BL41: -0.0079 | BM41: -0.0074 | BN41: -0.0058 | BO41: -0.0035 | BP41: -0.0007 | BQ41: 0.0022 | BR41: 0.005 | BS41: 0.0074 | BT41: 0.0092 | BU41: 0.0103 | BV41: 0.0107 | BW41: 0.0106 | BX41: 0.0104 | BY41: 0.0101 | BZ41: 0.0098 | CA41: 0.0096 | CB41: 0.0096 | CC41: 0.0097 | CD41: 0.0098 | CE41: 0.0099 | CF41: 0.01
B42: 57 | C42: 0.0301 | D42: 0.0278 | E42: 0.0255 | F42: 0.023 | G42: 0.0204 | H42: 0.0179 | I42: 0.0158 | J42: 0.0141 | K42: 0.0125 | L42: 0.0108 | M42: 0.0091 | N42: 0.0073 | O42: 0.0056 | P42: 0.0041 | Q42: 0.0029 | R42: 0.0022 | S42: 0.0024 | T42: 0.0034 | U42: 0.0056 | V42: 0.0085 | W42: 0.012 | X42: 0.0155 | Y42: 0.0187 | Z42: 0.0211 | AA42: 0.0223 | AB42: 0.0221 | AC42: 0.0206 | AD42: 0.018 | AE42: 0.0148 | AF42: 0.0116 | AG42: 0.009 | AH42: 0.0071 | AI42: 0.0062 | AJ42: 0.006 | AK42: 0.0064 | AL42: 0.0072 | AM42: 0.0081 | AN42: 0.0092 | AO42: 0.0102 | AP42: 0.0112 | AQ42: 0.0119 | AR42: 0.0124 | AS42: 0.0127 | AT42: 0.013 | AU42: 0.0131 | AV42: 0.0132 | AW42: 0.0133 | AX42: 0.0135 | AY42: 0.0138 | AZ42: 0.0143 | BA42: 0.0151 | BB42: 0.0161 | BC42: 0.0169 | BD42: 0.0172 | BE42: 0.0169 | BF42: 0.0157 | BG42: 0.0136 | BH42: 0.0106 | BI42: 0.0068 | BJ42: 0.0024 | BK42: -0.0024 | BL42: -0.0075 | BM42: -0.0074 | BN42: -0.0063 | BO42: -0.0044 | BP42: -0.0018 | BQ42: 0.001 | BR42: 0.0038 | BS42: 0.0064 | BT42: 0.0084 | BU42: 0.0099 | BV42: 0.0105 | BW42: 0.0106 | BX42: 0.0105 | BY42: 0.0103 | BZ42: 0.01 | CA42: 0.0099 | CB42: 0.0098 | CC42: 0.0098 | CD42: 0.0099 | CE42: 0.01 | CF42: 0.01
B43: 58 | C43: 0.0307 | D43: 0.028 | E43: 0.0252 | F43: 0.0224 | G43: 0.0196 | H43: 0.0169 | I43: 0.0148 | J43: 0.013 | K43: 0.0116 | L43: 0.0103 | M43: 0.0089 | N43: 0.0076 | O43: 0.0063 | P43: 0.0052 | Q43: 0.0042 | R43: 0.0037 | S43: 0.0037 | T43: 0.0045 | U43: 0.0063 | V43: 0.0089 | W43: 0.0119 | X43: 0.0151 | Y43: 0.018 | Z43: 0.0202 | AA43: 0.0213 | AB43: 0.0211 | AC43: 0.0196 | AD43: 0.017 | AE43: 0.0139 | AF43: 0.0107 | AG43: 0.008 | AH43: 0.0062 | AI43: 0.0053 | AJ43: 0.0052 | AK43: 0.0058 | AL43: 0.0067 | AM43: 0.0077 | AN43: 0.0088 | AO43: 0.0099 | AP43: 0.0107 | AQ43: 0.0113 | AR43: 0.0117 | AS43: 0.0119 | AT43: 0.012 | AU43: 0.0121 | AV43: 0.0123 | AW43: 0.0126 | AX43: 0.0131 | AY43: 0.0138 | AZ43: 0.0148 | BA43: 0.0161 | BB43: 0.0174 | BC43: 0.0187 | BD43: 0.0194 | BE43: 0.0194 | BF43: 0.0184 | BG43: 0.0165 | BH43: 0.0135 | BI43: 0.0095 | BJ43: 0.0048 | BK43: -0.0005 | BL43: -0.0062 | BM43: -0.0066 | BN43: -0.006 | BO43: -0.0045 | BP43: -0.0024 | BQ43: 0.0002 | BR43: 0.0029 | BS43: 0.0054 | BT43: 0.0076 | BU43: 0.0092 | BV43: 0.0101 | BW43: 0.0104 | BX43: 0.0105 | BY43: 0.0104 | BZ43: 0.0102 | CA43: 0.01 | CB43: 0.0099 | CC43: 0.0099 | CD43: 0.0099 | CE43: 0.01 | CF43: 0.01
B44: 59 | C44: 0.031 | D44: 0.028 | E44: 0.0249 | F44: 0.0218 | G44: 0.0188 | H44: 0.016 | I44: 0.0137 | J44: 0.0119 | K44: 0.0106 | L44: 0.0095 | M44: 0.0085 | N44: 0.0077 | O44: 0.0069 | P44: 0.0063 | Q44: 0.0057 | R44: 0.0054 | S44: 0.0054 | T44: 0.0061 | U44: 0.0075 | V44: 0.0096 | W44: 0.0122 | X44: 0.0149 | Y44: 0.0174 | Z44: 0.0193 | AA44: 0.0202 | AB44: 0.0199 | AC44: 0.0184 | AD44: 0.016 | AE44: 0.0129 | AF44: 0.0099 | AG44: 0.0073 | AH44: 0.0055 | AI44: 0.0046 | AJ44: 0.0046 | AK44: 0.0052 | AL44: 0.0063 | AM44: 0.0074 | AN44: 0.0086 | AO44: 0.0097 | AP44: 0.0104 | AQ44: 0.0108 | AR44: 0.011 | AS44: 0.0109 | AT44: 0.0109 | AU44: 0.011 | AV44: 0.0113 | AW44: 0.0118 | AX44: 0.0126 | AY44: 0.0137 | AZ44: 0.015 | BA44: 0.0166 | BB44: 0.0184 | BC44: 0.02 | BD44: 0.0211 | BE44: 0.0214 | BF44: 0.0207 | BG44: 0.019 | BH44: 0.0161 | BI44: 0.0123 | BJ44: 0.0075 | BK44: 0.002 | BL44: -0.0041 | BM44: -0.0049 | BN44: -0.0048 | BO44: -0.004 | BP44: -0.0024 | BQ44: -0.0003 | BR44: 0.0021 | BS44: 0.0045 | BT44: 0.0067 | BU44: 0.0084 | BV44: 0.0095 | BW44: 0.0101 | BX44: 0.0104 | BY44: 0.0104 | BZ44: 0.0103 | CA44: 0.0102 | CB44: 0.01 | CC44: 0.0099 | CD44: 0.0099 | CE44: 0.01 | CF44: 0.01
B45: 60 | C45: 0.031 | D45: 0.0278 | E45: 0.0245 | F45: 0.0212 | G45: 0.018 | H45: 0.015 | I45: 0.0126 | J45: 0.0108 | K45: 0.0095 | L45: 0.0086 | M45: 0.008 | N45: 0.0076 | O45: 0.0074 | P45: 0.0073 | Q45: 0.0073 | R45: 0.0073 | S45: 0.0074 | T45: 0.008 | U45: 0.0091 | V45: 0.0108 | W45: 0.0128 | X45: 0.015 | Y45: 0.0169 | Z45: 0.0184 | AA45: 0.019 | AB45: 0.0185 | AC45: 0.0171 | AD45: 0.0147 | AE45: 0.0119 | AF45: 0.009 | AG45: 0.0065 | AH45: 0.0048 | AI45: 0.0039 | AJ45: 0.004 | AK45: 0.0048 | AL45: 0.006 | AM45: 0.0073 | AN45: 0.0086 | AO45: 0.0096 | AP45: 0.0102 | AQ45: 0.0104 | AR45: 0.0103 | AS45: 0.01 | AT45: 0.0098 | AU45: 0.0098 | AV45: 0.0102 | AW45: 0.0109 | AX45: 0.012 | AY45: 0.0134 | AZ45: 0.015 | BA45: 0.0169 | BB45: 0.0189 | BC45: 0.0208 | BD45: 0.0222 | BE45: 0.0228 | BF45: 0.0225 | BG45: 0.0211 | BH45: 0.0185 | BI45: 0.0149 | BJ45: 0.0102 | BK45: 0.0046 | BL45: -0.0015 | BM45: -0.0026 | BN45: -0.003 | BO45: -0.0027 | BP45: -0.0018 | BQ45: -0.0002 | BR45: 0.0017 | BS45: 0.0038 | BT45: 0.0059 | BU45: 0.0076 | BV45: 0.0088 | BW45: 0.0096 | BX45: 0.0101 | BY45: 0.0103 | BZ45: 0.0103 | CA45: 0.0102 | CB45: 0.0101 | CC45: 0.01 | CD45: 0.01 | CE45: 0.01 | CF45: 0.01
B46: 61 | C46: 0.0305 | D46: 0.0272 | E46: 0.0239 | F46: 0.0205 | G46: 0.0172 | H46: 0.0142 | I46: 0.0118 | J46: 0.0099 | K46: 0.0087 | L46: 0.0079 | M46: 0.0076 | N46: 0.0076 | O46: 0.0079 | P46: 0.0083 | Q46: 0.0087 | R46: 0.0091 | S46: 0.0095 | T46: 0.01 | U46: 0.0109 | V46: 0.0122 | W46: 0.0137 | X46: 0.0152 | Y46: 0.0166 | Z46: 0.0176 | AA46: 0.0178 | AB46: 0.0172 | AC46: 0.0156 | AD46: 0.0134 | AE46: 0.0108 | AF46: 0.0081 | AG46: 0.0058 | AH46: 0.0041 | AI46: 0.0034 | AJ46: 0.0035 | AK46: 0.0044 | AL46: 0.0058 | AM46: 0.0073 | AN46: 0.0087 | AO46: 0.0097 | AP46: 0.0101 | AQ46: 0.01 | AR46: 0.0096 | AS46: 0.009 | AT46: 0.0086 | AU46: 0.0086 | AV46: 0.0091 | AW46: 0.01 | AX46: 0.0113 | AY46: 0.0129 | AZ46: 0.0148 | BA46: 0.017 | BB46: 0.0192 | BC46: 0.0213 | BD46: 0.0229 | BE46: 0.0238 | BF46: 0.0238 | BG46: 0.0227 | BH46: 0.0204 | BI46: 0.017 | BJ46: 0.0126 | BK46: 0.0073 | BL46: 0.0013 | BM46: 0 | BN46: -0.0008 | BO46: -0.001 | BP46: -0.0007 | BQ46: 0.0003 | BR46: 0.0016 | BS46: 0.0033 | BT46: 0.0051 | BU46: 0.0067 | BV46: 0.008 | BW46: 0.009 | BX46: 0.0097 | BY46: 0.0101 | BZ46: 0.0102 | CA46: 0.0102 | CB46: 0.0102 | CC46: 0.0101 | CD46: 0.01 | CE46: 0.01 | CF46: 0.01
B47: 62 | C47: 0.0297 | D47: 0.0264 | E47: 0.0231 | F47: 0.0198 | G47: 0.0165 | H47: 0.0136 | I47: 0.0111 | J47: 0.0093 | K47: 0.0081 | L47: 0.0075 | M47: 0.0073 | N47: 0.0076 | O47: 0.0083 | P47: 0.0092 | Q47: 0.0101 | R47: 0.0108 | S47: 0.0115 | T47: 0.0121 | U47: 0.0129 | V47: 0.0137 | W47: 0.0147 | X47: 0.0157 | Y47: 0.0165 | Z47: 0.017 | AA47: 0.0168 | AB47: 0.0159 | AC47: 0.0143 | AD47: 0.0121 | AE47: 0.0096 | AF47: 0.0071 | AG47: 0.005 | AH47: 0.0035 | AI47: 0.0029 | AJ47: 0.0032 | AK47: 0.0042 | AL47: 0.0057 | AM47: 0.0074 | AN47: 0.0089 | AO47: 0.0098 | AP47: 0.0101 | AQ47: 0.0097 | AR47: 0.0089 | AS47: 0.008 | AT47: 0.0075 | AU47: 0.0074 | AV47: 0.0079 | AW47: 0.009 | AX47: 0.0105 | AY47: 0.0123 | AZ47: 0.0145 | BA47: 0.0168 | BB47: 0.0192 | BC47: 0.0215 | BD47: 0.0233 | BE47: 0.0244 | BF47: 0.0246 | BG47: 0.0237 | BH47: 0.0217 | BI47: 0.0187 | BJ47: 0.0147 | BK47: 0.0097 | BL47: 0.0041 | BM47: 0.0028 | BN47: 0.0017 | BO47: 0.0011 | BP47: 0.0008 | BQ47: 0.0011 | BR47: 0.0019 | BS47: 0.0031 | BT47: 0.0045 | BU47: 0.006 | BV47: 0.0073 | BW47: 0.0083 | BX47: 0.0092 | BY47: 0.0097 | BZ47: 0.01 | CA47: 0.0102 | CB47: 0.0102 | CC47: 0.0101 | CD47: 0.01 | CE47: 0.01 | CF47: 0.01
B48: 63 | C48: 0.0285 | D48: 0.0253 | E48: 0.0222 | F48: 0.019 | G48: 0.0158 | H48: 0.013 | I48: 0.0107 | J48: 0.009 | K48: 0.0079 | L48: 0.0074 | M48: 0.0073 | N48: 0.0078 | O48: 0.0087 | P48: 0.0099 | Q48: 0.0112 | R48: 0.0123 | S48: 0.0133 | T48: 0.0141 | U48: 0.0147 | V48: 0.0153 | W48: 0.0158 | X48: 0.0163 | Y48: 0.0167 | Z48: 0.0166 | AA48: 0.016 | AB48: 0.0148 | AC48: 0.013 | AD48: 0.0108 | AE48: 0.0084 | AF48: 0.0061 | AG48: 0.0042 | AH48: 0.0029 | AI48: 0.0024 | AJ48: 0.0029 | AK48: 0.0041 | AL48: 0.0058 | AM48: 0.0076 | AN48: 0.0091 | AO48: 0.01 | AP48: 0.01 | AQ48: 0.0094 | AR48: 0.0083 | AS48: 0.0072 | AT48: 0.0064 | AU48: 0.0063 | AV48: 0.0068 | AW48: 0.008 | AX48: 0.0096 | AY48: 0.0116 | AZ48: 0.0139 | BA48: 0.0165 | BB48: 0.0191 | BC48: 0.0215 | BD48: 0.0234 | BE48: 0.0246 | BF48: 0.025 | BG48: 0.0243 | BH48: 0.0226 | BI48: 0.0199 | BJ48: 0.0163 | BK48: 0.0118 | BL48: 0.0067 | BM48: 0.0054 | BN48: 0.0043 | BO48: 0.0033 | BP48: 0.0026 | BQ48: 0.0023 | BR48: 0.0025 | BS48: 0.0032 | BT48: 0.0042 | BU48: 0.0054 | BV48: 0.0066 | BW48: 0.0077 | BX48: 0.0086 | BY48: 0.0093 | BZ48: 0.0098 | CA48: 0.01 | CB48: 0.0101 | CC48: 0.0101 | CD48: 0.01 | CE48: 0.01 | CF48: 0.01
B49: 64 | C49: 0.0271 | D49: 0.0241 | E49: 0.0212 | F49: 0.0182 | G49: 0.0153 | H49: 0.0127 | I49: 0.0106 | J49: 0.0091 | K49: 0.0081 | L49: 0.0076 | M49: 0.0077 | N49: 0.0082 | O49: 0.0092 | P49: 0.0105 | Q49: 0.012 | R49: 0.0135 | S49: 0.0147 | T49: 0.0157 | U49: 0.0164 | V49: 0.0167 | W49: 0.017 | X49: 0.0171 | Y49: 0.017 | Z49: 0.0166 | AA49: 0.0156 | AB49: 0.014 | AC49: 0.012 | AD49: 0.0097 | AE49: 0.0073 | AF49: 0.0051 | AG49: 0.0033 | AH49: 0.0023 | AI49: 0.002 | AJ49: 0.0026 | AK49: 0.004 | AL49: 0.0059 | AM49: 0.0078 | AN49: 0.0094 | AO49: 0.0102 | AP49: 0.01 | AQ49: 0.0091 | AR49: 0.0077 | AS49: 0.0064 | AT49: 0.0055 | AU49: 0.0053 | AV49: 0.0058 | AW49: 0.0069 | AX49: 0.0086 | AY49: 0.0108 | AZ49: 0.0133 | BA49: 0.0161 | BB49: 0.0188 | BC49: 0.0213 | BD49: 0.0234 | BE49: 0.0246 | BF49: 0.0251 | BG49: 0.0245 | BH49: 0.023 | BI49: 0.0206 | BJ49: 0.0173 | BK49: 0.0134 | BL49: 0.0089 | BM49: 0.0078 | BN49: 0.0066 | BO49: 0.0055 | BP49: 0.0045 | BQ49: 0.0038 | BR49: 0.0035 | BS49: 0.0036 | BT49: 0.0041 | BU49: 0.005 | BV49: 0.006 | BW49: 0.0071 | BX49: 0.0081 | BY49: 0.0089 | BZ49: 0.0095 | CA49: 0.0098 | CB49: 0.01 | CC49: 0.0101 | CD49: 0.01 | CE49: 0.01 | CF49: 0.01
B50: 65 | C50: 0.0257 | D50: 0.0229 | E50: 0.0202 | F50: 0.0175 | G50: 0.0149 | H50: 0.0126 | I50: 0.0107 | J50: 0.0094 | K50: 0.0086 | L50: 0.0082 | M50: 0.0082 | N50: 0.0087 | O50: 0.0097 | P50: 0.0111 | Q50: 0.0127 | R50: 0.0143 | S50: 0.0158 | T50: 0.0169 | U50: 0.0177 | V50: 0.018 | W50: 0.018 | X50: 0.0179 | Y50: 0.0175 | Z50: 0.0168 | AA50: 0.0154 | AB50: 0.0136 | AC50: 0.0113 | AD50: 0.0088 | AE50: 0.0063 | AF50: 0.0042 | AG50: 0.0026 | AH50: 0.0017 | AI50: 0.0016 | AJ50: 0.0024 | AK50: 0.004 | AL50: 0.006 | AM50: 0.008 | AN50: 0.0096 | AO50: 0.0103 | AP50: 0.0099 | AQ50: 0.0088 | AR50: 0.0073 | AS50: 0.0058 | AT50: 0.0048 | AU50: 0.0044 | AV50: 0.0048 | AW50: 0.0059 | AX50: 0.0076 | AY50: 0.0099 | AZ50: 0.0126 | BA50: 0.0155 | BB50: 0.0184 | BC50: 0.021 | BD50: 0.0231 | BE50: 0.0244 | BF50: 0.0249 | BG50: 0.0244 | BH50: 0.023 | BI50: 0.0208 | BJ50: 0.018 | BK50: 0.0145 | BL50: 0.0107 | BM50: 0.0098 | BN50: 0.0087 | BO50: 0.0075 | BP50: 0.0063 | BQ50: 0.0053 | BR50: 0.0046 | BS50: 0.0043 | BT50: 0.0044 | BU50: 0.0049 | BV50: 0.0056 | BW50: 0.0066 | BX50: 0.0076 | BY50: 0.0085 | BZ50: 0.0091 | CA50: 0.0096 | CB50: 0.0099 | CC50: 0.01 | CD50: 0.01 | CE50: 0.01 | CF50: 0.01
B51: 66 | C51: 0.0243 | D51: 0.0219 | E51: 0.0194 | F51: 0.0169 | G51: 0.0146 | H51: 0.0126 | I51: 0.011 | J51: 0.0099 | K51: 0.0092 | L51: 0.0089 | M51: 0.0089 | N51: 0.0094 | O51: 0.0103 | P51: 0.0115 | Q51: 0.0131 | R51: 0.0148 | S51: 0.0165 | T51: 0.0178 | U51: 0.0186 | V51: 0.0189 | W51: 0.019 | X51: 0.0187 | Y51: 0.0182 | Z51: 0.0172 | AA51: 0.0156 | AB51: 0.0135 | AC51: 0.0109 | AD51: 0.0082 | AE51: 0.0056 | AF51: 0.0035 | AG51: 0.0019 | AH51: 0.0012 | AI51: 0.0013 | AJ51: 0.0022 | AK51: 0.0039 | AL51: 0.006 | AM51: 0.0081 | AN51: 0.0097 | AO51: 0.0103 | AP51: 0.0098 | AQ51: 0.0086 | AR51: 0.0069 | AS51: 0.0053 | AT51: 0.0041 | AU51: 0.0037 | AV51: 0.004 | AW51: 0.005 | AX51: 0.0067 | AY51: 0.009 | AZ51: 0.0118 | BA51: 0.0148 | BB51: 0.0179 | BC51: 0.0206 | BD51: 0.0227 | BE51: 0.024 | BF51: 0.0245 | BG51: 0.024 | BH51: 0.0228 | BI51: 0.0209 | BJ51: 0.0183 | BK51: 0.0153 | BL51: 0.0121 | BM51: 0.0114 | BN51: 0.0104 | BO51: 0.0093 | BP51: 0.008 | BQ51: 0.0068 | BR51: 0.0059 | BS51: 0.0052 | BT51: 0.0049 | BU51: 0.005 | BV51: 0.0055 | BW51: 0.0063 | BX51: 0.0072 | BY51: 0.0081 | BZ51: 0.0088 | CA51: 0.0094 | CB51: 0.0098 | CC51: 0.0099 | CD51: 0.01 | CE51: 0.01 | CF51: 0.01
B52: 67 | C52: 0.0232 | D52: 0.021 | E52: 0.0188 | F52: 0.0166 | G52: 0.0146 | H52: 0.0128 | I52: 0.0115 | J52: 0.0106 | K52: 0.01 | L52: 0.0097 | M52: 0.0097 | N52: 0.0101 | O52: 0.0108 | P52: 0.012 | Q52: 0.0134 | R52: 0.0151 | S52: 0.0168 | T52: 0.0182 | U52: 0.0191 | V52: 0.0196 | W52: 0.0197 | X52: 0.0196 | Y52: 0.019 | Z52: 0.0179 | AA52: 0.0162 | AB52: 0.0138 | AC52: 0.0109 | AD52: 0.008 | AE52: 0.0053 | AF52: 0.003 | AG52: 0.0015 | AH52: 0.0008 | AI52: 0.001 | AJ52: 0.002 | AK52: 0.0038 | AL52: 0.006 | AM52: 0.0081 | AN52: 0.0097 | AO52: 0.0102 | AP52: 0.0097 | AQ52: 0.0084 | AR52: 0.0066 | AS52: 0.0049 | AT52: 0.0037 | AU52: 0.0031 | AV52: 0.0033 | AW52: 0.0042 | AX52: 0.0058 | AY52: 0.0081 | AZ52: 0.011 | BA52: 0.0141 | BB52: 0.0172 | BC52: 0.02 | BD52: 0.0221 | BE52: 0.0235 | BF52: 0.0239 | BG52: 0.0235 | BH52: 0.0224 | BI52: 0.0207 | BJ52: 0.0184 | BK52: 0.0158 | BL52: 0.0131 | BM52: 0.0125 | BN52: 0.0117 | BO52: 0.0107 | BP52: 0.0095 | BQ52: 0.0083 | BR52: 0.0071 | BS52: 0.0062 | BT52: 0.0056 | BU52: 0.0054 | BV52: 0.0056 | BW52: 0.0062 | BX52: 0.0069 | BY52: 0.0078 | BZ52: 0.0085 | CA52: 0.0091 | CB52: 0.0096 | CC52: 0.0099 | CD52: 0.01 | CE52: 0.01 | CF52: 0.01
B53: 68 | C53: 0.0223 | D53: 0.0203 | E53: 0.0184 | F53: 0.0165 | G53: 0.0147 | H53: 0.0132 | I53: 0.012 | J53: 0.0112 | K53: 0.0107 | L53: 0.0105 | M53: 0.0105 | N53: 0.0107 | O53: 0.0114 | P53: 0.0123 | Q53: 0.0136 | R53: 0.0152 | S53: 0.0168 | T53: 0.0183 | U53: 0.0194 | V53: 0.02 | W53: 0.0204 | X53: 0.0204 | Y53: 0.0199 | Z53: 0.0188 | AA53: 0.0169 | AB53: 0.0144 | AC53: 0.0113 | AD53: 0.0082 | AE53: 0.0053 | AF53: 0.0029 | AG53: 0.0013 | AH53: 0.0005 | AI53: 0.0007 | AJ53: 0.0018 | AK53: 0.0036 | AL53: 0.0058 | AM53: 0.0079 | AN53: 0.0095 | AO53: 0.0101 | AP53: 0.0096 | AQ53: 0.0082 | AR53: 0.0064 | AS53: 0.0047 | AT53: 0.0034 | AU53: 0.0026 | AV53: 0.0027 | AW53: 0.0035 | AX53: 0.005 | AY53: 0.0073 | AZ53: 0.0102 | BA53: 0.0133 | BB53: 0.0164 | BC53: 0.0192 | BD53: 0.0214 | BE53: 0.0228 | BF53: 0.0233 | BG53: 0.023 | BH53: 0.022 | BI53: 0.0204 | BJ53: 0.0184 | BK53: 0.0161 | BL53: 0.0136 | BM53: 0.0133 | BN53: 0.0127 | BO53: 0.0118 | BP53: 0.0107 | BQ53: 0.0095 | BR53: 0.0083 | BS53: 0.0073 | BT53: 0.0065 | BU53: 0.006 | BV53: 0.006 | BW53: 0.0063 | BX53: 0.0068 | BY53: 0.0075 | BZ53: 0.0083 | CA53: 0.0089 | CB53: 0.0094 | CC53: 0.0098 | CD53: 0.0099 | CE53: 0.01 | CF53: 0.01
B54: 69 | C54: 0.0217 | D54: 0.02 | E54: 0.0183 | F54: 0.0166 | G54: 0.015 | H54: 0.0136 | I54: 0.0125 | J54: 0.0118 | K54: 0.0114 | L54: 0.0112 | M54: 0.0111 | N54: 0.0113 | O54: 0.0118 | P54: 0.0126 | Q54: 0.0137 | R54: 0.0151 | S54: 0.0166 | T54: 0.0181 | U54: 0.0193 | V54: 0.0203 | W54: 0.0209 | X54: 0.0211 | Y54: 0.0208 | Z54: 0.0198 | AA54: 0.0179 | AB54: 0.0153 | AC54: 0.0121 | AD54: 0.0088 | AE54: 0.0056 | AF54: 0.003 | AG54: 0.0013 | AH54: 0.0005 | AI54: 0.0006 | AJ54: 0.0016 | AK54: 0.0034 | AL54: 0.0056 | AM54: 0.0077 | AN54: 0.0092 | AO54: 0.0099 | AP54: 0.0094 | AQ54: 0.0081 | AR54: 0.0063 | AS54: 0.0046 | AT54: 0.0032 | AU54: 0.0023 | AV54: 0.0022 | AW54: 0.0029 | AX54: 0.0044 | AY54: 0.0066 | AZ54: 0.0094 | BA54: 0.0125 | BB54: 0.0156 | BC54: 0.0184 | BD54: 0.0205 | BE54: 0.022 | BF54: 0.0226 | BG54: 0.0224 | BH54: 0.0215 | BI54: 0.0201 | BJ54: 0.0183 | BK54: 0.0162 | BL54: 0.0139 | BM54: 0.0137 | BN54: 0.0132 | BO54: 0.0125 | BP54: 0.0116 | BQ54: 0.0105 | BR54: 0.0094 | BS54: 0.0083 | BT54: 0.0074 | BU54: 0.0067 | BV54: 0.0065 | BW54: 0.0066 | BX54: 0.0069 | BY54: 0.0075 | BZ54: 0.0081 | CA54: 0.0088 | CB54: 0.0093 | CC54: 0.0097 | CD54: 0.0099 | CE54: 0.01 | CF54: 0.01
B55: 70 | C55: 0.0213 | D55: 0.0198 | E55: 0.0183 | F55: 0.0168 | G55: 0.0153 | H55: 0.014 | I55: 0.013 | J55: 0.0123 | K55: 0.0119 | L55: 0.0117 | M55: 0.0117 | N55: 0.0118 | O55: 0.0122 | P55: 0.0128 | Q55: 0.0137 | R55: 0.0149 | S55: 0.0163 | T55: 0.0177 | U55: 0.0191 | V55: 0.0203 | W55: 0.0212 | X55: 0.0217 | Y55: 0.0217 | Z55: 0.0208 | AA55: 0.019 | AB55: 0.0164 | AC55: 0.0131 | AD55: 0.0096 | AE55: 0.0063 | AF55: 0.0036 | AG55: 0.0016 | AH55: 0.0006 | AI55: 0.0006 | AJ55: 0.0015 | AK55: 0.0032 | AL55: 0.0053 | AM55: 0.0073 | AN55: 0.0089 | AO55: 0.0096 | AP55: 0.0092 | AQ55: 0.008 | AR55: 0.0063 | AS55: 0.0045 | AT55: 0.0031 | AU55: 0.0022 | AV55: 0.0019 | AW55: 0.0025 | AX55: 0.0038 | AY55: 0.0059 | AZ55: 0.0086 | BA55: 0.0116 | BB55: 0.0147 | BC55: 0.0174 | BD55: 0.0196 | BE55: 0.0211 | BF55: 0.0218 | BG55: 0.0218 | BH55: 0.021 | BI55: 0.0198 | BJ55: 0.0181 | BK55: 0.0161 | BL55: 0.0139 | BM55: 0.0138 | BN55: 0.0135 | BO55: 0.013 | BP55: 0.0122 | BQ55: 0.0113 | BR55: 0.0103 | BS55: 0.0092 | BT55: 0.0083 | BU55: 0.0075 | BV55: 0.0071 | BW55: 0.007 | BX55: 0.0072 | BY55: 0.0075 | BZ55: 0.0081 | CA55: 0.0086 | CB55: 0.0092 | CC55: 0.0096 | CD55: 0.0098 | CE55: 0.01 | CF55: 0.01
B56: 71 | C56: 0.0211 | D56: 0.0197 | E56: 0.0183 | F56: 0.0169 | G56: 0.0156 | H56: 0.0144 | I56: 0.0134 | J56: 0.0127 | K56: 0.0123 | L56: 0.0121 | M56: 0.012 | N56: 0.0121 | O56: 0.0124 | P56: 0.0129 | Q56: 0.0137 | R56: 0.0147 | S56: 0.0159 | T56: 0.0174 | U56: 0.0189 | V56: 0.0203 | W56: 0.0215 | X56: 0.0223 | Y56: 0.0225 | Z56: 0.0218 | AA56: 0.0202 | AB56: 0.0176 | AC56: 0.0144 | AD56: 0.0108 | AE56: 0.0073 | AF56: 0.0043 | AG56: 0.0022 | AH56: 0.0009 | AI56: 0.0007 | AJ56: 0.0015 | AK56: 0.003 | AL56: 0.005 | AM56: 0.007 | AN56: 0.0085 | AO56: 0.0093 | AP56: 0.009 | AQ56: 0.0079 | AR56: 0.0063 | AS56: 0.0045 | AT56: 0.0031 | AU56: 0.0021 | AV56: 0.0017 | AW56: 0.0021 | AX56: 0.0033 | AY56: 0.0053 | AZ56: 0.0079 | BA56: 0.0108 | BB56: 0.0138 | BC56: 0.0165 | BD56: 0.0187 | BE56: 0.0203 | BF56: 0.0211 | BG56: 0.0211 | BH56: 0.0205 | BI56: 0.0194 | BJ56: 0.0177 | BK56: 0.0158 | BL56: 0.0137 | BM56: 0.0137 | BN56: 0.0135 | BO56: 0.0131 | BP56: 0.0125 | BQ56: 0.0118 | BR56: 0.0109 | BS56: 0.01 | BT56: 0.0091 | BU56: 0.0084 | BV56: 0.0078 | BW56: 0.0075 | BX56: 0.0075 | BY56: 0.0077 | BZ56: 0.0081 | CA56: 0.0086 | CB56: 0.0091 | CC56: 0.0095 | CD56: 0.0098 | CE56: 0.01 | CF56: 0.01
B57: 72 | C57: 0.0209 | D57: 0.0196 | E57: 0.0183 | F57: 0.017 | G57: 0.0158 | H57: 0.0146 | I57: 0.0136 | J57: 0.013 | K57: 0.0125 | L57: 0.0123 | M57: 0.0122 | N57: 0.0122 | O57: 0.0124 | P57: 0.0129 | Q57: 0.0135 | R57: 0.0144 | S57: 0.0156 | T57: 0.0171 | U57: 0.0187 | V57: 0.0203 | W57: 0.0217 | X57: 0.0227 | Y57: 0.0232 | Z57: 0.0228 | AA57: 0.0214 | AB57: 0.0189 | AC57: 0.0157 | AD57: 0.0121 | AE57: 0.0085 | AF57: 0.0054 | AG57: 0.003 | AH57: 0.0015 | AI57: 0.001 | AJ57: 0.0015 | AK57: 0.0028 | AL57: 0.0047 | AM57: 0.0066 | AN57: 0.0081 | AO57: 0.0089 | AP57: 0.0088 | AQ57: 0.0078 | AR57: 0.0063 | AS57: 0.0046 | AT57: 0.0031 | AU57: 0.002 | AV57: 0.0016 | AW57: 0.0019 | AX57: 0.0029 | AY57: 0.0048 | AZ57: 0.0072 | BA57: 0.0101 | BB57: 0.013 | BC57: 0.0157 | BD57: 0.0179 | BE57: 0.0195 | BF57: 0.0203 | BG57: 0.0205 | BH57: 0.0199 | BI57: 0.0189 | BJ57: 0.0173 | BK57: 0.0154 | BL57: 0.0133 | BM57: 0.0134 | BN57: 0.0134 | BO57: 0.0131 | BP57: 0.0127 | BQ57: 0.0121 | BR57: 0.0114 | BS57: 0.0106 | BT57: 0.0098 | BU57: 0.0091 | BV57: 0.0085 | BW57: 0.0081 | BX57: 0.008 | BY57: 0.008 | BZ57: 0.0083 | CA57: 0.0086 | CB57: 0.0091 | CC57: 0.0095 | CD57: 0.0098 | CE57: 0.01 | CF57: 0.01
B58: 73 | C58: 0.0208 | D58: 0.0195 | E58: 0.0182 | F58: 0.017 | G58: 0.0157 | H58: 0.0146 | I58: 0.0137 | J58: 0.013 | K58: 0.0126 | L58: 0.0123 | M58: 0.0121 | N58: 0.0121 | O58: 0.0123 | P58: 0.0127 | Q58: 0.0133 | R58: 0.0142 | S58: 0.0154 | T58: 0.0168 | U58: 0.0185 | V58: 0.0202 | W58: 0.0219 | X58: 0.0231 | Y58: 0.0239 | Z58: 0.0237 | AA58: 0.0225 | AB58: 0.0202 | AC58: 0.0171 | AD58: 0.0135 | AE58: 0.0098 | AF58: 0.0065 | AG58: 0.0039 | AH58: 0.0022 | AI58: 0.0014 | AJ58: 0.0017 | AK58: 0.0028 | AL58: 0.0044 | AM58: 0.0063 | AN58: 0.0078 | AO58: 0.0086 | AP58: 0.0086 | AQ58: 0.0077 | AR58: 0.0062 | AS58: 0.0045 | AT58: 0.003 | AU58: 0.002 | AV58: 0.0015 | AW58: 0.0017 | AX58: 0.0026 | AY58: 0.0043 | AZ58: 0.0066 | BA58: 0.0093 | BB58: 0.0122 | BC58: 0.0149 | BD58: 0.0171 | BE58: 0.0187 | BF58: 0.0196 | BG58: 0.0198 | BH58: 0.0193 | BI58: 0.0183 | BJ58: 0.0168 | BK58: 0.0149 | BL58: 0.0128 | BM58: 0.013 | BN58: 0.013 | BO58: 0.0129 | BP58: 0.0126 | BQ58: 0.0122 | BR58: 0.0117 | BS58: 0.011 | BT58: 0.0104 | BU58: 0.0097 | BV58: 0.0092 | BW58: 0.0087 | BX58: 0.0085 | BY58: 0.0084 | BZ58: 0.0085 | CA58: 0.0087 | CB58: 0.0091 | CC58: 0.0095 | CD58: 0.0098 | CE58: 0.0099 | CF58: 0.01
B59: 74 | C59: 0.0204 | D59: 0.0192 | E59: 0.018 | F59: 0.0167 | G59: 0.0155 | H59: 0.0144 | I59: 0.0135 | J59: 0.0129 | K59: 0.0124 | L59: 0.0121 | M59: 0.012 | N59: 0.0119 | O59: 0.0121 | P59: 0.0125 | Q59: 0.0131 | R59: 0.014 | S59: 0.0152 | T59: 0.0167 | U59: 0.0185 | V59: 0.0203 | W59: 0.022 | X59: 0.0235 | Y59: 0.0244 | Z59: 0.0245 | AA59: 0.0235 | AB59: 0.0214 | AC59: 0.0184 | AD59: 0.0149 | AE59: 0.0112 | AF59: 0.0078 | AG59: 0.005 | AH59: 0.003 | AI59: 0.002 | AJ59: 0.002 | AK59: 0.0028 | AL59: 0.0043 | AM59: 0.006 | AN59: 0.0075 | AO59: 0.0083 | AP59: 0.0083 | AQ59: 0.0075 | AR59: 0.0061 | AS59: 0.0045 | AT59: 0.003 | AU59: 0.0019 | AV59: 0.0013 | AW59: 0.0014 | AX59: 0.0023 | AY59: 0.0038 | AZ59: 0.0061 | BA59: 0.0087 | BB59: 0.0115 | BC59: 0.0142 | BD59: 0.0165 | BE59: 0.0181 | BF59: 0.019 | BG59: 0.0192 | BH59: 0.0187 | BI59: 0.0177 | BJ59: 0.0161 | BK59: 0.0143 | BL59: 0.0122 | BM59: 0.0125 | BN59: 0.0126 | BO59: 0.0126 | BP59: 0.0124 | BQ59: 0.0122 | BR59: 0.0118 | BS59: 0.0113 | BT59: 0.0108 | BU59: 0.0102 | BV59: 0.0097 | BW59: 0.0093 | BX59: 0.009 | BY59: 0.0088 | BZ59: 0.0088 | CA59: 0.0089 | CB59: 0.0092 | CC59: 0.0095 | CD59: 0.0097 | CE59: 0.0099 | CF59: 0.01
B60: 75 | C60: 0.0199 | D60: 0.0187 | E60: 0.0174 | F60: 0.0162 | G60: 0.015 | H60: 0.014 | I60: 0.0132 | J60: 0.0125 | K60: 0.0121 | L60: 0.0118 | M60: 0.0116 | N60: 0.0116 | O60: 0.0118 | P60: 0.0123 | Q60: 0.0129 | R60: 0.0139 | S60: 0.0152 | T60: 0.0167 | U60: 0.0185 | V60: 0.0204 | W60: 0.0222 | X60: 0.0238 | Y60: 0.0249 | Z60: 0.0251 | AA60: 0.0244 | AB60: 0.0225 | AC60: 0.0197 | AD60: 0.0162 | AE60: 0.0126 | AF60: 0.0091 | AG60: 0.0061 | AH60: 0.0039 | AI60: 0.0026 | AJ60: 0.0024 | AK60: 0.003 | AL60: 0.0043 | AM60: 0.0059 | AN60: 0.0073 | AO60: 0.0081 | AP60: 0.0081 | AQ60: 0.0073 | AR60: 0.006 | AS60: 0.0044 | AT60: 0.0029 | AU60: 0.0018 | AV60: 0.0012 | AW60: 0.0012 | AX60: 0.0019 | AY60: 0.0034 | AZ60: 0.0056 | BA60: 0.0082 | BB60: 0.011 | BC60: 0.0137 | BD60: 0.0159 | BE60: 0.0175 | BF60: 0.0184 | BG60: 0.0186 | BH60: 0.0181 | BI60: 0.017 | BJ60: 0.0155 | BK60: 0.0136 | BL60: 0.0116 | BM60: 0.0119 | BN60: 0.0121 | BO60: 0.0121 | BP60: 0.0121 | BQ60: 0.012 | BR60: 0.0117 | BS60: 0.0114 | BT60: 0.011 | BU60: 0.0106 | BV60: 0.0102 | BW60: 0.0098 | BX60: 0.0094 | BY60: 0.0092 | BZ60: 0.0091 | CA60: 0.0091 | CB60: 0.0093 | CC60: 0.0095 | CD60: 0.0098 | CE60: 0.0099 | CF60: 0.01
B61: 76 | C61: 0.0191 | D61: 0.0179 | E61: 0.0167 | F61: 0.0155 | G61: 0.0143 | H61: 0.0133 | I61: 0.0125 | J61: 0.012 | K61: 0.0116 | L61: 0.0113 | M61: 0.0112 | N61: 0.0113 | O61: 0.0115 | P61: 0.012 | Q61: 0.0128 | R61: 0.0138 | S61: 0.0152 | T61: 0.0168 | U61: 0.0186 | V61: 0.0205 | W61: 0.0224 | X61: 0.024 | Y61: 0.0252 | Z61: 0.0257 | AA61: 0.0251 | AB61: 0.0234 | AC61: 0.0208 | AD61: 0.0174 | AE61: 0.0138 | AF61: 0.0103 | AG61: 0.0072 | AH61: 0.0049 | AI61: 0.0034 | AJ61: 0.0029 | AK61: 0.0033 | AL61: 0.0044 | AM61: 0.0058 | AN61: 0.0071 | AO61: 0.0079 | AP61: 0.0079 | AQ61: 0.0071 | AR61: 0.0058 | AS61: 0.0042 | AT61: 0.0027 | AU61: 0.0015 | AV61: 0.0009 | AW61: 0.0009 | AX61: 0.0016 | AY61: 0.003 | AZ61: 0.0051 | BA61: 0.0077 | BB61: 0.0105 | BC61: 0.0132 | BD61: 0.0155 | BE61: 0.0171 | BF61: 0.0179 | BG61: 0.018 | BH61: 0.0175 | BI61: 0.0163 | BJ61: 0.0148 | BK61: 0.0129 | BL61: 0.0109 | BM61: 0.0112 | BN61: 0.0115 | BO61: 0.0116 | BP61: 0.0117 | BQ61: 0.0117 | BR61: 0.0116 | BS61: 0.0114 | BT61: 0.0111 | BU61: 0.0108 | BV61: 0.0105 | BW61: 0.0102 | BX61: 0.0098 | BY61: 0.0095 | BZ61: 0.0094 | CA61: 0.0093 | CB61: 0.0094 | CC61: 0.0096 | CD61: 0.0098 | CE61: 0.0099 | CF61: 0.01
B62: 77 | C62: 0.0181 | D62: 0.0168 | E62: 0.0156 | F62: 0.0145 | G62: 0.0133 | H62: 0.0124 | I62: 0.0117 | J62: 0.0112 | K62: 0.0109 | L62: 0.0107 | M62: 0.0107 | N62: 0.0108 | O62: 0.0112 | P62: 0.0118 | Q62: 0.0127 | R62: 0.0138 | S62: 0.0152 | T62: 0.0169 | U62: 0.0187 | V62: 0.0206 | W62: 0.0225 | X62: 0.0243 | Y62: 0.0255 | Z62: 0.0261 | AA62: 0.0256 | AB62: 0.0241 | AC62: 0.0216 | AD62: 0.0185 | AE62: 0.0149 | AF62: 0.0114 | AG62: 0.0083 | AH62: 0.0059 | AI62: 0.0042 | AJ62: 0.0035 | AK62: 0.0037 | AL62: 0.0046 | AM62: 0.0058 | AN62: 0.007 | AO62: 0.0077 | AP62: 0.0077 | AQ62: 0.0069 | AR62: 0.0055 | AS62: 0.0039 | AT62: 0.0024 | AU62: 0.0012 | AV62: 0.0005 | AW62: 0.0005 | AX62: 0.0012 | AY62: 0.0026 | AZ62: 0.0047 | BA62: 0.0073 | BB62: 0.0102 | BC62: 0.0129 | BD62: 0.0152 | BE62: 0.0167 | BF62: 0.0175 | BG62: 0.0176 | BH62: 0.0169 | BI62: 0.0157 | BJ62: 0.0141 | BK62: 0.0122 | BL62: 0.0102 | BM62: 0.0106 | BN62: 0.0109 | BO62: 0.0111 | BP62: 0.0113 | BQ62: 0.0114 | BR62: 0.0114 | BS62: 0.0113 | BT62: 0.0112 | BU62: 0.011 | BV62: 0.0107 | BW62: 0.0104 | BX62: 0.0101 | BY62: 0.0098 | BZ62: 0.0096 | CA62: 0.0095 | CB62: 0.0095 | CC62: 0.0096 | CD62: 0.0098 | CE62: 0.0099 | CF62: 0.01
B63: 78 | C63: 0.0167 | D63: 0.0155 | E63: 0.0144 | F63: 0.0132 | G63: 0.0122 | H63: 0.0113 | I63: 0.0106 | J63: 0.0102 | K63: 0.01 | L63: 0.0099 | M63: 0.0101 | N63: 0.0104 | O63: 0.0109 | P63: 0.0116 | Q63: 0.0126 | R63: 0.0138 | S63: 0.0153 | T63: 0.017 | U63: 0.0189 | V63: 0.0208 | W63: 0.0227 | X63: 0.0244 | Y63: 0.0257 | Z63: 0.0263 | AA63: 0.026 | AB63: 0.0246 | AC63: 0.0223 | AD63: 0.0193 | AE63: 0.0159 | AF63: 0.0125 | AG63: 0.0094 | AH63: 0.0068 | AI63: 0.0051 | AJ63: 0.0042 | AK63: 0.0042 | AL63: 0.0049 | AM63: 0.0059 | AN63: 0.0069 | AO63: 0.0075 | AP63: 0.0074 | AQ63: 0.0066 | AR63: 0.0052 | AS63: 0.0036 | AT63: 0.002 | AU63: 0.0008 | AV63: 0.0001 | AW63: 0 | AX63: 0.0007 | AY63: 0.0021 | AZ63: 0.0042 | BA63: 0.0069 | BB63: 0.0098 | BC63: 0.0126 | BD63: 0.0149 | BE63: 0.0164 | BF63: 0.0172 | BG63: 0.0172 | BH63: 0.0164 | BI63: 0.0152 | BJ63: 0.0135 | BK63: 0.0115 | BL63: 0.0095 | BM63: 0.0099 | BN63: 0.0102 | BO63: 0.0105 | BP63: 0.0108 | BQ63: 0.011 | BR63: 0.0111 | BS63: 0.0111 | BT63: 0.0111 | BU63: 0.011 | BV63: 0.0108 | BW63: 0.0106 | BX63: 0.0103 | BY63: 0.0101 | BZ63: 0.0099 | CA63: 0.0097 | CB63: 0.0097 | CC63: 0.0097 | CD63: 0.0098 | CE63: 0.0099 | CF63: 0.01
B64: 79 | C64: 0.0151 | D64: 0.014 | E64: 0.0129 | F64: 0.0118 | G64: 0.0108 | H64: 0.01 | I64: 0.0094 | J64: 0.009 | K64: 0.0089 | L64: 0.0091 | M64: 0.0094 | N64: 0.0099 | O64: 0.0106 | P64: 0.0115 | Q64: 0.0126 | R64: 0.0139 | S64: 0.0154 | T64: 0.0172 | U64: 0.0191 | V64: 0.021 | W64: 0.0229 | X64: 0.0246 | Y64: 0.0259 | Z64: 0.0265 | AA64: 0.0262 | AB64: 0.025 | AC64: 0.0228 | AD64: 0.0199 | AE64: 0.0167 | AF64: 0.0133 | AG64: 0.0103 | AH64: 0.0077 | AI64: 0.0059 | AJ64: 0.0049 | AK64: 0.0047 | AL64: 0.0052 | AM64: 0.0061 | AN64: 0.0069 | AO64: 0.0074 | AP64: 0.0072 | AQ64: 0.0063 | AR64: 0.0049 | AS64: 0.0032 | AT64: 0.0016 | AU64: 0.0003 | AV64: -0.0005 | AW64: -0.0005 | AX64: 0.0001 | AY64: 0.0016 | AZ64: 0.0038 | BA64: 0.0065 | BB64: 0.0095 | BC64: 0.0123 | BD64: 0.0146 | BE64: 0.0161 | BF64: 0.0169 | BG64: 0.0168 | BH64: 0.016 | BI64: 0.0147 | BJ64: 0.0129 | BK64: 0.0109 | BL64: 0.0089 | BM64: 0.0092 | BN64: 0.0096 | BO64: 0.0099 | BP64: 0.0103 | BQ64: 0.0106 | BR64: 0.0108 | BS64: 0.0109 | BT64: 0.011 | BU64: 0.0109 | BV64: 0.0108 | BW64: 0.0106 | BX64: 0.0104 | BY64: 0.0102 | BZ64: 0.0101 | CA64: 0.0099 | CB64: 0.0098 | CC64: 0.0098 | CD64: 0.0099 | CE64: 0.01 | CF64: 0.01
B65: 80 | C65: 0.0134 | D65: 0.0123 | E65: 0.0113 | F65: 0.0103 | G65: 0.0093 | H65: 0.0086 | I65: 0.008 | J65: 0.0078 | K65: 0.0078 | L65: 0.0081 | M65: 0.0086 | N65: 0.0094 | O65: 0.0102 | P65: 0.0113 | Q65: 0.0126 | R65: 0.014 | S65: 0.0156 | T65: 0.0174 | U65: 0.0193 | V65: 0.0212 | W65: 0.0231 | X65: 0.0247 | Y65: 0.0259 | Z65: 0.0265 | AA65: 0.0262 | AB65: 0.0251 | AC65: 0.023 | AD65: 0.0203 | AE65: 0.0172 | AF65: 0.014 | AG65: 0.011 | AH65: 0.0085 | AI65: 0.0066 | AJ65: 0.0056 | AK65: 0.0052 | AL65: 0.0056 | AM65: 0.0062 | AN65: 0.0069 | AO65: 0.0073 | AP65: 0.007 | AQ65: 0.006 | AR65: 0.0045 | AS65: 0.0027 | AT65: 0.001 | AU65: -0.0003 | AV65: -0.0011 | AW65: -0.0012 | AX65: -0.0005 | AY65: 0.001 | AZ65: 0.0033 | BA65: 0.0061 | BB65: 0.0091 | BC65: 0.012 | BD65: 0.0143 | BE65: 0.0159 | BF65: 0.0166 | BG65: 0.0165 | BH65: 0.0157 | BI65: 0.0143 | BJ65: 0.0125 | BK65: 0.0104 | BL65: 0.0083 | BM65: 0.0086 | BN65: 0.009 | BO65: 0.0094 | BP65: 0.0098 | BQ65: 0.0101 | BR65: 0.0104 | BS65: 0.0107 | BT65: 0.0108 | BU65: 0.0108 | BV65: 0.0108 | BW65: 0.0107 | BX65: 0.0105 | BY65: 0.0103 | BZ65: 0.0102 | CA65: 0.0101 | CB65: 0.0099 | CC65: 0.0099 | CD65: 0.0099 | CE65: 0.01 | CF65: 0.01
B66: 81 | C66: 0.0114 | D66: 0.0105 | E66: 0.0095 | F66: 0.0086 | G66: 0.0077 | H66: 0.007 | I66: 0.0066 | J66: 0.0065 | K66: 0.0067 | L66: 0.0071 | M66: 0.0078 | N66: 0.0088 | O66: 0.0099 | P66: 0.0111 | Q66: 0.0126 | R66: 0.0141 | S66: 0.0158 | T66: 0.0176 | U66: 0.0195 | V66: 0.0214 | W66: 0.0232 | X66: 0.0247 | Y66: 0.0259 | Z66: 0.0264 | AA66: 0.0261 | AB66: 0.025 | AC66: 0.0231 | AD66: 0.0205 | AE66: 0.0176 | AF66: 0.0145 | AG66: 0.0117 | AH66: 0.0092 | AI66: 0.0073 | AJ66: 0.0062 | AK66: 0.0057 | AL66: 0.0059 | AM66: 0.0064 | AN66: 0.0069 | AO66: 0.0071 | AP66: 0.0067 | AQ66: 0.0057 | AR66: 0.0041 | AS66: 0.0022 | AT66: 0.0005 | AU66: -0.0009 | AV66: -0.0017 | AW66: -0.0019 | AX66: -0.0011 | AY66: 0.0004 | AZ66: 0.0028 | BA66: 0.0057 | BB66: 0.0087 | BC66: 0.0116 | BD66: 0.014 | BE66: 0.0156 | BF66: 0.0164 | BG66: 0.0162 | BH66: 0.0154 | BI66: 0.0139 | BJ66: 0.0121 | BK66: 0.01 | BL66: 0.0078 | BM66: 0.0081 | BN66: 0.0084 | BO66: 0.0088 | BP66: 0.0093 | BQ66: 0.0097 | BR66: 0.0101 | BS66: 0.0104 | BT66: 0.0106 | BU66: 0.0107 | BV66: 0.0107 | BW66: 0.0106 | BX66: 0.0105 | BY66: 0.0104 | BZ66: 0.0102 | CA66: 0.0101 | CB66: 0.01 | CC66: 0.01 | CD66: 0.01 | CE66: 0.01 | CF66: 0.01
B67: 82 | C67: 0.0094 | D67: 0.0085 | E67: 0.0077 | F67: 0.0068 | G67: 0.0061 | H67: 0.0055 | I67: 0.0052 | J67: 0.0051 | K67: 0.0055 | L67: 0.0061 | M67: 0.007 | N67: 0.0081 | O67: 0.0095 | P67: 0.0109 | Q67: 0.0125 | R67: 0.0142 | S67: 0.016 | T67: 0.0178 | U67: 0.0197 | V67: 0.0216 | W67: 0.0233 | X67: 0.0247 | Y67: 0.0257 | Z67: 0.0262 | AA67: 0.0259 | AB67: 0.0248 | AC67: 0.023 | AD67: 0.0205 | AE67: 0.0177 | AF67: 0.0148 | AG67: 0.0121 | AH67: 0.0097 | AI67: 0.0079 | AJ67: 0.0067 | AK67: 0.0062 | AL67: 0.0062 | AM67: 0.0066 | AN67: 0.0069 | AO67: 0.007 | AP67: 0.0064 | AQ67: 0.0053 | AR67: 0.0036 | AS67: 0.0017 | AT67: -0.0001 | AU67: -0.0016 | AV67: -0.0024 | AW67: -0.0025 | AX67: -0.0018 | AY67: -0.0002 | AZ67: 0.0022 | BA67: 0.0052 | BB67: 0.0083 | BC67: 0.0112 | BD67: 0.0136 | BE67: 0.0153 | BF67: 0.0161 | BG67: 0.016 | BH67: 0.0151 | BI67: 0.0137 | BJ67: 0.0118 | BK67: 0.0097 | BL67: 0.0075 | BM67: 0.0077 | BN67: 0.008 | BO67: 0.0084 | BP67: 0.0088 | BQ67: 0.0093 | BR67: 0.0097 | BS67: 0.0101 | BT67: 0.0104 | BU67: 0.0105 | BV67: 0.0106 | BW67: 0.0105 | BX67: 0.0104 | BY67: 0.0103 | BZ67: 0.0102 | CA67: 0.0101 | CB67: 0.01 | CC67: 0.01 | CD67: 0.01 | CE67: 0.01 | CF67: 0.01
B68: 83 | C68: 0.0073 | D68: 0.0065 | E68: 0.0058 | F68: 0.005 | G68: 0.0044 | H68: 0.0039 | I68: 0.0037 | J68: 0.0038 | K68: 0.0043 | L68: 0.0051 | M68: 0.0062 | N68: 0.0075 | O68: 0.009 | P68: 0.0107 | Q68: 0.0125 | R68: 0.0143 | S68: 0.0162 | T68: 0.0181 | U68: 0.02 | V68: 0.0217 | W68: 0.0233 | X68: 0.0246 | Y68: 0.0255 | Z68: 0.0259 | AA68: 0.0255 | AB68: 0.0245 | AC68: 0.0227 | AD68: 0.0204 | AE68: 0.0177 | AF68: 0.015 | AG68: 0.0124 | AH68: 0.0101 | AI68: 0.0083 | AJ68: 0.0071 | AK68: 0.0065 | AL68: 0.0064 | AM68: 0.0066 | AN68: 0.0069 | AO68: 0.0068 | AP68: 0.0061 | AQ68: 0.0048 | AR68: 0.0031 | AS68: 0.0011 | AT68: -0.0008 | AU68: -0.0022 | AV68: -0.0031 | AW68: -0.0032 | AX68: -0.0025 | AY68: -0.0008 | AZ68: 0.0016 | BA68: 0.0046 | BB68: 0.0077 | BC68: 0.0107 | BD68: 0.0132 | BE68: 0.0149 | BF68: 0.0157 | BG68: 0.0157 | BH68: 0.0148 | BI68: 0.0134 | BJ68: 0.0115 | BK68: 0.0094 | BL68: 0.0073 | BM68: 0.0074 | BN68: 0.0077 | BO68: 0.008 | BP68: 0.0085 | BQ68: 0.0089 | BR68: 0.0094 | BS68: 0.0098 | BT68: 0.0101 | BU68: 0.0103 | BV68: 0.0104 | BW68: 0.0104 | BX68: 0.0104 | BY68: 0.0103 | BZ68: 0.0102 | CA68: 0.0101 | CB68: 0.01 | CC68: 0.01 | CD68: 0.01 | CE68: 0.01 | CF68: 0.01
B69: 84 | C69: 0.0051 | D69: 0.0045 | E69: 0.0039 | F69: 0.0033 | G69: 0.0028 | H69: 0.0024 | I69: 0.0024 | J69: 0.0026 | K69: 0.0032 | L69: 0.0041 | M69: 0.0053 | N69: 0.0068 | O69: 0.0085 | P69: 0.0104 | Q69: 0.0124 | R69: 0.0144 | S69: 0.0164 | T69: 0.0183 | U69: 0.0202 | V69: 0.0219 | W69: 0.0233 | X69: 0.0245 | Y69: 0.0252 | Z69: 0.0254 | AA69: 0.025 | AB69: 0.024 | AC69: 0.0223 | AD69: 0.0201 | AE69: 0.0176 | AF69: 0.015 | AG69: 0.0125 | AH69: 0.0104 | AI69: 0.0086 | AJ69: 0.0074 | AK69: 0.0068 | AL69: 0.0066 | AM69: 0.0067 | AN69: 0.0067 | AO69: 0.0065 | AP69: 0.0057 | AQ69: 0.0043 | AR69: 0.0025 | AS69: 0.0005 | AT69: -0.0014 | AU69: -0.0029 | AV69: -0.0038 | AW69: -0.0039 | AX69: -0.0031 | AY69: -0.0015 | AZ69: 0.001 | BA69: 0.0039 | BB69: 0.0071 | BC69: 0.0101 | BD69: 0.0126 | BE69: 0.0144 | BF69: 0.0153 | BG69: 0.0153 | BH69: 0.0146 | BI69: 0.0132 | BJ69: 0.0113 | BK69: 0.0093 | BL69: 0.0072 | BM69: 0.0073 | BN69: 0.0075 | BO69: 0.0078 | BP69: 0.0081 | BQ69: 0.0086 | BR69: 0.009 | BS69: 0.0094 | BT69: 0.0098 | BU69: 0.0101 | BV69: 0.0102 | BW69: 0.0103 | BX69: 0.0102 | BY69: 0.0102 | BZ69: 0.0101 | CA69: 0.0101 | CB69: 0.01 | CC69: 0.01 | CD69: 0.01 | CE69: 0.01 | CF69: 0.01
